Workbook

Sheet Votes
B1: LNC Roll Call Votes #1 | T1: LNC Roll Call Votes #2 | AE1: LNC Roll Call Votes #3 | AU1: LNC Roll Call Votes #4 | BD1: LNC E-mail Ballots #1 | BT1: LNC E-mail Ballots #2 | CM1: LNC E-Mail Ballots #3
A2: ¹ Vote took 2/3 to pass ² Vote took 3/4 to pass ³ Chair ruled motion out of order | B2: Authorize EC to spend $15k fighting top-2 in CA May 2010 (p. 9) | C2: 2012 convention: non-holiday weekend Mar-May July 2010 (pp. 5-6) | D2: Amend PM: create standing Outreach Committee July 2010 (p. 6) | E2: Amend PM: create standing IT Committee July 2010 (pp. 7-8) | F2: Amend PM: ED duty: detailed ballot access plan July 2010 (pp. 8-9) | G2: Ballot access: rescind unspent NY encumberance July 2010 (p. 10) | H2: Amend budget: increase staff, branding, fundraising July 2010 (pp. 4-5, 10-11) | I2: Strike "Private Email List" from agenda November 2010 (p. 2) | J2: Allow Aaron Starr to speak from the gallary November 2010 (p. 9) | K2: Authorize spending to assist LPNM lawsuit November 2010 (p. 11) | L2: Substitute: 2012 - Dallas, TX; 2014 - Columbus, OH November 2010 (pp. 11-12) | M2: 2012 convention: Red Rock in Las Vegas, NV November 2010 (pp. 11-12) | N2: 2012 convention: weekend of May 3-8 November 2010 (p. 12) | O2: Schedule/site 2014 & 2016 conventions this term November 2010 (pp. 12-13) | P2: Building fund #1: establish HQ building fund November 2010 (p. 13) | Q2: Goals: members, organize, fundraise, train, political November 2010 (pp. 15-16) | R2: EC set 3 strategic priorities, staff propose budget November 2010 (pp. 16-17) | S2: Authorize EC to make ballot access expenditures November 2010 (p. 17) | T2: Ballot access: spend less than $2k x electoral votes April 2011 (pp. 14-15) | U2: Adopt 2011 budget April 2011 (pp. 15-18) | V2: Adopt affiliate petition form (see bylaw 6.2) April 2011 (p. 18) | W2: Find 3 alternative leases to Watergate April 2011 (p. 19) | X2: Resolution: impeach President Obama April 2011 (p. 20) | Y2: Reinburse top-2 pro-bono attorney for $1.5 of travel August 2011 (pp. 4-5) | Z2: Building fund #2: DC property search August 2011 (p. 12) | AA2: 2014 convention: Hyett Regency in Columbus, OH August 2011 (pp. 11-12) | AB2: Amend PM: affiliate support committee report Nov. 1 August 2011 (p. 14) | AC2: Amend PM: restructure affiliate support committee August 2011 (p. 14) | AD2: Donate $50k to Ed Coleman city council campaign August 2011 (p. 15) | AE2: Chair not cooperating with LNCC; VC gets powers December 2011 (pp. 4-5) | AF2: Amend PM: add LSLA report to all LNC agendas December 2011 (p. 19) | AG2: Amend PM: change member / life member levels December 2011 (pp. 19-22) | AH2: Building fund #3: purchase 1425 Duke St. December 2011 (pp. 22-23) | AI2: Building fund #4: rescind purchase w/milestones December 2011 (pp. 7-8, 22-24) | AJ2: Rescind backup lease (3 locations) mail ballot December 2011 (pp. 10, 24) | AK2: Renew Watergate lease for HQ December 2011 (p. 24) | AL2: Committee to review employee duties / tasks December 2011 (p. 26) | AM2: Amend budget: ballot access spending - 2/3 EC vote December 2011 (p. 27) | AN2: LSLA IT project: 2/3 for tech spec, rest on delivery December 2011 (pp. 4, 28) | AO2: LSLA IT project: pay $50k to Brett Pojunis for project December 2011 (pp. 4, 28) | AP2: Adopt 2012 budget December 2011 (pp. 27-30) | AQ2: Hire Carla Howell as executive director December 2011 (p. 30) | AR2: Resolution: back Regulate Marijuana Like Wine Act December 2011 (p. 31) | AS2: Resolution: endorse approval voting December 2011 (p. 31) | AT2: Amend PM: restructure affiliate support committee December 2011 (pp. 31-32) | AU2: Ballot access: authorize spending in IL, KY, OK, WV March 2012 (p. 6) | AV2: Waive conflict of interest for OR lawyer Tyler Smith March 2012 (pp. 6-7) | AW2: Correct books: no receivable due from Aaron Starr March 2012 (p. 7) | AX2: Building fund #5: form building committee March 2012 (p. 7) | AY2: "mandatory floor fee" → "cost of business session" March 2012 (p. 8) | AZ2: Get rid of $94 floor fee for 2012 business session March 2012 (p. 8) | BA2: Send package buyers list to credentials, state chairs March 2012 (pp. 8-9) | BB2: 2016 convention: Westin hotel in Los Angeles, CA March 2012 (p. 9) | BC2: LSLA IT project: re-issue check with no conditions March 2012 (p. 11) | BD2: Amend PM: secretary won't summarize debate 6/25/2010 - 7/10/2010 (July 2010, p. 4) | BE2: Executive director bonus not hurt by new July budget 7/19/2010 - 8/3/2010 (November 2010, p. 5) | BF2: Resolution: support Vienna Declaration (drug policy) 8/4/2010 - 8/19/2010 (November 2010, pp. 5-6) | BG2: Amend PM: let alternates on convention & IT coms. 9/16/2010 - 10/1/2010 (November 2010, p. 6) | BH2: Amend PM: update convention committee duties 9/23/2010 - 10/8/2010 (November 2010, pp. 6-7) | BI2: Amend PM: let alternates on convention & IT coms. 10/5/2010 - 10/25/2010 (November 2010, p. 7) | BJ2: 2012 convention: Hyatt Grand Regency in Dallas, TX 10/14/2010 - 10/29/2010 (November 2010, p. 7) | BK2: 2012 convention: select site next LNC meeting 10/17/2010 - 11/1/2010 (November 2010, p. 7) | BL2: Amend PM: increase IT committee to 3+ members 11/27/2010 - 12/12/2010 (April 2011, p. 7) | BM2: Amend PM: increase detail of the budget 12/11/2010 - 12/26/2010 (April 2011, pp. 7-8) | BN2: Approve November 2010 LNC meeting minutes 12/22/2010 - 1/6/2011 (April 2011, p. 8) | BO2: Amend PM: add monthly treasurer report to LNC 12/27/2010 - 1/11/2011 (April 2011, pp. 9-10) | BP2: Appoint Kevin Knedler to executive committee 1/7/2011 - 1/22/2011 (April 2011, p. 10) | BQ2: Appoint Andy Wolf to audit committee 1/19/2011 - 2/3/2011 (April 2011, p. 10) | BR2: Amend PM: only email (no snail mail) ballots 1/26/2011 - 2/20/2011 (April 2011, pp. 10-11) | BS2: Adopt 2011 budget (attached to ballot) 3/25/2011 - 4/9/2011 (April 2011, p. 11) | BT2: Amend PM: update APRC procedures 5/11/2011 - 5/26/2011 (August 2011, p. 5) | BU2: Resolution: money for Regulate Marijuana Like Wine 5/22/2011 - 6/6/2011 (August 2011, p. 6) | BV2: Resolution: endorse Regulate Marijuana Like Wine 5/23/2011 - 6/7/2011 (August 2011, pp. 6-7) | BW2: Approve April 2011 LNC meeting minutes 5/26/2011 - 6/10/2011 (August 2011, p. 7) | BX2: Amend PM: LNC majority can block publication 6/5/2011 - 6/20/2011 (August 2011, p. 7) | BY2: Amend PM: LNC majority block publication (72 hrs.) 6/7/2011 - 6/22/2011 (August 2011, p. 8) | BZ2: Amend PM: update draft agenda 9/6/2011 - 9/21/2011 (December 2011, pp. 6-7) | CA2: Follow JC decision: recognize Wagner (OR chair) 10/1/2011 - 10/16/2011 (December 2011, p. 7) | CB2: Building fund #A: purchase Duke w/ milestones 10/3/2011 - 10/18/2011 (December 2011, pp. 7-8) | CC2: Appoint credendials committee w/ approval voting 10/17/2011 - 11/1/2011 (December 2011, pp. 8-9) | CD2: 2016 convention: venue submit deadline 12/9/2011 10/23/2011 - 11/7/2011 (December 2011, pp. 9-10) | CE2: Execute 3-year lease if building milestones not met 10/28/2011 - 11/12/2011 (December 2011, p. 10) | CF2: Building fund #B: purchase w/ diff. milestones 11/2/2011 - 11/17/2011 (December 2011, pp. 10-11) | CG2: Appoint Jeff Dimit credential committee interim chair 11/3/2011 - 11/18/2011 (December 2011, p. 11) | CH2: Whine about Judicial Committee decision 11/5/2011 - 11/20/2011 (December 2011, pp. 11-13) | CI2: Amend PM: share donor data / cooperate with LNCC 11/10/2011 - 11/25/2011 (December 2011, p. 13) | CJ2: Hire Carla Howell as executive director 11/12/2011 - 11/27/2011 (December 2011, p. 13-14) | CK2: Ballot access: allocate $10k to OK 11/13/2011 - 11/28/2011 (December 2011, p. 14) | CL2: Ballot access: allocate $13k to ND 11/13/2011 - 11/28/2011 (December 2011, p. 14) | CM2: Building fund #C: purchase Duke for $860k 11/20/2011 - 12/5/2011 (December 2011, pp. 14-15) | CN2: Building fund #D: buy Duke for $840k (w/ audit) 11/22/2011 - 12/7/2011 (December 2011, pp. 15-17) | CO2: Appoint Brett Pojunis to convention committee 2/2/2012 - 2/17/2012 (March 2012, pp. 11-12) | CP2: Remove presidential candidates list from LP.org 2/2/2012 - 2/17/2012 (March 2012, p. 12) | CQ2: Appoint Norm Olson affiliate support committee chair 2/8/2012 - 2/23/2012 (March 2012, p. 12) | CR2: LSLA IT project: treasurer issue check, o/w VC 2/18/2012 - 3/4/2012 (March 2012, pp. 12-13) | CS2: No LNC, P, VP candidates as convention speakers 2/19/2012 - 3/5/2012 (March 2012, p. 13) | CT2: Amend PM: no paying travel / lodging for delegates 2/20/2012 - 3/6/2012 (March 2012, p. 14) | CU2: 2016 convention: Westin, LA, CA (4/28-5/1) 3/22/2012 - 4/6/2012 (no minutes yet) | CV2: 2016 convention: LA, CA in May; o/w Orlando, FL 4/2/2012 - 4/17/2012 (no minutes yet)
A3: Mark Hinkle (Chair) | C3: N | K3: Y | P3: M | U3: Y | X3: M | Y3: M | AB3: Y | AE3: N | AG3: N | AH3: Y | AI3: N | AL3: N | AM3: N | AN3: N | AO3: N | AP3: N | AQ3: Y | AR3: M | AS3: N | AU3: Y | AW3: N | AX3: Y | AY3: Y | AZ3: N | BA3: N | BB3: N | BC3: N | BF3: M | BG3: M | BI3: M | BJ3: M | BK3: N | BP3: M | BQ3: M | BS3: M | BU3: M | BV3: Y | BX3: N | CB3: Y | CE3: N | CF3: M | CJ3: M | CK3: M | CL3: M | CM3: Y | CN3: M | CO3: N | CP3: N | CT3: N | CU3: N | CV3: C
A4: Mark Rutherford (Vice Chair) | B4: Y | D4: N | E4: N | F4: Y | G4: N | H4: Y | I4: Y | J4: Y | K4: Y | L4: N | M4: Y | N4: Y | O4: Y | P4: Y | Q4: Y | R4: A | S4: A | T4: N | U4: N | V4: Y | W4: N | X4: N | Y4: N | Z4: Y | AA4: Y | AB4: M | AC4: M | AD4: Y | AE4: Y | AF4: Y | AG4: Y | AH4: N | AI4: Y | AJ4: Y | AK4: Y | AL4: Y | AM4: Y | AN4: Y | AO4: Y | AP4: Y | AQ4: Y | AR4: A | AS4: N | AT4: Y | AU4: Y | AV4: Y | AW4: Y | AX4: Y | AY4: Y | AZ4: N | BA4: Y | BB4: Y | BC4: Y | BD4: Y | BE4: Y | BF4: N | BG4: N | BH4: C | BJ4: N | BK4: Y | BL4: Y | BN4: Y | BO4: Y | BP4: Y | BR4: Y | BS4: N | BT4: Y | BU4: N | BV4: A | BW4: Y | BX4: Y | BY4: Y | BZ4: Y | CA4: N | CB4: C | CD4: Y | CE4: Y | CF4: N | CG4: Y | CH4: Y | CI4: Y | CJ4: N | CK4: N | CL4: Y | CM4: N | CN4: N | CO4: Y | CP4: Y | CQ4: C | CR4: Y | CS4: Y | CT4: Y | CU4: C | CV4: N
A5: Alicia Mattson (Secretary) | B5: M | C5: N | D5: Y | E5: Y | F5: Y | G5: A | H5: Y | I5: M | J5: Y | K5: Y | L5: N | M5: M | N5: M | O5: Y | P5: Y | Q5: Y | R5: Y | S5: Y | T5: Y | U5: Y | V5: Y | W5: N | X5: N | Y5: Y | Z5: Y | AA5: Y | AB5: Y | AC5: Y | AD5: M | AE5: Y | AF5: N | AG5: Y | AH5: N | AI5: Y | AJ5: Y | AK5: M | AL5: Y | AM5: Y | AN5: Y | AO5: Y | AP5: Y | AQ5: N | AR5: Y | AS5: N | AT5: Y | AU5: Y | AV5: M | AW5: Y | AX5: Y | AY5: M | AZ5: N | BA5: M | BB5: Y | BC5: M | BD5: C | BF5: N | BG5: N | BH5: C | BJ5: N | BK5: C | BL5: Y | BM5: C | BN5: Y | BO5: Y | BP5: Y | BR5: Y | BS5: N | BT5: C | BU5: N | BV5: Y | BW5: Y | BX5: C | BY5: Y | CA5: N | CB5: Y | CC5: C | CD5: C | CE5: C | CF5: N | CG5: Y | CH5: Y | CI5: Y | CJ5: N | CM5: N | CN5: A | CO5: C | CP5: C | CQ5: Y | CR5: Y | CS5: Y | CT5: Y | CU5: C | CV5: N
A6: James Oaksun (Treasurer) | B6: Y | I6: N | J6: Y | K6: Y | L6: M | M6: N | N6: A | O6: A | P6: A | Q6: Y | R6: Y | S6: A | BE6: Y | BF6: Y | BG6: Y | BH6: N | BI6: Y | BJ6: Y | BK6: N
A7: Bill Redpath (At-Large / Treasurer) | C7: N | D7: Y | E7: Y | F7: N | G7: N | H7: Y | I7: N | J7: Y | K7: Y | L7: N | M7: Y | N7: Y | O7: Y | P7: Y | Q7: N | R7: N | S7: M | T7: N | U7: M | V7: Y | W7: N | X7: A | Y7: Y | Z7: Y | AA7: M | AB7: Y | AC7: Y | AD7: A | AE7: N | AF7: Y | AG7: Y | AH7: Y | AI7: N | AJ7: Y | AK7: Y | AL7: A | AM7: N | AN7: Y | AO7: Y | AP7: M | AQ7: Y | AR7: Y | AS7: N | AT7: Y | AU7: M | AV7: Y | AW7: Y | AX7: Y | AY7: Y | AZ7: N | BA7: A | BB7: M | BC7: Y | BD7: Y | BF7: Y | BG7: Y | BH7: N | BI7: Y | BJ7: N | BK7: Y | BL7: Y | BM7: Y | BN7: Y | BO7: A | BP7: Y | BT7: Y | BU7: N | BV7: Y | BW7: Y | BX7: N | BY7: Y | BZ7: Y | CA7: N | CB7: Y | CD7: Y | CE7: N | CF7: Y | CG7: Y | CH7: Y | CI7: Y | CJ7: Y | CK7: Y | CL7: Y | CM7: Y | CN7: Y | CO7: Y | CP7: N | CR7: A | CS7: N | CT7: N | CU7: Y | CV7: Y
A8: Randy Eshelman (Region 6 Alt / At-Large) | T8: N | U8: Y | V8: N | W8: N | X8: N | AE8: Y | AF8: Y | AG8: Y | AH8: N | AI8: Y | AJ8: Y | AK8: Y | AL8: N | BF8: Y | BT8: C | BU8: N | BV8: C | BW8: Y | BX8: C | BY8: C | BZ8: Y | CA8: N | CB8: N | CC8: C | CD8: Y | CE8: C | CF8: N | CG8: Y | CH8: C | CI8: Y | CJ8: N | CK8: N | CL8: Y | CM8: N | CN8: N | CO8: Y | CP8: C | CQ8: C | CR8: C | CS8: Y | CT8: C
A9: Kevin Knedler (At-Large) | B9: Y | C9: Y | D9: Y | E9: Y | F9: N | G9: N | H9: Y | I9: Y | J9: Y | K9: Y | L9: N | M9: Y | N9: Y | O9: M | P9: Y | Q9: Y | R9: Y | S9: Y | T9: Y | U9: Y | V9: Y | W9: N | X9: Y | Y9: N | Z9: Y | AA9: N | AB9: Y | AC9: Y | AD9: Y | AE9: Y | AF9: M | AG9: Y | AH9: N | AI9: Y | AJ9: Y | AK9: Y | AL9: Y | AM9: Y | AN9: Y | AO9: M | AP9: Y | AQ9: Y | AR9: Y | AS9: A | AT9: M | AU9: Y | AV9: Y | AW9: Y | AX9: Y | AY9: Y | AZ9: N | BA9: Y | BB9: A | BC9: Y | BD9: Y | BE9: Y | BF9: N | BG9: Y | BH9: Y | BI9: Y | BJ9: N | BK9: C | BL9: C | BM9: C | BN9: C | BO9: C | BP9: A | BQ9: Y | BR9: C | BS9: N | BT9: Y | BU9: N | BV9: C | BW9: C | BX9: Y | BY9: Y | BZ9: Y | CA9: N | CB9: Y | CC9: C | CD9: C | CE9: N | CF9: Y | CG9: C | CH9: Y | CI9: C | CJ9: N | CK9: N | CL9: N | CM9: C | CN9: A | CO9: C | CP9: C | CQ9: Y | CR9: Y | CS9: Y | CT9: Y | CU9: Y | CV9: C
A10: David Nolan (At-Large) | B10: Y | C10: N | D10: A | E10: Y | F10: N | G10: N | H10: N | BD10: N | BE10: C | BG10: Y | BH10: N | BI10: Y | BJ10: Y | BK10: N
A11: Brett Pojunis (Region 4 Alt / At-Large) | AF11: Y | AU11: Y | AV11: Y | AW11: Y | CT11: Y | CU11: Y | CV11: N
A12: Wayne Allyn Root (At-Large) | B12: Y | C12: Y | D12: Y | E12: Y | F12: N | G12: N | H12: Y | I12: Y | J12: Y | K12: Y | L12: N | M12: Y | T12: N | U12: Y | V12: Y | W12: N | Y12: Y | Z12: Y | AA12: Y | AB12: Y | AC12: N | AD12: Y | AE12: Y | AF12: Y | AG12: Y | AH12: N | AI12: Y | AJ12: Y | AK12: Y | AL12: Y | AM12: Y | AN12: Y | AO12: Y | AP12: Y | AQ12: Y | AR12: Y | AS12: A | AT12: Y | AU12: A | AV12: Y | AW12: Y | AX12: Y | AY12: Y | AZ12: N | BA12: Y | BB12: Y | BC12: Y | BD12: Y | BE12: Y | BF12: N | BG12: N | BH12: C | BJ12: N | BK12: Y | BL12: Y | BM12: Y | BN12: Y | BO12: C | BP12: Y | BQ12: Y | BR12: Y | BS12: N | BT12: Y | BU12: N | BV12: C | BW12: Y | BX12: Y | BY12: Y | BZ12: Y | CA12: N | CB12: Y | CD12: Y | CE12: Y | CF12: N | CG12: C | CH12: C | CI12: Y | CJ12: N | CK12: Y | CL12: Y | CM12: N | CN12: N | CO12: C | CP12: Y | CQ12: C | CR12: C | CS12: Y | CT12: Y | CU12: Y | CV12: N
A13: Dr. Mary Ruwart (At-Large) | B13: Y | C13: N | D13: Y | E13: A | F13: N | G13: N | H13: Y | I13: N | J13: Y | K13: Y | L13: N | M13: N | N13: A | O13: Y | P13: Y | Q13: N | R13: Y | S13: Y | T13: N | U13: A | V13: N | W13: N | X13: A | AE13: N | AG13: N | AH13: Y | AI13: A | AJ13: Y | AK13: Y | AL13: N | AM13: N | AN13: Y | AO13: N | AP13: Y | AQ13: Y | AR13: Y | AS13: N | AT13: Y | AU13: Y | AV13: N | AW13: A | AX13: Y | AY13: N | AZ13: Y | BA13: Y | BB13: N | BC13: N | BD13: N | BE13: Y | BF13: Y | BG13: Y | BI13: Y | BJ13: Y | BK13: N | BL13: Y | BM13: Y | BN13: N | BP13: Y | BQ13: Y | BR13: Y | BS13: N | BT13: N | BV13: Y | BW13: Y | BX13: N | BY13: N | BZ13: C | CA13: C | CB13: Y | CD13: N | CE13: N | CF13: Y | CG13: Y | CH13: N | CI13: A | CJ13: Y | CK13: A | CL13: Y | CM13: C | CN13: Y | CO13: N | CP13: N | CQ13: Y | CR13: N | CS13: N | CT13: N | CU13: N | CV13: N
A14: Rebecca Sink-Burris (Region 3 Rep / At-Large) | B14: Y | T14: N | U14: Y | V14: Y | W14: N | X14: N | Y14: Y | Z14: Y | AA14: Y | AB14: Y | AC14: Y | AD14: Y | AE14: Y | AF14: Y | AG14: Y | AH14: N | AI14: Y | AJ14: Y | AK14: Y | AL14: Y | AM14: Y | AN14: Y | AO14: Y | AP14: Y | AQ14: Y | AR14: Y | AS14: N | AT14: A | AU14: Y | AV14: Y | AW14: Y | AX14: Y | AY14: Y | AZ14: N | BA14: Y | BB14: Y | BC14: Y | BD14: C | BT14: Y | BU14: N | BV14: Y | BW14: Y | BX14: C | BY14: Y | CA14: N | CB14: Y | CD14: Y | CE14: C | CF14: N | CG14: Y | CH14: Y | CI14: Y | CJ14: Y | CK14: N | CL14: Y | CM14: N | CN14: N | CO14: C | CP14: C | CQ14: C | CR14: C | CS14: C | CT14: C | CU14: C | CV14: N
A15: Doug Craig (Region 1 Rep) | B15: Y | C15: N | D15: Y | E15: Y | F15: N | G15: N | H15: Y | I15: N | J15: Y | K15: Y | L15: N | M15: N | N15: Y | O15: Y | P15: Y | Q15: Y | V15: Y | W15: N | Y15: N | Z15: N | AB15: Y | AC15: Y | AD15: N | AV15: A | AW15: A | AY15: N | AZ15: Y | BA15: Y | BB15: N | BD15: Y | BE15: Y | BF15: Y | BH15: N | BI15: Y | BJ15: Y | BK15: N | BL15: Y | BM15: Y | BN15: Y | BP15: Y | BQ15: Y | BR15: Y | BS15: N | BT15: N | BU15: N | BV15: Y | BX15: N | BY15: N | CA15: C | CB15: C | CD15: Y | CE15: N | CF15: Y | CG15: Y | CH15: N | CI15: A | CJ15: Y | CK15: Y | CM15: Y | CO15: N | CR15: N | CS15: N | CT15: N | CU15: N | CV15: N
A16: Stewart Flood (Region 1 Rep) | B16: Y | C16: N | D16: Y | E16: M | F16: N | G16: Y | H16: M | I16: Y | J16: Y | K16: Y | L16: N | M16: Y | N16: Y | O16: Y | R16: Y | S16: Y | T16: N | V16: N | Y16: Y | Z16: Y | AA16: N | AB16: Y | AC16: N | AD16: Y | AE16: N | AF16: N | AG16: N | AH16: M | AI16: M | AJ16: M | AK16: N | AL16: M | AM16: N | AN16: N | AO16: N | AP16: N | AQ16: Y | AR16: Y | AS16: N | AT16: Y | AU16: Y | AV16: Y | AW16: Y | AX16: Y | AY16: Y | AZ16: N | BA16: A | BB16: Y | BC16: N | BD16: Y | BE16: C | BF16: N | BG16: Y | BH16: C | BI16: Y | BJ16: N | BK16: C | BL16: C | BM16: Y | BN16: C | BO16: C | BP16: Y | BR16: C | BS16: N | BT16: C | BU16: N | BV16: C | BW16: Y | BX16: N | BY16: C | BZ16: C | CB16: Y | CD16: Y | CE16: N | CF16: Y | CG16: Y | CJ16: Y | CK16: Y | CL16: Y | CM16: C | CN16: N | CO16: A | CR16: N | CS16: C | CT16: N | CU16: N | CV16: C
A17: Dan Wiener (Region 1 Rep) | C17: Y | D17: Y | E17: Y | F17: N | G17: N | H17: Y | I17: Y | J17: Y | L17: N | M17: Y | N17: Y | O17: Y | P17: Y | R17: N | S17: Y | T17: M | U17: Y | V17: Y | W17: N | X17: N | Y17: Y | Z17: Y | AA17: Y | AB17: Y | AC17: Y | AD17: Y | AE17: Y | AF17: Y | AG17: Y | AH17: Y | AI17: N | AJ17: Y | AK17: Y | AL17: Y | AM17: Y | AN17: N | AO17: N | AP17: Y | AQ17: Y | AU17: Y | AV17: Y | AW17: Y | AX17: Y | AY17: Y | AZ17: N | BA17: Y | BB17: Y | BC17: Y | BD17: C | BE17: C | BF17: Y | BG17: Y | BH17: Y | BI17: Y | BJ17: N | BK17: C | BL17: Y | BM17: C | BN17: Y | BO17: Y | BP17: Y | BQ17: Y | BR17: Y | BS17: N | BT17: C | BU17: N | BV17: C | BW17: Y | BX17: N | BY17: C | BZ17: Y | CA17: N | CB17: C | CD17: Y | CE17: C | CF17: Y | CG17: Y | CH17: C | CI17: Y | CJ17: Y | CK17: N | CL17: Y | CN17: Y | CO17: Y | CP17: N | CQ17: Y | CS17: N | CT17: C | CU17: Y | CV17: N
A18: Dr. Scott Lieberman (Region 1 Alt) | B18: Y | Q18: M | AA18: Y | AE18: Y | AF18: N | AG18: Y | AH18: N | AI18: Y | AJ18: Y | AK18: Y | AL18: A | AM18: Y | AN18: Y | AO18: Y | AP18: Y | AQ18: Y | AR18: Y | AS18: N | AT18: Y | AX18: Y | BC18: Y | BG18: N | BO18: Y | BQ18: Y | BW18: Y | BZ18: Y | CF18: N (U) | CI18: Y | CL18: N | CM18: N | CN18: N | CP18: Y | CQ18: Y | CR18: Y
A19: Guy McLendon (Region 1 Alt) | P19: Y | Q19: Y | T19: N | U19: Y | W19: N | X19: Y
A20: Brad Ploeger (Region 1 Alt) | K20: Y | R20: Y | S20: A | U20: Y | X20: N | AU20: Y | CA20: Y | CF20: N (U) | CH20: N | CN20: N (U) | CQ20: Y
A21: Rachel Hawkridge (Region 2 Rep) | B21: Y | C21: N | D21: Y | E21: Y | F21: N | G21: N | H21: N | I21: N | J21: N | K21: Y | L21: N | M21: N | N21: Y | O21: Y | P21: Y | Q21: N | R21: Y | S21: Y | BD21: N | BE21: Y | BF21: Y | BH21: N | BK21: N | BL21: Y
A22: Vicki Kirkland (Region 2 Alt / Region 2 Rep) | T22: N | U22: A | V22: Y | W22: N | X22: A | Y22: Y | Z22: N | AA22: N | AB22: Y | AC22: Y | AD22: N | AE22: N | AF22: A | AH22: Y | AI22: N | AJ22: Y | AK22: Y | AL22: A | AQ22: Y | AR22: Y | AS22: N | AU22: Y | AW22: N | AY22: N | AZ22: Y | BA22: Y | BB22: N | BC22: N | BI22: Y | BQ22: Y | BR22: Y | BT22: N | BV22: Y | BW22: Y | BX22: N | BZ22: C | CA22: C | CB22: C | CE22: N | CF22: Y | CG22: C | CJ22: Y | CK22: Y | CL22: Y | CM22: C | CN22: Y | CP22: N | CQ22: Y | CS22: C | CU22: N | CV22: C
A23: David Blau (Region 2 Alt) | AG23: Y | AM23: Y | AN23: Y | AO23: N | AP23: Y | AT23: Y | AV23: Y | AX23: M | CD23: Y | CH23: N | CI23: Y | CO23: N | CR23: Y | CS23: N | CT23: N | CV23: Y
A24: Andy Wolf (Region 3 Alt / Region 3 Rep) | C24: M | D24: Y | E24: N | F24: M | G24: N | H24: N | I24: Y | J24: Y | K24: Y | L24: N | M24: Y | N24: Y | O24: Y | P24: N | Q24: Y | R24: Y | S24: Y | T24: N | U24: Y | V24: Y | W24: N | X24: A | AB24: Y | AC24: Y | AD24: Y | AE24: M | AF24: Y | AG24: M | AH24: N | AI24: Y | AJ24: Y | AK24: Y | AL24: Y | AM24: Y | AN24: Y | AO24: Y | AP24: N | AQ24: Y | AR24: Y | AS24: A | AT24: Y | AU24: Y | AV24: Y | AW24: Y | AX24: Y | AY24: Y | AZ24: N | BA24: Y | BB24: Y | BC24: Y | BE24: Y | BF24: N | BG24: Y | BH24: Y | BI24: Y | BJ24: N | BK24: Y | BL24: Y | BM24: Y | BN24: C | BO24: Y | BP24: Y | BR24: C | BS24: N | BT24: Y | BW24: C | BX24: C | BY24: Y | BZ24: Y | CA24: N | CB24: Y | CD24: Y | CE24: Y | CF24: N | CG24: Y | CH24: Y | CI24: C | CJ24: N | CM24: N | CN24: N | CO24: Y | CP24: Y | CQ24: Y | CR24: C | CS24: Y | CT24: Y | CU24: C | CV24: N
A25: Sam Goldstein (Region 3 Alt) | Y25: N | Z25: Y | AA25: Y | BE25: Y | BF25: N | BG25: Y | BH25: Y | BI25: Y | BJ25: N | BK25: Y | BL25: Y | BM25: Y | BN25: C | BO25: Y | BP25: Y | BQ25: Y | BU25: N | BV25: Y | CK25: N | CL25: N
A26: Norm Olsen (Region 4 Rep) | B26: Y | I26: Y | J26: Y | K26: M | L26: N | M26: Y | N26: N | O26: N | P26: N | Q26: Y | R26: M | S26: N | T26: N | U26: A | V26: N | W26: M | X26: N | Y26: N | Z26: N | AA26: N | AB26: Y | AC26: Y | AD26: N | AG26: N | AH26: N | AI26: Y | AJ26: N | AK26: Y | AL26: Y | AM26: Y | AN26: Y | AO26: Y | AP26: Y | AQ26: A | AR26: Y | AS26: M | AT26: Y | AU26: N | AV26: Y | AW26: Y | AX26: N | AY26: N | AZ26: M | BA26: Y | BB26: N | BC26: Y | BE26: Y | BF26: Y | BG26: N | BH26: Y | BI26: Y | BJ26: N | BK26: Y | BL26: C | BM26: Y | BO26: N | BQ26: Y | BR26: Y | BS26: N | BT26: N | BU26: N | BV26: Y | BW26: C | BX26: N | BY26: N | CA26: C | CB26: N | CD26: N | CE26: Y | CF26: N | CG26: Y | CH26: N | CI26: C | CJ26: N | CK26: Y | CL26: Y | CM26: N | CN26: N | CO26: Y | CP26: Y | CQ26: A | CR26: Y | CS26: N | CU26: N | CV26: N
A27: Don Willis (Region 4 Alt) | C27: Y | D27: N | E27: N | F27: N | G27: M | H27: N
A28: Dr. Jim Lark (Region 5S Rep) | B28: Y | C28: N | D28: Y | E28: Y | F28: N | G28: N | H28: N | I28: Y | J28: Y | K28: Y | L28: N | M28: Y | N28: Y | O28: Y | P28: Y | Q28: Y | R28: A | S28: Y | T28: N | U28: Y | V28: N | W28: N | X28: Y | Y28: Y | Z28: N | AA28: Y | AB28: Y | AC28: Y | AD28: Y | AE28: N | AF28: N | AG28: Y | AH28: Y | AI28: N | AJ28: Y | AK28: Y | AL28: N | AM28: N | AN28: N | AO28: N | AP28: Y | AQ28: Y | AR28: A | AS28: N | AT28: Y | AU28: Y | AV28: Y | AW28: Y | AX28: Y | AY28: Y | AZ28: Y | BA28: N | BB28: A | BC28: N | BD28: A | BE28: Y | BF28: A | BG28: N | BH28: Y | BI28: Y | BJ28: N | BK28: Y | BL28: Y | BM28: Y | BN28: C | BO28: Y | BP28: Y | BQ28: Y | BR28: Y | BS28: N | BT28: Y | BU28: N | BV28: A | BW28: C | BX28: N | BY28: N | CA28: A | CB28: Y | CD28: Y | CE28: N | CF28: Y | CG28: Y | CH28: Y | CI28: Y | CJ28: N | CK28: Y | CL28: Y | CN28: Y | CO28: Y | CP28: N | CQ28: Y | CR28: N | CS28: N | CT28: N | CU28: N | CV28: N
A29: Dan Karlan (Region 5N Rep) | B29: Y | I29: Y | J29: Y | K29: Y | L29: N | M29: Y | N29: Y | O29: Y | P29: Y | Q29: Y | R29: Y | S29: Y | T29: N | U29: Y | V29: M | W29: N | X29: N | Y29: Y | Z29: Y | AA29: Y | AB29: Y | AC29: N | AD29: Y | AE29: N | AF29: Y | AG29: Y | AH29: Y | AI29: Y | AJ29: Y | AK29: Y | AL29: A | AM29: N | AN29: N | AO29: N | AP29: N | AQ29: M | AR29: Y | AS29: A | AT29: Y | BD29: C | BE29: C | BG29: N | BH29: Y | BI29: Y | BL29: C | BM29: C | BN29: Y | BO29: C | BP29: Y | BQ29: Y | BR29: C | BT29: Y | BV29: C | BW29: Y | BX29: N | BY29: C | BZ29: C | CA29: A | CB29: C | CC29: C | CD29: C | CE29: Y | CF29: Y | CG29: C | CH29: C | CI29: C | CJ29: Y | CM29: Y | CN29: N | CR29: A | CS29: N | CT29: N | CU29: N | CV29: C
A30: Audrey Capozzi (Region 5N Alt) | AU30: Y | AV30: Y | AW30: Y | AX30: Y | AY30: Y | AZ30: N | BA30: Y | BB30: Y | BC30: Y | CO30: Y | CP30: Y
A31: Dianna Visek (Region 6 Rep) | B31: Y | C31: Y | D31: M | E31: Y | F31: N | G31: N | H31: Y | I31: Y | J31: M | K31: A | L31: N | M31: N | N31: Y | O31: Y | P31: Y | Q31: Y | R31: Y | S31: Y | T31: N | U31: Y | V31: Y | W31: N | X31: A | Y31: Y | Z31: M | AA31: Y | AB31: Y | AC31: Y | AD31: Y | AE31: Y | AF31: Y | AG31: Y | AH31: N | AI31: Y | AJ31: Y | AK31: Y | AL31: Y | AM31: M | AN31: M | AO31: Y | AP31: Y | AQ31: N | AR31: Y | AS31: N | AT31: Y | AU31: Y | AV31: Y | AW31: M | AX31: Y | AY31: Y | AZ31: N | BA31: Y | BB31: N | BC31: Y | BD31: N | BE31: Y | BG31: N | BJ31: N | BK31: Y | BL31: Y | BQ31: Y | BR31: Y | BS31: N | BT31: Y | BU31: N | BV31: Y | BW31: Y | BX31: N | BY31: Y | BZ31: Y | CA31: N | CB31: N | CD31: Y | CE31: Y | CF31: N | CG31: Y | CH31: Y | CI31: Y | CJ31: N | CK31: Y | CL31: Y | CM31: N | CN31: N | CO31: Y | CP31: Y | CQ31: C | CR31: C | CS31: C | CT31: C | CU31: N | CV31: N
A32: Final vote | B32: 16-0-0 | C32: 6-9-0 | D32: 12-2-1 | E32: 11-3-1 | F32: 3-12-0 | G32: 2-12-1 | H32: 10-5-0 | I32: 11-5-0 | J32: 15-1-0 | K32: 16-0-1 | L32: 1-15-0 | M32: 11-5-0 | N32: 12-1-2 | O32: 13-1-1 | P32: 13-2-1 | Q32: 12-3-0 | R32: 11-2-2 | S32: 11-1-3¹ | T32: 3-14-0 | U32: 14-1-3 | V32: 12-5-0 | W32: 1-16-0 | X32: 4-8-5 | Y32: 11-5-0 | Z32: 11-4-0 | AA32: 11-4-0 | AB32: 16-0-0 | AC32: 12-3-0 | AD32: 11-3-1 | AE32: 10-7-0 | AF32: 11-4-1 | AG32: 14-4-0 | AH32: 8-10-0¹ | AI32: 11-6-0 | AJ32: 16-1-0 | AK32: 16-1-0 | AL32: 10-4-4 | AM32: 11-6-0 | AN32: 12-5-0 | AO32: 10-7-0 | AP32: 13-4-0 | AQ32: 14-2-1² | AR32: 14-0-2² | AS32: 1-11-4 | AT32: 14-0-1¹ | AU32: 16-1-1 | AV32: 15-1-1 | AW32: 14-2-2 | AX32: 16-1-0 | AY32: 13-4-0 | AZ32: 5-12-0 | BA32: 13-2-2 | BB32: 9-6-2 | BC32: 12-5-0 | BD32: 10-4-1 | BE32: 15-0-0 | BF32: 8-6-2² | BG32: 8-8-1 | BH32: 10-5-0 | BI32: 13-0-1 | BJ32: 4-11-1 | BK32: 11-6-0 | BL32: 15-0-0 | BM32: 12-0-0 | BN32: 11-1-0 | BO32: 10-1-1 | BP32: 11-0-2 | BQ32: 12-0-1 | BR32: 14-0-0 | BS32: 0-12-1 | BT32: 13-4-0 | BU32: 0-14-1² | BV32: 16-0-2² | BW32: 17-0-0 | BX32: 6-12-0 | BY32: 12-4-0 | BZ32: 13-0-0 | CA32: 5-10-2 | CB32: 15-3-0¹ | CC32: N/A | CD32: 15-2-0 | CE32: 10-8-0 | CF32: 9-8-1¹ | CG32: 17-0-0 | CH32: 12-5-0 | CI32: 15-0-2 | CJ32: 9-9-0 | CK32: 9-6-1 | CL32: 13-3-0 | CM32: 7-9-1¹ | CN32: 6-10-2¹ | CO32: 13-4-1 | CP32: 11-6-0 | CQ32: 14-0-1 | CR32: 11-4-2³ | CS32: 9-8-0 | CT32: 10-8-0 | CU32: 9-9-0 | CV32: 6-12-0

Sheet Calculation
C1: LNC Roll Call Votes #1 | U1: LNC Roll Call Votes #2 | AF1: LNC Roll Call Votes #3 | AV1: LNC Roll Call Votes #4 | BE1: LNC E-mail Ballots #1 | BU1: LNC E-mail Ballots #2 | CN1: LNC E-Mail Ballots #3
B2: ¹ Vote took 2/3 to pass ² Vote took 3/4 to pass ³ Chair ruled motion out of order | C2: Authorize EC to spend $15k fighting top-2 in CA May 2010 (p. 9) | D2: 2012 convention: non-holiday weekend Mar-May July 2010 (pp. 5-6) | E2: Amend PM: create standing Outreach Committee July 2010 (p. 6) | F2: Amend PM: create standing IT Committee July 2010 (pp. 7-8) | G2: Amend PM: ED duty: detailed ballot access plan July 2010 (pp. 8-9) | H2: Ballot access: rescind unspent NY encumberance July 2010 (p. 10) | I2: Amend budget: increase staff, branding, fundraising July 2010 (pp. 4-5, 10-11) | J2: Strike "Private Email List" from agenda November 2010 (p. 2) | K2: Allow Aaron Starr to speak from the gallary November 2010 (p. 9) | L2: Authorize spending to assist LPNM lawsuit November 2010 (p. 11) | M2: Substitute: 2012 - Dallas, TX; 2014 - Columbus, OH November 2010 (pp. 11-12) | N2: 2012 convention: Red Rock in Las Vegas, NV November 2010 (pp. 11-12) | O2: 2012 convention: weekend of May 3-8 November 2010 (p. 12) | P2: Schedule/site 2014 & 2016 conventions this term November 2010 (pp. 12-13) | Q2: Building fund #1: establish HQ building fund November 2010 (p. 13) | R2: Goals: members, organize, fundraise, train, political November 2010 (pp. 15-16) | S2: EC set 3 strategic priorities, staff propose budget November 2010 (pp. 16-17) | T2: Authorize EC to make ballot access expenditures November 2010 (p. 17) | U2: Ballot access: spend less than $2k x electoral votes April 2011 (pp. 14-15) | V2: Adopt 2011 budget April 2011 (pp. 15-18) | W2: Adopt affiliate petition form (see bylaw 6.2) April 2011 (p. 18) | X2: Find 3 alternative leases to Watergate April 2011 (p. 19) | Y2: Resolution: impeach President Obama April 2011 (p. 20) | Z2: Reinburse top-2 pro-bono attorney for $1.5 of travel August 2011 (pp. 4-5) | AA2: Building fund #2: DC property search August 2011 (p. 12) | AB2: 2014 convention: Hyett Regency in Columbus, OH August 2011 (pp. 11-12) | AC2: Amend PM: affiliate support committee report Nov. 1 August 2011 (p. 14) | AD2: Amend PM: restructure affiliate support committee August 2011 (p. 14) | AE2: Donate $50k to Ed Coleman city council campaign August 2011 (p. 15) | AF2: Chair not cooperating with LNCC; VC gets powers December 2011 (pp. 4-5) | AG2: Amend PM: add LSLA report to all LNC agendas December 2011 (p. 19) | AH2: Amend PM: change member / life member levels December 2011 (pp. 19-22) | AI2: Building fund #3: purchase 1425 Duke St. December 2011 (pp. 22-23) | AJ2: Building fund #4: rescind purchase w/milestones December 2011 (pp. 7-8, 22-24) | AK2: Rescind backup lease (3 locations) mail ballot December 2011 (pp. 10, 24) | AL2: Renew Watergate lease for HQ December 2011 (p. 24) | AM2: Committee to review employee duties / tasks December 2011 (p. 26) | AN2: Amend budget: ballot access spending - 2/3 EC vote December 2011 (p. 27) | AO2: LSLA IT project: 2/3 for tech spec, rest on delivery December 2011 (pp. 4, 28) | AP2: LSLA IT project: pay $50k to Brett Pojunis for project December 2011 (pp. 4, 28) | AQ2: Adopt 2012 budget December 2011 (pp. 27-30) | AR2: Hire Carla Howell as executive director December 2011 (p. 30) | AS2: Resolution: back Regulate Marijuana Like Wine Act December 2011 (p. 31) | AT2: Resolution: endorse approval voting December 2011 (p. 31) | AU2: Amend PM: restructure affiliate support committee December 2011 (pp. 31-32) | AV2: Ballot access: authorize spending in IL, KY, OK, WV March 2012 (p. 6) | AW2: Waive conflict of interest for OR lawyer Tyler Smith March 2012 (pp. 6-7) | AX2: Correct books: no receivable due from Aaron Starr March 2012 (p. 7) | AY2: Building fund #5: form building committee March 2012 (p. 7) | AZ2: "mandatory floor fee" → "cost of business session" March 2012 (p. 8) | BA2: Get rid of $94 floor fee for 2012 business session March 2012 (p. 8) | BB2: Send package buyers list to credentials, state chairs March 2012 (pp. 8-9) | BC2: 2016 convention: Westin hotel in Los Angeles, CA March 2012 (p. 9) | BD2: LSLA IT project: re-issue check with no conditions March 2012 (p. 11) | BE2: Amend PM: secretary won't summarize debate 6/25/2010 - 7/10/2010 (July 2010, p. 4) | BF2: Executive director bonus not hurt by new July budget 7/19/2010 - 8/3/2010 (November 2010, p. 5) | BG2: Resolution: support Vienna Declaration (drug policy) 8/4/2010 - 8/19/2010 (November 2010, pp. 5-6) | BH2: Amend PM: let alternates on convention & IT coms. 9/16/2010 - 10/1/2010 (November 2010, p. 6) | BI2: Amend PM: update convention committee duties 9/23/2010 - 10/8/2010 (November 2010, pp. 6-7) | BJ2: Amend PM: let alternates on convention & IT coms. 10/5/2010 - 10/25/2010 (November 2010, p. 7) | BK2: 2012 convention: Hyatt Grand Regency in Dallas, TX 10/14/2010 - 10/29/2010 (November 2010, p. 7) | BL2: 2012 convention: select site next LNC meeting 10/17/2010 - 11/1/2010 (November 2010, p. 7) | BM2: Amend PM: increase IT committee to 3+ members 11/27/2010 - 12/12/2010 (April 2011, p. 7) | BN2: Amend PM: increase detail of the budget 12/11/2010 - 12/26/2010 (April 2011, pp. 7-8) | BO2: Approve November 2010 LNC meeting minutes 12/22/2010 - 1/6/2011 (April 2011, p. 8) | BP2: Amend PM: add monthly treasurer report to LNC 12/27/2010 - 1/11/2011 (April 2011, pp. 9-10) | BQ2: Appoint Kevin Knedler to executive committee 1/7/2011 - 1/22/2011 (April 2011, p. 10) | BR2: Appoint Andy Wolf to audit committee 1/19/2011 - 2/3/2011 (April 2011, p. 10) | BS2: Amend PM: only email (no snail mail) ballots 1/26/2011 - 2/20/2011 (April 2011, pp. 10-11) | BT2: Adopt 2011 budget (attached to ballot) 3/25/2011 - 4/9/2011 (April 2011, p. 11) | BU2: Amend PM: update APRC procedures 5/11/2011 - 5/26/2011 (August 2011, p. 5) | BV2: Resolution: money for Regulate Marijuana Like Wine 5/22/2011 - 6/6/2011 (August 2011, p. 6) | BW2: Resolution: endorse Regulate Marijuana Like Wine 5/23/2011 - 6/7/2011 (August 2011, pp. 6-7) | BX2: Approve April 2011 LNC meeting minutes 5/26/2011 - 6/10/2011 (August 2011, p. 7) | BY2: Amend PM: LNC majority can block publication 6/5/2011 - 6/20/2011 (August 2011, p. 7) | BZ2: Amend PM: LNC majority block publication (72 hrs.) 6/7/2011 - 6/22/2011 (August 2011, p. 8) | CA2: Amend PM: update draft agenda 9/6/2011 - 9/21/2011 (December 2011, pp. 6-7) | CB2: Follow JC decision: recognize Wagner (OR chair) 10/1/2011 - 10/16/2011 (December 2011, p. 7) | CC2: Building fund #A: purchase Duke w/ milestones 10/3/2011 - 10/18/2011 (December 2011, pp. 7-8) | CD2: Appoint credendials committee w/ approval voting 10/17/2011 - 11/1/2011 (December 2011, pp. 8-9) | CE2: 2016 convention: venue submit deadline 12/9/2011 10/23/2011 - 11/7/2011 (December 2011, pp. 9-10) | CF2: Execute 3-year lease if building milestones not met 10/28/2011 - 11/12/2011 (December 2011, p. 10) | CG2: Building fund #B: purchase w/ diff. milestones 11/2/2011 - 11/17/2011 (December 2011, pp. 10-11) | CH2: Appoint Jeff Dimit credential committee interim chair 11/3/2011 - 11/18/2011 (December 2011, p. 11) | CI2: Whine about Judicial Committee decision 11/5/2011 - 11/20/2011 (December 2011, pp. 11-13) | CJ2: Amend PM: share donor data / cooperate with LNCC 11/10/2011 - 11/25/2011 (December 2011, p. 13) | CK2: Hire Carla Howell as executive director 11/12/2011 - 11/27/2011 (December 2011, p. 13-14) | CL2: Ballot access: allocate $10k to OK 11/13/2011 - 11/28/2011 (December 2011, p. 14) | CM2: Ballot access: allocate $13k to ND 11/13/2011 - 11/28/2011 (December 2011, p. 14) | CN2: Building fund #C: purchase Duke for $860k 11/20/2011 - 12/5/2011 (December 2011, pp. 14-15) | CO2: Building fund #D: buy Duke for $840k (w/ audit) 11/22/2011 - 12/7/2011 (December 2011, pp. 15-17) | CP2: Appoint Brett Pojunis to convention committee 2/2/2012 - 2/17/2012 (March 2012, pp. 11-12) | CQ2: Remove presidential candidates list from LP.org 2/2/2012 - 2/17/2012 (March 2012, p. 12) | CR2: Appoint Norm Olson affiliate support committee chair 2/8/2012 - 2/23/2012 (March 2012, p. 12) | CS2: LSLA IT project: treasurer issue check, o/w VC 2/18/2012 - 3/4/2012 (March 2012, pp. 12-13) | CT2: No LNC, P, VP candidates as convention speakers 2/19/2012 - 3/5/2012 (March 2012, p. 13) | CU2: Amend PM: no paying travel / lodging for delegates 2/20/2012 - 3/6/2012 (March 2012, p. 14) | CV2: 2016 convention: Westin, LA, CA (4/28-5/1) 3/22/2012 - 4/6/2012 (no minutes yet) | CW2: 2016 convention: LA, CA in May; o/w Orlando, FL 4/2/2012 - 4/17/2012 (no minutes yet)
B3: Mark Hinkle (Chair) | D3: N | L3: Y | Q3: M | V3: Y | Y3: M | Z3: M | AC3: Y | AF3: N | AH3: N | AI3: Y | AJ3: N | AM3: N | AN3: N | AO3: N | AP3: N | AQ3: N | AR3: Y | AS3: M | AT3: N | AV3: Y | AX3: N | AY3: Y | AZ3: Y | BA3: N | BB3: N | BC3: N | BD3: N | BG3: M | BH3: M | BJ3: M | BK3: M | BL3: N | BQ3: M | BR3: M | BT3: M | BV3: M | BW3: Y | BY3: N | CC3: Y | CF3: N | CG3: M | CK3: M | CL3: M | CM3: M | CN3: Y | CO3: M | CP3: N | CQ3: N | CU3: N | CV3: N | CW3: C
B4: Mark Rutherford (Vice Chair) | C4: Y | E4: N | F4: N | G4: Y | H4: N | I4: Y | J4: Y | K4: Y | L4: Y | M4: N | N4: Y | O4: Y | P4: Y | Q4: Y | R4: Y | S4: A | T4: A | U4: N | V4: N | W4: Y | X4: N | Y4: N | Z4: N | AA4: Y | AB4: Y | AC4: M | AD4: M | AE4: Y | AF4: Y | AG4: Y | AH4: Y | AI4: N | AJ4: Y | AK4: Y | AL4: Y | AM4: Y | AN4: Y | AO4: Y | AP4: Y | AQ4: Y | AR4: Y | AS4: A | AT4: N | AU4: Y | AV4: Y | AW4: Y | AX4: Y | AY4: Y | AZ4: Y | BA4: N | BB4: Y | BC4: Y | BD4: Y | BE4: Y | BF4: Y | BG4: N | BH4: N | BI4: C | BK4: N | BL4: Y | BM4: Y | BO4: Y | BP4: Y | BQ4: Y | BS4: Y | BT4: N | BU4: Y | BV4: N | BW4: A | BX4: Y | BY4: Y | BZ4: Y | CA4: Y | CB4: N | CC4: C | CE4: Y | CF4: Y | CG4: N | CH4: Y | CI4: Y | CJ4: Y | CK4: N | CL4: N | CM4: Y | CN4: N | CO4: N | CP4: Y | CQ4: Y | CR4: C | CS4: Y | CT4: Y | CU4: Y | CV4: C | CW4: N
B5: Alicia Mattson (Secretary) | C5: M | D5: N | E5: Y | F5: Y | G5: Y | H5: A | I5: Y | J5: M | K5: Y | L5: Y | M5: N | N5: M | O5: M | P5: Y | Q5: Y | R5: Y | S5: Y | T5: Y | U5: Y | V5: Y | W5: Y | X5: N | Y5: N | Z5: Y | AA5: Y | AB5: Y | AC5: Y | AD5: Y | AE5: M | AF5: Y | AG5: N | AH5: Y | AI5: N | AJ5: Y | AK5: Y | AL5: M | AM5: Y | AN5: Y | AO5: Y | AP5: Y | AQ5: Y | AR5: N | AS5: Y | AT5: N | AU5: Y | AV5: Y | AW5: M | AX5: Y | AY5: Y | AZ5: M | BA5: N | BB5: M | BC5: Y | BD5: M | BE5: C | BG5: N | BH5: N | BI5: C | BK5: N | BL5: C | BM5: Y | BN5: C | BO5: Y | BP5: Y | BQ5: Y | BS5: Y | BT5: N | BU5: C | BV5: N | BW5: Y | BX5: Y | BY5: C | BZ5: Y | CB5: N | CC5: Y | CD5: C | CE5: C | CF5: C | CG5: N | CH5: Y | CI5: Y | CJ5: Y | CK5: N | CN5: N | CO5: A | CP5: C | CQ5: C | CR5: Y | CS5: Y | CT5: Y | CU5: Y | CV5: C | CW5: N
B6: James Oaksun (Treasurer) | C6: Y | J6: N | K6: Y | L6: Y | M6: M | N6: N | O6: A | P6: A | Q6: A | R6: Y | S6: Y | T6: A | BF6: Y | BG6: Y | BH6: Y | BI6: N | BJ6: Y | BK6: Y | BL6: N
B7: Bill Redpath (At-Large / Treasurer) | D7: N | E7: Y | F7: Y | G7: N | H7: N | I7: Y | J7: N | K7: Y | L7: Y | M7: N | N7: Y | O7: Y | P7: Y | Q7: Y | R7: N | S7: N | T7: M | U7: N | V7: M | W7: Y | X7: N | Y7: A | Z7: Y | AA7: Y | AB7: M | AC7: Y | AD7: Y | AE7: A | AF7: N | AG7: Y | AH7: Y | AI7: Y | AJ7: N | AK7: Y | AL7: Y | AM7: A | AN7: N | AO7: Y | AP7: Y | AQ7: M | AR7: Y | AS7: Y | AT7: N | AU7: Y | AV7: M | AW7: Y | AX7: Y | AY7: Y | AZ7: Y | BA7: N | BB7: A | BC7: M | BD7: Y | BE7: Y | BG7: Y | BH7: Y | BI7: N | BJ7: Y | BK7: N | BL7: Y | BM7: Y | BN7: Y | BO7: Y | BP7: A | BQ7: Y | BU7: Y | BV7: N | BW7: Y | BX7: Y | BY7: N | BZ7: Y | CA7: Y | CB7: N | CC7: Y | CE7: Y | CF7: N | CG7: Y | CH7: Y | CI7: Y | CJ7: Y | CK7: Y | CL7: Y | CM7: Y | CN7: Y | CO7: Y | CP7: Y | CQ7: N | CS7: A | CT7: N | CU7: N | CV7: Y | CW7: Y
B8: Randy Eshelman (Region 6 Alt / At-Large) | U8: N | V8: Y | W8: N | X8: N | Y8: N | AF8: Y | AG8: Y | AH8: Y | AI8: N | AJ8: Y | AK8: Y | AL8: Y | AM8: N | BG8: Y | BU8: C | BV8: N | BW8: C | BX8: Y | BY8: C | BZ8: C | CA8: Y | CB8: N | CC8: N | CD8: C | CE8: Y | CF8: C | CG8: N | CH8: Y | CI8: C | CJ8: Y | CK8: N | CL8: N | CM8: Y | CN8: N | CO8: N | CP8: Y | CQ8: C | CR8: C | CS8: C | CT8: Y | CU8: C
B9: Kevin Knedler (At-Large) | C9: Y | D9: Y | E9: Y | F9: Y | G9: N | H9: N | I9: Y | J9: Y | K9: Y | L9: Y | M9: N | N9: Y | O9: Y | P9: M | Q9: Y | R9: Y | S9: Y | T9: Y | U9: Y | V9: Y | W9: Y | X9: N | Y9: Y | Z9: N | AA9: Y | AB9: N | AC9: Y | AD9: Y | AE9: Y | AF9: Y | AG9: M | AH9: Y | AI9: N | AJ9: Y | AK9: Y | AL9: Y | AM9: Y | AN9: Y | AO9: Y | AP9: M | AQ9: Y | AR9: Y | AS9: Y | AT9: A | AU9: M | AV9: Y | AW9: Y | AX9: Y | AY9: Y | AZ9: Y | BA9: N | BB9: Y | BC9: A | BD9: Y | BE9: Y | BF9: Y | BG9: N | BH9: Y | BI9: Y | BJ9: Y | BK9: N | BL9: C | BM9: C | BN9: C | BO9: C | BP9: C | BQ9: A | BR9: Y | BS9: C | BT9: N | BU9: Y | BV9: N | BW9: C | BX9: C | BY9: Y | BZ9: Y | CA9: Y | CB9: N | CC9: Y | CD9: C | CE9: C | CF9: N | CG9: Y | CH9: C | CI9: Y | CJ9: C | CK9: N | CL9: N | CM9: N | CN9: C | CO9: A | CP9: C | CQ9: C | CR9: Y | CS9: Y | CT9: Y | CU9: Y | CV9: Y | CW9: C
B10: David Nolan (At-Large) | C10: Y | D10: N | E10: A | F10: Y | G10: N | H10: N | I10: N | BE10: N | BF10: C | BH10: Y | BI10: N | BJ10: Y | BK10: Y | BL10: N
B11: Brett Pojunis (Region 4 Alt / At-Large) | AG11: Y | AV11: Y | AW11: Y | AX11: Y | CU11: Y | CV11: Y | CW11: N
B12: Wayne Allyn Root (At-Large) | C12: Y | D12: Y | E12: Y | F12: Y | G12: N | H12: N | I12: Y | J12: Y | K12: Y | L12: Y | M12: N | N12: Y | U12: N | V12: Y | W12: Y | X12: N | Z12: Y | AA12: Y | AB12: Y | AC12: Y | AD12: N | AE12: Y | AF12: Y | AG12: Y | AH12: Y | AI12: N | AJ12: Y | AK12: Y | AL12: Y | AM12: Y | AN12: Y | AO12: Y | AP12: Y | AQ12: Y | AR12: Y | AS12: Y | AT12: A | AU12: Y | AV12: A | AW12: Y | AX12: Y | AY12: Y | AZ12: Y | BA12: N | BB12: Y | BC12: Y | BD12: Y | BE12: Y | BF12: Y | BG12: N | BH12: N | BI12: C | BK12: N | BL12: Y | BM12: Y | BN12: Y | BO12: Y | BP12: C | BQ12: Y | BR12: Y | BS12: Y | BT12: N | BU12: Y | BV12: N | BW12: C | BX12: Y | BY12: Y | BZ12: Y | CA12: Y | CB12: N | CC12: Y | CE12: Y | CF12: Y | CG12: N | CH12: C | CI12: C | CJ12: Y | CK12: N | CL12: Y | CM12: Y | CN12: N | CO12: N | CP12: C | CQ12: Y | CR12: C | CS12: C | CT12: Y | CU12: Y | CV12: Y | CW12: N
B13: Dr. Mary Ruwart (At-Large) | C13: Y | D13: N | E13: Y | F13: A | G13: N | H13: N | I13: Y | J13: N | K13: Y | L13: Y | M13: N | N13: N | O13: A | P13: Y | Q13: Y | R13: N | S13: Y | T13: Y | U13: N | V13: A | W13: N | X13: N | Y13: A | AF13: N | AH13: N | AI13: Y | AJ13: A | AK13: Y | AL13: Y | AM13: N | AN13: N | AO13: Y | AP13: N | AQ13: Y | AR13: Y | AS13: Y | AT13: N | AU13: Y | AV13: Y | AW13: N | AX13: A | AY13: Y | AZ13: N | BA13: Y | BB13: Y | BC13: N | BD13: N | BE13: N | BF13: Y | BG13: Y | BH13: Y | BJ13: Y | BK13: Y | BL13: N | BM13: Y | BN13: Y | BO13: N | BQ13: Y | BR13: Y | BS13: Y | BT13: N | BU13: N | BW13: Y | BX13: Y | BY13: N | BZ13: N | CA13: C | CB13: C | CC13: Y | CE13: N | CF13: N | CG13: Y | CH13: Y | CI13: N | CJ13: A | CK13: Y | CL13: A | CM13: Y | CN13: C | CO13: Y | CP13: N | CQ13: N | CR13: Y | CS13: N | CT13: N | CU13: N | CV13: N | CW13: N
B14: Rebecca Sink-Burris (Region 3 Rep / At-Large) | C14: Y | U14: N | V14: Y | W14: Y | X14: N | Y14: N | Z14: Y | AA14: Y | AB14: Y | AC14: Y | AD14: Y | AE14: Y | AF14: Y | AG14: Y | AH14: Y | AI14: N | AJ14: Y | AK14: Y | AL14: Y | AM14: Y | AN14: Y | AO14: Y | AP14: Y | AQ14: Y | AR14: Y | AS14: Y | AT14: N | AU14: A | AV14: Y | AW14: Y | AX14: Y | AY14: Y | AZ14: Y | BA14: N | BB14: Y | BC14: Y | BD14: Y | BE14: C | BU14: Y | BV14: N | BW14: Y | BX14: Y | BY14: C | BZ14: Y | CB14: N | CC14: Y | CE14: Y | CF14: C | CG14: N | CH14: Y | CI14: Y | CJ14: Y | CK14: Y | CL14: N | CM14: Y | CN14: N | CO14: N | CP14: C | CQ14: C | CR14: C | CS14: C | CT14: C | CU14: C | CV14: C | CW14: N
B15: Doug Craig (Region 1 Rep) | C15: Y | D15: N | E15: Y | F15: Y | G15: N | H15: N | I15: Y | J15: N | K15: Y | L15: Y | M15: N | N15: N | O15: Y | P15: Y | Q15: Y | R15: Y | W15: Y | X15: N | Z15: N | AA15: N | AC15: Y | AD15: Y | AE15: N | AW15: A | AX15: A | AZ15: N | BA15: Y | BB15: Y | BC15: N | BE15: Y | BF15: Y | BG15: Y | BI15: N | BJ15: Y | BK15: Y | BL15: N | BM15: Y | BN15: Y | BO15: Y | BQ15: Y | BR15: Y | BS15: Y | BT15: N | BU15: N | BV15: N | BW15: Y | BY15: N | BZ15: N | CB15: C | CC15: C | CE15: Y | CF15: N | CG15: Y | CH15: Y | CI15: N | CJ15: A | CK15: Y | CL15: Y | CN15: Y | CP15: N | CS15: N | CT15: N | CU15: N | CV15: N | CW15: N
B16: Stewart Flood (Region 1 Rep) | C16: Y | D16: N | E16: Y | F16: M | G16: N | H16: Y | I16: M | J16: Y | K16: Y | L16: Y | M16: N | N16: Y | O16: Y | P16: Y | S16: Y | T16: Y | U16: N | W16: N | Z16: Y | AA16: Y | AB16: N | AC16: Y | AD16: N | AE16: Y | AF16: N | AG16: N | AH16: N | AI16: M | AJ16: M | AK16: M | AL16: N | AM16: M | AN16: N | AO16: N | AP16: N | AQ16: N | AR16: Y | AS16: Y | AT16: N | AU16: Y | AV16: Y | AW16: Y | AX16: Y | AY16: Y | AZ16: Y | BA16: N | BB16: A | BC16: Y | BD16: N | BE16: Y | BF16: C | BG16: N | BH16: Y | BI16: C | BJ16: Y | BK16: N | BL16: C | BM16: C | BN16: Y | BO16: C | BP16: C | BQ16: Y | BS16: C | BT16: N | BU16: C | BV16: N | BW16: C | BX16: Y | BY16: N | BZ16: C | CA16: C | CC16: Y | CE16: Y | CF16: N | CG16: Y | CH16: Y | CK16: Y | CL16: Y | CM16: Y | CN16: C | CO16: N | CP16: A | CS16: N | CT16: C | CU16: N | CV16: N | CW16: C
B17: Dan Wiener (Region 1 Rep) | D17: Y | E17: Y | F17: Y | G17: N | H17: N | I17: Y | J17: Y | K17: Y | M17: N | N17: Y | O17: Y | P17: Y | Q17: Y | S17: N | T17: Y | U17: M | V17: Y | W17: Y | X17: N | Y17: N | Z17: Y | AA17: Y | AB17: Y | AC17: Y | AD17: Y | AE17: Y | AF17: Y | AG17: Y | AH17: Y | AI17: Y | AJ17: N | AK17: Y | AL17: Y | AM17: Y | AN17: Y | AO17: N | AP17: N | AQ17: Y | AR17: Y | AV17: Y | AW17: Y | AX17: Y | AY17: Y | AZ17: Y | BA17: N | BB17: Y | BC17: Y | BD17: Y | BE17: C | BF17: C | BG17: Y | BH17: Y | BI17: Y | BJ17: Y | BK17: N | BL17: C | BM17: Y | BN17: C | BO17: Y | BP17: Y | BQ17: Y | BR17: Y | BS17: Y | BT17: N | BU17: C | BV17: N | BW17: C | BX17: Y | BY17: N | BZ17: C | CA17: Y | CB17: N | CC17: C | CE17: Y | CF17: C | CG17: Y | CH17: Y | CI17: C | CJ17: Y | CK17: Y | CL17: N | CM17: Y | CO17: Y | CP17: Y | CQ17: N | CR17: Y | CT17: N | CU17: C | CV17: Y | CW17: N
B18: Dr. Scott Lieberman (Region 1 Alt) | C18: Y | R18: M | AB18: Y | AF18: Y | AG18: N | AH18: Y | AI18: N | AJ18: Y | AK18: Y | AL18: Y | AM18: A | AN18: Y | AO18: Y | AP18: Y | AQ18: Y | AR18: Y | AS18: Y | AT18: N | AU18: Y | AY18: Y | BD18: Y | BH18: N | BP18: Y | BR18: Y | BX18: Y | CA18: Y | CG18: N (U) | CJ18: Y | CM18: N | CN18: N | CO18: N | CQ18: Y | CR18: Y | CS18: Y
B19: Guy McLendon (Region 1 Alt) | Q19: Y | R19: Y | U19: N | V19: Y | X19: N | Y19: Y
B20: Brad Ploeger (Region 1 Alt) | L20: Y | S20: Y | T20: A | V20: Y | Y20: N | AV20: Y | CB20: Y | CG20: N (U) | CI20: N | CO20: N (U) | CR20: Y
B21: Rachel Hawkridge (Region 2 Rep) | C21: Y | D21: N | E21: Y | F21: Y | G21: N | H21: N | I21: N | J21: N | K21: N | L21: Y | M21: N | N21: N | O21: Y | P21: Y | Q21: Y | R21: N | S21: Y | T21: Y | BE21: N | BF21: Y | BG21: Y | BI21: N | BL21: N | BM21: Y
B22: Vicki Kirkland (Region 2 Alt / Region 2 Rep) | U22: N | V22: A | W22: Y | X22: N | Y22: A | Z22: Y | AA22: N | AB22: N | AC22: Y | AD22: Y | AE22: N | AF22: N | AG22: A | AI22: Y | AJ22: N | AK22: Y | AL22: Y | AM22: A | AR22: Y | AS22: Y | AT22: N | AV22: Y | AX22: N | AZ22: N | BA22: Y | BB22: Y | BC22: N | BD22: N | BJ22: Y | BR22: Y | BS22: Y | BU22: N | BW22: Y | BX22: Y | BY22: N | CA22: C | CB22: C | CC22: C | CF22: N | CG22: Y | CH22: C | CK22: Y | CL22: Y | CM22: Y | CN22: C | CO22: Y | CQ22: N | CR22: Y | CT22: C | CV22: N | CW22: C
B23: David Blau (Region 2 Alt) | AH23: Y | AN23: Y | AO23: Y | AP23: N | AQ23: Y | AU23: Y | AW23: Y | AY23: M | CE23: Y | CI23: N | CJ23: Y | CP23: N | CS23: Y | CT23: N | CU23: N | CW23: Y
B24: Andy Wolf (Region 3 Alt / Region 3 Rep) | D24: M | E24: Y | F24: N | G24: M | H24: N | I24: N | J24: Y | K24: Y | L24: Y | M24: N | N24: Y | O24: Y | P24: Y | Q24: N | R24: Y | S24: Y | T24: Y | U24: N | V24: Y | W24: Y | X24: N | Y24: A | AC24: Y | AD24: Y | AE24: Y | AF24: M | AG24: Y | AH24: M | AI24: N | AJ24: Y | AK24: Y | AL24: Y | AM24: Y | AN24: Y | AO24: Y | AP24: Y | AQ24: N | AR24: Y | AS24: Y | AT24: A | AU24: Y | AV24: Y | AW24: Y | AX24: Y | AY24: Y | AZ24: Y | BA24: N | BB24: Y | BC24: Y | BD24: Y | BF24: Y | BG24: N | BH24: Y | BI24: Y | BJ24: Y | BK24: N | BL24: Y | BM24: Y | BN24: Y | BO24: C | BP24: Y | BQ24: Y | BS24: C | BT24: N | BU24: Y | BX24: C | BY24: C | BZ24: Y | CA24: Y | CB24: N | CC24: Y | CE24: Y | CF24: Y | CG24: N | CH24: Y | CI24: Y | CJ24: C | CK24: N | CN24: N | CO24: N | CP24: Y | CQ24: Y | CR24: Y | CS24: C | CT24: Y | CU24: Y | CV24: C | CW24: N
B25: Sam Goldstein (Region 3 Alt) | Z25: N | AA25: Y | AB25: Y | BF25: Y | BG25: N | BH25: Y | BI25: Y | BJ25: Y | BK25: N | BL25: Y | BM25: Y | BN25: Y | BO25: C | BP25: Y | BQ25: Y | BR25: Y | BV25: N | BW25: Y | CL25: N | CM25: N
B26: Norm Olsen (Region 4 Rep) | C26: Y | J26: Y | K26: Y | L26: M | M26: N | N26: Y | O26: N | P26: N | Q26: N | R26: Y | S26: M | T26: N | U26: N | V26: A | W26: N | X26: M | Y26: N | Z26: N | AA26: N | AB26: N | AC26: Y | AD26: Y | AE26: N | AH26: N | AI26: N | AJ26: Y | AK26: N | AL26: Y | AM26: Y | AN26: Y | AO26: Y | AP26: Y | AQ26: Y | AR26: A | AS26: Y | AT26: M | AU26: Y | AV26: N | AW26: Y | AX26: Y | AY26: N | AZ26: N | BA26: M | BB26: Y | BC26: N | BD26: Y | BF26: Y | BG26: Y | BH26: N | BI26: Y | BJ26: Y | BK26: N | BL26: Y | BM26: C | BN26: Y | BP26: N | BR26: Y | BS26: Y | BT26: N | BU26: N | BV26: N | BW26: Y | BX26: C | BY26: N | BZ26: N | CB26: C | CC26: N | CE26: N | CF26: Y | CG26: N | CH26: Y | CI26: N | CJ26: C | CK26: N | CL26: Y | CM26: Y | CN26: N | CO26: N | CP26: Y | CQ26: Y | CR26: A | CS26: Y | CT26: N | CV26: N | CW26: N
B27: Don Willis (Region 4 Alt) | D27: Y | E27: N | F27: N | G27: N | H27: M | I27: N
B28: Dr. Jim Lark (Region 5S Rep) | C28: Y | D28: N | E28: Y | F28: Y | G28: N | H28: N | I28: N | J28: Y | K28: Y | L28: Y | M28: N | N28: Y | O28: Y | P28: Y | Q28: Y | R28: Y | S28: A | T28: Y | U28: N | V28: Y | W28: N | X28: N | Y28: Y | Z28: Y | AA28: N | AB28: Y | AC28: Y | AD28: Y | AE28: Y | AF28: N | AG28: N | AH28: Y | AI28: Y | AJ28: N | AK28: Y | AL28: Y | AM28: N | AN28: N | AO28: N | AP28: N | AQ28: Y | AR28: Y | AS28: A | AT28: N | AU28: Y | AV28: Y | AW28: Y | AX28: Y | AY28: Y | AZ28: Y | BA28: Y | BB28: N | BC28: A | BD28: N | BE28: A | BF28: Y | BG28: A | BH28: N | BI28: Y | BJ28: Y | BK28: N | BL28: Y | BM28: Y | BN28: Y | BO28: C | BP28: Y | BQ28: Y | BR28: Y | BS28: Y | BT28: N | BU28: Y | BV28: N | BW28: A | BX28: C | BY28: N | BZ28: N | CB28: A | CC28: Y | CE28: Y | CF28: N | CG28: Y | CH28: Y | CI28: Y | CJ28: Y | CK28: N | CL28: Y | CM28: Y | CO28: Y | CP28: Y | CQ28: N | CR28: Y | CS28: N | CT28: N | CU28: N | CV28: N | CW28: N
B29: Dan Karlan (Region 5N Rep) | C29: Y | J29: Y | K29: Y | L29: Y | M29: N | N29: Y | O29: Y | P29: Y | Q29: Y | R29: Y | S29: Y | T29: Y | U29: N | V29: Y | W29: M | X29: N | Y29: N | Z29: Y | AA29: Y | AB29: Y | AC29: Y | AD29: N | AE29: Y | AF29: N | AG29: Y | AH29: Y | AI29: Y | AJ29: Y | AK29: Y | AL29: Y | AM29: A | AN29: N | AO29: N | AP29: N | AQ29: N | AR29: M | AS29: Y | AT29: A | AU29: Y | BE29: C | BF29: C | BH29: N | BI29: Y | BJ29: Y | BM29: C | BN29: C | BO29: Y | BP29: C | BQ29: Y | BR29: Y | BS29: C | BU29: Y | BW29: C | BX29: Y | BY29: N | BZ29: C | CA29: C | CB29: A | CC29: C | CD29: C | CE29: C | CF29: Y | CG29: Y | CH29: C | CI29: C | CJ29: C | CK29: Y | CN29: Y | CO29: N | CS29: A | CT29: N | CU29: N | CV29: N | CW29: C
B30: Audrey Capozzi (Region 5N Alt) | AV30: Y | AW30: Y | AX30: Y | AY30: Y | AZ30: Y | BA30: N | BB30: Y | BC30: Y | BD30: Y | CP30: Y | CQ30: Y
B31: Dianna Visek (Region 6 Rep) | C31: Y | D31: Y | E31: M | F31: Y | G31: N | H31: N | I31: Y | J31: Y | K31: M | L31: A | M31: N | N31: N | O31: Y | P31: Y | Q31: Y | R31: Y | S31: Y | T31: Y | U31: N | V31: Y | W31: Y | X31: N | Y31: A | Z31: Y | AA31: M | AB31: Y | AC31: Y | AD31: Y | AE31: Y | AF31: Y | AG31: Y | AH31: Y | AI31: N | AJ31: Y | AK31: Y | AL31: Y | AM31: Y | AN31: M | AO31: M | AP31: Y | AQ31: Y | AR31: N | AS31: Y | AT31: N | AU31: Y | AV31: Y | AW31: Y | AX31: M | AY31: Y | AZ31: Y | BA31: N | BB31: Y | BC31: N | BD31: Y | BE31: N | BF31: Y | BH31: N | BK31: N | BL31: Y | BM31: Y | BR31: Y | BS31: Y | BT31: N | BU31: Y | BV31: N | BW31: Y | BX31: Y | BY31: N | BZ31: Y | CA31: Y | CB31: N | CC31: N | CE31: Y | CF31: Y | CG31: N | CH31: Y | CI31: Y | CJ31: Y | CK31: N | CL31: Y | CM31: Y | CN31: N | CO31: N | CP31: Y | CQ31: Y | CR31: C | CS31: C | CT31: C | CU31: C | CV31: N | CW31: N
B32: Final vote | C32: 16-0-0 | D32: 6-9-0 | E32: 12-2-1 | F32: 11-3-1 | G32: 3-12-0 | H32: 2-12-1 | I32: 10-5-0 | J32: 11-5-0 | K32: 15-1-0 | L32: 16-0-1 | M32: 1-15-0 | N32: 11-5-0 | O32: 12-1-2 | P32: 13-1-1 | Q32: 13-2-1 | R32: 12-3-0 | S32: 11-2-2 | T32: 11-1-3¹ | U32: 3-14-0 | V32: 14-1-3 | W32: 12-5-0 | X32: 1-16-0 | Y32: 4-8-5 | Z32: 11-5-0 | AA32: 11-4-0 | AB32: 11-4-0 | AC32: 16-0-0 | AD32: 12-3-0 | AE32: 11-3-1 | AF32: 10-7-0 | AG32: 11-4-1 | AH32: 14-4-0 | AI32: 8-10-0¹ | AJ32: 11-6-0 | AK32: 16-1-0 | AL32: 16-1-0 | AM32: 10-4-4 | AN32: 11-6-0 | AO32: 12-5-0 | AP32: 10-7-0 | AQ32: 13-4-0 | AR32: 14-2-1² | AS32: 14-0-2² | AT32: 1-11-4 | AU32: 14-0-1¹ | AV32: 16-1-1 | AW32: 15-1-1 | AX32: 14-2-2 | AY32: 16-1-0 | AZ32: 13-4-0 | BA32: 5-12-0 | BB32: 13-2-2 | BC32: 9-6-2 | BD32: 12-5-0 | BE32: 10-4-1 | BF32: 15-0-0 | BG32: 8-6-2² | BH32: 8-8-1 | BI32: 10-5-0 | BJ32: 13-0-1 | BK32: 4-11-1 | BL32: 11-6-0 | BM32: 15-0-0 | BN32: 12-0-0 | BO32: 11-1-0 | BP32: 10-1-1 | BQ32: 11-0-2 | BR32: 12-0-1 | BS32: 14-0-0 | BT32: 0-12-1 | BU32: 13-4-0 | BV32: 0-14-1² | BW32: 16-0-2² | BX32: 17-0-0 | BY32: 6-12-0 | BZ32: 12-4-0 | CA32: 13-0-0 | CB32: 5-10-2 | CC32: 15-3-0¹ | CD32: N/A | CE32: 15-2-0 | CF32: 10-8-0 | CG32: 9-8-1¹ | CH32: 17-0-0 | CI32: 12-5-0 | CJ32: 15-0-2 | CK32: 9-9-0 | CL32: 9-6-1 | CM32: 13-3-0 | CN32: 7-9-1¹ | CO32: 6-10-2¹ | CP32: 13-4-1 | CQ32: 11-6-0 | CR32: 14-0-1 | CS32: 11-4-2³ | CT32: 9-8-0 | CU32: 10-8-0 | CV32: 9-9-0 | CW32: 6-12-0
E34: =COLORINDEXOFONECELL(H27,TRUE,1) -> 10 | F34: green
E35: =COLORINDEXOFONECELL(I27,TRUE,1) -> 3 | F35: red
E36: =COLORINDEXOFONECELL(L31,TRUE,1) -> 1 | F36: black
A38: Mark Hinkle | B38: x | D38: N | L38: Y | Q38: M | V38: Y | Y38: M | Z38: M | AC38: Y | AF38: N | AH38: N | AI38: Y | AJ38: N | AM38: N | AN38: N | AO38: N | AP38: N | AQ38: N | AR38: Y | AS38: M | AT38: N | AV38: Y | AX38: N | AY38: Y | AZ38: Y | BA38: N | BB38: N | BC38: N | BD38: N | BG38: M | BH38: M | BJ38: M | BK38: M | BL38: N | BQ38: M | BR38: M | BT38: M | BV38: M | BW38: Y | BY38: N | CC38: Y | CF38: N | CG38: M | CK38: M | CL38: M | CM38: M | CN38: Y | CO38: M | CP38: N | CQ38: N | CU38: N | CV38: N | CW38: C
B41: Mark Hinkle | C41: =(IF(C38="",0,IF(C$3="",0,1))) -> 0 | D41: =(IF(D38="",0,IF(D$3="",0,1))) -> 1 | E41: 0 | F41: 0 | G41: 0 | H41: 0 | I41: 0 | J41: 0 | K41: 0 | L41: 1 | M41: 0 | N41: 0 | O41: 0 | P41: 0 | Q41: 1 | R41: 0 | S41: 0 | T41: 0 | U41: 0 | V41: 1 | W41: 0 | X41: 0 | Y41: 1 | Z41: 1 | AA41: 0 | AB41: 0 | AC41: 1 | AD41: 0 | AE41: 0 | AF41: 1 | AG41: 0 | AH41: 1 | AI41: 1 | AJ41: 1 | AK41: 0 | AL41: 0 | AM41: 1 | AN41: 1 | AO41: 1 | AP41: 1 | AQ41: 1 | AR41: 1 | AS41: 1 | AT41: 1 | AU41: 0 | AV41: 1 | AW41: 0 | AX41: 1 | AY41: 1 | AZ41: 1 | BA41: 1 | BB41: 1 | BC41: 1 | BD41: 1 | BE41: 0 | BF41: 0 | BG41: 1 | BH41: 1 | BI41: 0 | BJ41: 1 | BK41: 1 | BL41: 1 | BM41: 0 | BN41: 0 | BO41: 0 | BP41: =(IF(BP38="",0,IF(BP$3="",0,1))) -> 0 | BQ41: 1 | BR41: 1 | BS41: 0 | BT41: 1 | BU41: 0 | BV41: 1 | BW41: 1 | BX41: 0 | BY41: 1 | BZ41: 0 | CA41: 0 | CB41: 0 | CC41: 1 | CD41: 0 | CE41: 0 | CF41: 1 | CG41: 1 | CH41: 0 | CI41: 0 | CJ41: 0 | CK41: 1 | CL41: 1 | CM41: 1 | CN41: 1 | CO41: 1 | CP41: 1 | CQ41: 1 | CR41: 0 | CS41: 0 | CT41: 0 | CU41: 1 | CV41: 1 | CW41: 1 | CX41: =SUM(C41:CW41) -> 51
C42: =COLORINDEXOFONECELL(C38,TRUE,1)+COLORINDEXOFONECELL(C$3,TRUE,1) -> 2 | D42: 6 | E42: 2 | F42: 2 | G42: 2 | H42: 2 | I42: 2 | J42: 2 | K42: 2 | L42: 20 | M42: 2 | N42: 2 | O42: 2 | P42: 2 | Q42: 20 | R42: 2 | S42: 2 | T42: 2 | U42: 2 | V42: 20 | W42: 2 | X42: 2 | Y42: 20 | Z42: 20 | AA42: 2 | AB42: 2 | AC42: 20 | AD42: 2 | AE42: 2 | AF42: 6 | AG42: 2 | AH42: 6 | AI42: =COLORINDEXOFONECELL(AI38,TRUE,1)+COLORINDEXOFONECELL(AI$3,TRUE,1) -> 20 | AJ42: 6 | AK42: 2 | AL42: 2 | AM42: 6 | AN42: 6 | AO42: 6 | AP42: 6 | AQ42: 6 | AR42: 20 | AS42: 20 | AT42: 6 | AU42: 2 | AV42: 20 | AW42: 2 | AX42: 6 | AY42: 20 | AZ42: 20 | BA42: 6 | BB42: 6 | BC42: 6 | BD42: 6 | BE42: 2 | BF42: 2 | BG42: 2 | BH42: 2 | BI42: 2 | BJ42: 2 | BK42: 2 | BL42: 6 | BM42: 2 | BN42: 2 | BO42: =COLORINDEXOFONECELL(BO38,TRUE,1)+COLORINDEXOFONECELL(BO$3,TRUE,1) -> 2 | BP42: 2 | BQ42: 2 | BR42: 2 | BS42: 2 | BT42: 2 | BU42: 2 | BV42: 2 | BW42: 20 | BX42: 2 | BY42: 6 | BZ42: 2 | CA42: 2 | CB42: 2 | CC42: 20 | CD42: 2 | CE42: 2 | CF42: 6 | CG42: 2 | CH42: 2 | CI42: 2 | CJ42: 2 | CK42: 20 | CL42: 20 | CM42: 20 | CN42: 20 | CO42: 20 | CP42: 6 | CQ42: 6 | CR42: 2 | CS42: 2 | CT42: 2 | CU42: 6 | CV42: 6 | CW42: 20 | CY42: =CX43/CX41 -> 1
C43: =IF(C41,IF(C42=2,1,0)+IF(C42=4,0.5,0)+IF(C42=6,1,0)+IF(C42=11,0.5,0)+IF(C42=13,0,0)+IF(C42=20,1,0),0) -> 0 | D43: =IF(D41,IF(D42=2,1,0)+IF(D42=4,0.5,0)+IF(D42=6,1,0)+IF(D42=11,0.5,0)+IF(D42=13,0,0)+IF(D42=20,1,0),0) -> 1 | E43: 0 | F43: 0 | G43: 0 | H43: 0 | I43: 0 | J43: 0 | K43: 0 | L43: 1 | M43: 0 | N43: 0 | O43: 0 | P43: 0 | Q43: 1 | R43: 0 | S43: 0 | T43: 0 | U43: 0 | V43: 1 | W43: 0 | X43: 0 | Y43: 1 | Z43: 1 | AA43: 0 | AB43: 0 | AC43: 1 | AD43: 0 | AE43: 0 | AF43: 1 | AG43: 0 | AH43: 1 | AI43: 1 | AJ43: 1 | AK43: 0 | AL43: 0 | AM43: 1 | AN43: 1 | AO43: 1 | AP43: 1 | AQ43: 1 | AR43: 1 | AS43: 1 | AT43: 1 | AU43: 0 | AV43: 1 | AW43: 0 | AX43: 1 | AY43: 1 | AZ43: 1 | BA43: 1 | BB43: 1 | BC43: 1 | BD43: 1 | BE43: 0 | BF43: 0 | BG43: 1 | BH43: 1 | BI43: 0 | BJ43: 1 | BK43: 1 | BL43: 1 | BM43: 0 | BN43: 0 | BO43: 0 | BP43: =IF(BP41,IF(BP42=2,1,0)+IF(BP42=4,0.5,0)+IF(BP42=6,1,0)+IF(BP42=11,0.5,0)+IF(BP42=13,0,0)+IF(BP42=20,1,0),0) -> 0 | BQ43: 1 | BR43: 1 | BS43: 0 | BT43: 1 | BU43: 0 | BV43: 1 | BW43: 1 | BX43: 0 | BY43: 1 | BZ43: 0 | CA43: 0 | CB43: 0 | CC43: 1 | CD43: 0 | CE43: 0 | CF43: 1 | CG43: 1 | CH43: 0 | CI43: 0 | CJ43: 0 | CK43: 1 | CL43: 1 | CM43: 1 | CN43: 1 | CO43: 1 | CP43: 1 | CQ43: 1 | CR43: 0 | CS43: 0 | CT43: 0 | CU43: 1 | CV43: 1 | CW43: 1 | CX43: =SUM(C43:CW43) -> 51
B44: Mark Rutherford | C44: =(IF(C38="",0,IF(C$4="",0,1))) -> 0 | D44: =(IF(D38="",0,IF(D$4="",0,1))) -> 0 | E44: 0 | F44: 0 | G44: 0 | H44: 0 | I44: 0 | J44: 0 | K44: 0 | L44: 1 | M44: 0 | N44: 0 | O44: 0 | P44: 0 | Q44: 1 | R44: 0 | S44: 0 | T44: 0 | U44: 0 | V44: 1 | W44: 0 | X44: 0 | Y44: 1 | Z44: 1 | AA44: 0 | AB44: 0 | AC44: 1 | AD44: 0 | AE44: 0 | AF44: 1 | AG44: 0 | AH44: 1 | AI44: 1 | AJ44: 1 | AK44: 0 | AL44: 0 | AM44: 1 | AN44: 1 | AO44: 1 | AP44: 1 | AQ44: 1 | AR44: 1 | AS44: 1 | AT44: 1 | AU44: 0 | AV44: 1 | AW44: 0 | AX44: 1 | AY44: 1 | AZ44: 1 | BA44: 1 | BB44: 1 | BC44: 1 | BD44: 1 | BE44: 0 | BF44: 0 | BG44: 1 | BH44: 1 | BI44: 0 | BJ44: 0 | BK44: 1 | BL44: 1 | BM44: 0 | BN44: 0 | BO44: 0 | BP44: =(IF(BP38="",0,IF(BP$4="",0,1))) -> 0 | BQ44: 1 | BR44: 0 | BS44: 0 | BT44: 1 | BU44: 0 | BV44: 1 | BW44: 1 | BX44: 0 | BY44: 1 | BZ44: 0 | CA44: 0 | CB44: 0 | CC44: 1 | CD44: 0 | CE44: 0 | CF44: 1 | CG44: 1 | CH44: 0 | CI44: 0 | CJ44: 0 | CK44: 1 | CL44: 1 | CM44: 1 | CN44: 1 | CO44: 1 | CP44: 1 | CQ44: 1 | CR44: 0 | CS44: 0 | CT44: 0 | CU44: 1 | CV44: 1 | CW44: 1 | CX44: =SUM(C44:CW44) -> 48
C45: =COLORINDEXOFONECELL(C38,TRUE,1)+COLORINDEXOFONECELL(C$4,TRUE,1) -> 11 | D45: 4 | E45: 4 | F45: 4 | G45: 11 | H45: 4 | I45: 11 | J45: 11 | K45: 11 | L45: 20 | M45: 4 | N45: 11 | O45: 11 | P45: 11 | Q45: 20 | R45: 11 | S45: 2 | T45: 2 | U45: 4 | V45: 13 | W45: 11 | X45: 4 | Y45: 13 | Z45: 13 | AA45: 11 | AB45: 11 | AC45: 20 | AD45: 11 | AE45: 11 | AF45: 13 | AG45: 11 | AH45: 13 | AI45: =COLORINDEXOFONECELL(AI38,TRUE,1)+COLORINDEXOFONECELL(AI$4,TRUE,1) -> 13 | AJ45: 13 | AK45: 11 | AL45: 11 | AM45: 13 | AN45: 13 | AO45: 13 | AP45: 13 | AQ45: 13 | AR45: 20 | AS45: 11 | AT45: 6 | AU45: 11 | AV45: 20 | AW45: 11 | AX45: 13 | AY45: 20 | AZ45: 20 | BA45: 6 | BB45: 13 | BC45: 13 | BD45: 13 | BE45: 11 | BF45: 11 | BG45: 4 | BH45: 4 | BI45: 11 | BJ45: 2 | BK45: 4 | BL45: 13 | BM45: 11 | BN45: 2 | BO45: =COLORINDEXOFONECELL(BO38,TRUE,1)+COLORINDEXOFONECELL(BO$4,TRUE,1) -> 11 | BP45: 11 | BQ45: 11 | BR45: 2 | BS45: 11 | BT45: 4 | BU45: 11 | BV45: 4 | BW45: 11 | BX45: 11 | BY45: 13 | BZ45: 11 | CA45: 11 | CB45: 4 | CC45: 20 | CD45: 2 | CE45: 11 | CF45: 13 | CG45: 4 | CH45: 11 | CI45: 11 | CJ45: 11 | CK45: 13 | CL45: 13 | CM45: 20 | CN45: 13 | CO45: 13 | CP45: 13 | CQ45: 13 | CR45: 11 | CS45: 11 | CT45: 11 | CU45: 13 | CV45: 13 | CW45: 13 | CY45: =CX46/CX44 -> 0.3229166667
C46: =IF(C44,IF(C45=2,1,0)+IF(C45=4,0.5,0)+IF(C45=6,1,0)+IF(C45=11,0.5,0)+IF(C45=13,0,0)+IF(C45=20,1,0),0) -> 0 | D46: =IF(D44,IF(D45=2,1,0)+IF(D45=4,0.5,0)+IF(D45=6,1,0)+IF(D45=11,0.5,0)+IF(D45=13,0,0)+IF(D45=20,1,0),0) -> 0 | E46: 0 | F46: 0 | G46: 0 | H46: 0 | I46: 0 | J46: 0 | K46: 0 | L46: 1 | M46: 0 | N46: 0 | O46: 0 | P46: 0 | Q46: 1 | R46: 0 | S46: 0 | T46: 0 | U46: 0 | V46: 0 | W46: 0 | X46: 0 | Y46: 0 | Z46: 0 | AA46: 0 | AB46: 0 | AC46: 1 | AD46: 0 | AE46: 0 | AF46: 0 | AG46: 0 | AH46: 0 | AI46: 0 | AJ46: 0 | AK46: 0 | AL46: 0 | AM46: 0 | AN46: 0 | AO46: 0 | AP46: 0 | AQ46: 0 | AR46: 1 | AS46: 0.5 | AT46: 1 | AU46: 0 | AV46: 1 | AW46: 0 | AX46: 0 | AY46: 1 | AZ46: 1 | BA46: 1 | BB46: 0 | BC46: 0 | BD46: 0 | BE46: 0 | BF46: 0 | BG46: 0.5 | BH46: 0.5 | BI46: 0 | BJ46: 0 | BK46: 0.5 | BL46: 0 | BM46: 0 | BN46: 0 | BO46: 0 | BP46: =IF(BP44,IF(BP45=2,1,0)+IF(BP45=4,0.5,0)+IF(BP45=6,1,0)+IF(BP45=11,0.5,0)+IF(BP45=13,0,0)+IF(BP45=20,1,0),0) -> 0 | BQ46: 0.5 | BR46: 0 | BS46: 0 | BT46: 0.5 | BU46: 0 | BV46: 0.5 | BW46: 0.5 | BX46: 0 | BY46: 0 | BZ46: 0 | CA46: 0 | CB46: 0 | CC46: 1 | CD46: 0 | CE46: 0 | CF46: 0 | CG46: 0.5 | CH46: 0 | CI46: 0 | CJ46: 0 | CK46: 0 | CL46: 0 | CM46: 1 | CN46: 0 | CO46: 0 | CP46: 0 | CQ46: 0 | CR46: 0 | CS46: 0 | CT46: 0 | CU46: 0 | CV46: 0 | CW46: 0 | CX46: =SUM(C46:CW46) -> 15.5
B47: Alicia Mattson | C47: =(IF(C38="",0,IF(C$5="",0,1))) -> 0 | D47: =(IF(D38="",0,IF(D$5="",0,1))) -> 1 | E47: 0 | F47: 0 | G47: 0 | H47: 0 | I47: 0 | J47: 0 | K47: 0 | L47: 1 | M47: 0 | N47: 0 | O47: 0 | P47: 0 | Q47: 1 | R47: 0 | S47: 0 | T47: 0 | U47: 0 | V47: 1 | W47: 0 | X47: 0 | Y47: 1 | Z47: 1 | AA47: 0 | AB47: 0 | AC47: 1 | AD47: 0 | AE47: 0 | AF47: 1 | AG47: 0 | AH47: 1 | AI47: 1 | AJ47: 1 | AK47: 0 | AL47: 0 | AM47: 1 | AN47: 1 | AO47: 1 | AP47: 1 | AQ47: 1 | AR47: 1 | AS47: 1 | AT47: 1 | AU47: 0 | AV47: 1 | AW47: 0 | AX47: 1 | AY47: 1 | AZ47: 1 | BA47: 1 | BB47: 1 | BC47: 1 | BD47: 1 | BE47: 0 | BF47: 0 | BG47: 1 | BH47: 1 | BI47: 0 | BJ47: 0 | BK47: 1 | BL47: 1 | BM47: 0 | BN47: 0 | BO47: 0 | BP47: =(IF(BP38="",0,IF(BP$5="",0,1))) -> 0 | BQ47: 1 | BR47: 0 | BS47: 0 | BT47: 1 | BU47: 0 | BV47: 1 | BW47: 1 | BX47: 0 | BY47: 1 | BZ47: 0 | CA47: 0 | CB47: 0 | CC47: 1 | CD47: 0 | CE47: 0 | CF47: 1 | CG47: 1 | CH47: 0 | CI47: 0 | CJ47: 0 | CK47: 1 | CL47: 0 | CM47: 0 | CN47: 1 | CO47: 1 | CP47: 1 | CQ47: 1 | CR47: 0 | CS47: 0 | CT47: 0 | CU47: 1 | CV47: 1 | CW47: 1 | CX47: =SUM(C47:CW47) -> 47
C48: =COLORINDEXOFONECELL(C38,TRUE,1)+COLORINDEXOFONECELL(C$5,TRUE,1) -> 11 | D48: 6 | E48: 11 | F48: 11 | G48: 11 | H48: 2 | I48: 11 | J48: 11 | K48: 11 | L48: 20 | M48: 4 | N48: 11 | O48: 11 | P48: 11 | Q48: 20 | R48: 11 | S48: 11 | T48: 11 | U48: 11 | V48: 20 | W48: 11 | X48: 4 | Y48: 13 | Z48: 20 | AA48: 11 | AB48: 11 | AC48: 20 | AD48: 11 | AE48: 11 | AF48: 13 | AG48: 4 | AH48: 13 | AI48: =COLORINDEXOFONECELL(AI38,TRUE,1)+COLORINDEXOFONECELL(AI$5,TRUE,1) -> 13 | AJ48: 13 | AK48: 11 | AL48: 11 | AM48: 13 | AN48: 13 | AO48: 13 | AP48: 13 | AQ48: 13 | AR48: 13 | AS48: 20 | AT48: 6 | AU48: 11 | AV48: 20 | AW48: 11 | AX48: 13 | AY48: 20 | AZ48: 20 | BA48: 6 | BB48: 13 | BC48: 13 | BD48: 13 | BE48: 11 | BF48: 2 | BG48: 4 | BH48: 4 | BI48: 11 | BJ48: 2 | BK48: 4 | BL48: 13 | BM48: 11 | BN48: 11 | BO48: =COLORINDEXOFONECELL(BO38,TRUE,1)+COLORINDEXOFONECELL(BO$5,TRUE,1) -> 11 | BP48: 11 | BQ48: 11 | BR48: 2 | BS48: 11 | BT48: 4 | BU48: 11 | BV48: 4 | BW48: 20 | BX48: 11 | BY48: 13 | BZ48: 11 | CA48: 2 | CB48: 4 | CC48: 20 | CD48: 11 | CE48: 11 | CF48: 13 | CG48: 4 | CH48: 11 | CI48: 11 | CJ48: 11 | CK48: 13 | CL48: 11 | CM48: 11 | CN48: 13 | CO48: 11 | CP48: 13 | CQ48: 13 | CR48: 11 | CS48: 11 | CT48: 11 | CU48: 13 | CV48: 13 | CW48: 13 | CY48: =CX49/CX47 -> 0.3829787234
C49: =IF(C47,IF(C48=2,1,0)+IF(C48=4,0.5,0)+IF(C48=6,1,0)+IF(C48=11,0.5,0)+IF(C48=13,0,0)+IF(C48=20,1,0),0) -> 0 | D49: =IF(D47,IF(D48=2,1,0)+IF(D48=4,0.5,0)+IF(D48=6,1,0)+IF(D48=11,0.5,0)+IF(D48=13,0,0)+IF(D48=20,1,0),0) -> 1 | E49: 0 | F49: 0 | G49: 0 | H49: 0 | I49: 0 | J49: 0 | K49: 0 | L49: 1 | M49: 0 | N49: 0 | O49: 0 | P49: 0 | Q49: 1 | R49: 0 | S49: 0 | T49: 0 | U49: 0 | V49: 1 | W49: 0 | X49: 0 | Y49: 0 | Z49: 1 | AA49: 0 | AB49: 0 | AC49: 1 | AD49: 0 | AE49: 0 | AF49: 0 | AG49: 0 | AH49: 0 | AI49: 0 | AJ49: 0 | AK49: 0 | AL49: 0 | AM49: 0 | AN49: 0 | AO49: 0 | AP49: 0 | AQ49: 0 | AR49: 0 | AS49: 1 | AT49: 1 | AU49: 0 | AV49: 1 | AW49: 0 | AX49: 0 | AY49: 1 | AZ49: 1 | BA49: 1 | BB49: 0 | BC49: 0 | BD49: 0 | BE49: 0 | BF49: 0 | BG49: 0.5 | BH49: 0.5 | BI49: 0 | BJ49: 0 | BK49: 0.5 | BL49: 0 | BM49: 0 | BN49: 0 | BO49: 0 | BP49: =IF(BP47,IF(BP48=2,1,0)+IF(BP48=4,0.5,0)+IF(BP48=6,1,0)+IF(BP48=11,0.5,0)+IF(BP48=13,0,0)+IF(BP48=20,1,0),0) -> 0 | BQ49: 0.5 | BR49: 0 | BS49: 0 | BT49: 0.5 | BU49: 0 | BV49: 0.5 | BW49: 1 | BX49: 0 | BY49: 0 | BZ49: 0 | CA49: 0 | CB49: 0 | CC49: 1 | CD49: 0 | CE49: 0 | CF49: 0 | CG49: 0.5 | CH49: 0 | CI49: 0 | CJ49: 0 | CK49: 0 | CL49: 0 | CM49: 0 | CN49: 0 | CO49: 0.5 | CP49: 0 | CQ49: 0 | CR49: 0 | CS49: 0 | CT49: 0 | CU49: 0 | CV49: 0 | CW49: 0 | CX49: =SUM(C49:CW49) -> 18
B50: James Oaksun | C50: =(IF(C38="",0,IF(C$6="",0,1))) -> 0 | D50: =(IF(D38="",0,IF(D$6="",0,1))) -> 0 | E50: 0 | F50: 0 | G50: 0 | H50: 0 | I50: 0 | J50: 0 | K50: 0 | L50: 1 | M50: 0 | N50: 0 | O50: 0 | P50: 0 | Q50: 1 | R50: 0 | S50: 0 | T50: 0 | U50: 0 | V50: 0 | W50: 0 | X50: 0 | Y50: 0 | Z50: 0 | AA50: 0 | AB50: 0 | AC50: 0 | AD50: 0 | AE50: 0 | AF50: 0 | AG50: 0 | AH50: 0 | AI50: 0 | AJ50: 0 | AK50: 0 | AL50: 0 | AM50: 0 | AN50: 0 | AO50: 0 | AP50: 0 | AQ50: 0 | AR50: 0 | AS50: 0 | AT50: 0 | AU50: 0 | AV50: 0 | AW50: 0 | AX50: 0 | AY50: 0 | AZ50: 0 | BA50: 0 | BB50: 0 | BC50: 0 | BD50: 0 | BE50: 0 | BF50: 0 | BG50: 1 | BH50: 1 | BI50: 0 | BJ50: 1 | BK50: 1 | BL50: 1 | BM50: 0 | BN50: 0 | BO50: 0 | BP50: =(IF(BP38="",0,IF(BP$6="",0,1))) -> 0 | BQ50: 0 | BR50: 0 | BS50: 0 | BT50: 0 | BU50: 0 | BV50: 0 | BW50: 0 | BX50: 0 | BY50: 0 | BZ50: 0 | CA50: 0 | CB50: 0 | CC50: 0 | CD50: 0 | CE50: 0 | CF50: 0 | CG50: 0 | CH50: 0 | CI50: 0 | CJ50: 0 | CK50: 0 | CL50: 0 | CM50: 0 | CN50: 0 | CO50: 0 | CP50: 0 | CQ50: 0 | CR50: 0 | CS50: 0 | CT50: 0 | CU50: 0 | CV50: 0 | CW50: 0 | CX50: =SUM(C50:CW50) -> 7
C51: =COLORINDEXOFONECELL(C38,TRUE,1)+COLORINDEXOFONECELL(C$6,TRUE,1) -> 11 | D51: 4 | E51: 2 | F51: 2 | G51: 2 | H51: 2 | I51: 2 | J51: 4 | K51: 11 | L51: 20 | M51: 11 | N51: 4 | O51: 2 | P51: 2 | Q51: 11 | R51: 11 | S51: 11 | T51: 2 | U51: 2 | V51: 11 | W51: 2 | X51: 2 | Y51: 11 | Z51: 11 | AA51: 2 | AB51: 2 | AC51: 11 | AD51: 2 | AE51: 2 | AF51: 4 | AG51: 2 | AH51: 4 | AI51: =COLORINDEXOFONECELL(AI38,TRUE,1)+COLORINDEXOFONECELL(AI$6,TRUE,1) -> 11 | AJ51: 4 | AK51: 2 | AL51: 2 | AM51: 4 | AN51: 4 | AO51: 4 | AP51: 4 | AQ51: 4 | AR51: 11 | AS51: 11 | AT51: 4 | AU51: 2 | AV51: 11 | AW51: 2 | AX51: 4 | AY51: 11 | AZ51: 11 | BA51: 4 | BB51: 4 | BC51: 4 | BD51: 4 | BE51: 2 | BF51: 11 | BG51: 11 | BH51: 11 | BI51: 4 | BJ51: 11 | BK51: 11 | BL51: 6 | BM51: 2 | BN51: 2 | BO51: =COLORINDEXOFONECELL(BO38,TRUE,1)+COLORINDEXOFONECELL(BO$6,TRUE,1) -> 2 | BP51: 2 | BQ51: 2 | BR51: 2 | BS51: 2 | BT51: 2 | BU51: 2 | BV51: 2 | BW51: 11 | BX51: 2 | BY51: 4 | BZ51: 2 | CA51: 2 | CB51: 2 | CC51: 11 | CD51: 2 | CE51: 2 | CF51: 4 | CG51: 2 | CH51: 2 | CI51: 2 | CJ51: 2 | CK51: 11 | CL51: 11 | CM51: 11 | CN51: 11 | CO51: 11 | CP51: 4 | CQ51: 4 | CR51: 2 | CS51: 2 | CT51: 2 | CU51: 4 | CV51: 4 | CW51: 11 | CY51: =CX52/CX50 -> 0.6428571429
C52: =IF(C50,IF(C51=2,1,0)+IF(C51=4,0.5,0)+IF(C51=6,1,0)+IF(C51=11,0.5,0)+IF(C51=13,0,0)+IF(C51=20,1,0),0) -> 0 | D52: =IF(D50,IF(D51=2,1,0)+IF(D51=4,0.5,0)+IF(D51=6,1,0)+IF(D51=11,0.5,0)+IF(D51=13,0,0)+IF(D51=20,1,0),0) -> 0 | E52: 0 | F52: 0 | G52: 0 | H52: 0 | I52: 0 | J52: 0 | K52: 0 | L52: 1 | M52: 0 | N52: 0 | O52: 0 | P52: 0 | Q52: 0.5 | R52: 0 | S52: 0 | T52: 0 | U52: 0 | V52: 0 | W52: 0 | X52: 0 | Y52: 0 | Z52: 0 | AA52: 0 | AB52: 0 | AC52: 0 | AD52: 0 | AE52: 0 | AF52: 0 | AG52: 0 | AH52: 0 | AI52: 0 | AJ52: 0 | AK52: 0 | AL52: 0 | AM52: 0 | AN52: 0 | AO52: 0 | AP52: 0 | AQ52: 0 | AR52: 0 | AS52: 0 | AT52: 0 | AU52: 0 | AV52: 0 | AW52: 0 | AX52: 0 | AY52: 0 | AZ52: 0 | BA52: 0 | BB52: 0 | BC52: 0 | BD52: 0 | BE52: 0 | BF52: 0 | BG52: 0.5 | BH52: 0.5 | BI52: 0 | BJ52: 0.5 | BK52: 0.5 | BL52: 1 | BM52: 0 | BN52: 0 | BO52: 0 | BP52: =IF(BP50,IF(BP51=2,1,0)+IF(BP51=4,0.5,0)+IF(BP51=6,1,0)+IF(BP51=11,0.5,0)+IF(BP51=13,0,0)+IF(BP51=20,1,0),0) -> 0 | BQ52: 0 | BR52: 0 | BS52: 0 | BT52: 0 | BU52: 0 | BV52: 0 | BW52: 0 | BX52: 0 | BY52: 0 | BZ52: 0 | CA52: 0 | CB52: 0 | CC52: 0 | CD52: 0 | CE52: 0 | CF52: 0 | CG52: 0 | CH52: 0 | CI52: 0 | CJ52: 0 | CK52: 0 | CL52: 0 | CM52: 0 | CN52: 0 | CO52: 0 | CP52: 0 | CQ52: 0 | CR52: 0 | CS52: 0 | CT52: 0 | CU52: 0 | CV52: 0 | CW52: 0 | CX52: =SUM(C52:CW52) -> 4.5
B53: Bill Redpath | C53: =(IF(C38="",0,IF(C$7="",0,1))) -> 0 | D53: =(IF(D38="",0,IF(D$7="",0,1))) -> 1 | E53: 0 | F53: 0 | G53: 0 | H53: 0 | I53: 0 | J53: 0 | K53: 0 | L53: 1 | M53: 0 | N53: 0 | O53: 0 | P53: 0 | Q53: 1 | R53: 0 | S53: 0 | T53: 0 | U53: 0 | V53: 1 | W53: 0 | X53: 0 | Y53: 1 | Z53: 1 | AA53: 0 | AB53: 0 | AC53: 1 | AD53: 0 | AE53: 0 | AF53: 1 | AG53: 0 | AH53: 1 | AI53: 1 | AJ53: 1 | AK53: 0 | AL53: 0 | AM53: 1 | AN53: 1 | AO53: 1 | AP53: 1 | AQ53: 1 | AR53: 1 | AS53: 1 | AT53: 1 | AU53: 0 | AV53: 1 | AW53: 0 | AX53: 1 | AY53: 1 | AZ53: 1 | BA53: 1 | BB53: 1 | BC53: 1 | BD53: 1 | BE53: 0 | BF53: 0 | BG53: 1 | BH53: 1 | BI53: 0 | BJ53: 1 | BK53: 1 | BL53: 1 | BM53: 0 | BN53: 0 | BO53: 0 | BP53: =(IF(BP38="",0,IF(BP$7="",0,1))) -> 0 | BQ53: 1 | BR53: 0 | BS53: 0 | BT53: 0 | BU53: 0 | BV53: 1 | BW53: 1 | BX53: 0 | BY53: 1 | BZ53: 0 | CA53: 0 | CB53: 0 | CC53: 1 | CD53: 0 | CE53: 0 | CF53: 1 | CG53: 1 | CH53: 0 | CI53: 0 | CJ53: 0 | CK53: 1 | CL53: 1 | CM53: 1 | CN53: 1 | CO53: 1 | CP53: 1 | CQ53: 1 | CR53: 0 | CS53: 0 | CT53: 0 | CU53: 1 | CV53: 1 | CW53: 1 | CX53: =SUM(C53:CW53) -> 49
C54: =COLORINDEXOFONECELL(C38,TRUE,1)+COLORINDEXOFONECELL(C$7,TRUE,1) -> 2 | D54: 6 | E54: 11 | F54: 11 | G54: 4 | H54: 4 | I54: 11 | J54: 4 | K54: 11 | L54: 20 | M54: 4 | N54: 11 | O54: 11 | P54: 11 | Q54: 20 | R54: 4 | S54: 4 | T54: 11 | U54: 4 | V54: 20 | W54: 11 | X54: 4 | Y54: 11 | Z54: 20 | AA54: 11 | AB54: 11 | AC54: 20 | AD54: 11 | AE54: 2 | AF54: 6 | AG54: 11 | AH54: 13 | AI54: =COLORINDEXOFONECELL(AI38,TRUE,1)+COLORINDEXOFONECELL(AI$7,TRUE,1) -> 20 | AJ54: 6 | AK54: 11 | AL54: 11 | AM54: 4 | AN54: 6 | AO54: 13 | AP54: 13 | AQ54: 13 | AR54: 20 | AS54: 20 | AT54: 6 | AU54: 11 | AV54: 20 | AW54: 11 | AX54: 13 | AY54: 20 | AZ54: 20 | BA54: 6 | BB54: 4 | BC54: 13 | BD54: 13 | BE54: 11 | BF54: 2 | BG54: 11 | BH54: 11 | BI54: 4 | BJ54: 11 | BK54: 4 | BL54: 13 | BM54: 11 | BN54: 11 | BO54: =COLORINDEXOFONECELL(BO38,TRUE,1)+COLORINDEXOFONECELL(BO$7,TRUE,1) -> 11 | BP54: 2 | BQ54: 11 | BR54: 2 | BS54: 2 | BT54: 2 | BU54: 11 | BV54: 4 | BW54: 20 | BX54: 11 | BY54: 6 | BZ54: 11 | CA54: 11 | CB54: 4 | CC54: 20 | CD54: 2 | CE54: 11 | CF54: 6 | CG54: 11 | CH54: 11 | CI54: 11 | CJ54: 11 | CK54: 20 | CL54: 20 | CM54: 20 | CN54: 20 | CO54: 20 | CP54: 13 | CQ54: 6 | CR54: 2 | CS54: 2 | CT54: 4 | CU54: 6 | CV54: 13 | CW54: 20 | CY54: =CX55/CX53 -> 0.693877551
C55: =IF(C53,IF(C54=2,1,0)+IF(C54=4,0.5,0)+IF(C54=6,1,0)+IF(C54=11,0.5,0)+IF(C54=13,0,0)+IF(C54=20,1,0),0) -> 0 | D55: =IF(D53,IF(D54=2,1,0)+IF(D54=4,0.5,0)+IF(D54=6,1,0)+IF(D54=11,0.5,0)+IF(D54=13,0,0)+IF(D54=20,1,0),0) -> 1 | E55: 0 | F55: 0 | G55: 0 | H55: 0 | I55: 0 | J55: 0 | K55: 0 | L55: 1 | M55: 0 | N55: 0 | O55: 0 | P55: 0 | Q55: 1 | R55: 0 | S55: 0 | T55: 0 | U55: 0 | V55: 1 | W55: 0 | X55: 0 | Y55: 0.5 | Z55: 1 | AA55: 0 | AB55: 0 | AC55: 1 | AD55: 0 | AE55: 0 | AF55: 1 | AG55: 0 | AH55: 0 | AI55: 1 | AJ55: 1 | AK55: 0 | AL55: 0 | AM55: 0.5 | AN55: 1 | AO55: 0 | AP55: 0 | AQ55: 0 | AR55: 1 | AS55: 1 | AT55: 1 | AU55: 0 | AV55: 1 | AW55: 0 | AX55: 0 | AY55: 1 | AZ55: 1 | BA55: 1 | BB55: 0.5 | BC55: 0 | BD55: 0 | BE55: 0 | BF55: 0 | BG55: 0.5 | BH55: 0.5 | BI55: 0 | BJ55: 0.5 | BK55: 0.5 | BL55: 0 | BM55: 0 | BN55: 0 | BO55: 0 | BP55: =IF(BP53,IF(BP54=2,1,0)+IF(BP54=4,0.5,0)+IF(BP54=6,1,0)+IF(BP54=11,0.5,0)+IF(BP54=13,0,0)+IF(BP54=20,1,0),0) -> 0 | BQ55: 0.5 | BR55: 0 | BS55: 0 | BT55: 0 | BU55: 0 | BV55: 0.5 | BW55: 1 | BX55: 0 | BY55: 1 | BZ55: 0 | CA55: 0 | CB55: 0 | CC55: 1 | CD55: 0 | CE55: 0 | CF55: 1 | CG55: 0.5 | CH55: 0 | CI55: 0 | CJ55: 0 | CK55: 1 | CL55: 1 | CM55: 1 | CN55: 1 | CO55: 1 | CP55: 0 | CQ55: 1 | CR55: 0 | CS55: 0 | CT55: 0 | CU55: 1 | CV55: 0 | CW55: 1 | CX55: =SUM(C55:CW55) -> 34
B56: Randy Eshelman | C56: =(IF(C38="",0,IF(C$8="",0,1))) -> 0 | D56: =(IF(D38="",0,IF(D$8="",0,1))) -> 0 | E56: 0 | F56: 0 | G56: 0 | H56: 0 | I56: 0 | J56: 0 | K56: 0 | L56: 0 | M56: 0 | N56: 0 | O56: 0 | P56: 0 | Q56: 0 | R56: 0 | S56: 0 | T56: 0 | U56: 0 | V56: 1 | W56: 0 | X56: 0 | Y56: 1 | Z56: 0 | AA56: 0 | AB56: 0 | AC56: 0 | AD56: 0 | AE56: 0 | AF56: 1 | AG56: 0 | AH56: 1 | AI56: 1 | AJ56: 1 | AK56: 0 | AL56: 0 | AM56: 1 | AN56: 0 | AO56: 0 | AP56: 0 | AQ56: 0 | AR56: 0 | AS56: 0 | AT56: 0 | AU56: 0 | AV56: 0 | AW56: 0 | AX56: 0 | AY56: 0 | AZ56: 0 | BA56: 0 | BB56: 0 | BC56: 0 | BD56: 0 | BE56: 0 | BF56: 0 | BG56: 1 | BH56: 0 | BI56: 0 | BJ56: 0 | BK56: 0 | BL56: 0 | BM56: 0 | BN56: 0 | BO56: 0 | BP56: =(IF(BP38="",0,IF(BP$8="",0,1))) -> 0 | BQ56: 0 | BR56: 0 | BS56: 0 | BT56: 0 | BU56: 0 | BV56: 1 | BW56: 1 | BX56: 0 | BY56: 1 | BZ56: 0 | CA56: 0 | CB56: 0 | CC56: 1 | CD56: 0 | CE56: 0 | CF56: 1 | CG56: 1 | CH56: 0 | CI56: 0 | CJ56: 0 | CK56: 1 | CL56: 1 | CM56: 1 | CN56: 1 | CO56: 1 | CP56: 1 | CQ56: 1 | CR56: 0 | CS56: 0 | CT56: 0 | CU56: 1 | CV56: 0 | CW56: 0 | CX56: =SUM(C56:CW56) -> 22
C57: =COLORINDEXOFONECELL(C38,TRUE,1)+COLORINDEXOFONECELL(C$8,TRUE,1) -> 11 | D57: 13 | E57: 11 | F57: 11 | G57: 4 | H57: 4 | I57: 11 | J57: 11 | K57: 11 | L57: 11 | M57: 4 | N57: 4 | O57: 11 | P57: 11 | Q57: 20 | R57: 11 | S57: 11 | T57: 11 | U57: 4 | V57: 20 | W57: 4 | X57: 4 | Y57: 13 | Z57: 11 | AA57: 2 | AB57: 2 | AC57: 11 | AD57: 2 | AE57: 2 | AF57: 13 | AG57: 11 | AH57: 13 | AI57: =COLORINDEXOFONECELL(AI38,TRUE,1)+COLORINDEXOFONECELL(AI$8,TRUE,1) -> 13 | AJ57: 13 | AK57: 11 | AL57: 11 | AM57: 6 | AN57: 4 | AO57: 4 | AP57: 4 | AQ57: 4 | AR57: 11 | AS57: 11 | AT57: 4 | AU57: 2 | AV57: 11 | AW57: 2 | AX57: 4 | AY57: 11 | AZ57: 11 | BA57: 4 | BB57: 4 | BC57: 4 | BD57: 4 | BE57: 2 | BF57: 2 | BG57: 11 | BH57: 2 | BI57: 2 | BJ57: 2 | BK57: 2 | BL57: 4 | BM57: 2 | BN57: 2 | BO57: =COLORINDEXOFONECELL(BO38,TRUE,1)+COLORINDEXOFONECELL(BO$8,TRUE,1) -> 2 | BP57: 2 | BQ57: 2 | BR57: 2 | BS57: 2 | BT57: 2 | BU57: 11 | BV57: 4 | BW57: 20 | BX57: 11 | BY57: 6 | BZ57: 11 | CA57: 11 | CB57: 4 | CC57: 13 | CD57: 11 | CE57: 11 | CF57: 13 | CG57: 4 | CH57: 11 | CI57: 11 | CJ57: 11 | CK57: 13 | CL57: 13 | CM57: 20 | CN57: 13 | CO57: 13 | CP57: 13 | CQ57: 13 | CR57: 11 | CS57: 11 | CT57: 11 | CU57: 13 | CV57: 4 | CW57: 11 | CY57: =CX58/CX56 -> 0.2954545455
C58: =IF(C56,IF(C57=2,1,0)+IF(C57=4,0.5,0)+IF(C57=6,1,0)+IF(C57=11,0.5,0)+IF(C57=13,0,0)+IF(C57=20,1,0),0) -> 0 | D58: =IF(D56,IF(D57=2,1,0)+IF(D57=4,0.5,0)+IF(D57=6,1,0)+IF(D57=11,0.5,0)+IF(D57=13,0,0)+IF(D57=20,1,0),0) -> 0 | E58: 0 | F58: 0 | G58: 0 | H58: 0 | I58: 0 | J58: 0 | K58: 0 | L58: 0 | M58: 0 | N58: 0 | O58: 0 | P58: 0 | Q58: 0 | R58: 0 | S58: 0 | T58: 0 | U58: 0 | V58: 1 | W58: 0 | X58: 0 | Y58: 0 | Z58: 0 | AA58: 0 | AB58: 0 | AC58: 0 | AD58: 0 | AE58: 0 | AF58: 0 | AG58: 0 | AH58: 0 | AI58: 0 | AJ58: 0 | AK58: 0 | AL58: 0 | AM58: 1 | AN58: 0 | AO58: 0 | AP58: 0 | AQ58: 0 | AR58: 0 | AS58: 0 | AT58: 0 | AU58: 0 | AV58: 0 | AW58: 0 | AX58: 0 | AY58: 0 | AZ58: 0 | BA58: 0 | BB58: 0 | BC58: 0 | BD58: 0 | BE58: 0 | BF58: 0 | BG58: 0.5 | BH58: 0 | BI58: 0 | BJ58: 0 | BK58: 0 | BL58: 0 | BM58: 0 | BN58: 0 | BO58: 0 | BP58: =IF(BP56,IF(BP57=2,1,0)+IF(BP57=4,0.5,0)+IF(BP57=6,1,0)+IF(BP57=11,0.5,0)+IF(BP57=13,0,0)+IF(BP57=20,1,0),0) -> 0 | BQ58: 0 | BR58: 0 | BS58: 0 | BT58: 0 | BU58: 0 | BV58: 0.5 | BW58: 1 | BX58: 0 | BY58: 1 | BZ58: 0 | CA58: 0 | CB58: 0 | CC58: 0 | CD58: 0 | CE58: 0 | CF58: 0 | CG58: 0.5 | CH58: 0 | CI58: 0 | CJ58: 0 | CK58: 0 | CL58: 0 | CM58: 1 | CN58: 0 | CO58: 0 | CP58: 0 | CQ58: 0 | CR58: 0 | CS58: 0 | CT58: 0 | CU58: 0 | CV58: 0 | CW58: 0 | CX58: =SUM(C58:CW58) -> 6.5
B59: Kevin Knedler | C59: =(IF(C38="",0,IF(C$9="",0,1))) -> 0 | D59: =(IF(D38="",0,IF(D$9="",0,1))) -> 1 | E59: 0 | F59: 0 | G59: 0 | H59: 0 | I59: 0 | J59: 0 | K59: 0 | L59: 1 | M59: 0 | N59: 0 | O59: 0 | P59: 0 | Q59: 1 | R59: 0 | S59: 0 | T59: 0 | U59: 0 | V59: 1 | W59: 0 | X59: 0 | Y59: 1 | Z59: 1 | AA59: 0 | AB59: 0 | AC59: 1 | AD59: 0 | AE59: 0 | AF59: 1 | AG59: 0 | AH59: 1 | AI59: 1 | AJ59: 1 | AK59: 0 | AL59: 0 | AM59: 1 | AN59: 1 | AO59: 1 | AP59: 1 | AQ59: 1 | AR59: 1 | AS59: 1 | AT59: 1 | AU59: 0 | AV59: 1 | AW59: 0 | AX59: 1 | AY59: 1 | AZ59: 1 | BA59: 1 | BB59: 1 | BC59: 1 | BD59: 1 | BE59: 0 | BF59: 0 | BG59: 1 | BH59: 1 | BI59: 0 | BJ59: 1 | BK59: 1 | BL59: 1 | BM59: 0 | BN59: 0 | BO59: 0 | BP59: =(IF(BP38="",0,IF(BP$9="",0,1))) -> 0 | BQ59: 1 | BR59: 1 | BS59: 0 | BT59: 1 | BU59: 0 | BV59: 1 | BW59: 1 | BX59: 0 | BY59: 1 | BZ59: 0 | CA59: 0 | CB59: 0 | CC59: 1 | CD59: 0 | CE59: 0 | CF59: 1 | CG59: 1 | CH59: 0 | CI59: 0 | CJ59: 0 | CK59: 1 | CL59: 1 | CM59: 1 | CN59: 1 | CO59: 1 | CP59: 1 | CQ59: 1 | CR59: 0 | CS59: 0 | CT59: 0 | CU59: 1 | CV59: 1 | CW59: 1 | CX59: =SUM(C59:CW59) -> 51
C60: =COLORINDEXOFONECELL(C38,TRUE,1)+COLORINDEXOFONECELL(C$9,TRUE,1) -> 11 | D60: 13 | E60: 11 | F60: 11 | G60: 4 | H60: 4 | I60: 11 | J60: 11 | K60: 11 | L60: 20 | M60: 4 | N60: 11 | O60: 11 | P60: 11 | Q60: 20 | R60: 11 | S60: 11 | T60: 11 | U60: 11 | V60: 20 | W60: 11 | X60: 4 | Y60: 20 | Z60: 13 | AA60: 11 | AB60: 4 | AC60: 20 | AD60: 11 | AE60: 11 | AF60: 13 | AG60: 11 | AH60: 13 | AI60: =COLORINDEXOFONECELL(AI38,TRUE,1)+COLORINDEXOFONECELL(AI$9,TRUE,1) -> 13 | AJ60: 13 | AK60: 11 | AL60: 11 | AM60: 13 | AN60: 13 | AO60: 13 | AP60: 13 | AQ60: 13 | AR60: 20 | AS60: 20 | AT60: 4 | AU60: 11 | AV60: 20 | AW60: 11 | AX60: 13 | AY60: 20 | AZ60: 20 | BA60: 6 | BB60: 13 | BC60: 4 | BD60: 13 | BE60: 11 | BF60: 11 | BG60: 4 | BH60: 11 | BI60: 11 | BJ60: 11 | BK60: 4 | BL60: 13 | BM60: 11 | BN60: 11 | BO60: =COLORINDEXOFONECELL(BO38,TRUE,1)+COLORINDEXOFONECELL(BO$9,TRUE,1) -> 11 | BP60: 11 | BQ60: 2 | BR60: 11 | BS60: 11 | BT60: 4 | BU60: 11 | BV60: 4 | BW60: 20 | BX60: 11 | BY60: 13 | BZ60: 11 | CA60: 11 | CB60: 4 | CC60: 20 | CD60: 11 | CE60: 11 | CF60: 6 | CG60: 11 | CH60: 11 | CI60: 11 | CJ60: 11 | CK60: 13 | CL60: 13 | CM60: 13 | CN60: 11 | CO60: 11 | CP60: 13 | CQ60: 13 | CR60: 11 | CS60: 11 | CT60: 11 | CU60: 13 | CV60: 13 | CW60: 20 | CY60: =CX61/CX59 -> 0.431372549
C61: =IF(C59,IF(C60=2,1,0)+IF(C60=4,0.5,0)+IF(C60=6,1,0)+IF(C60=11,0.5,0)+IF(C60=13,0,0)+IF(C60=20,1,0),0) -> 0 | D61: =IF(D59,IF(D60=2,1,0)+IF(D60=4,0.5,0)+IF(D60=6,1,0)+IF(D60=11,0.5,0)+IF(D60=13,0,0)+IF(D60=20,1,0),0) -> 0 | E61: 0 | F61: 0 | G61: 0 | H61: 0 | I61: 0 | J61: 0 | K61: 0 | L61: 1 | M61: 0 | N61: 0 | O61: 0 | P61: 0 | Q61: 1 | R61: 0 | S61: 0 | T61: 0 | U61: 0 | V61: 1 | W61: 0 | X61: 0 | Y61: 1 | Z61: 0 | AA61: 0 | AB61: 0 | AC61: 1 | AD61: 0 | AE61: 0 | AF61: 0 | AG61: 0 | AH61: 0 | AI61: 0 | AJ61: 0 | AK61: 0 | AL61: 0 | AM61: 0 | AN61: 0 | AO61: 0 | AP61: 0 | AQ61: 0 | AR61: 1 | AS61: 1 | AT61: 0.5 | AU61: 0 | AV61: 1 | AW61: 0 | AX61: 0 | AY61: 1 | AZ61: 1 | BA61: 1 | BB61: 0 | BC61: 0.5 | BD61: 0 | BE61: 0 | BF61: 0 | BG61: 0.5 | BH61: 0.5 | BI61: 0 | BJ61: 0.5 | BK61: 0.5 | BL61: 0 | BM61: 0 | BN61: 0 | BO61: 0 | BP61: =IF(BP59,IF(BP60=2,1,0)+IF(BP60=4,0.5,0)+IF(BP60=6,1,0)+IF(BP60=11,0.5,0)+IF(BP60=13,0,0)+IF(BP60=20,1,0),0) -> 0 | BQ61: 1 | BR61: 0.5 | BS61: 0 | BT61: 0.5 | BU61: 0 | BV61: 0.5 | BW61: 1 | BX61: 0 | BY61: 0 | BZ61: 0 | CA61: 0 | CB61: 0 | CC61: 1 | CD61: 0 | CE61: 0 | CF61: 1 | CG61: 0.5 | CH61: 0 | CI61: 0 | CJ61: 0 | CK61: 0 | CL61: 0 | CM61: 0 | CN61: 0.5 | CO61: 0.5 | CP61: 0 | CQ61: 0 | CR61: 0 | CS61: 0 | CT61: 0 | CU61: 0 | CV61: 0 | CW61: 1 | CX61: =SUM(C61:CW61) -> 22
B62: David Nolan | C62: =(IF(C38="",0,IF(C$10="",0,1))) -> 0 | D62: =(IF(D38="",0,IF(D$10="",0,1))) -> 1 | E62: 0 | F62: 0 | G62: 0 | H62: 0 | I62: 0 | J62: 0 | K62: 0 | L62: 0 | M62: 0 | N62: 0 | O62: 0 | P62: 0 | Q62: 0 | R62: 0 | S62: 0 | T62: 0 | U62: 0 | V62: 0 | W62: 0 | X62: 0 | Y62: 0 | Z62: 0 | AA62: 0 | AB62: 0 | AC62: 0 | AD62: 0 | AE62: 0 | AF62: 0 | AG62: 0 | AH62: 0 | AI62: 0 | AJ62: 0 | AK62: 0 | AL62: 0 | AM62: 0 | AN62: 0 | AO62: 0 | AP62: 0 | AQ62: 0 | AR62: 0 | AS62: 0 | AT62: 0 | AU62: 0 | AV62: 0 | AW62: 0 | AX62: 0 | AY62: 0 | AZ62: 0 | BA62: 0 | BB62: 0 | BC62: 0 | BD62: 0 | BE62: 0 | BF62: 0 | BG62: 0 | BH62: 1 | BI62: 0 | BJ62: 1 | BK62: 1 | BL62: 1 | BM62: 0 | BN62: 0 | BO62: 0 | BP62: =(IF(BP38="",0,IF(BP$10="",0,1))) -> 0 | BQ62: 0 | BR62: 0 | BS62: 0 | BT62: 0 | BU62: 0 | BV62: 0 | BW62: 0 | BX62: 0 | BY62: 0 | BZ62: 0 | CA62: 0 | CB62: 0 | CC62: 0 | CD62: 0 | CE62: 0 | CF62: 0 | CG62: 0 | CH62: 0 | CI62: 0 | CJ62: 0 | CK62: 0 | CL62: 0 | CM62: 0 | CN62: 0 | CO62: 0 | CP62: 0 | CQ62: 0 | CR62: 0 | CS62: 0 | CT62: 0 | CU62: 0 | CV62: 0 | CW62: 0 | CX62: =SUM(C62:CW62) -> 5
C63: =COLORINDEXOFONECELL(C38,TRUE,1)+COLORINDEXOFONECELL(C$10,TRUE,1) -> 11 | D63: 6 | E63: 2 | F63: 11 | G63: 4 | H63: 4 | I63: 4 | J63: 2 | K63: 2 | L63: 11 | M63: 2 | N63: 2 | O63: 2 | P63: 2 | Q63: 11 | R63: 2 | S63: 2 | T63: 2 | U63: 2 | V63: 11 | W63: 2 | X63: 2 | Y63: 11 | Z63: 11 | AA63: 2 | AB63: 2 | AC63: 11 | AD63: 2 | AE63: 2 | AF63: 4 | AG63: 2 | AH63: 4 | AI63: =COLORINDEXOFONECELL(AI38,TRUE,1)+COLORINDEXOFONECELL(AI$10,TRUE,1) -> 11 | AJ63: 4 | AK63: 2 | AL63: 2 | AM63: 4 | AN63: 4 | AO63: 4 | AP63: 4 | AQ63: 4 | AR63: 11 | AS63: 11 | AT63: 4 | AU63: 2 | AV63: 11 | AW63: 2 | AX63: 4 | AY63: 11 | AZ63: 11 | BA63: 4 | BB63: 4 | BC63: 4 | BD63: 4 | BE63: 4 | BF63: 11 | BG63: 2 | BH63: 11 | BI63: 4 | BJ63: 11 | BK63: 11 | BL63: 6 | BM63: 2 | BN63: 2 | BO63: =COLORINDEXOFONECELL(BO38,TRUE,1)+COLORINDEXOFONECELL(BO$10,TRUE,1) -> 2 | BP63: 2 | BQ63: 2 | BR63: 2 | BS63: 2 | BT63: 2 | BU63: 2 | BV63: 2 | BW63: 11 | BX63: 2 | BY63: 4 | BZ63: 2 | CA63: 2 | CB63: 2 | CC63: 11 | CD63: 2 | CE63: 2 | CF63: 4 | CG63: 2 | CH63: 2 | CI63: 2 | CJ63: 2 | CK63: 11 | CL63: 11 | CM63: 11 | CN63: 11 | CO63: 11 | CP63: 4 | CQ63: 4 | CR63: 2 | CS63: 2 | CT63: 2 | CU63: 4 | CV63: 4 | CW63: 11 | CY63: =CX64/CX62 -> 0.7
C64: =IF(C62,IF(C63=2,1,0)+IF(C63=4,0.5,0)+IF(C63=6,1,0)+IF(C63=11,0.5,0)+IF(C63=13,0,0)+IF(C63=20,1,0),0) -> 0 | D64: =IF(D62,IF(D63=2,1,0)+IF(D63=4,0.5,0)+IF(D63=6,1,0)+IF(D63=11,0.5,0)+IF(D63=13,0,0)+IF(D63=20,1,0),0) -> 1 | E64: 0 | F64: 0 | G64: 0 | H64: 0 | I64: 0 | J64: 0 | K64: 0 | L64: 0 | M64: 0 | N64: 0 | O64: 0 | P64: 0 | Q64: 0 | R64: 0 | S64: 0 | T64: 0 | U64: 0 | V64: 0 | W64: 0 | X64: 0 | Y64: 0 | Z64: 0 | AA64: 0 | AB64: 0 | AC64: 0 | AD64: 0 | AE64: 0 | AF64: 0 | AG64: 0 | AH64: 0 | AI64: 0 | AJ64: 0 | AK64: 0 | AL64: 0 | AM64: 0 | AN64: 0 | AO64: 0 | AP64: 0 | AQ64: 0 | AR64: 0 | AS64: 0 | AT64: 0 | AU64: 0 | AV64: 0 | AW64: 0 | AX64: 0 | AY64: 0 | AZ64: 0 | BA64: 0 | BB64: 0 | BC64: 0 | BD64: 0 | BE64: 0 | BF64: 0 | BG64: 0 | BH64: 0.5 | BI64: 0 | BJ64: 0.5 | BK64: 0.5 | BL64: 1 | BM64: 0 | BN64: 0 | BO64: 0 | BP64: =IF(BP62,IF(BP63=2,1,0)+IF(BP63=4,0.5,0)+IF(BP63=6,1,0)+IF(BP63=11,0.5,0)+IF(BP63=13,0,0)+IF(BP63=20,1,0),0) -> 0 | BQ64: 0 | BR64: 0 | BS64: 0 | BT64: 0 | BU64: 0 | BV64: 0 | BW64: 0 | BX64: 0 | BY64: 0 | BZ64: 0 | CA64: 0 | CB64: 0 | CC64: 0 | CD64: 0 | CE64: 0 | CF64: 0 | CG64: 0 | CH64: 0 | CI64: 0 | CJ64: 0 | CK64: 0 | CL64: 0 | CM64: 0 | CN64: 0 | CO64: 0 | CP64: 0 | CQ64: 0 | CR64: 0 | CS64: 0 | CT64: 0 | CU64: 0 | CV64: 0 | CW64: 0 | CX64: =SUM(C64:CW64) -> 3.5
B65: Brett Pojunis | C65: =(IF(C38="",0,IF(C$11="",0,1))) -> 0 | D65: =(IF(D38="",0,IF(D$11="",0,1))) -> 0 | E65: 0 | F65: 0 | G65: 0 | H65: 0 | I65: 0 | J65: 0 | K65: 0 | L65: 0 | M65: 0 | N65: 0 | O65: 0 | P65: 0 | Q65: 0 | R65: 0 | S65: 0 | T65: 0 | U65: 0 | V65: 0 | W65: 0 | X65: 0 | Y65: 0 | Z65: 0 | AA65: 0 | AB65: 0 | AC65: 0 | AD65: 0 | AE65: 0 | AF65: 0 | AG65: 0 | AH65: 0 | AI65: 0 | AJ65: 0 | AK65: 0 | AL65: 0 | AM65: 0 | AN65: 0 | AO65: 0 | AP65: 0 | AQ65: 0 | AR65: 0 | AS65: 0 | AT65: 0 | AU65: 0 | AV65: 1 | AW65: 0 | AX65: 1 | AY65: 0 | AZ65: 0 | BA65: 0 | BB65: 0 | BC65: 0 | BD65: 0 | BE65: 0 | BF65: 0 | BG65: 0 | BH65: 0 | BI65: 0 | BJ65: 0 | BK65: 0 | BL65: 0 | BM65: 0 | BN65: 0 | BO65: 0 | BP65: =(IF(BP38="",0,IF(BP$11="",0,1))) -> 0 | BQ65: 0 | BR65: 0 | BS65: 0 | BT65: 0 | BU65: 0 | BV65: 0 | BW65: 0 | BX65: 0 | BY65: 0 | BZ65: 0 | CA65: 0 | CB65: 0 | CC65: 0 | CD65: 0 | CE65: 0 | CF65: 0 | CG65: 0 | CH65: 0 | CI65: 0 | CJ65: 0 | CK65: 0 | CL65: 0 | CM65: 0 | CN65: 0 | CO65: 0 | CP65: 0 | CQ65: 0 | CR65: 0 | CS65: 0 | CT65: 0 | CU65: 1 | CV65: 1 | CW65: 1 | CX65: =SUM(C65:CW65) -> 5
C66: =COLORINDEXOFONECELL(C38,TRUE,1)+COLORINDEXOFONECELL(C$11,TRUE,1) -> 11 | D66: 13 | E66: 4 | F66: 4 | G66: 4 | H66: 11 | I66: 4 | J66: 2 | K66: 2 | L66: 11 | M66: 2 | N66: 2 | O66: 2 | P66: 2 | Q66: 11 | R66: 2 | S66: 2 | T66: 2 | U66: 2 | V66: 11 | W66: 2 | X66: 2 | Y66: 11 | Z66: 11 | AA66: 2 | AB66: 2 | AC66: 11 | AD66: 2 | AE66: 2 | AF66: 4 | AG66: 11 | AH66: 4 | AI66: =COLORINDEXOFONECELL(AI38,TRUE,1)+COLORINDEXOFONECELL(AI$11,TRUE,1) -> 11 | AJ66: 4 | AK66: 2 | AL66: 2 | AM66: 4 | AN66: 4 | AO66: 4 | AP66: 4 | AQ66: 4 | AR66: 11 | AS66: 11 | AT66: 4 | AU66: 2 | AV66: 20 | AW66: 11 | AX66: 13 | AY66: 11 | AZ66: 11 | BA66: 4 | BB66: 4 | BC66: 4 | BD66: 4 | BE66: 2 | BF66: 2 | BG66: 2 | BH66: 2 | BI66: 2 | BJ66: 2 | BK66: 2 | BL66: 4 | BM66: 2 | BN66: 2 | BO66: =COLORINDEXOFONECELL(BO38,TRUE,1)+COLORINDEXOFONECELL(BO$11,TRUE,1) -> 2 | BP66: 2 | BQ66: 2 | BR66: 2 | BS66: 2 | BT66: 2 | BU66: 2 | BV66: 2 | BW66: 11 | BX66: 2 | BY66: 4 | BZ66: 2 | CA66: 2 | CB66: 2 | CC66: 11 | CD66: 2 | CE66: 2 | CF66: 4 | CG66: 2 | CH66: 2 | CI66: 2 | CJ66: 2 | CK66: 11 | CL66: 11 | CM66: 11 | CN66: 11 | CO66: 11 | CP66: 4 | CQ66: 4 | CR66: 2 | CS66: 2 | CT66: 2 | CU66: 13 | CV66: 13 | CW66: 13 | CY66: =CX67/CX65 -> 0.2
C67: =IF(C65,IF(C66=2,1,0)+IF(C66=4,0.5,0)+IF(C66=6,1,0)+IF(C66=11,0.5,0)+IF(C66=13,0,0)+IF(C66=20,1,0),0) -> 0 | D67: =IF(D65,IF(D66=2,1,0)+IF(D66=4,0.5,0)+IF(D66=6,1,0)+IF(D66=11,0.5,0)+IF(D66=13,0,0)+IF(D66=20,1,0),0) -> 0 | E67: 0 | F67: 0 | G67: 0 | H67: 0 | I67: 0 | J67: 0 | K67: 0 | L67: 0 | M67: 0 | N67: 0 | O67: 0 | P67: 0 | Q67: 0 | R67: 0 | S67: 0 | T67: 0 | U67: 0 | V67: 0 | W67: 0 | X67: 0 | Y67: 0 | Z67: 0 | AA67: 0 | AB67: 0 | AC67: 0 | AD67: 0 | AE67: 0 | AF67: 0 | AG67: 0 | AH67: 0 | AI67: 0 | AJ67: 0 | AK67: 0 | AL67: 0 | AM67: 0 | AN67: 0 | AO67: 0 | AP67: 0 | AQ67: 0 | AR67: 0 | AS67: 0 | AT67: 0 | AU67: 0 | AV67: 1 | AW67: 0 | AX67: 0 | AY67: 0 | AZ67: 0 | BA67: 0 | BB67: 0 | BC67: 0 | BD67: 0 | BE67: 0 | BF67: 0 | BG67: 0 | BH67: 0 | BI67: 0 | BJ67: 0 | BK67: 0 | BL67: 0 | BM67: 0 | BN67: 0 | BO67: 0 | BP67: =IF(BP65,IF(BP66=2,1,0)+IF(BP66=4,0.5,0)+IF(BP66=6,1,0)+IF(BP66=11,0.5,0)+IF(BP66=13,0,0)+IF(BP66=20,1,0),0) -> 0 | BQ67: 0 | BR67: 0 | BS67: 0 | BT67: 0 | BU67: 0 | BV67: 0 | BW67: 0 | BX67: 0 | BY67: 0 | BZ67: 0 | CA67: 0 | CB67: 0 | CC67: 0 | CD67: 0 | CE67: 0 | CF67: 0 | CG67: 0 | CH67: 0 | CI67: 0 | CJ67: 0 | CK67: 0 | CL67: 0 | CM67: 0 | CN67: 0 | CO67: 0 | CP67: 0 | CQ67: 0 | CR67: 0 | CS67: 0 | CT67: 0 | CU67: 0 | CV67: 0 | CW67: 0 | CX67: =SUM(C67:CW67) -> 1
B68: Wayne Allyn Root | C68: =(IF(C38="",0,IF(C$12="",0,1))) -> 0 | D68: =(IF(D38="",0,IF(D$12="",0,1))) -> 1 | E68: 0 | F68: 0 | G68: 0 | H68: 0 | I68: 0 | J68: 0 | K68: 0 | L68: 1 | M68: 0 | N68: 0 | O68: 0 | P68: 0 | Q68: 0 | R68: 0 | S68: 0 | T68: 0 | U68: 0 | V68: 1 | W68: 0 | X68: 0 | Y68: 0 | Z68: 1 | AA68: 0 | AB68: 0 | AC68: 1 | AD68: 0 | AE68: 0 | AF68: 1 | AG68: 0 | AH68: 1 | AI68: 1 | AJ68: 1 | AK68: 0 | AL68: 0 | AM68: 1 | AN68: 1 | AO68: 1 | AP68: 1 | AQ68: 1 | AR68: 1 | AS68: 1 | AT68: 1 | AU68: 0 | AV68: 1 | AW68: 0 | AX68: 1 | AY68: 1 | AZ68: 1 | BA68: 1 | BB68: 1 | BC68: 1 | BD68: 1 | BE68: 0 | BF68: 0 | BG68: 1 | BH68: 1 | BI68: 0 | BJ68: 0 | BK68: 1 | BL68: 1 | BM68: 0 | BN68: 0 | BO68: 0 | BP68: =(IF(BP38="",0,IF(BP$12="",0,1))) -> 0 | BQ68: 1 | BR68: 1 | BS68: 0 | BT68: 1 | BU68: 0 | BV68: 1 | BW68: 1 | BX68: 0 | BY68: 1 | BZ68: 0 | CA68: 0 | CB68: 0 | CC68: 1 | CD68: 0 | CE68: 0 | CF68: 1 | CG68: 1 | CH68: 0 | CI68: 0 | CJ68: 0 | CK68: 1 | CL68: 1 | CM68: 1 | CN68: 1 | CO68: 1 | CP68: 1 | CQ68: 1 | CR68: 0 | CS68: 0 | CT68: 0 | CU68: 1 | CV68: 1 | CW68: 1 | CX68: =SUM(C68:CW68) -> 48
C69: =COLORINDEXOFONECELL(C38,TRUE,1)+COLORINDEXOFONECELL(C$12,TRUE,1) -> 11 | D69: 13 | E69: 11 | F69: 11 | G69: 4 | H69: 4 | I69: 11 | J69: 11 | K69: 11 | L69: 20 | M69: 4 | N69: 11 | O69: 2 | P69: 2 | Q69: 11 | R69: 2 | S69: 2 | T69: 2 | U69: 4 | V69: 20 | W69: 11 | X69: 4 | Y69: 11 | Z69: 20 | AA69: 11 | AB69: 11 | AC69: 20 | AD69: 4 | AE69: 11 | AF69: 13 | AG69: 11 | AH69: 13 | AI69: =COLORINDEXOFONECELL(AI38,TRUE,1)+COLORINDEXOFONECELL(AI$12,TRUE,1) -> 13 | AJ69: 13 | AK69: 11 | AL69: 11 | AM69: 13 | AN69: 13 | AO69: 13 | AP69: 13 | AQ69: 13 | AR69: 20 | AS69: 20 | AT69: 4 | AU69: 11 | AV69: 11 | AW69: 11 | AX69: 13 | AY69: 20 | AZ69: 20 | BA69: 6 | BB69: 13 | BC69: 13 | BD69: 13 | BE69: 11 | BF69: 11 | BG69: 4 | BH69: 4 | BI69: 11 | BJ69: 2 | BK69: 4 | BL69: 13 | BM69: 11 | BN69: 11 | BO69: =COLORINDEXOFONECELL(BO38,TRUE,1)+COLORINDEXOFONECELL(BO$12,TRUE,1) -> 11 | BP69: 11 | BQ69: 11 | BR69: 11 | BS69: 11 | BT69: 4 | BU69: 11 | BV69: 4 | BW69: 20 | BX69: 11 | BY69: 13 | BZ69: 11 | CA69: 11 | CB69: 4 | CC69: 20 | CD69: 2 | CE69: 11 | CF69: 13 | CG69: 4 | CH69: 11 | CI69: 11 | CJ69: 11 | CK69: 13 | CL69: 20 | CM69: 20 | CN69: 13 | CO69: 13 | CP69: 13 | CQ69: 13 | CR69: 11 | CS69: 11 | CT69: 11 | CU69: 13 | CV69: 13 | CW69: 13 | CY69: =CX70/CX68 -> 0.375
C70: =IF(C68,IF(C69=2,1,0)+IF(C69=4,0.5,0)+IF(C69=6,1,0)+IF(C69=11,0.5,0)+IF(C69=13,0,0)+IF(C69=20,1,0),0) -> 0 | D70: =IF(D68,IF(D69=2,1,0)+IF(D69=4,0.5,0)+IF(D69=6,1,0)+IF(D69=11,0.5,0)+IF(D69=13,0,0)+IF(D69=20,1,0),0) -> 0 | E70: 0 | F70: 0 | G70: 0 | H70: 0 | I70: 0 | J70: 0 | K70: 0 | L70: 1 | M70: 0 | N70: 0 | O70: 0 | P70: 0 | Q70: 0 | R70: 0 | S70: 0 | T70: 0 | U70: 0 | V70: 1 | W70: 0 | X70: 0 | Y70: 0 | Z70: 1 | AA70: 0 | AB70: 0 | AC70: 1 | AD70: 0 | AE70: 0 | AF70: 0 | AG70: 0 | AH70: 0 | AI70: 0 | AJ70: 0 | AK70: 0 | AL70: 0 | AM70: 0 | AN70: 0 | AO70: 0 | AP70: 0 | AQ70: 0 | AR70: 1 | AS70: 1 | AT70: 0.5 | AU70: 0 | AV70: 0.5 | AW70: 0 | AX70: 0 | AY70: 1 | AZ70: 1 | BA70: 1 | BB70: 0 | BC70: 0 | BD70: 0 | BE70: 0 | BF70: 0 | BG70: 0.5 | BH70: 0.5 | BI70: 0 | BJ70: 0 | BK70: 0.5 | BL70: 0 | BM70: 0 | BN70: 0 | BO70: 0 | BP70: =IF(BP68,IF(BP69=2,1,0)+IF(BP69=4,0.5,0)+IF(BP69=6,1,0)+IF(BP69=11,0.5,0)+IF(BP69=13,0,0)+IF(BP69=20,1,0),0) -> 0 | BQ70: 0.5 | BR70: 0.5 | BS70: 0 | BT70: 0.5 | BU70: 0 | BV70: 0.5 | BW70: 1 | BX70: 0 | BY70: 0 | BZ70: 0 | CA70: 0 | CB70: 0 | CC70: 1 | CD70: 0 | CE70: 0 | CF70: 0 | CG70: 0.5 | CH70: 0 | CI70: 0 | CJ70: 0 | CK70: 0 | CL70: 1 | CM70: 1 | CN70: 0 | CO70: 0 | CP70: 0 | CQ70: 0 | CR70: 0 | CS70: 0 | CT70: 0 | CU70: 0 | CV70: 0 | CW70: 0 | CX70: =SUM(C70:CW70) -> 18
B71: Dr. Mary Ruwart | C71: =(IF(C38="",0,IF(C$13="",0,1))) -> 0 | D71: =(IF(D38="",0,IF(D$13="",0,1))) -> 1 | E71: 0 | F71: 0 | G71: 0 | H71: 0 | I71: 0 | J71: 0 | K71: 0 | L71: 1 | M71: 0 | N71: 0 | O71: 0 | P71: 0 | Q71: 1 | R71: 0 | S71: 0 | T71: 0 | U71: 0 | V71: 1 | W71: 0 | X71: 0 | Y71: 1 | Z71: 0 | AA71: 0 | AB71: 0 | AC71: 0 | AD71: 0 | AE71: 0 | AF71: 1 | AG71: 0 | AH71: 1 | AI71: 1 | AJ71: 1 | AK71: 0 | AL71: 0 | AM71: 1 | AN71: 1 | AO71: 1 | AP71: 1 | AQ71: 1 | AR71: 1 | AS71: 1 | AT71: 1 | AU71: 0 | AV71: 1 | AW71: 0 | AX71: 1 | AY71: 1 | AZ71: 1 | BA71: 1 | BB71: 1 | BC71: 1 | BD71: 1 | BE71: 0 | BF71: 0 | BG71: 1 | BH71: 1 | BI71: 0 | BJ71: 1 | BK71: 1 | BL71: 1 | BM71: 0 | BN71: 0 | BO71: 0 | BP71: =(IF(BP38="",0,IF(BP$13="",0,1))) -> 0 | BQ71: 1 | BR71: 1 | BS71: 0 | BT71: 1 | BU71: 0 | BV71: 0 | BW71: 1 | BX71: 0 | BY71: 1 | BZ71: 0 | CA71: 0 | CB71: 0 | CC71: 1 | CD71: 0 | CE71: 0 | CF71: 1 | CG71: 1 | CH71: 0 | CI71: 0 | CJ71: 0 | CK71: 1 | CL71: 1 | CM71: 1 | CN71: 1 | CO71: 1 | CP71: 1 | CQ71: 1 | CR71: 0 | CS71: 0 | CT71: 0 | CU71: 1 | CV71: 1 | CW71: 1 | CX71: =SUM(C71:CW71) -> 48
C72: =COLORINDEXOFONECELL(C38,TRUE,1)+COLORINDEXOFONECELL(C$13,TRUE,1) -> 11 | D72: 6 | E72: 11 | F72: 2 | G72: 4 | H72: 4 | I72: 11 | J72: 4 | K72: 11 | L72: 20 | M72: 4 | N72: 4 | O72: 2 | P72: 11 | Q72: 20 | R72: 4 | S72: 11 | T72: 11 | U72: 4 | V72: 11 | W72: 4 | X72: 4 | Y72: 11 | Z72: 11 | AA72: 2 | AB72: 2 | AC72: 11 | AD72: 2 | AE72: 2 | AF72: 6 | AG72: 2 | AH72: 6 | AI72: =COLORINDEXOFONECELL(AI38,TRUE,1)+COLORINDEXOFONECELL(AI$13,TRUE,1) -> 20 | AJ72: 4 | AK72: 11 | AL72: 11 | AM72: 6 | AN72: 6 | AO72: 13 | AP72: 6 | AQ72: 13 | AR72: 20 | AS72: 20 | AT72: 6 | AU72: 11 | AV72: 20 | AW72: 4 | AX72: 4 | AY72: 20 | AZ72: 13 | BA72: 13 | BB72: 13 | BC72: 6 | BD72: 6 | BE72: 4 | BF72: 11 | BG72: 11 | BH72: 11 | BI72: 2 | BJ72: 11 | BK72: 11 | BL72: 6 | BM72: 11 | BN72: 11 | BO72: =COLORINDEXOFONECELL(BO38,TRUE,1)+COLORINDEXOFONECELL(BO$13,TRUE,1) -> 4 | BP72: 2 | BQ72: 11 | BR72: 11 | BS72: 11 | BT72: 4 | BU72: 4 | BV72: 2 | BW72: 20 | BX72: 11 | BY72: 6 | BZ72: 4 | CA72: 11 | CB72: 11 | CC72: 20 | CD72: 2 | CE72: 4 | CF72: 6 | CG72: 11 | CH72: 11 | CI72: 4 | CJ72: 2 | CK72: 20 | CL72: 11 | CM72: 20 | CN72: 20 | CO72: 20 | CP72: 6 | CQ72: 6 | CR72: 11 | CS72: 4 | CT72: 4 | CU72: 6 | CV72: 6 | CW72: 13 | CY72: =CX73/CX71 -> 0.7395833333
C73: =IF(C71,IF(C72=2,1,0)+IF(C72=4,0.5,0)+IF(C72=6,1,0)+IF(C72=11,0.5,0)+IF(C72=13,0,0)+IF(C72=20,1,0),0) -> 0 | D73: =IF(D71,IF(D72=2,1,0)+IF(D72=4,0.5,0)+IF(D72=6,1,0)+IF(D72=11,0.5,0)+IF(D72=13,0,0)+IF(D72=20,1,0),0) -> 1 | E73: 0 | F73: 0 | G73: 0 | H73: 0 | I73: 0 | J73: 0 | K73: 0 | L73: 1 | M73: 0 | N73: 0 | O73: 0 | P73: 0 | Q73: 1 | R73: 0 | S73: 0 | T73: 0 | U73: 0 | V73: 0.5 | W73: 0 | X73: 0 | Y73: 0.5 | Z73: 0 | AA73: 0 | AB73: 0 | AC73: 0 | AD73: 0 | AE73: 0 | AF73: 1 | AG73: 0 | AH73: 1 | AI73: 1 | AJ73: 0.5 | AK73: 0 | AL73: 0 | AM73: 1 | AN73: 1 | AO73: 0 | AP73: 1 | AQ73: 0 | AR73: 1 | AS73: 1 | AT73: 1 | AU73: 0 | AV73: 1 | AW73: 0 | AX73: 0.5 | AY73: 1 | AZ73: 0 | BA73: 0 | BB73: 0 | BC73: 1 | BD73: 1 | BE73: 0 | BF73: 0 | BG73: 0.5 | BH73: 0.5 | BI73: 0 | BJ73: 0.5 | BK73: 0.5 | BL73: 1 | BM73: 0 | BN73: 0 | BO73: 0 | BP73: =IF(BP71,IF(BP72=2,1,0)+IF(BP72=4,0.5,0)+IF(BP72=6,1,0)+IF(BP72=11,0.5,0)+IF(BP72=13,0,0)+IF(BP72=20,1,0),0) -> 0 | BQ73: 0.5 | BR73: 0.5 | BS73: 0 | BT73: 0.5 | BU73: 0 | BV73: 0 | BW73: 1 | BX73: 0 | BY73: 1 | BZ73: 0 | CA73: 0 | CB73: 0 | CC73: 1 | CD73: 0 | CE73: 0 | CF73: 1 | CG73: 0.5 | CH73: 0 | CI73: 0 | CJ73: 0 | CK73: 1 | CL73: 0.5 | CM73: 1 | CN73: 1 | CO73: 1 | CP73: 1 | CQ73: 1 | CR73: 0 | CS73: 0 | CT73: 0 | CU73: 1 | CV73: 1 | CW73: 0 | CX73: =SUM(C73:CW73) -> 35.5
B74: Rebecca Sink-Burris | C74: =(IF(C38="",0,IF(C$14="",0,1))) -> 0 | D74: =(IF(D38="",0,IF(D$14="",0,1))) -> 0 | E74: 0 | F74: 0 | G74: 0 | H74: 0 | I74: 0 | J74: 0 | K74: 0 | L74: 0 | M74: 0 | N74: 0 | O74: 0 | P74: 0 | Q74: 0 | R74: 0 | S74: 0 | T74: 0 | U74: 0 | V74: 1 | W74: 0 | X74: 0 | Y74: 1 | Z74: 1 | AA74: 0 | AB74: 0 | AC74: 1 | AD74: 0 | AE74: 0 | AF74: 1 | AG74: 0 | AH74: 1 | AI74: 1 | AJ74: 1 | AK74: 0 | AL74: 0 | AM74: 1 | AN74: 1 | AO74: 1 | AP74: 1 | AQ74: 1 | AR74: 1 | AS74: 1 | AT74: 1 | AU74: 0 | AV74: 1 | AW74: 0 | AX74: 1 | AY74: 1 | AZ74: 1 | BA74: 1 | BB74: 1 | BC74: 1 | BD74: 1 | BE74: 0 | BF74: 0 | BG74: 0 | BH74: 0 | BI74: 0 | BJ74: 0 | BK74: 0 | BL74: 0 | BM74: 0 | BN74: 0 | BO74: 0 | BP74: =(IF(BP38="",0,IF(BP$14="",0,1))) -> 0 | BQ74: 0 | BR74: 0 | BS74: 0 | BT74: 0 | BU74: 0 | BV74: 1 | BW74: 1 | BX74: 0 | BY74: 1 | BZ74: 0 | CA74: 0 | CB74: 0 | CC74: 1 | CD74: 0 | CE74: 0 | CF74: 1 | CG74: 1 | CH74: 0 | CI74: 0 | CJ74: 0 | CK74: 1 | CL74: 1 | CM74: 1 | CN74: 1 | CO74: 1 | CP74: 1 | CQ74: 1 | CR74: 0 | CS74: 0 | CT74: 0 | CU74: 1 | CV74: 1 | CW74: 1 | CX74: =SUM(C74:CW74) -> 40
C75: =COLORINDEXOFONECELL(C38,TRUE,1)+COLORINDEXOFONECELL(C$14,TRUE,1) -> 11 | D75: 4 | E75: 2 | F75: 2 | G75: 2 | H75: 2 | I75: 2 | J75: 2 | K75: 2 | L75: 11 | M75: 2 | N75: 2 | O75: 2 | P75: 2 | Q75: 11 | R75: 2 | S75: 2 | T75: 2 | U75: 4 | V75: 20 | W75: 11 | X75: 4 | Y75: 13 | Z75: 20 | AA75: 11 | AB75: 11 | AC75: 20 | AD75: 11 | AE75: 11 | AF75: 13 | AG75: 11 | AH75: 13 | AI75: =COLORINDEXOFONECELL(AI38,TRUE,1)+COLORINDEXOFONECELL(AI$14,TRUE,1) -> 13 | AJ75: 13 | AK75: 11 | AL75: 11 | AM75: 13 | AN75: 13 | AO75: 13 | AP75: 13 | AQ75: 13 | AR75: 20 | AS75: 20 | AT75: 6 | AU75: 2 | AV75: 20 | AW75: 11 | AX75: 13 | AY75: 20 | AZ75: 20 | BA75: 6 | BB75: 13 | BC75: 13 | BD75: 13 | BE75: 11 | BF75: 2 | BG75: 2 | BH75: 2 | BI75: 2 | BJ75: 2 | BK75: 2 | BL75: 4 | BM75: 2 | BN75: 2 | BO75: =COLORINDEXOFONECELL(BO38,TRUE,1)+COLORINDEXOFONECELL(BO$14,TRUE,1) -> 2 | BP75: 2 | BQ75: 2 | BR75: 2 | BS75: 2 | BT75: 2 | BU75: 11 | BV75: 4 | BW75: 20 | BX75: 11 | BY75: 13 | BZ75: 11 | CA75: 2 | CB75: 4 | CC75: 20 | CD75: 2 | CE75: 11 | CF75: 13 | CG75: 4 | CH75: 11 | CI75: 11 | CJ75: 11 | CK75: 20 | CL75: 13 | CM75: 20 | CN75: 13 | CO75: 13 | CP75: 13 | CQ75: 13 | CR75: 11 | CS75: 11 | CT75: 11 | CU75: 13 | CV75: 13 | CW75: 13 | CY75: =CX76/CX74 -> 0.375
C76: =IF(C74,IF(C75=2,1,0)+IF(C75=4,0.5,0)+IF(C75=6,1,0)+IF(C75=11,0.5,0)+IF(C75=13,0,0)+IF(C75=20,1,0),0) -> 0 | D76: =IF(D74,IF(D75=2,1,0)+IF(D75=4,0.5,0)+IF(D75=6,1,0)+IF(D75=11,0.5,0)+IF(D75=13,0,0)+IF(D75=20,1,0),0) -> 0 | E76: 0 | F76: 0 | G76: 0 | H76: 0 | I76: 0 | J76: 0 | K76: 0 | L76: 0 | M76: 0 | N76: 0 | O76: 0 | P76: 0 | Q76: 0 | R76: 0 | S76: 0 | T76: 0 | U76: 0 | V76: 1 | W76: 0 | X76: 0 | Y76: 0 | Z76: 1 | AA76: 0 | AB76: 0 | AC76: 1 | AD76: 0 | AE76: 0 | AF76: 0 | AG76: 0 | AH76: 0 | AI76: 0 | AJ76: 0 | AK76: 0 | AL76: 0 | AM76: 0 | AN76: 0 | AO76: 0 | AP76: 0 | AQ76: 0 | AR76: 1 | AS76: 1 | AT76: 1 | AU76: 0 | AV76: 1 | AW76: 0 | AX76: 0 | AY76: 1 | AZ76: 1 | BA76: 1 | BB76: 0 | BC76: 0 | BD76: 0 | BE76: 0 | BF76: 0 | BG76: 0 | BH76: 0 | BI76: 0 | BJ76: 0 | BK76: 0 | BL76: 0 | BM76: 0 | BN76: 0 | BO76: 0 | BP76: =IF(BP74,IF(BP75=2,1,0)+IF(BP75=4,0.5,0)+IF(BP75=6,1,0)+IF(BP75=11,0.5,0)+IF(BP75=13,0,0)+IF(BP75=20,1,0),0) -> 0 | BQ76: 0 | BR76: 0 | BS76: 0 | BT76: 0 | BU76: 0 | BV76: 0.5 | BW76: 1 | BX76: 0 | BY76: 0 | BZ76: 0 | CA76: 0 | CB76: 0 | CC76: 1 | CD76: 0 | CE76: 0 | CF76: 0 | CG76: 0.5 | CH76: 0 | CI76: 0 | CJ76: 0 | CK76: 1 | CL76: 0 | CM76: 1 | CN76: 0 | CO76: 0 | CP76: 0 | CQ76: 0 | CR76: 0 | CS76: 0 | CT76: 0 | CU76: 0 | CV76: 0 | CW76: 0 | CX76: =SUM(C76:CW76) -> 15
B77: Doug Craig | C77: =(IF(C38="",0,IF(C$15="",0,1))) -> 0 | D77: =(IF(D38="",0,IF(D$15="",0,1))) -> 1 | E77: 0 | F77: 0 | G77: 0 | H77: 0 | I77: 0 | J77: 0 | K77: 0 | L77: 1 | M77: 0 | N77: 0 | O77: 0 | P77: 0 | Q77: 1 | R77: 0 | S77: 0 | T77: 0 | U77: 0 | V77: 0 | W77: 0 | X77: 0 | Y77: 0 | Z77: 1 | AA77: 0 | AB77: 0 | AC77: 1 | AD77: 0 | AE77: 0 | AF77: 0 | AG77: 0 | AH77: 0 | AI77: 0 | AJ77: 0 | AK77: 0 | AL77: 0 | AM77: 0 | AN77: 0 | AO77: 0 | AP77: 0 | AQ77: 0 | AR77: 0 | AS77: 0 | AT77: 0 | AU77: 0 | AV77: 0 | AW77: 0 | AX77: 1 | AY77: 0 | AZ77: 1 | BA77: 1 | BB77: 1 | BC77: 1 | BD77: 0 | BE77: 0 | BF77: 0 | BG77: 1 | BH77: 0 | BI77: 0 | BJ77: 1 | BK77: 1 | BL77: 1 | BM77: 0 | BN77: 0 | BO77: 0 | BP77: =(IF(BP38="",0,IF(BP$15="",0,1))) -> 0 | BQ77: 1 | BR77: 1 | BS77: 0 | BT77: 1 | BU77: 0 | BV77: 1 | BW77: 1 | BX77: 0 | BY77: 1 | BZ77: 0 | CA77: 0 | CB77: 0 | CC77: 1 | CD77: 0 | CE77: 0 | CF77: 1 | CG77: 1 | CH77: 0 | CI77: 0 | CJ77: 0 | CK77: 1 | CL77: 1 | CM77: 0 | CN77: 1 | CO77: 0 | CP77: 1 | CQ77: 0 | CR77: 0 | CS77: 0 | CT77: 0 | CU77: 1 | CV77: 1 | CW77: 1 | CX77: =SUM(C77:CW77) -> 30
C78: =COLORINDEXOFONECELL(C38,TRUE,1)+COLORINDEXOFONECELL(C$15,TRUE,1) -> 11 | D78: 6 | E78: 11 | F78: 11 | G78: 4 | H78: 4 | I78: 11 | J78: 4 | K78: 11 | L78: 20 | M78: 4 | N78: 4 | O78: 11 | P78: 11 | Q78: 20 | R78: 11 | S78: 2 | T78: 2 | U78: 2 | V78: 11 | W78: 11 | X78: 4 | Y78: 11 | Z78: 13 | AA78: 4 | AB78: 2 | AC78: 20 | AD78: 11 | AE78: 4 | AF78: 4 | AG78: 2 | AH78: 4 | AI78: =COLORINDEXOFONECELL(AI38,TRUE,1)+COLORINDEXOFONECELL(AI$15,TRUE,1) -> 11 | AJ78: 4 | AK78: 2 | AL78: 2 | AM78: 4 | AN78: 4 | AO78: 4 | AP78: 4 | AQ78: 4 | AR78: 11 | AS78: 11 | AT78: 4 | AU78: 2 | AV78: 11 | AW78: 2 | AX78: 4 | AY78: 11 | AZ78: 13 | BA78: 13 | BB78: 13 | BC78: 6 | BD78: 4 | BE78: 11 | BF78: 11 | BG78: 11 | BH78: 2 | BI78: 4 | BJ78: 11 | BK78: 11 | BL78: 6 | BM78: 11 | BN78: 11 | BO78: =COLORINDEXOFONECELL(BO38,TRUE,1)+COLORINDEXOFONECELL(BO$15,TRUE,1) -> 11 | BP78: 2 | BQ78: 11 | BR78: 11 | BS78: 11 | BT78: 4 | BU78: 4 | BV78: 4 | BW78: 20 | BX78: 2 | BY78: 6 | BZ78: 4 | CA78: 2 | CB78: 11 | CC78: 20 | CD78: 2 | CE78: 11 | CF78: 6 | CG78: 11 | CH78: 11 | CI78: 4 | CJ78: 2 | CK78: 20 | CL78: 20 | CM78: 11 | CN78: 20 | CO78: 11 | CP78: 6 | CQ78: 4 | CR78: 2 | CS78: 4 | CT78: 4 | CU78: 6 | CV78: 6 | CW78: 13 | CY78: =CX79/CX77 -> 0.6833333333
C79: =IF(C77,IF(C78=2,1,0)+IF(C78=4,0.5,0)+IF(C78=6,1,0)+IF(C78=11,0.5,0)+IF(C78=13,0,0)+IF(C78=20,1,0),0) -> 0 | D79: =IF(D77,IF(D78=2,1,0)+IF(D78=4,0.5,0)+IF(D78=6,1,0)+IF(D78=11,0.5,0)+IF(D78=13,0,0)+IF(D78=20,1,0),0) -> 1 | E79: 0 | F79: 0 | G79: 0 | H79: 0 | I79: 0 | J79: 0 | K79: 0 | L79: 1 | M79: 0 | N79: 0 | O79: 0 | P79: 0 | Q79: 1 | R79: 0 | S79: 0 | T79: 0 | U79: 0 | V79: 0 | W79: 0 | X79: 0 | Y79: 0 | Z79: 0 | AA79: 0 | AB79: 0 | AC79: 1 | AD79: 0 | AE79: 0 | AF79: 0 | AG79: 0 | AH79: 0 | AI79: 0 | AJ79: 0 | AK79: 0 | AL79: 0 | AM79: 0 | AN79: 0 | AO79: 0 | AP79: 0 | AQ79: 0 | AR79: 0 | AS79: 0 | AT79: 0 | AU79: 0 | AV79: 0 | AW79: 0 | AX79: 0.5 | AY79: 0 | AZ79: 0 | BA79: 0 | BB79: 0 | BC79: 1 | BD79: 0 | BE79: 0 | BF79: 0 | BG79: 0.5 | BH79: 0 | BI79: 0 | BJ79: 0.5 | BK79: 0.5 | BL79: 1 | BM79: 0 | BN79: 0 | BO79: 0 | BP79: =IF(BP77,IF(BP78=2,1,0)+IF(BP78=4,0.5,0)+IF(BP78=6,1,0)+IF(BP78=11,0.5,0)+IF(BP78=13,0,0)+IF(BP78=20,1,0),0) -> 0 | BQ79: 0.5 | BR79: 0.5 | BS79: 0 | BT79: 0.5 | BU79: 0 | BV79: 0.5 | BW79: 1 | BX79: 0 | BY79: 1 | BZ79: 0 | CA79: 0 | CB79: 0 | CC79: 1 | CD79: 0 | CE79: 0 | CF79: 1 | CG79: 0.5 | CH79: 0 | CI79: 0 | CJ79: 0 | CK79: 1 | CL79: 1 | CM79: 0 | CN79: 1 | CO79: 0 | CP79: 1 | CQ79: 0 | CR79: 0 | CS79: 0 | CT79: 0 | CU79: 1 | CV79: 1 | CW79: 0 | CX79: =SUM(C79:CW79) -> 20.5
B80: Stewart Flood | C80: =(IF(C38="",0,IF(C$16="",0,1))) -> 0 | D80: =(IF(D38="",0,IF(D$16="",0,1))) -> 1 | E80: 0 | F80: 0 | G80: 0 | H80: 0 | I80: 0 | J80: 0 | K80: 0 | L80: 1 | M80: 0 | N80: 0 | O80: 0 | P80: 0 | Q80: 0 | R80: 0 | S80: 0 | T80: 0 | U80: 0 | V80: 0 | W80: 0 | X80: 0 | Y80: 0 | Z80: 1 | AA80: 0 | AB80: 0 | AC80: 1 | AD80: 0 | AE80: 0 | AF80: 1 | AG80: 0 | AH80: 1 | AI80: 1 | AJ80: 1 | AK80: 0 | AL80: 0 | AM80: 1 | AN80: 1 | AO80: 1 | AP80: 1 | AQ80: 1 | AR80: 1 | AS80: 1 | AT80: 1 | AU80: 0 | AV80: 1 | AW80: 0 | AX80: 1 | AY80: 1 | AZ80: 1 | BA80: 1 | BB80: 1 | BC80: 1 | BD80: 1 | BE80: 0 | BF80: 0 | BG80: 1 | BH80: 1 | BI80: 0 | BJ80: 1 | BK80: 1 | BL80: 1 | BM80: 0 | BN80: 0 | BO80: 0 | BP80: =(IF(BP38="",0,IF(BP$16="",0,1))) -> 0 | BQ80: 1 | BR80: 0 | BS80: 0 | BT80: 1 | BU80: 0 | BV80: 1 | BW80: 1 | BX80: 0 | BY80: 1 | BZ80: 0 | CA80: 0 | CB80: 0 | CC80: 1 | CD80: 0 | CE80: 0 | CF80: 1 | CG80: 1 | CH80: 0 | CI80: 0 | CJ80: 0 | CK80: 1 | CL80: 1 | CM80: 1 | CN80: 1 | CO80: 1 | CP80: 1 | CQ80: 0 | CR80: 0 | CS80: 0 | CT80: 0 | CU80: 1 | CV80: 1 | CW80: 1 | CX80: =SUM(C80:CW80) -> 46
C81: =COLORINDEXOFONECELL(C38,TRUE,1)+COLORINDEXOFONECELL(C$16,TRUE,1) -> 11 | D81: 6 | E81: 11 | F81: 11 | G81: 4 | H81: 11 | I81: 11 | J81: 11 | K81: 11 | L81: 20 | M81: 4 | N81: 11 | O81: 11 | P81: 11 | Q81: 11 | R81: 2 | S81: 11 | T81: 11 | U81: 4 | V81: 11 | W81: 4 | X81: 2 | Y81: 11 | Z81: 20 | AA81: 11 | AB81: 4 | AC81: 20 | AD81: 4 | AE81: 11 | AF81: 6 | AG81: 4 | AH81: 6 | AI81: =COLORINDEXOFONECELL(AI38,TRUE,1)+COLORINDEXOFONECELL(AI$16,TRUE,1) -> 20 | AJ81: 6 | AK81: 11 | AL81: 4 | AM81: 13 | AN81: 6 | AO81: 6 | AP81: 6 | AQ81: 6 | AR81: 20 | AS81: 20 | AT81: 6 | AU81: 11 | AV81: 20 | AW81: 11 | AX81: 13 | AY81: 20 | AZ81: 20 | BA81: 6 | BB81: 4 | BC81: 13 | BD81: 6 | BE81: 11 | BF81: 11 | BG81: 4 | BH81: 11 | BI81: 11 | BJ81: 11 | BK81: 4 | BL81: 13 | BM81: 11 | BN81: 11 | BO81: =COLORINDEXOFONECELL(BO38,TRUE,1)+COLORINDEXOFONECELL(BO$16,TRUE,1) -> 11 | BP81: 11 | BQ81: 11 | BR81: 2 | BS81: 11 | BT81: 4 | BU81: 11 | BV81: 4 | BW81: 20 | BX81: 11 | BY81: 6 | BZ81: 11 | CA81: 11 | CB81: 2 | CC81: 20 | CD81: 2 | CE81: 11 | CF81: 6 | CG81: 11 | CH81: 11 | CI81: 2 | CJ81: 2 | CK81: 20 | CL81: 20 | CM81: 20 | CN81: 20 | CO81: 13 | CP81: 4 | CQ81: 4 | CR81: 2 | CS81: 4 | CT81: 11 | CU81: 6 | CV81: 6 | CW81: 20 | CY81: =CX82/CX80 -> 0.7826086957
C82: =IF(C80,IF(C81=2,1,0)+IF(C81=4,0.5,0)+IF(C81=6,1,0)+IF(C81=11,0.5,0)+IF(C81=13,0,0)+IF(C81=20,1,0),0) -> 0 | D82: =IF(D80,IF(D81=2,1,0)+IF(D81=4,0.5,0)+IF(D81=6,1,0)+IF(D81=11,0.5,0)+IF(D81=13,0,0)+IF(D81=20,1,0),0) -> 1 | E82: 0 | F82: 0 | G82: 0 | H82: 0 | I82: 0 | J82: 0 | K82: 0 | L82: 1 | M82: 0 | N82: 0 | O82: 0 | P82: 0 | Q82: 0 | R82: 0 | S82: 0 | T82: 0 | U82: 0 | V82: 0 | W82: 0 | X82: 0 | Y82: 0 | Z82: 1 | AA82: 0 | AB82: 0 | AC82: 1 | AD82: 0 | AE82: 0 | AF82: 1 | AG82: 0 | AH82: 1 | AI82: 1 | AJ82: 1 | AK82: 0 | AL82: 0 | AM82: 0 | AN82: 1 | AO82: 1 | AP82: 1 | AQ82: 1 | AR82: 1 | AS82: 1 | AT82: 1 | AU82: 0 | AV82: 1 | AW82: 0 | AX82: 0 | AY82: 1 | AZ82: 1 | BA82: 1 | BB82: 0.5 | BC82: 0 | BD82: 1 | BE82: 0 | BF82: 0 | BG82: 0.5 | BH82: 0.5 | BI82: 0 | BJ82: 0.5 | BK82: 0.5 | BL82: 0 | BM82: 0 | BN82: 0 | BO82: 0 | BP82: =IF(BP80,IF(BP81=2,1,0)+IF(BP81=4,0.5,0)+IF(BP81=6,1,0)+IF(BP81=11,0.5,0)+IF(BP81=13,0,0)+IF(BP81=20,1,0),0) -> 0 | BQ82: 0.5 | BR82: 0 | BS82: 0 | BT82: 0.5 | BU82: 0 | BV82: 0.5 | BW82: 1 | BX82: 0 | BY82: 1 | BZ82: 0 | CA82: 0 | CB82: 0 | CC82: 1 | CD82: 0 | CE82: 0 | CF82: 1 | CG82: 0.5 | CH82: 0 | CI82: 0 | CJ82: 0 | CK82: 1 | CL82: 1 | CM82: 1 | CN82: 1 | CO82: 0 | CP82: 0.5 | CQ82: 0 | CR82: 0 | CS82: 0 | CT82: 0 | CU82: 1 | CV82: 1 | CW82: 1 | CX82: =SUM(C82:CW82) -> 36
B83: Dan Wiener | C83: =(IF(C38="",0,IF(C$17="",0,1))) -> 0 | D83: =(IF(D38="",0,IF(D$17="",0,1))) -> 1 | E83: 0 | F83: 0 | G83: 0 | H83: 0 | I83: 0 | J83: 0 | K83: 0 | L83: 0 | M83: 0 | N83: 0 | O83: 0 | P83: 0 | Q83: 1 | R83: 0 | S83: 0 | T83: 0 | U83: 0 | V83: 1 | W83: 0 | X83: 0 | Y83: 1 | Z83: 1 | AA83: 0 | AB83: 0 | AC83: 1 | AD83: 0 | AE83: 0 | AF83: 1 | AG83: 0 | AH83: 1 | AI83: 1 | AJ83: 1 | AK83: 0 | AL83: 0 | AM83: 1 | AN83: 1 | AO83: 1 | AP83: 1 | AQ83: 1 | AR83: 1 | AS83: 0 | AT83: 0 | AU83: 0 | AV83: 1 | AW83: 0 | AX83: 1 | AY83: 1 | AZ83: 1 | BA83: 1 | BB83: 1 | BC83: 1 | BD83: 1 | BE83: 0 | BF83: 0 | BG83: 1 | BH83: 1 | BI83: 0 | BJ83: 1 | BK83: 1 | BL83: 1 | BM83: 0 | BN83: 0 | BO83: 0 | BP83: =(IF(BP38="",0,IF(BP$17="",0,1))) -> 0 | BQ83: 1 | BR83: 1 | BS83: 0 | BT83: 1 | BU83: 0 | BV83: 1 | BW83: 1 | BX83: 0 | BY83: 1 | BZ83: 0 | CA83: 0 | CB83: 0 | CC83: 1 | CD83: 0 | CE83: 0 | CF83: 1 | CG83: 1 | CH83: 0 | CI83: 0 | CJ83: 0 | CK83: 1 | CL83: 1 | CM83: 1 | CN83: 0 | CO83: 1 | CP83: 1 | CQ83: 1 | CR83: 0 | CS83: 0 | CT83: 0 | CU83: 1 | CV83: 1 | CW83: 1 | CX83: =SUM(C83:CW83) -> 47
C84: =COLORINDEXOFONECELL(C38,TRUE,1)+COLORINDEXOFONECELL(C$17,TRUE,1) -> 2 | D84: 13 | E84: 11 | F84: 11 | G84: 4 | H84: 4 | I84: 11 | J84: 11 | K84: 11 | L84: 11 | M84: 4 | N84: 11 | O84: 11 | P84: 11 | Q84: 20 | R84: 2 | S84: 4 | T84: 11 | U84: 11 | V84: 20 | W84: 11 | X84: 4 | Y84: 13 | Z84: 20 | AA84: 11 | AB84: 11 | AC84: 20 | AD84: 11 | AE84: 11 | AF84: 13 | AG84: 11 | AH84: 13 | AI84: =COLORINDEXOFONECELL(AI38,TRUE,1)+COLORINDEXOFONECELL(AI$17,TRUE,1) -> 20 | AJ84: 6 | AK84: 11 | AL84: 11 | AM84: 13 | AN84: 13 | AO84: 6 | AP84: 6 | AQ84: 13 | AR84: 20 | AS84: 11 | AT84: 4 | AU84: 2 | AV84: 20 | AW84: 11 | AX84: 13 | AY84: 20 | AZ84: 20 | BA84: 6 | BB84: 13 | BC84: 13 | BD84: 13 | BE84: 11 | BF84: 11 | BG84: 11 | BH84: 11 | BI84: 11 | BJ84: 11 | BK84: 4 | BL84: 13 | BM84: 11 | BN84: 11 | BO84: =COLORINDEXOFONECELL(BO38,TRUE,1)+COLORINDEXOFONECELL(BO$17,TRUE,1) -> 11 | BP84: 11 | BQ84: 11 | BR84: 11 | BS84: 11 | BT84: 4 | BU84: 11 | BV84: 4 | BW84: 20 | BX84: 11 | BY84: 6 | BZ84: 11 | CA84: 11 | CB84: 4 | CC84: 20 | CD84: 2 | CE84: 11 | CF84: 13 | CG84: 11 | CH84: 11 | CI84: 11 | CJ84: 11 | CK84: 20 | CL84: 13 | CM84: 20 | CN84: 11 | CO84: 20 | CP84: 13 | CQ84: 6 | CR84: 11 | CS84: 2 | CT84: 4 | CU84: 13 | CV84: 13 | CW84: 13 | CY84: =CX85/CX83 -> 0.5212765957
C85: =IF(C83,IF(C84=2,1,0)+IF(C84=4,0.5,0)+IF(C84=6,1,0)+IF(C84=11,0.5,0)+IF(C84=13,0,0)+IF(C84=20,1,0),0) -> 0 | D85: =IF(D83,IF(D84=2,1,0)+IF(D84=4,0.5,0)+IF(D84=6,1,0)+IF(D84=11,0.5,0)+IF(D84=13,0,0)+IF(D84=20,1,0),0) -> 0 | E85: 0 | F85: 0 | G85: 0 | H85: 0 | I85: 0 | J85: 0 | K85: 0 | L85: 0 | M85: 0 | N85: 0 | O85: 0 | P85: 0 | Q85: 1 | R85: 0 | S85: 0 | T85: 0 | U85: 0 | V85: 1 | W85: 0 | X85: 0 | Y85: 0 | Z85: 1 | AA85: 0 | AB85: 0 | AC85: 1 | AD85: 0 | AE85: 0 | AF85: 0 | AG85: 0 | AH85: 0 | AI85: 1 | AJ85: 1 | AK85: 0 | AL85: 0 | AM85: 0 | AN85: 0 | AO85: 1 | AP85: 1 | AQ85: 0 | AR85: 1 | AS85: 0 | AT85: 0 | AU85: 0 | AV85: 1 | AW85: 0 | AX85: 0 | AY85: 1 | AZ85: 1 | BA85: 1 | BB85: 0 | BC85: 0 | BD85: 0 | BE85: 0 | BF85: 0 | BG85: 0.5 | BH85: 0.5 | BI85: 0 | BJ85: 0.5 | BK85: 0.5 | BL85: 0 | BM85: 0 | BN85: 0 | BO85: 0 | BP85: =IF(BP83,IF(BP84=2,1,0)+IF(BP84=4,0.5,0)+IF(BP84=6,1,0)+IF(BP84=11,0.5,0)+IF(BP84=13,0,0)+IF(BP84=20,1,0),0) -> 0 | BQ85: 0.5 | BR85: 0.5 | BS85: 0 | BT85: 0.5 | BU85: 0 | BV85: 0.5 | BW85: 1 | BX85: 0 | BY85: 1 | BZ85: 0 | CA85: 0 | CB85: 0 | CC85: 1 | CD85: 0 | CE85: 0 | CF85: 0 | CG85: 0.5 | CH85: 0 | CI85: 0 | CJ85: 0 | CK85: 1 | CL85: 0 | CM85: 1 | CN85: 0 | CO85: 1 | CP85: 0 | CQ85: 1 | CR85: 0 | CS85: 0 | CT85: 0 | CU85: 0 | CV85: 0 | CW85: 0 | CX85: =SUM(C85:CW85) -> 24.5
B86: Dr. Scott Lieberman | C86: =(IF(C38="",0,IF(C$18="",0,1))) -> 0 | D86: =(IF(D38="",0,IF(D$18="",0,1))) -> 0 | E86: 0 | F86: 0 | G86: 0 | H86: 0 | I86: 0 | J86: 0 | K86: 0 | L86: 0 | M86: 0 | N86: 0 | O86: 0 | P86: 0 | Q86: 0 | R86: 0 | S86: 0 | T86: 0 | U86: 0 | V86: 0 | W86: 0 | X86: 0 | Y86: 0 | Z86: 0 | AA86: 0 | AB86: 0 | AC86: 0 | AD86: 0 | AE86: 0 | AF86: 1 | AG86: 0 | AH86: 1 | AI86: 1 | AJ86: 1 | AK86: 0 | AL86: 0 | AM86: 1 | AN86: 1 | AO86: 1 | AP86: 1 | AQ86: 1 | AR86: 1 | AS86: 1 | AT86: 1 | AU86: 0 | AV86: 0 | AW86: 0 | AX86: 0 | AY86: 1 | AZ86: 0 | BA86: 0 | BB86: 0 | BC86: 0 | BD86: 1 | BE86: 0 | BF86: 0 | BG86: 0 | BH86: 1 | BI86: 0 | BJ86: 0 | BK86: 0 | BL86: 0 | BM86: 0 | BN86: 0 | BO86: 0 | BP86: =(IF(BP38="",0,IF(BP$18="",0,1))) -> 0 | BQ86: 0 | BR86: 1 | BS86: 0 | BT86: 0 | BU86: 0 | BV86: 0 | BW86: 0 | BX86: 0 | BY86: 0 | BZ86: 0 | CA86: 0 | CB86: 0 | CC86: 0 | CD86: 0 | CE86: 0 | CF86: 0 | CG86: 1 | CH86: 0 | CI86: 0 | CJ86: 0 | CK86: 0 | CL86: 0 | CM86: 1 | CN86: 1 | CO86: 1 | CP86: 0 | CQ86: 1 | CR86: 0 | CS86: 0 | CT86: 0 | CU86: 0 | CV86: 0 | CW86: 0 | CX86: =SUM(C86:CW86) -> 21
C87: =COLORINDEXOFONECELL(C38,TRUE,1)+COLORINDEXOFONECELL(C$18,TRUE,1) -> 11 | D87: 4 | E87: 2 | F87: 2 | G87: 2 | H87: 2 | I87: 2 | J87: 2 | K87: 2 | L87: 11 | M87: 2 | N87: 2 | O87: 2 | P87: 2 | Q87: 11 | R87: 11 | S87: 2 | T87: 2 | U87: 2 | V87: 11 | W87: 2 | X87: 2 | Y87: 11 | Z87: 11 | AA87: 2 | AB87: 11 | AC87: 11 | AD87: 2 | AE87: 2 | AF87: 13 | AG87: 4 | AH87: 13 | AI87: =COLORINDEXOFONECELL(AI38,TRUE,1)+COLORINDEXOFONECELL(AI$18,TRUE,1) -> 13 | AJ87: 13 | AK87: 11 | AL87: 11 | AM87: 4 | AN87: 13 | AO87: 13 | AP87: 13 | AQ87: 13 | AR87: 20 | AS87: 20 | AT87: 6 | AU87: 11 | AV87: 11 | AW87: 2 | AX87: 4 | AY87: 20 | AZ87: 11 | BA87: 4 | BB87: 4 | BC87: 4 | BD87: 13 | BE87: 2 | BF87: 2 | BG87: 2 | BH87: 4 | BI87: 2 | BJ87: 2 | BK87: 2 | BL87: 4 | BM87: 2 | BN87: 2 | BO87: =COLORINDEXOFONECELL(BO38,TRUE,1)+COLORINDEXOFONECELL(BO$18,TRUE,1) -> 2 | BP87: 11 | BQ87: 2 | BR87: 11 | BS87: 2 | BT87: 2 | BU87: 2 | BV87: 2 | BW87: 11 | BX87: 11 | BY87: 4 | BZ87: 2 | CA87: 11 | CB87: 2 | CC87: 11 | CD87: 2 | CE87: 2 | CF87: 4 | CG87: 2 | CH87: 2 | CI87: 2 | CJ87: 11 | CK87: 11 | CL87: 11 | CM87: 13 | CN87: 13 | CO87: 13 | CP87: 4 | CQ87: 13 | CR87: 11 | CS87: 11 | CT87: 2 | CU87: 4 | CV87: 4 | CW87: 11 | CY87: =CX88/CX86 -> 0.3095238095
C88: =IF(C86,IF(C87=2,1,0)+IF(C87=4,0.5,0)+IF(C87=6,1,0)+IF(C87=11,0.5,0)+IF(C87=13,0,0)+IF(C87=20,1,0),0) -> 0 | D88: =IF(D86,IF(D87=2,1,0)+IF(D87=4,0.5,0)+IF(D87=6,1,0)+IF(D87=11,0.5,0)+IF(D87=13,0,0)+IF(D87=20,1,0),0) -> 0 | E88: 0 | F88: 0 | G88: 0 | H88: 0 | I88: 0 | J88: 0 | K88: 0 | L88: 0 | M88: 0 | N88: 0 | O88: 0 | P88: 0 | Q88: 0 | R88: 0 | S88: 0 | T88: 0 | U88: 0 | V88: 0 | W88: 0 | X88: 0 | Y88: 0 | Z88: 0 | AA88: 0 | AB88: 0 | AC88: 0 | AD88: 0 | AE88: 0 | AF88: 0 | AG88: 0 | AH88: 0 | AI88: 0 | AJ88: 0 | AK88: 0 | AL88: 0 | AM88: 0.5 | AN88: 0 | AO88: 0 | AP88: 0 | AQ88: 0 | AR88: 1 | AS88: 1 | AT88: 1 | AU88: 0 | AV88: 0 | AW88: 0 | AX88: 0 | AY88: 1 | AZ88: 0 | BA88: 0 | BB88: 0 | BC88: 0 | BD88: 0 | BE88: 0 | BF88: 0 | BG88: 0 | BH88: 0.5 | BI88: 0 | BJ88: 0 | BK88: 0 | BL88: 0 | BM88: 0 | BN88: 0 | BO88: 0 | BP88: =IF(BP86,IF(BP87=2,1,0)+IF(BP87=4,0.5,0)+IF(BP87=6,1,0)+IF(BP87=11,0.5,0)+IF(BP87=13,0,0)+IF(BP87=20,1,0),0) -> 0 | BQ88: 0 | BR88: 0.5 | BS88: 0 | BT88: 0 | BU88: 0 | BV88: 0 | BW88: 0 | BX88: 0 | BY88: 0 | BZ88: 0 | CA88: 0 | CB88: 0 | CC88: 0 | CD88: 0 | CE88: 0 | CF88: 0 | CG88: 1 | CH88: 0 | CI88: 0 | CJ88: 0 | CK88: 0 | CL88: 0 | CM88: 0 | CN88: 0 | CO88: 0 | CP88: 0 | CQ88: 0 | CR88: 0 | CS88: 0 | CT88: 0 | CU88: 0 | CV88: 0 | CW88: 0 | CX88: =SUM(C88:CW88) -> 6.5
B89: Guy McLendon | C89: =(IF(C38="",0,IF(C$19="",0,1))) -> 0 | D89: =(IF(D38="",0,IF(D$19="",0,1))) -> 0 | E89: 0 | F89: 0 | G89: 0 | H89: 0 | I89: 0 | J89: 0 | K89: 0 | L89: 0 | M89: 0 | N89: 0 | O89: 0 | P89: 0 | Q89: 1 | R89: 0 | S89: 0 | T89: 0 | U89: 0 | V89: 1 | W89: 0 | X89: 0 | Y89: 1 | Z89: 0 | AA89: 0 | AB89: 0 | AC89: 0 | AD89: 0 | AE89: 0 | AF89: 0 | AG89: 0 | AH89: 0 | AI89: 0 | AJ89: 0 | AK89: 0 | AL89: 0 | AM89: 0 | AN89: 0 | AO89: 0 | AP89: 0 | AQ89: 0 | AR89: 0 | AS89: 0 | AT89: 0 | AU89: 0 | AV89: 0 | AW89: 0 | AX89: 0 | AY89: 0 | AZ89: 0 | BA89: 0 | BB89: 0 | BC89: 0 | BD89: 0 | BE89: 0 | BF89: 0 | BG89: 0 | BH89: 0 | BI89: 0 | BJ89: 0 | BK89: 0 | BL89: 0 | BM89: 0 | BN89: 0 | BO89: 0 | BP89: =(IF(BP38="",0,IF(BP$19="",0,1))) -> 0 | BQ89: 0 | BR89: 0 | BS89: 0 | BT89: 0 | BU89: 0 | BV89: 0 | BW89: 0 | BX89: 0 | BY89: 0 | BZ89: 0 | CA89: 0 | CB89: 0 | CC89: 0 | CD89: 0 | CE89: 0 | CF89: 0 | CG89: 0 | CH89: 0 | CI89: 0 | CJ89: 0 | CK89: 0 | CL89: 0 | CM89: 0 | CN89: 0 | CO89: 0 | CP89: 0 | CQ89: 0 | CR89: 0 | CS89: 0 | CT89: 0 | CU89: 0 | CV89: 0 | CW89: 0 | CX89: =SUM(C89:CW89) -> 3
C90: =COLORINDEXOFONECELL(C38,TRUE,1)+COLORINDEXOFONECELL(C$19,TRUE,1) -> 2 | D90: 4 | E90: 2 | F90: 2 | G90: 2 | H90: 2 | I90: 2 | J90: 2 | K90: 2 | L90: 11 | M90: 2 | N90: 2 | O90: 2 | P90: 2 | Q90: 20 | R90: 11 | S90: 2 | T90: 2 | U90: 4 | V90: 20 | W90: 2 | X90: 4 | Y90: 20 | Z90: 11 | AA90: 2 | AB90: 2 | AC90: 11 | AD90: 2 | AE90: 2 | AF90: 4 | AG90: 2 | AH90: 4 | AI90: =COLORINDEXOFONECELL(AI38,TRUE,1)+COLORINDEXOFONECELL(AI$19,TRUE,1) -> 11 | AJ90: 4 | AK90: 2 | AL90: 2 | AM90: 4 | AN90: 4 | AO90: 4 | AP90: 4 | AQ90: 4 | AR90: 11 | AS90: 11 | AT90: 4 | AU90: 2 | AV90: 11 | AW90: 2 | AX90: 4 | AY90: 11 | AZ90: 11 | BA90: 4 | BB90: 4 | BC90: 4 | BD90: 4 | BE90: 2 | BF90: 2 | BG90: 2 | BH90: 2 | BI90: 2 | BJ90: 2 | BK90: 2 | BL90: 4 | BM90: 2 | BN90: 2 | BO90: =COLORINDEXOFONECELL(BO38,TRUE,1)+COLORINDEXOFONECELL(BO$19,TRUE,1) -> 2 | BP90: 2 | BQ90: 2 | BR90: 2 | BS90: 2 | BT90: 2 | BU90: 2 | BV90: 2 | BW90: 11 | BX90: 2 | BY90: 4 | BZ90: 2 | CA90: 2 | CB90: 2 | CC90: 11 | CD90: 2 | CE90: 2 | CF90: 4 | CG90: 2 | CH90: 2 | CI90: 2 | CJ90: 2 | CK90: 11 | CL90: 11 | CM90: 11 | CN90: 11 | CO90: 11 | CP90: 4 | CQ90: 4 | CR90: 2 | CS90: 2 | CT90: 2 | CU90: 4 | CV90: 4 | CW90: 11 | CY90: =CX91/CX89 -> 1
C91: =IF(C89,IF(C90=2,1,0)+IF(C90=4,0.5,0)+IF(C90=6,1,0)+IF(C90=11,0.5,0)+IF(C90=13,0,0)+IF(C90=20,1,0),0) -> 0 | D91: =IF(D89,IF(D90=2,1,0)+IF(D90=4,0.5,0)+IF(D90=6,1,0)+IF(D90=11,0.5,0)+IF(D90=13,0,0)+IF(D90=20,1,0),0) -> 0 | E91: 0 | F91: 0 | G91: 0 | H91: 0 | I91: 0 | J91: 0 | K91: 0 | L91: 0 | M91: 0 | N91: 0 | O91: 0 | P91: 0 | Q91: 1 | R91: 0 | S91: 0 | T91: 0 | U91: 0 | V91: 1 | W91: 0 | X91: 0 | Y91: 1 | Z91: 0 | AA91: 0 | AB91: 0 | AC91: 0 | AD91: 0 | AE91: 0 | AF91: 0 | AG91: 0 | AH91: 0 | AI91: 0 | AJ91: 0 | AK91: 0 | AL91: 0 | AM91: 0 | AN91: 0 | AO91: 0 | AP91: 0 | AQ91: 0 | AR91: 0 | AS91: 0 | AT91: 0 | AU91: 0 | AV91: 0 | AW91: 0 | AX91: 0 | AY91: 0 | AZ91: 0 | BA91: 0 | BB91: 0 | BC91: 0 | BD91: 0 | BE91: 0 | BF91: 0 | BG91: 0 | BH91: 0 | BI91: 0 | BJ91: 0 | BK91: 0 | BL91: 0 | BM91: 0 | BN91: 0 | BO91: 0 | BP91: =IF(BP89,IF(BP90=2,1,0)+IF(BP90=4,0.5,0)+IF(BP90=6,1,0)+IF(BP90=11,0.5,0)+IF(BP90=13,0,0)+IF(BP90=20,1,0),0) -> 0 | BQ91: 0 | BR91: 0 | BS91: 0 | BT91: 0 | BU91: 0 | BV91: 0 | BW91: 0 | BX91: 0 | BY91: 0 | BZ91: 0 | CA91: 0 | CB91: 0 | CC91: 0 | CD91: 0 | CE91: 0 | CF91: 0 | CG91: 0 | CH91: 0 | CI91: 0 | CJ91: 0 | CK91: 0 | CL91: 0 | CM91: 0 | CN91: 0 | CO91: 0 | CP91: 0 | CQ91: 0 | CR91: 0 | CS91: 0 | CT91: 0 | CU91: 0 | CV91: 0 | CW91: 0 | CX91: =SUM(C91:CW91) -> 3
B92: Brad Ploeger | C92: =(IF(C38="",0,IF(C$20="",0,1))) -> 0 | D92: =(IF(D38="",0,IF(D$20="",0,1))) -> 0 | E92: 0 | F92: 0 | G92: 0 | H92: 0 | I92: 0 | J92: 0 | K92: 0 | L92: 1 | M92: 0 | N92: 0 | O92: 0 | P92: 0 | Q92: 0 | R92: 0 | S92: 0 | T92: 0 | U92: 0 | V92: 1 | W92: 0 | X92: 0 | Y92: 1 | Z92: 0 | AA92: 0 | AB92: 0 | AC92: 0 | AD92: 0 | AE92: 0 | AF92: 0 | AG92: 0 | AH92: 0 | AI92: 0 | AJ92: 0 | AK92: 0 | AL92: 0 | AM92: 0 | AN92: 0 | AO92: 0 | AP92: 0 | AQ92: 0 | AR92: 0 | AS92: 0 | AT92: 0 | AU92: 0 | AV92: 1 | AW92: 0 | AX92: 0 | AY92: 0 | AZ92: 0 | BA92: 0 | BB92: 0 | BC92: 0 | BD92: 0 | BE92: 0 | BF92: 0 | BG92: 0 | BH92: 0 | BI92: 0 | BJ92: 0 | BK92: 0 | BL92: 0 | BM92: 0 | BN92: 0 | BO92: 0 | BP92: =(IF(BP38="",0,IF(BP$20="",0,1))) -> 0 | BQ92: 0 | BR92: 0 | BS92: 0 | BT92: 0 | BU92: 0 | BV92: 0 | BW92: 0 | BX92: 0 | BY92: 0 | BZ92: 0 | CA92: 0 | CB92: 0 | CC92: 0 | CD92: 0 | CE92: 0 | CF92: 0 | CG92: 1 | CH92: 0 | CI92: 0 | CJ92: 0 | CK92: 0 | CL92: 0 | CM92: 0 | CN92: 0 | CO92: 1 | CP92: 0 | CQ92: 0 | CR92: 0 | CS92: 0 | CT92: 0 | CU92: 0 | CV92: 0 | CW92: 0 | CX92: =SUM(C92:CW92) -> 6
C93: =COLORINDEXOFONECELL(C38,TRUE,1)+COLORINDEXOFONECELL(C$20,TRUE,1) -> 2 | D93: 4 | E93: 2 | F93: 2 | G93: 2 | H93: 2 | I93: 2 | J93: 2 | K93: 2 | L93: 20 | M93: 2 | N93: 2 | O93: 2 | P93: 2 | Q93: 11 | R93: 2 | S93: 11 | T93: 2 | U93: 2 | V93: 20 | W93: 2 | X93: 2 | Y93: 13 | Z93: 11 | AA93: 2 | AB93: 2 | AC93: 11 | AD93: 2 | AE93: 2 | AF93: 4 | AG93: 2 | AH93: 4 | AI93: =COLORINDEXOFONECELL(AI38,TRUE,1)+COLORINDEXOFONECELL(AI$20,TRUE,1) -> 11 | AJ93: 4 | AK93: 2 | AL93: 2 | AM93: 4 | AN93: 4 | AO93: 4 | AP93: 4 | AQ93: 4 | AR93: 11 | AS93: 11 | AT93: 4 | AU93: 2 | AV93: 20 | AW93: 2 | AX93: 4 | AY93: 11 | AZ93: 11 | BA93: 4 | BB93: 4 | BC93: 4 | BD93: 4 | BE93: 2 | BF93: 2 | BG93: 2 | BH93: 2 | BI93: 2 | BJ93: 2 | BK93: 2 | BL93: 4 | BM93: 2 | BN93: 2 | BO93: =COLORINDEXOFONECELL(BO38,TRUE,1)+COLORINDEXOFONECELL(BO$20,TRUE,1) -> 2 | BP93: 2 | BQ93: 2 | BR93: 2 | BS93: 2 | BT93: 2 | BU93: 2 | BV93: 2 | BW93: 11 | BX93: 2 | BY93: 4 | BZ93: 2 | CA93: 2 | CB93: 11 | CC93: 11 | CD93: 2 | CE93: 2 | CF93: 4 | CG93: 2 | CH93: 2 | CI93: 4 | CJ93: 2 | CK93: 11 | CL93: 11 | CM93: 11 | CN93: 11 | CO93: 11 | CP93: 4 | CQ93: 4 | CR93: 11 | CS93: 2 | CT93: 2 | CU93: 4 | CV93: 4 | CW93: 11 | CY93: =CX94/CX92 -> 0.75
C94: =IF(C92,IF(C93=2,1,0)+IF(C93=4,0.5,0)+IF(C93=6,1,0)+IF(C93=11,0.5,0)+IF(C93=13,0,0)+IF(C93=20,1,0),0) -> 0 | D94: =IF(D92,IF(D93=2,1,0)+IF(D93=4,0.5,0)+IF(D93=6,1,0)+IF(D93=11,0.5,0)+IF(D93=13,0,0)+IF(D93=20,1,0),0) -> 0 | E94: 0 | F94: 0 | G94: 0 | H94: 0 | I94: 0 | J94: 0 | K94: 0 | L94: 1 | M94: 0 | N94: 0 | O94: 0 | P94: 0 | Q94: 0 | R94: 0 | S94: 0 | T94: 0 | U94: 0 | V94: 1 | W94: 0 | X94: 0 | Y94: 0 | Z94: 0 | AA94: 0 | AB94: 0 | AC94: 0 | AD94: 0 | AE94: 0 | AF94: 0 | AG94: 0 | AH94: 0 | AI94: 0 | AJ94: 0 | AK94: 0 | AL94: 0 | AM94: 0 | AN94: 0 | AO94: 0 | AP94: 0 | AQ94: 0 | AR94: 0 | AS94: 0 | AT94: 0 | AU94: 0 | AV94: 1 | AW94: 0 | AX94: 0 | AY94: 0 | AZ94: 0 | BA94: 0 | BB94: 0 | BC94: 0 | BD94: 0 | BE94: 0 | BF94: 0 | BG94: 0 | BH94: 0 | BI94: 0 | BJ94: 0 | BK94: 0 | BL94: 0 | BM94: 0 | BN94: 0 | BO94: 0 | BP94: =IF(BP92,IF(BP93=2,1,0)+IF(BP93=4,0.5,0)+IF(BP93=6,1,0)+IF(BP93=11,0.5,0)+IF(BP93=13,0,0)+IF(BP93=20,1,0),0) -> 0 | BQ94: 0 | BR94: 0 | BS94: 0 | BT94: 0 | BU94: 0 | BV94: 0 | BW94: 0 | BX94: 0 | BY94: 0 | BZ94: 0 | CA94: 0 | CB94: 0 | CC94: 0 | CD94: 0 | CE94: 0 | CF94: 0 | CG94: 1 | CH94: 0 | CI94: 0 | CJ94: 0 | CK94: 0 | CL94: 0 | CM94: 0 | CN94: 0 | CO94: 0.5 | CP94: 0 | CQ94: 0 | CR94: 0 | CS94: 0 | CT94: 0 | CU94: 0 | CV94: 0 | CW94: 0 | CX94: =SUM(C94:CW94) -> 4.5
B95: Rachel Hawkridge | C95: =(IF(C38="",0,IF(C$21="",0,1))) -> 0 | D95: =(IF(D38="",0,IF(D$21="",0,1))) -> 1 | E95: 0 | F95: 0 | G95: 0 | H95: 0 | I95: 0 | J95: 0 | K95: 0 | L95: 1 | M95: 0 | N95: 0 | O95: 0 | P95: 0 | Q95: 1 | R95: 0 | S95: 0 | T95: 0 | U95: 0 | V95: 0 | W95: 0 | X95: 0 | Y95: 0 | Z95: 0 | AA95: 0 | AB95: 0 | AC95: 0 | AD95: 0 | AE95: 0 | AF95: 0 | AG95: 0 | AH95: 0 | AI95: 0 | AJ95: 0 | AK95: 0 | AL95: 0 | AM95: 0 | AN95: 0 | AO95: 0 | AP95: 0 | AQ95: 0 | AR95: 0 | AS95: 0 | AT95: 0 | AU95: 0 | AV95: 0 | AW95: 0 | AX95: 0 | AY95: 0 | AZ95: 0 | BA95: 0 | BB95: 0 | BC95: 0 | BD95: 0 | BE95: 0 | BF95: 0 | BG95: 1 | BH95: 0 | BI95: 0 | BJ95: 0 | BK95: 0 | BL95: 1 | BM95: 0 | BN95: 0 | BO95: 0 | BP95: =(IF(BP38="",0,IF(BP$21="",0,1))) -> 0 | BQ95: 0 | BR95: 0 | BS95: 0 | BT95: 0 | BU95: 0 | BV95: 0 | BW95: 0 | BX95: 0 | BY95: 0 | BZ95: 0 | CA95: 0 | CB95: 0 | CC95: 0 | CD95: 0 | CE95: 0 | CF95: 0 | CG95: 0 | CH95: 0 | CI95: 0 | CJ95: 0 | CK95: 0 | CL95: 0 | CM95: 0 | CN95: 0 | CO95: 0 | CP95: 0 | CQ95: 0 | CR95: 0 | CS95: 0 | CT95: 0 | CU95: 0 | CV95: 0 | CW95: 0 | CX95: =SUM(C95:CW95) -> 5
C96: =COLORINDEXOFONECELL(C38,TRUE,1)+COLORINDEXOFONECELL(C$21,TRUE,1) -> 11 | D96: 6 | E96: 11 | F96: 11 | G96: 4 | H96: 4 | I96: 4 | J96: 4 | K96: 4 | L96: 20 | M96: 4 | N96: 4 | O96: 11 | P96: 11 | Q96: 20 | R96: 4 | S96: 11 | T96: 11 | U96: 2 | V96: 11 | W96: 2 | X96: 2 | Y96: 11 | Z96: 11 | AA96: 2 | AB96: 2 | AC96: 11 | AD96: 2 | AE96: 2 | AF96: 4 | AG96: 2 | AH96: 4 | AI96: =COLORINDEXOFONECELL(AI38,TRUE,1)+COLORINDEXOFONECELL(AI$21,TRUE,1) -> 11 | AJ96: 4 | AK96: 2 | AL96: 2 | AM96: 4 | AN96: 4 | AO96: 4 | AP96: 4 | AQ96: 4 | AR96: 11 | AS96: 11 | AT96: 4 | AU96: 2 | AV96: 11 | AW96: 2 | AX96: 4 | AY96: 11 | AZ96: 11 | BA96: 4 | BB96: 4 | BC96: 4 | BD96: 4 | BE96: 4 | BF96: 11 | BG96: 11 | BH96: 2 | BI96: 4 | BJ96: 2 | BK96: 2 | BL96: 6 | BM96: 11 | BN96: 2 | BO96: =COLORINDEXOFONECELL(BO38,TRUE,1)+COLORINDEXOFONECELL(BO$21,TRUE,1) -> 2 | BP96: 2 | BQ96: 2 | BR96: 2 | BS96: 2 | BT96: 2 | BU96: 2 | BV96: 2 | BW96: 11 | BX96: 2 | BY96: 4 | BZ96: 2 | CA96: 2 | CB96: 2 | CC96: 11 | CD96: 2 | CE96: 2 | CF96: 4 | CG96: 2 | CH96: 2 | CI96: 2 | CJ96: 2 | CK96: 11 | CL96: 11 | CM96: 11 | CN96: 11 | CO96: 11 | CP96: 4 | CQ96: 4 | CR96: 2 | CS96: 2 | CT96: 2 | CU96: 4 | CV96: 4 | CW96: 11 | CY96: =CX97/CX95 -> 0.9
C97: =IF(C95,IF(C96=2,1,0)+IF(C96=4,0.5,0)+IF(C96=6,1,0)+IF(C96=11,0.5,0)+IF(C96=13,0,0)+IF(C96=20,1,0),0) -> 0 | D97: =IF(D95,IF(D96=2,1,0)+IF(D96=4,0.5,0)+IF(D96=6,1,0)+IF(D96=11,0.5,0)+IF(D96=13,0,0)+IF(D96=20,1,0),0) -> 1 | E97: 0 | F97: 0 | G97: 0 | H97: 0 | I97: 0 | J97: 0 | K97: 0 | L97: 1 | M97: 0 | N97: 0 | O97: 0 | P97: 0 | Q97: 1 | R97: 0 | S97: 0 | T97: 0 | U97: 0 | V97: 0 | W97: 0 | X97: 0 | Y97: 0 | Z97: 0 | AA97: 0 | AB97: 0 | AC97: 0 | AD97: 0 | AE97: 0 | AF97: 0 | AG97: 0 | AH97: 0 | AI97: 0 | AJ97: 0 | AK97: 0 | AL97: 0 | AM97: 0 | AN97: 0 | AO97: 0 | AP97: 0 | AQ97: 0 | AR97: 0 | AS97: 0 | AT97: 0 | AU97: 0 | AV97: 0 | AW97: 0 | AX97: 0 | AY97: 0 | AZ97: 0 | BA97: 0 | BB97: 0 | BC97: 0 | BD97: 0 | BE97: 0 | BF97: 0 | BG97: 0.5 | BH97: 0 | BI97: 0 | BJ97: 0 | BK97: 0 | BL97: 1 | BM97: 0 | BN97: 0 | BO97: 0 | BP97: =IF(BP95,IF(BP96=2,1,0)+IF(BP96=4,0.5,0)+IF(BP96=6,1,0)+IF(BP96=11,0.5,0)+IF(BP96=13,0,0)+IF(BP96=20,1,0),0) -> 0 | BQ97: 0 | BR97: 0 | BS97: 0 | BT97: 0 | BU97: 0 | BV97: 0 | BW97: 0 | BX97: 0 | BY97: 0 | BZ97: 0 | CA97: 0 | CB97: 0 | CC97: 0 | CD97: 0 | CE97: 0 | CF97: 0 | CG97: 0 | CH97: 0 | CI97: 0 | CJ97: 0 | CK97: 0 | CL97: 0 | CM97: 0 | CN97: 0 | CO97: 0 | CP97: 0 | CQ97: 0 | CR97: 0 | CS97: 0 | CT97: 0 | CU97: 0 | CV97: 0 | CW97: 0 | CX97: =SUM(C97:CW97) -> 4.5
B98: Vicki Kirkland | C98: =(IF(C38="",0,IF(C$22="",0,1))) -> 0 | D98: =(IF(D38="",0,IF(D$22="",0,1))) -> 0 | E98: 0 | F98: 0 | G98: 0 | H98: 0 | I98: 0 | J98: 0 | K98: 0 | L98: 0 | M98: 0 | N98: 0 | O98: 0 | P98: 0 | Q98: 0 | R98: 0 | S98: 0 | T98: 0 | U98: 0 | V98: 1 | W98: 0 | X98: 0 | Y98: 1 | Z98: 1 | AA98: 0 | AB98: 0 | AC98: 1 | AD98: 0 | AE98: 0 | AF98: 1 | AG98: 0 | AH98: 0 | AI98: 1 | AJ98: 1 | AK98: 0 | AL98: 0 | AM98: 1 | AN98: 0 | AO98: 0 | AP98: 0 | AQ98: 0 | AR98: 1 | AS98: 1 | AT98: 1 | AU98: 0 | AV98: 1 | AW98: 0 | AX98: 1 | AY98: 0 | AZ98: 1 | BA98: 1 | BB98: 1 | BC98: 1 | BD98: 1 | BE98: 0 | BF98: 0 | BG98: 0 | BH98: 0 | BI98: 0 | BJ98: 1 | BK98: 0 | BL98: 0 | BM98: 0 | BN98: 0 | BO98: 0 | BP98: =(IF(BP38="",0,IF(BP$22="",0,1))) -> 0 | BQ98: 0 | BR98: 1 | BS98: 0 | BT98: 0 | BU98: 0 | BV98: 0 | BW98: 1 | BX98: 0 | BY98: 1 | BZ98: 0 | CA98: 0 | CB98: 0 | CC98: 1 | CD98: 0 | CE98: 0 | CF98: 1 | CG98: 1 | CH98: 0 | CI98: 0 | CJ98: 0 | CK98: 1 | CL98: 1 | CM98: 1 | CN98: 1 | CO98: 1 | CP98: 0 | CQ98: 1 | CR98: 0 | CS98: 0 | CT98: 0 | CU98: 0 | CV98: 1 | CW98: 1 | CX98: =SUM(C98:CW98) -> 33
C99: =COLORINDEXOFONECELL(C38,TRUE,1)+COLORINDEXOFONECELL(C$22,TRUE,1) -> 11 | D99: 6 | E99: 11 | F99: 11 | G99: 4 | H99: 4 | I99: 4 | J99: 4 | K99: 4 | L99: 20 | M99: 4 | N99: 4 | O99: 11 | P99: 11 | Q99: 20 | R99: 4 | S99: 11 | T99: 11 | U99: 4 | V99: 11 | W99: 11 | X99: 4 | Y99: 11 | Z99: 20 | AA99: 4 | AB99: 4 | AC99: 20 | AD99: 11 | AE99: 4 | AF99: 6 | AG99: 2 | AH99: 4 | AI99: =COLORINDEXOFONECELL(AI38,TRUE,1)+COLORINDEXOFONECELL(AI$22,TRUE,1) -> 20 | AJ99: 6 | AK99: 11 | AL99: 11 | AM99: 4 | AN99: 4 | AO99: 4 | AP99: 4 | AQ99: 4 | AR99: 20 | AS99: 20 | AT99: 6 | AU99: 2 | AV99: 20 | AW99: 4 | AX99: 6 | AY99: 11 | AZ99: 13 | BA99: 13 | BB99: 13 | BC99: 6 | BD99: 6 | BE99: 2 | BF99: 2 | BG99: 2 | BH99: 2 | BI99: 2 | BJ99: 11 | BK99: 2 | BL99: 4 | BM99: 2 | BN99: 2 | BO99: =COLORINDEXOFONECELL(BO38,TRUE,1)+COLORINDEXOFONECELL(BO$22,TRUE,1) -> 2 | BP99: 2 | BQ99: 2 | BR99: 11 | BS99: 11 | BT99: 2 | BU99: 4 | BV99: 2 | BW99: 20 | BX99: 11 | BY99: 6 | BZ99: 2 | CA99: 11 | CB99: 11 | CC99: 20 | CD99: 2 | CE99: 2 | CF99: 6 | CG99: 11 | CH99: 11 | CI99: 2 | CJ99: 2 | CK99: 20 | CL99: 20 | CM99: 20 | CN99: 20 | CO99: 20 | CP99: 4 | CQ99: 6 | CR99: 11 | CS99: 2 | CT99: 2 | CU99: 4 | CV99: 6 | CW99: 11 | CY99: =CX100/CX98 -> 0.803030303
C100: =IF(C98,IF(C99=2,1,0)+IF(C99=4,0.5,0)+IF(C99=6,1,0)+IF(C99=11,0.5,0)+IF(C99=13,0,0)+IF(C99=20,1,0),0) -> 0 | D100: =IF(D98,IF(D99=2,1,0)+IF(D99=4,0.5,0)+IF(D99=6,1,0)+IF(D99=11,0.5,0)+IF(D99=13,0,0)+IF(D99=20,1,0),0) -> 0 | E100: 0 | F100: 0 | G100: 0 | H100: 0 | I100: 0 | J100: 0 | K100: 0 | L100: 0 | M100: 0 | N100: 0 | O100: 0 | P100: 0 | Q100: 0 | R100: 0 | S100: 0 | T100: 0 | U100: 0 | V100: 0.5 | W100: 0 | X100: 0 | Y100: 0.5 | Z100: 1 | AA100: 0 | AB100: 0 | AC100: 1 | AD100: 0 | AE100: 0 | AF100: 1 | AG100: 0 | AH100: 0 | AI100: 1 | AJ100: 1 | AK100: 0 | AL100: 0 | AM100: 0.5 | AN100: 0 | AO100: 0 | AP100: 0 | AQ100: 0 | AR100: 1 | AS100: 1 | AT100: 1 | AU100: 0 | AV100: 1 | AW100: 0 | AX100: 1 | AY100: 0 | AZ100: 0 | BA100: 0 | BB100: 0 | BC100: 1 | BD100: 1 | BE100: 0 | BF100: 0 | BG100: 0 | BH100: 0 | BI100: 0 | BJ100: 0.5 | BK100: 0 | BL100: 0 | BM100: 0 | BN100: 0 | BO100: 0 | BP100: =IF(BP98,IF(BP99=2,1,0)+IF(BP99=4,0.5,0)+IF(BP99=6,1,0)+IF(BP99=11,0.5,0)+IF(BP99=13,0,0)+IF(BP99=20,1,0),0) -> 0 | BQ100: 0 | BR100: 0.5 | BS100: 0 | BT100: 0 | BU100: 0 | BV100: 0 | BW100: 1 | BX100: 0 | BY100: 1 | BZ100: 0 | CA100: 0 | CB100: 0 | CC100: 1 | CD100: 0 | CE100: 0 | CF100: 1 | CG100: 0.5 | CH100: 0 | CI100: 0 | CJ100: 0 | CK100: 1 | CL100: 1 | CM100: 1 | CN100: 1 | CO100: 1 | CP100: 0 | CQ100: 1 | CR100: 0 | CS100: 0 | CT100: 0 | CU100: 0 | CV100: 1 | CW100: 0.5 | CX100: =SUM(C100:CW100) -> 26.5
B101: David Blau | C101: =(IF(C38="",0,IF(C$23="",0,1))) -> 0 | D101: =(IF(D38="",0,IF(D$23="",0,1))) -> 0 | E101: 0 | F101: 0 | G101: 0 | H101: 0 | I101: 0 | J101: 0 | K101: 0 | L101: 0 | M101: 0 | N101: 0 | O101: 0 | P101: 0 | Q101: 0 | R101: 0 | S101: 0 | T101: 0 | U101: 0 | V101: 0 | W101: 0 | X101: 0 | Y101: 0 | Z101: 0 | AA101: 0 | AB101: 0 | AC101: 0 | AD101: 0 | AE101: 0 | AF101: 0 | AG101: 0 | AH101: 1 | AI101: 0 | AJ101: 0 | AK101: 0 | AL101: 0 | AM101: 0 | AN101: 1 | AO101: 1 | AP101: 1 | AQ101: 1 | AR101: 0 | AS101: 0 | AT101: 0 | AU101: 0 | AV101: 0 | AW101: 0 | AX101: 0 | AY101: 1 | AZ101: 0 | BA101: 0 | BB101: 0 | BC101: 0 | BD101: 0 | BE101: 0 | BF101: 0 | BG101: 0 | BH101: 0 | BI101: 0 | BJ101: 0 | BK101: 0 | BL101: 0 | BM101: 0 | BN101: 0 | BO101: 0 | BP101: =(IF(BP38="",0,IF(BP$23="",0,1))) -> 0 | BQ101: 0 | BR101: 0 | BS101: 0 | BT101: 0 | BU101: 0 | BV101: 0 | BW101: 0 | BX101: 0 | BY101: 0 | BZ101: 0 | CA101: 0 | CB101: 0 | CC101: 0 | CD101: 0 | CE101: 0 | CF101: 0 | CG101: 0 | CH101: 0 | CI101: 0 | CJ101: 0 | CK101: 0 | CL101: 0 | CM101: 0 | CN101: 0 | CO101: 0 | CP101: 1 | CQ101: 0 | CR101: 0 | CS101: 0 | CT101: 0 | CU101: 1 | CV101: 0 | CW101: 1 | CX101: =SUM(C101:CW101) -> 9
C102: =COLORINDEXOFONECELL(C38,TRUE,1)+COLORINDEXOFONECELL(C$23,TRUE,1) -> 11 | D102: 6 | E102: 11 | F102: 11 | G102: 4 | H102: 4 | I102: 4 | J102: 4 | K102: 4 | L102: 20 | M102: 4 | N102: 4 | O102: 11 | P102: 11 | Q102: 20 | R102: 4 | S102: 11 | T102: 11 | U102: 4 | V102: 11 | W102: 11 | X102: 4 | Y102: 11 | Z102: 20 | AA102: 4 | AB102: 4 | AC102: 20 | AD102: 11 | AE102: 4 | AF102: 4 | AG102: 2 | AH102: 13 | AI102: =COLORINDEXOFONECELL(AI38,TRUE,1)+COLORINDEXOFONECELL(AI$23,TRUE,1) -> 11 | AJ102: 4 | AK102: 2 | AL102: 2 | AM102: 4 | AN102: 13 | AO102: 13 | AP102: 6 | AQ102: 13 | AR102: 11 | AS102: 11 | AT102: 4 | AU102: 11 | AV102: 11 | AW102: 11 | AX102: 4 | AY102: 20 | AZ102: 11 | BA102: 4 | BB102: 4 | BC102: 4 | BD102: 4 | BE102: 2 | BF102: 2 | BG102: 2 | BH102: 2 | BI102: 2 | BJ102: 2 | BK102: 2 | BL102: 4 | BM102: 2 | BN102: 2 | BO102: =COLORINDEXOFONECELL(BO38,TRUE,1)+COLORINDEXOFONECELL(BO$23,TRUE,1) -> 2 | BP102: 2 | BQ102: 2 | BR102: 2 | BS102: 2 | BT102: 2 | BU102: 2 | BV102: 2 | BW102: 11 | BX102: 2 | BY102: 4 | BZ102: 2 | CA102: 2 | CB102: 2 | CC102: 11 | CD102: 2 | CE102: 11 | CF102: 4 | CG102: 2 | CH102: 2 | CI102: 4 | CJ102: 11 | CK102: 11 | CL102: 11 | CM102: 11 | CN102: 11 | CO102: 11 | CP102: 6 | CQ102: 4 | CR102: 2 | CS102: 11 | CT102: 4 | CU102: 6 | CV102: 4 | CW102: 20 | CY102: =CX103/CX101 -> 0.5555555556
C103: =IF(C101,IF(C102=2,1,0)+IF(C102=4,0.5,0)+IF(C102=6,1,0)+IF(C102=11,0.5,0)+IF(C102=13,0,0)+IF(C102=20,1,0),0) -> 0 | D103: =IF(D101,IF(D102=2,1,0)+IF(D102=4,0.5,0)+IF(D102=6,1,0)+IF(D102=11,0.5,0)+IF(D102=13,0,0)+IF(D102=20,1,0),0) -> 0 | E103: 0 | F103: 0 | G103: 0 | H103: 0 | I103: 0 | J103: 0 | K103: 0 | L103: 0 | M103: 0 | N103: 0 | O103: 0 | P103: 0 | Q103: 0 | R103: 0 | S103: 0 | T103: 0 | U103: 0 | V103: 0 | W103: 0 | X103: 0 | Y103: 0 | Z103: 0 | AA103: 0 | AB103: 0 | AC103: 0 | AD103: 0 | AE103: 0 | AF103: 0 | AG103: 0 | AH103: 0 | AI103: 0 | AJ103: 0 | AK103: 0 | AL103: 0 | AM103: 0 | AN103: 0 | AO103: 0 | AP103: 1 | AQ103: 0 | AR103: 0 | AS103: 0 | AT103: 0 | AU103: 0 | AV103: 0 | AW103: 0 | AX103: 0 | AY103: 1 | AZ103: 0 | BA103: 0 | BB103: 0 | BC103: 0 | BD103: 0 | BE103: 0 | BF103: 0 | BG103: 0 | BH103: 0 | BI103: 0 | BJ103: 0 | BK103: 0 | BL103: 0 | BM103: 0 | BN103: 0 | BO103: 0 | BP103: =IF(BP101,IF(BP102=2,1,0)+IF(BP102=4,0.5,0)+IF(BP102=6,1,0)+IF(BP102=11,0.5,0)+IF(BP102=13,0,0)+IF(BP102=20,1,0),0) -> 0 | BQ103: 0 | BR103: 0 | BS103: 0 | BT103: 0 | BU103: 0 | BV103: 0 | BW103: 0 | BX103: 0 | BY103: 0 | BZ103: 0 | CA103: 0 | CB103: 0 | CC103: 0 | CD103: 0 | CE103: 0 | CF103: 0 | CG103: 0 | CH103: 0 | CI103: 0 | CJ103: 0 | CK103: 0 | CL103: 0 | CM103: 0 | CN103: 0 | CO103: 0 | CP103: 1 | CQ103: 0 | CR103: 0 | CS103: 0 | CT103: 0 | CU103: 1 | CV103: 0 | CW103: 1 | CX103: =SUM(C103:CW103) -> 5
B104: Andy Wolf | C104: =(IF(C38="",0,IF(C$24="",0,1))) -> 0 | D104: =(IF(D38="",0,IF(D$24="",0,1))) -> 1 | E104: 0 | F104: 0 | G104: 0 | H104: 0 | I104: 0 | J104: 0 | K104: 0 | L104: 1 | M104: 0 | N104: 0 | O104: 0 | P104: 0 | Q104: 1 | R104: 0 | S104: 0 | T104: 0 | U104: 0 | V104: 1 | W104: 0 | X104: 0 | Y104: 1 | Z104: 0 | AA104: 0 | AB104: 0 | AC104: 1 | AD104: 0 | AE104: 0 | AF104: 1 | AG104: 0 | AH104: 1 | AI104: 1 | AJ104: 1 | AK104: 0 | AL104: 0 | AM104: 1 | AN104: 1 | AO104: 1 | AP104: 1 | AQ104: 1 | AR104: 1 | AS104: 1 | AT104: 1 | AU104: 0 | AV104: 1 | AW104: 0 | AX104: 1 | AY104: 1 | AZ104: 1 | BA104: 1 | BB104: 1 | BC104: 1 | BD104: 1 | BE104: 0 | BF104: 0 | BG104: 1 | BH104: 1 | BI104: 0 | BJ104: 1 | BK104: 1 | BL104: 1 | BM104: 0 | BN104: 0 | BO104: 0 | BP104: =(IF(BP38="",0,IF(BP$24="",0,1))) -> 0 | BQ104: 1 | BR104: 0 | BS104: 0 | BT104: 1 | BU104: 0 | BV104: 0 | BW104: 0 | BX104: 0 | BY104: 1 | BZ104: 0 | CA104: 0 | CB104: 0 | CC104: 1 | CD104: 0 | CE104: 0 | CF104: 1 | CG104: 1 | CH104: 0 | CI104: 0 | CJ104: 0 | CK104: 1 | CL104: 0 | CM104: 0 | CN104: 1 | CO104: 1 | CP104: 1 | CQ104: 1 | CR104: 0 | CS104: 0 | CT104: 0 | CU104: 1 | CV104: 1 | CW104: 1 | CX104: =SUM(C104:CW104) -> 45
C105: =COLORINDEXOFONECELL(C38,TRUE,1)+COLORINDEXOFONECELL(C$24,TRUE,1) -> 2 | D105: 13 | E105: 11 | F105: 4 | G105: 11 | H105: 4 | I105: 4 | J105: 11 | K105: 11 | L105: 20 | M105: 4 | N105: 11 | O105: 11 | P105: 11 | Q105: 13 | R105: 11 | S105: 11 | T105: 11 | U105: 4 | V105: 20 | W105: 11 | X105: 4 | Y105: 11 | Z105: 11 | AA105: 2 | AB105: 2 | AC105: 20 | AD105: 11 | AE105: 11 | AF105: 13 | AG105: 11 | AH105: 13 | AI105: =COLORINDEXOFONECELL(AI38,TRUE,1)+COLORINDEXOFONECELL(AI$24,TRUE,1) -> 13 | AJ105: 13 | AK105: 11 | AL105: 11 | AM105: 13 | AN105: 13 | AO105: 13 | AP105: 13 | AQ105: 6 | AR105: 20 | AS105: 20 | AT105: 4 | AU105: 11 | AV105: 20 | AW105: 11 | AX105: 13 | AY105: 20 | AZ105: 20 | BA105: 6 | BB105: 13 | BC105: 13 | BD105: 13 | BE105: 2 | BF105: 11 | BG105: 4 | BH105: 11 | BI105: 11 | BJ105: 11 | BK105: 4 | BL105: 13 | BM105: 11 | BN105: 11 | BO105: =COLORINDEXOFONECELL(BO38,TRUE,1)+COLORINDEXOFONECELL(BO$24,TRUE,1) -> 11 | BP105: 11 | BQ105: 11 | BR105: 2 | BS105: 11 | BT105: 4 | BU105: 11 | BV105: 2 | BW105: 11 | BX105: 11 | BY105: 13 | BZ105: 11 | CA105: 11 | CB105: 4 | CC105: 20 | CD105: 2 | CE105: 11 | CF105: 13 | CG105: 4 | CH105: 11 | CI105: 11 | CJ105: 11 | CK105: 13 | CL105: 11 | CM105: 11 | CN105: 13 | CO105: 13 | CP105: 13 | CQ105: 13 | CR105: 11 | CS105: 11 | CT105: 11 | CU105: 13 | CV105: 13 | CW105: 13 | CY105: =CX106/CX104 -> 0.3444444444
C106: =IF(C104,IF(C105=2,1,0)+IF(C105=4,0.5,0)+IF(C105=6,1,0)+IF(C105=11,0.5,0)+IF(C105=13,0,0)+IF(C105=20,1,0),0) -> 0 | D106: =IF(D104,IF(D105=2,1,0)+IF(D105=4,0.5,0)+IF(D105=6,1,0)+IF(D105=11,0.5,0)+IF(D105=13,0,0)+IF(D105=20,1,0),0) -> 0 | E106: 0 | F106: 0 | G106: 0 | H106: 0 | I106: 0 | J106: 0 | K106: 0 | L106: 1 | M106: 0 | N106: 0 | O106: 0 | P106: 0 | Q106: 0 | R106: 0 | S106: 0 | T106: 0 | U106: 0 | V106: 1 | W106: 0 | X106: 0 | Y106: 0.5 | Z106: 0 | AA106: 0 | AB106: 0 | AC106: 1 | AD106: 0 | AE106: 0 | AF106: 0 | AG106: 0 | AH106: 0 | AI106: 0 | AJ106: 0 | AK106: 0 | AL106: 0 | AM106: 0 | AN106: 0 | AO106: 0 | AP106: 0 | AQ106: 1 | AR106: 1 | AS106: 1 | AT106: 0.5 | AU106: 0 | AV106: 1 | AW106: 0 | AX106: 0 | AY106: 1 | AZ106: 1 | BA106: 1 | BB106: 0 | BC106: 0 | BD106: 0 | BE106: 0 | BF106: 0 | BG106: 0.5 | BH106: 0.5 | BI106: 0 | BJ106: 0.5 | BK106: 0.5 | BL106: 0 | BM106: 0 | BN106: 0 | BO106: 0 | BP106: =IF(BP104,IF(BP105=2,1,0)+IF(BP105=4,0.5,0)+IF(BP105=6,1,0)+IF(BP105=11,0.5,0)+IF(BP105=13,0,0)+IF(BP105=20,1,0),0) -> 0 | BQ106: 0.5 | BR106: 0 | BS106: 0 | BT106: 0.5 | BU106: 0 | BV106: 0 | BW106: 0 | BX106: 0 | BY106: 0 | BZ106: 0 | CA106: 0 | CB106: 0 | CC106: 1 | CD106: 0 | CE106: 0 | CF106: 0 | CG106: 0.5 | CH106: 0 | CI106: 0 | CJ106: 0 | CK106: 0 | CL106: 0 | CM106: 0 | CN106: 0 | CO106: 0 | CP106: 0 | CQ106: 0 | CR106: 0 | CS106: 0 | CT106: 0 | CU106: 0 | CV106: 0 | CW106: 0 | CX106: =SUM(C106:CW106) -> 15.5
B107: Sam Goldstein | C107: =(IF(C38="",0,IF(C$25="",0,1))) -> 0 | D107: =(IF(D38="",0,IF(D$25="",0,1))) -> 0 | E107: 0 | F107: 0 | G107: 0 | H107: 0 | I107: 0 | J107: 0 | K107: 0 | L107: 0 | M107: 0 | N107: 0 | O107: 0 | P107: 0 | Q107: 0 | R107: 0 | S107: 0 | T107: 0 | U107: 0 | V107: 0 | W107: 0 | X107: 0 | Y107: 0 | Z107: 1 | AA107: 0 | AB107: 0 | AC107: 0 | AD107: 0 | AE107: 0 | AF107: 0 | AG107: 0 | AH107: 0 | AI107: 0 | AJ107: 0 | AK107: 0 | AL107: 0 | AM107: 0 | AN107: 0 | AO107: 0 | AP107: 0 | AQ107: 0 | AR107: 0 | AS107: 0 | AT107: 0 | AU107: 0 | AV107: 0 | AW107: 0 | AX107: 0 | AY107: 0 | AZ107: 0 | BA107: 0 | BB107: 0 | BC107: 0 | BD107: 0 | BE107: 0 | BF107: 0 | BG107: 1 | BH107: 1 | BI107: 0 | BJ107: 1 | BK107: 1 | BL107: 1 | BM107: 0 | BN107: 0 | BO107: 0 | BP107: =(IF(BP38="",0,IF(BP$25="",0,1))) -> 0 | BQ107: 1 | BR107: 1 | BS107: 0 | BT107: 0 | BU107: 0 | BV107: 1 | BW107: 1 | BX107: 0 | BY107: 0 | BZ107: 0 | CA107: 0 | CB107: 0 | CC107: 0 | CD107: 0 | CE107: 0 | CF107: 0 | CG107: 0 | CH107: 0 | CI107: 0 | CJ107: 0 | CK107: 0 | CL107: 1 | CM107: 1 | CN107: 0 | CO107: 0 | CP107: 0 | CQ107: 0 | CR107: 0 | CS107: 0 | CT107: 0 | CU107: 0 | CV107: 0 | CW107: 0 | CX107: =SUM(C107:CW107) -> 12
C108: =COLORINDEXOFONECELL(C38,TRUE,1)+COLORINDEXOFONECELL(C$25,TRUE,1) -> 2 | D108: 13 | E108: 11 | F108: 4 | G108: 11 | H108: 4 | I108: 4 | J108: 11 | K108: 11 | L108: 20 | M108: 4 | N108: 11 | O108: 11 | P108: 11 | Q108: 13 | R108: 11 | S108: 11 | T108: 11 | U108: 2 | V108: 11 | W108: 2 | X108: 2 | Y108: 11 | Z108: 13 | AA108: 11 | AB108: 11 | AC108: 11 | AD108: 2 | AE108: 2 | AF108: 4 | AG108: 2 | AH108: 4 | AI108: =COLORINDEXOFONECELL(AI38,TRUE,1)+COLORINDEXOFONECELL(AI$25,TRUE,1) -> 11 | AJ108: 4 | AK108: 2 | AL108: 2 | AM108: 4 | AN108: 4 | AO108: 4 | AP108: 4 | AQ108: 4 | AR108: 11 | AS108: 11 | AT108: 4 | AU108: 2 | AV108: 11 | AW108: 2 | AX108: 4 | AY108: 11 | AZ108: 11 | BA108: 4 | BB108: 4 | BC108: 4 | BD108: 4 | BE108: 2 | BF108: 11 | BG108: 4 | BH108: 11 | BI108: 11 | BJ108: 11 | BK108: 4 | BL108: 13 | BM108: 11 | BN108: 11 | BO108: =COLORINDEXOFONECELL(BO38,TRUE,1)+COLORINDEXOFONECELL(BO$25,TRUE,1) -> 11 | BP108: 11 | BQ108: 11 | BR108: 11 | BS108: 2 | BT108: 2 | BU108: 2 | BV108: 4 | BW108: 20 | BX108: 2 | BY108: 4 | BZ108: 2 | CA108: 2 | CB108: 2 | CC108: 11 | CD108: 2 | CE108: 2 | CF108: 4 | CG108: 2 | CH108: 2 | CI108: 2 | CJ108: 2 | CK108: 11 | CL108: 13 | CM108: 13 | CN108: 11 | CO108: 11 | CP108: 4 | CQ108: 4 | CR108: 2 | CS108: 2 | CT108: 2 | CU108: 4 | CV108: 4 | CW108: 11 | CY108: =CX109/CX107 -> 0.375
C109: =IF(C107,IF(C108=2,1,0)+IF(C108=4,0.5,0)+IF(C108=6,1,0)+IF(C108=11,0.5,0)+IF(C108=13,0,0)+IF(C108=20,1,0),0) -> 0 | D109: =IF(D107,IF(D108=2,1,0)+IF(D108=4,0.5,0)+IF(D108=6,1,0)+IF(D108=11,0.5,0)+IF(D108=13,0,0)+IF(D108=20,1,0),0) -> 0 | E109: 0 | F109: 0 | G109: 0 | H109: 0 | I109: 0 | J109: 0 | K109: 0 | L109: 0 | M109: 0 | N109: 0 | O109: 0 | P109: 0 | Q109: 0 | R109: 0 | S109: 0 | T109: 0 | U109: 0 | V109: 0 | W109: 0 | X109: 0 | Y109: 0 | Z109: 0 | AA109: 0 | AB109: 0 | AC109: 0 | AD109: 0 | AE109: 0 | AF109: 0 | AG109: 0 | AH109: 0 | AI109: 0 | AJ109: 0 | AK109: 0 | AL109: 0 | AM109: 0 | AN109: 0 | AO109: 0 | AP109: 0 | AQ109: 0 | AR109: 0 | AS109: 0 | AT109: 0 | AU109: 0 | AV109: 0 | AW109: 0 | AX109: 0 | AY109: 0 | AZ109: 0 | BA109: 0 | BB109: 0 | BC109: 0 | BD109: 0 | BE109: 0 | BF109: 0 | BG109: 0.5 | BH109: 0.5 | BI109: 0 | BJ109: 0.5 | BK109: 0.5 | BL109: 0 | BM109: 0 | BN109: 0 | BO109: 0 | BP109: =IF(BP107,IF(BP108=2,1,0)+IF(BP108=4,0.5,0)+IF(BP108=6,1,0)+IF(BP108=11,0.5,0)+IF(BP108=13,0,0)+IF(BP108=20,1,0),0) -> 0 | BQ109: 0.5 | BR109: 0.5 | BS109: 0 | BT109: 0 | BU109: 0 | BV109: 0.5 | BW109: 1 | BX109: 0 | BY109: 0 | BZ109: 0 | CA109: 0 | CB109: 0 | CC109: 0 | CD109: 0 | CE109: 0 | CF109: 0 | CG109: 0 | CH109: 0 | CI109: 0 | CJ109: 0 | CK109: 0 | CL109: 0 | CM109: 0 | CN109: 0 | CO109: 0 | CP109: 0 | CQ109: 0 | CR109: 0 | CS109: 0 | CT109: 0 | CU109: 0 | CV109: 0 | CW109: 0 | CX109: =SUM(C109:CW109) -> 4.5
B110: Norm Olsen | C110: =(IF(C38="",0,IF(C$26="",0,1))) -> 0 | D110: =(IF(D38="",0,IF(D$26="",0,1))) -> 0 | E110: 0 | F110: 0 | G110: 0 | H110: 0 | I110: 0 | J110: 0 | K110: 0 | L110: 1 | M110: 0 | N110: 0 | O110: 0 | P110: 0 | Q110: 1 | R110: 0 | S110: 0 | T110: 0 | U110: 0 | V110: 1 | W110: 0 | X110: 0 | Y110: 1 | Z110: 1 | AA110: 0 | AB110: 0 | AC110: 1 | AD110: 0 | AE110: 0 | AF110: 0 | AG110: 0 | AH110: 1 | AI110: 1 | AJ110: 1 | AK110: 0 | AL110: 0 | AM110: 1 | AN110: 1 | AO110: 1 | AP110: 1 | AQ110: 1 | AR110: 1 | AS110: 1 | AT110: 1 | AU110: 0 | AV110: 1 | AW110: 0 | AX110: 1 | AY110: 1 | AZ110: 1 | BA110: 1 | BB110: 1 | BC110: 1 | BD110: 1 | BE110: 0 | BF110: 0 | BG110: 1 | BH110: 1 | BI110: 0 | BJ110: 1 | BK110: 1 | BL110: 1 | BM110: 0 | BN110: 0 | BO110: 0 | BP110: =(IF(BP38="",0,IF(BP$26="",0,1))) -> 0 | BQ110: 0 | BR110: 1 | BS110: 0 | BT110: 1 | BU110: 0 | BV110: 1 | BW110: 1 | BX110: 0 | BY110: 1 | BZ110: 0 | CA110: 0 | CB110: 0 | CC110: 1 | CD110: 0 | CE110: 0 | CF110: 1 | CG110: 1 | CH110: 0 | CI110: 0 | CJ110: 0 | CK110: 1 | CL110: 1 | CM110: 1 | CN110: 1 | CO110: 1 | CP110: 1 | CQ110: 1 | CR110: 0 | CS110: 0 | CT110: 0 | CU110: 0 | CV110: 1 | CW110: 1 | CX110: =SUM(C110:CW110) -> 47
C111: =COLORINDEXOFONECELL(C38,TRUE,1)+COLORINDEXOFONECELL(C$26,TRUE,1) -> 11 | D111: 4 | E111: 2 | F111: 2 | G111: 2 | H111: 2 | I111: 2 | J111: 11 | K111: 11 | L111: 20 | M111: 4 | N111: 11 | O111: 4 | P111: 4 | Q111: 13 | R111: 11 | S111: 11 | T111: 4 | U111: 4 | V111: 11 | W111: 4 | X111: 11 | Y111: 13 | Z111: 13 | AA111: 4 | AB111: 4 | AC111: 20 | AD111: 11 | AE111: 4 | AF111: 4 | AG111: 2 | AH111: 6 | AI111: =COLORINDEXOFONECELL(AI38,TRUE,1)+COLORINDEXOFONECELL(AI$26,TRUE,1) -> 13 | AJ111: 13 | AK111: 4 | AL111: 11 | AM111: 13 | AN111: 13 | AO111: 13 | AP111: 13 | AQ111: 13 | AR111: 11 | AS111: 20 | AT111: 13 | AU111: 11 | AV111: 13 | AW111: 11 | AX111: 13 | AY111: 13 | AZ111: 13 | BA111: 13 | BB111: 13 | BC111: 6 | BD111: 13 | BE111: 2 | BF111: 11 | BG111: 11 | BH111: 4 | BI111: 11 | BJ111: 11 | BK111: 4 | BL111: 13 | BM111: 11 | BN111: 11 | BO111: =COLORINDEXOFONECELL(BO38,TRUE,1)+COLORINDEXOFONECELL(BO$26,TRUE,1) -> 2 | BP111: 4 | BQ111: 2 | BR111: 11 | BS111: 11 | BT111: 4 | BU111: 4 | BV111: 4 | BW111: 20 | BX111: 11 | BY111: 6 | BZ111: 4 | CA111: 2 | CB111: 11 | CC111: 13 | CD111: 2 | CE111: 4 | CF111: 13 | CG111: 4 | CH111: 11 | CI111: 4 | CJ111: 11 | CK111: 13 | CL111: 20 | CM111: 20 | CN111: 13 | CO111: 13 | CP111: 13 | CQ111: 13 | CR111: 2 | CS111: 11 | CT111: 4 | CU111: 4 | CV111: 6 | CW111: 13 | CY111: =CX112/CX110 -> 0.3191489362
C112: =IF(C110,IF(C111=2,1,0)+IF(C111=4,0.5,0)+IF(C111=6,1,0)+IF(C111=11,0.5,0)+IF(C111=13,0,0)+IF(C111=20,1,0),0) -> 0 | D112: =IF(D110,IF(D111=2,1,0)+IF(D111=4,0.5,0)+IF(D111=6,1,0)+IF(D111=11,0.5,0)+IF(D111=13,0,0)+IF(D111=20,1,0),0) -> 0 | E112: 0 | F112: 0 | G112: 0 | H112: 0 | I112: 0 | J112: 0 | K112: 0 | L112: 1 | M112: 0 | N112: 0 | O112: 0 | P112: 0 | Q112: 0 | R112: 0 | S112: 0 | T112: 0 | U112: 0 | V112: 0.5 | W112: 0 | X112: 0 | Y112: 0 | Z112: 0 | AA112: 0 | AB112: 0 | AC112: 1 | AD112: 0 | AE112: 0 | AF112: 0 | AG112: 0 | AH112: 1 | AI112: 0 | AJ112: 0 | AK112: 0 | AL112: 0 | AM112: 0 | AN112: 0 | AO112: 0 | AP112: 0 | AQ112: 0 | AR112: 0.5 | AS112: 1 | AT112: 0 | AU112: 0 | AV112: 0 | AW112: 0 | AX112: 0 | AY112: 0 | AZ112: 0 | BA112: 0 | BB112: 0 | BC112: 1 | BD112: 0 | BE112: 0 | BF112: 0 | BG112: 0.5 | BH112: 0.5 | BI112: 0 | BJ112: 0.5 | BK112: 0.5 | BL112: 0 | BM112: 0 | BN112: 0 | BO112: 0 | BP112: =IF(BP110,IF(BP111=2,1,0)+IF(BP111=4,0.5,0)+IF(BP111=6,1,0)+IF(BP111=11,0.5,0)+IF(BP111=13,0,0)+IF(BP111=20,1,0),0) -> 0 | BQ112: 0 | BR112: 0.5 | BS112: 0 | BT112: 0.5 | BU112: 0 | BV112: 0.5 | BW112: 1 | BX112: 0 | BY112: 1 | BZ112: 0 | CA112: 0 | CB112: 0 | CC112: 0 | CD112: 0 | CE112: 0 | CF112: 0 | CG112: 0.5 | CH112: 0 | CI112: 0 | CJ112: 0 | CK112: 0 | CL112: 1 | CM112: 1 | CN112: 0 | CO112: 0 | CP112: 0 | CQ112: 0 | CR112: 0 | CS112: 0 | CT112: 0 | CU112: 0 | CV112: 1 | CW112: 0 | CX112: =SUM(C112:CW112) -> 15
B113: Don Willis | C113: =(IF(C38="",0,IF(C$27="",0,1))) -> 0 | D113: =(IF(D38="",0,IF(D$27="",0,1))) -> 1 | E113: 0 | F113: 0 | G113: 0 | H113: 0 | I113: 0 | J113: 0 | K113: 0 | L113: 0 | M113: 0 | N113: 0 | O113: 0 | P113: 0 | Q113: 0 | R113: 0 | S113: 0 | T113: 0 | U113: 0 | V113: 0 | W113: 0 | X113: 0 | Y113: 0 | Z113: 0 | AA113: 0 | AB113: 0 | AC113: 0 | AD113: 0 | AE113: 0 | AF113: 0 | AG113: 0 | AH113: 0 | AI113: 0 | AJ113: 0 | AK113: 0 | AL113: 0 | AM113: 0 | AN113: 0 | AO113: 0 | AP113: 0 | AQ113: 0 | AR113: 0 | AS113: 0 | AT113: 0 | AU113: 0 | AV113: 0 | AW113: 0 | AX113: 0 | AY113: 0 | AZ113: 0 | BA113: 0 | BB113: 0 | BC113: 0 | BD113: 0 | BE113: 0 | BF113: 0 | BG113: 0 | BH113: 0 | BI113: 0 | BJ113: 0 | BK113: 0 | BL113: 0 | BM113: 0 | BN113: 0 | BO113: 0 | BP113: =(IF(BP38="",0,IF(BP$27="",0,1))) -> 0 | BQ113: 0 | BR113: 0 | BS113: 0 | BT113: 0 | BU113: 0 | BV113: 0 | BW113: 0 | BX113: 0 | BY113: 0 | BZ113: 0 | CA113: 0 | CB113: 0 | CC113: 0 | CD113: 0 | CE113: 0 | CF113: 0 | CG113: 0 | CH113: 0 | CI113: 0 | CJ113: 0 | CK113: 0 | CL113: 0 | CM113: 0 | CN113: 0 | CO113: 0 | CP113: 0 | CQ113: 0 | CR113: 0 | CS113: 0 | CT113: 0 | CU113: 0 | CV113: 0 | CW113: 0 | CX113: =SUM(C113:CW113) -> 1
C114: =COLORINDEXOFONECELL(C38,TRUE,1)+COLORINDEXOFONECELL(C$27,TRUE,1) -> 11 | D114: 13 | E114: 4 | F114: 4 | G114: 4 | H114: 11 | I114: 4 | J114: 2 | K114: 2 | L114: 11 | M114: 2 | N114: 2 | O114: 2 | P114: 2 | Q114: 11 | R114: 2 | S114: 2 | T114: 2 | U114: 2 | V114: 11 | W114: 2 | X114: 2 | Y114: 11 | Z114: 11 | AA114: 2 | AB114: 2 | AC114: 11 | AD114: 2 | AE114: 2 | AF114: 4 | AG114: 2 | AH114: 4 | AI114: =COLORINDEXOFONECELL(AI38,TRUE,1)+COLORINDEXOFONECELL(AI$27,TRUE,1) -> 11 | AJ114: 4 | AK114: 2 | AL114: 2 | AM114: 4 | AN114: 4 | AO114: 4 | AP114: 4 | AQ114: 4 | AR114: 11 | AS114: 11 | AT114: 4 | AU114: 2 | AV114: 11 | AW114: 2 | AX114: 4 | AY114: 11 | AZ114: 11 | BA114: 4 | BB114: 4 | BC114: 4 | BD114: 4 | BE114: 2 | BF114: 2 | BG114: 2 | BH114: 2 | BI114: 2 | BJ114: 2 | BK114: 2 | BL114: 4 | BM114: 2 | BN114: 2 | BO114: =COLORINDEXOFONECELL(BO38,TRUE,1)+COLORINDEXOFONECELL(BO$27,TRUE,1) -> 2 | BP114: 2 | BQ114: 2 | BR114: 2 | BS114: 2 | BT114: 2 | BU114: 2 | BV114: 2 | BW114: 11 | BX114: 2 | BY114: 4 | BZ114: 2 | CA114: 2 | CB114: 2 | CC114: 11 | CD114: 2 | CE114: 2 | CF114: 4 | CG114: 2 | CH114: 2 | CI114: 2 | CJ114: 2 | CK114: 11 | CL114: 11 | CM114: 11 | CN114: 11 | CO114: 11 | CP114: 4 | CQ114: 4 | CR114: 2 | CS114: 2 | CT114: 2 | CU114: 4 | CV114: 4 | CW114: 11 | CY114: =CX115/CX113 -> 0
C115: =IF(C113,IF(C114=2,1,0)+IF(C114=4,0.5,0)+IF(C114=6,1,0)+IF(C114=11,0.5,0)+IF(C114=13,0,0)+IF(C114=20,1,0),0) -> 0 | D115: =IF(D113,IF(D114=2,1,0)+IF(D114=4,0.5,0)+IF(D114=6,1,0)+IF(D114=11,0.5,0)+IF(D114=13,0,0)+IF(D114=20,1,0),0) -> 0 | E115: 0 | F115: 0 | G115: 0 | H115: 0 | I115: 0 | J115: 0 | K115: 0 | L115: 0 | M115: 0 | N115: 0 | O115: 0 | P115: 0 | Q115: 0 | R115: 0 | S115: 0 | T115: 0 | U115: 0 | V115: 0 | W115: 0 | X115: 0 | Y115: 0 | Z115: 0 | AA115: 0 | AB115: 0 | AC115: 0 | AD115: 0 | AE115: 0 | AF115: 0 | AG115: 0 | AH115: 0 | AI115: 0 | AJ115: 0 | AK115: 0 | AL115: 0 | AM115: 0 | AN115: 0 | AO115: 0 | AP115: 0 | AQ115: 0 | AR115: 0 | AS115: 0 | AT115: 0 | AU115: 0 | AV115: 0 | AW115: 0 | AX115: 0 | AY115: 0 | AZ115: 0 | BA115: 0 | BB115: 0 | BC115: 0 | BD115: 0 | BE115: 0 | BF115: 0 | BG115: 0 | BH115: 0 | BI115: 0 | BJ115: 0 | BK115: 0 | BL115: 0 | BM115: 0 | BN115: 0 | BO115: 0 | BP115: =IF(BP113,IF(BP114=2,1,0)+IF(BP114=4,0.5,0)+IF(BP114=6,1,0)+IF(BP114=11,0.5,0)+IF(BP114=13,0,0)+IF(BP114=20,1,0),0) -> 0 | BQ115: 0 | BR115: 0 | BS115: 0 | BT115: 0 | BU115: 0 | BV115: 0 | BW115: 0 | BX115: 0 | BY115: 0 | BZ115: 0 | CA115: 0 | CB115: 0 | CC115: 0 | CD115: 0 | CE115: 0 | CF115: 0 | CG115: 0 | CH115: 0 | CI115: 0 | CJ115: 0 | CK115: 0 | CL115: 0 | CM115: 0 | CN115: 0 | CO115: 0 | CP115: 0 | CQ115: 0 | CR115: 0 | CS115: 0 | CT115: 0 | CU115: 0 | CV115: 0 | CW115: 0 | CX115: =SUM(C115:CW115) -> 0
B116: Dr. Jim Lark | C116: =(IF(C38="",0,IF(C$28="",0,1))) -> 0 | D116: =(IF(D38="",0,IF(D$28="",0,1))) -> 1 | E116: 0 | F116: 0 | G116: 0 | H116: 0 | I116: 0 | J116: 0 | K116: 0 | L116: 1 | M116: 0 | N116: 0 | O116: 0 | P116: 0 | Q116: 1 | R116: 0 | S116: 0 | T116: 0 | U116: 0 | V116: 1 | W116: 0 | X116: 0 | Y116: 1 | Z116: 1 | AA116: 0 | AB116: 0 | AC116: 1 | AD116: 0 | AE116: 0 | AF116: 1 | AG116: 0 | AH116: 1 | AI116: 1 | AJ116: 1 | AK116: 0 | AL116: 0 | AM116: 1 | AN116: 1 | AO116: 1 | AP116: 1 | AQ116: 1 | AR116: 1 | AS116: 1 | AT116: 1 | AU116: 0 | AV116: 1 | AW116: 0 | AX116: 1 | AY116: 1 | AZ116: 1 | BA116: 1 | BB116: 1 | BC116: 1 | BD116: 1 | BE116: 0 | BF116: 0 | BG116: 1 | BH116: 1 | BI116: 0 | BJ116: 1 | BK116: 1 | BL116: 1 | BM116: 0 | BN116: 0 | BO116: 0 | BP116: =(IF(BP38="",0,IF(BP$28="",0,1))) -> 0 | BQ116: 1 | BR116: 1 | BS116: 0 | BT116: 1 | BU116: 0 | BV116: 1 | BW116: 1 | BX116: 0 | BY116: 1 | BZ116: 0 | CA116: 0 | CB116: 0 | CC116: 1 | CD116: 0 | CE116: 0 | CF116: 1 | CG116: 1 | CH116: 0 | CI116: 0 | CJ116: 0 | CK116: 1 | CL116: 1 | CM116: 1 | CN116: 0 | CO116: 1 | CP116: 1 | CQ116: 1 | CR116: 0 | CS116: 0 | CT116: 0 | CU116: 1 | CV116: 1 | CW116: 1 | CX116: =SUM(C116:CW116) -> 50
C117: =COLORINDEXOFONECELL(C38,TRUE,1)+COLORINDEXOFONECELL(C$28,TRUE,1) -> 11 | D117: 6 | E117: 11 | F117: 11 | G117: 4 | H117: 4 | I117: 4 | J117: 11 | K117: 11 | L117: 20 | M117: 4 | N117: 11 | O117: 11 | P117: 11 | Q117: 20 | R117: 11 | S117: 2 | T117: 11 | U117: 4 | V117: 20 | W117: 4 | X117: 4 | Y117: 20 | Z117: 20 | AA117: 4 | AB117: 11 | AC117: 20 | AD117: 11 | AE117: 11 | AF117: 6 | AG117: 4 | AH117: 13 | AI117: =COLORINDEXOFONECELL(AI38,TRUE,1)+COLORINDEXOFONECELL(AI$28,TRUE,1) -> 20 | AJ117: 6 | AK117: 11 | AL117: 11 | AM117: 6 | AN117: 6 | AO117: 6 | AP117: 6 | AQ117: 13 | AR117: 20 | AS117: 11 | AT117: 6 | AU117: 11 | AV117: 20 | AW117: 11 | AX117: 13 | AY117: 20 | AZ117: 20 | BA117: 13 | BB117: 6 | BC117: 4 | BD117: 6 | BE117: 2 | BF117: 11 | BG117: 2 | BH117: 4 | BI117: 11 | BJ117: 11 | BK117: 4 | BL117: 13 | BM117: 11 | BN117: 11 | BO117: =COLORINDEXOFONECELL(BO38,TRUE,1)+COLORINDEXOFONECELL(BO$28,TRUE,1) -> 11 | BP117: 11 | BQ117: 11 | BR117: 11 | BS117: 11 | BT117: 4 | BU117: 11 | BV117: 4 | BW117: 11 | BX117: 11 | BY117: 6 | BZ117: 4 | CA117: 2 | CB117: 2 | CC117: 20 | CD117: 2 | CE117: 11 | CF117: 6 | CG117: 11 | CH117: 11 | CI117: 11 | CJ117: 11 | CK117: 13 | CL117: 20 | CM117: 20 | CN117: 11 | CO117: 20 | CP117: 13 | CQ117: 6 | CR117: 11 | CS117: 4 | CT117: 4 | CU117: 6 | CV117: 6 | CW117: 13 | CY117: =CX118/CX116 -> 0.73
C118: =IF(C116,IF(C117=2,1,0)+IF(C117=4,0.5,0)+IF(C117=6,1,0)+IF(C117=11,0.5,0)+IF(C117=13,0,0)+IF(C117=20,1,0),0) -> 0 | D118: =IF(D116,IF(D117=2,1,0)+IF(D117=4,0.5,0)+IF(D117=6,1,0)+IF(D117=11,0.5,0)+IF(D117=13,0,0)+IF(D117=20,1,0),0) -> 1 | E118: 0 | F118: 0 | G118: 0 | H118: 0 | I118: 0 | J118: 0 | K118: 0 | L118: 1 | M118: 0 | N118: 0 | O118: 0 | P118: 0 | Q118: 1 | R118: 0 | S118: 0 | T118: 0 | U118: 0 | V118: 1 | W118: 0 | X118: 0 | Y118: 1 | Z118: 1 | AA118: 0 | AB118: 0 | AC118: 1 | AD118: 0 | AE118: 0 | AF118: 1 | AG118: 0 | AH118: 0 | AI118: 1 | AJ118: 1 | AK118: 0 | AL118: 0 | AM118: 1 | AN118: 1 | AO118: 1 | AP118: 1 | AQ118: 0 | AR118: 1 | AS118: 0.5 | AT118: 1 | AU118: 0 | AV118: 1 | AW118: 0 | AX118: 0 | AY118: 1 | AZ118: 1 | BA118: 0 | BB118: 1 | BC118: 0.5 | BD118: 1 | BE118: 0 | BF118: 0 | BG118: 1 | BH118: 0.5 | BI118: 0 | BJ118: 0.5 | BK118: 0.5 | BL118: 0 | BM118: 0 | BN118: 0 | BO118: 0 | BP118: =IF(BP116,IF(BP117=2,1,0)+IF(BP117=4,0.5,0)+IF(BP117=6,1,0)+IF(BP117=11,0.5,0)+IF(BP117=13,0,0)+IF(BP117=20,1,0),0) -> 0 | BQ118: 0.5 | BR118: 0.5 | BS118: 0 | BT118: 0.5 | BU118: 0 | BV118: 0.5 | BW118: 0.5 | BX118: 0 | BY118: 1 | BZ118: 0 | CA118: 0 | CB118: 0 | CC118: 1 | CD118: 0 | CE118: 0 | CF118: 1 | CG118: 0.5 | CH118: 0 | CI118: 0 | CJ118: 0 | CK118: 0 | CL118: 1 | CM118: 1 | CN118: 0 | CO118: 1 | CP118: 0 | CQ118: 1 | CR118: 0 | CS118: 0 | CT118: 0 | CU118: 1 | CV118: 1 | CW118: 0 | CX118: =SUM(C118:CW118) -> 36.5
B119: Dan Karlan | C119: =(IF(C38="",0,IF(C$29="",0,1))) -> 0 | D119: =(IF(D38="",0,IF(D$29="",0,1))) -> 0 | E119: 0 | F119: 0 | G119: 0 | H119: 0 | I119: 0 | J119: 0 | K119: 0 | L119: 1 | M119: 0 | N119: 0 | O119: 0 | P119: 0 | Q119: 1 | R119: 0 | S119: 0 | T119: 0 | U119: 0 | V119: 1 | W119: 0 | X119: 0 | Y119: 1 | Z119: 1 | AA119: 0 | AB119: 0 | AC119: 1 | AD119: 0 | AE119: 0 | AF119: 1 | AG119: 0 | AH119: 1 | AI119: 1 | AJ119: 1 | AK119: 0 | AL119: 0 | AM119: 1 | AN119: 1 | AO119: 1 | AP119: 1 | AQ119: 1 | AR119: 1 | AS119: 1 | AT119: 1 | AU119: 0 | AV119: 0 | AW119: 0 | AX119: 0 | AY119: 0 | AZ119: 0 | BA119: 0 | BB119: 0 | BC119: 0 | BD119: 0 | BE119: 0 | BF119: 0 | BG119: =(IF(BG38="",0,IF(BG$29="",0,1))) -> 0 | BH119: 1 | BI119: 0 | BJ119: 1 | BK119: 0 | BL119: 0 | BM119: 0 | BN119: 0 | BO119: 0 | BP119: =(IF(BP38="",0,IF(BP$29="",0,1))) -> 0 | BQ119: 1 | BR119: 1 | BS119: 0 | BT119: 0 | BU119: 0 | BV119: 0 | BW119: 1 | BX119: 0 | BY119: 1 | BZ119: 0 | CA119: 0 | CB119: 0 | CC119: 1 | CD119: 0 | CE119: 0 | CF119: 1 | CG119: 1 | CH119: 0 | CI119: 0 | CJ119: 0 | CK119: 1 | CL119: 0 | CM119: 0 | CN119: 1 | CO119: 1 | CP119: 0 | CQ119: 0 | CR119: 0 | CS119: 0 | CT119: 0 | CU119: 1 | CV119: 1 | CW119: 1 | CX119: =SUM(C119:CW119) -> 33
C120: =COLORINDEXOFONECELL(C38,TRUE,1)+COLORINDEXOFONECELL(C$29,TRUE,1) -> 11 | D120: 4 | E120: 2 | F120: 2 | G120: 2 | H120: 2 | I120: 2 | J120: 11 | K120: 11 | L120: 20 | M120: 4 | N120: 11 | O120: 11 | P120: 11 | Q120: 20 | R120: 11 | S120: 11 | T120: 11 | U120: 4 | V120: 20 | W120: 11 | X120: 4 | Y120: 13 | Z120: 20 | AA120: 11 | AB120: 11 | AC120: 20 | AD120: 4 | AE120: 11 | AF120: 6 | AG120: 11 | AH120: 13 | AI120: =COLORINDEXOFONECELL(AI38,TRUE,1)+COLORINDEXOFONECELL(AI$29,TRUE,1) -> 20 | AJ120: 13 | AK120: 11 | AL120: 11 | AM120: 4 | AN120: 6 | AO120: 6 | AP120: 6 | AQ120: 6 | AR120: 20 | AS120: 20 | AT120: 4 | AU120: 11 | AV120: 11 | AW120: 2 | AX120: 4 | AY120: 11 | AZ120: 11 | BA120: 4 | BB120: 4 | BC120: 4 | BD120: 4 | BE120: 11 | BF120: 11 | BG120: 2 | BH120: 4 | BI120: 11 | BJ120: 11 | BK120: 2 | BL120: 4 | BM120: 11 | BN120: 11 | BO120: =COLORINDEXOFONECELL(BO38,TRUE,1)+COLORINDEXOFONECELL(BO$29,TRUE,1) -> 11 | BP120: 11 | BQ120: 11 | BR120: 11 | BS120: 11 | BT120: 2 | BU120: 11 | BV120: 2 | BW120: 20 | BX120: 11 | BY120: 6 | BZ120: 11 | CA120: 11 | CB120: 2 | CC120: 20 | CD120: 11 | CE120: 11 | CF120: 13 | CG120: 11 | CH120: 11 | CI120: 11 | CJ120: 11 | CK120: 20 | CL120: 11 | CM120: 11 | CN120: 20 | CO120: 13 | CP120: 4 | CQ120: 4 | CR120: 2 | CS120: 2 | CT120: 4 | CU120: 6 | CV120: 6 | CW120: 20 | CY120: =CX121/CX119 -> 0.7424242424
C121: =IF(C119,IF(C120=2,1,0)+IF(C120=4,0.5,0)+IF(C120=6,1,0)+IF(C120=11,0.5,0)+IF(C120=13,0,0)+IF(C120=20,1,0),0) -> 0 | D121: =IF(D119,IF(D120=2,1,0)+IF(D120=4,0.5,0)+IF(D120=6,1,0)+IF(D120=11,0.5,0)+IF(D120=13,0,0)+IF(D120=20,1,0),0) -> 0 | E121: 0 | F121: 0 | G121: 0 | H121: 0 | I121: 0 | J121: 0 | K121: 0 | L121: 1 | M121: 0 | N121: 0 | O121: 0 | P121: 0 | Q121: 1 | R121: 0 | S121: 0 | T121: 0 | U121: 0 | V121: 1 | W121: 0 | X121: 0 | Y121: 0 | Z121: 1 | AA121: 0 | AB121: 0 | AC121: 1 | AD121: 0 | AE121: 0 | AF121: 1 | AG121: 0 | AH121: 0 | AI121: 1 | AJ121: 0 | AK121: 0 | AL121: 0 | AM121: 0.5 | AN121: 1 | AO121: 1 | AP121: 1 | AQ121: 1 | AR121: 1 | AS121: 1 | AT121: 0.5 | AU121: 0 | AV121: 0 | AW121: 0 | AX121: 0 | AY121: 0 | AZ121: 0 | BA121: 0 | BB121: 0 | BC121: 0 | BD121: 0 | BE121: 0 | BF121: 0 | BG121: 0 | BH121: 0.5 | BI121: 0 | BJ121: 0.5 | BK121: 0 | BL121: 0 | BM121: 0 | BN121: 0 | BO121: 0 | BP121: =IF(BP119,IF(BP120=2,1,0)+IF(BP120=4,0.5,0)+IF(BP120=6,1,0)+IF(BP120=11,0.5,0)+IF(BP120=13,0,0)+IF(BP120=20,1,0),0) -> 0 | BQ121: 0.5 | BR121: 0.5 | BS121: 0 | BT121: 0 | BU121: 0 | BV121: 0 | BW121: 1 | BX121: 0 | BY121: 1 | BZ121: 0 | CA121: 0 | CB121: 0 | CC121: 1 | CD121: 0 | CE121: 0 | CF121: 0 | CG121: 0.5 | CH121: 0 | CI121: 0 | CJ121: 0 | CK121: 1 | CL121: 0 | CM121: 0 | CN121: 1 | CO121: 0 | CP121: 0 | CQ121: 0 | CR121: 0 | CS121: 0 | CT121: 0 | CU121: 1 | CV121: 1 | CW121: 1 | CX121: =SUM(C121:CW121) -> 24.5
B122: Audrey Capozzi | C122: =(IF(C38="",0,IF(C$30="",0,1))) -> 0 | D122: =(IF(D38="",0,IF(D$30="",0,1))) -> 0 | E122: 0 | F122: 0 | G122: 0 | H122: 0 | I122: 0 | J122: 0 | K122: 0 | L122: 0 | M122: 0 | N122: 0 | O122: 0 | P122: 0 | Q122: 0 | R122: 0 | S122: 0 | T122: 0 | U122: 0 | V122: 0 | W122: 0 | X122: 0 | Y122: 0 | Z122: 0 | AA122: 0 | AB122: 0 | AC122: 0 | AD122: 0 | AE122: 0 | AF122: 0 | AG122: 0 | AH122: 0 | AI122: 0 | AJ122: 0 | AK122: 0 | AL122: 0 | AM122: 0 | AN122: 0 | AO122: 0 | AP122: 0 | AQ122: 0 | AR122: 0 | AS122: 0 | AT122: 0 | AU122: 0 | AV122: 1 | AW122: 0 | AX122: 1 | AY122: 1 | AZ122: 1 | BA122: 1 | BB122: 1 | BC122: 1 | BD122: =(IF(BD38="",0,IF(BD$30="",0,1))) -> 1 | BE122: 0 | BF122: 0 | BG122: 0 | BH122: 0 | BI122: 0 | BJ122: 0 | BK122: 0 | BL122: =(IF(BL38="",0,IF(BL$30="",0,1))) -> 0 | BM122: 0 | BN122: 0 | BO122: 0 | BP122: 0 | BQ122: 0 | BR122: 0 | BS122: 0 | BT122: 0 | BU122: =(IF(BU38="",0,IF(BU$30="",0,1))) -> 0 | BV122: 0 | BW122: 0 | BX122: 0 | BY122: 0 | BZ122: 0 | CA122: 0 | CB122: 0 | CC122: 0 | CD122: 0 | CE122: 0 | CF122: 0 | CG122: 0 | CH122: 0 | CI122: 0 | CJ122: 0 | CK122: 0 | CL122: 0 | CM122: 0 | CN122: 0 | CO122: 0 | CP122: 1 | CQ122: 1 | CR122: 0 | CS122: 0 | CT122: 0 | CU122: 0 | CV122: 0 | CW122: 0 | CX122: =SUM(C122:CW122) -> 10
C123: =COLORINDEXOFONECELL(C38,TRUE,1)+COLORINDEXOFONECELL(C$30,TRUE,1) -> 11 | D123: 4 | E123: 2 | F123: 2 | G123: 2 | H123: 2 | I123: 2 | J123: 11 | K123: 11 | L123: 20 | M123: 4 | N123: 11 | O123: 11 | P123: 11 | Q123: 20 | R123: 11 | S123: 11 | T123: 11 | U123: 4 | V123: 20 | W123: 11 | X123: 4 | Y123: 13 | Z123: 20 | AA123: 11 | AB123: 11 | AC123: 20 | AD123: 4 | AE123: 11 | AF123: 6 | AG123: 11 | AH123: 13 | AI123: =COLORINDEXOFONECELL(AI38,TRUE,1)+COLORINDEXOFONECELL(AI$30,TRUE,1) -> 20 | AJ123: 13 | AK123: 11 | AL123: 11 | AM123: 4 | AN123: 6 | AO123: 6 | AP123: 6 | AQ123: 6 | AR123: 20 | AS123: 20 | AT123: 4 | AU123: 11 | AV123: 20 | AW123: 11 | AX123: 13 | AY123: 20 | AZ123: 20 | BA123: 6 | BB123: 13 | BC123: 13 | BD123: =COLORINDEXOFONECELL(BD38,TRUE,1)+COLORINDEXOFONECELL(BD$30,TRUE,1) -> 13 | BE123: 2 | BF123: 2 | BG123: 2 | BH123: 2 | BI123: 2 | BJ123: 2 | BK123: 2 | BL123: 4 | BM123: 2 | BN123: 2 | BO123: 2 | BP123: 2 | BQ123: 2 | BR123: 2 | BS123: 2 | BT123: 2 | BU123: =COLORINDEXOFONECELL(BU38,TRUE,1)+COLORINDEXOFONECELL(BU$30,TRUE,1) -> 2 | BV123: 2 | BW123: 11 | BX123: 2 | BY123: 4 | BZ123: 2 | CA123: 2 | CB123: 2 | CC123: 11 | CD123: 2 | CE123: 2 | CF123: 4 | CG123: 2 | CH123: 2 | CI123: 2 | CJ123: 2 | CK123: 11 | CL123: 11 | CM123: 11 | CN123: 11 | CO123: 11 | CP123: 13 | CQ123: 13 | CR123: 2 | CS123: 2 | CT123: 2 | CU123: 4 | CV123: 4 | CW123: 11 | CY123: =CX124/CX122 -> 0.4
C124: =IF(C122,IF(C123=2,1,0)+IF(C123=4,0.5,0)+IF(C123=6,1,0)+IF(C123=11,0.5,0)+IF(C123=13,0,0)+IF(C123=20,1,0),0) -> 0 | D124: =IF(D122,IF(D123=2,1,0)+IF(D123=4,0.5,0)+IF(D123=6,1,0)+IF(D123=11,0.5,0)+IF(D123=13,0,0)+IF(D123=20,1,0),0) -> 0 | E124: 0 | F124: 0 | G124: 0 | H124: 0 | I124: 0 | J124: 0 | K124: 0 | L124: 0 | M124: 0 | N124: 0 | O124: 0 | P124: 0 | Q124: 0 | R124: 0 | S124: 0 | T124: 0 | U124: 0 | V124: 0 | W124: 0 | X124: 0 | Y124: 0 | Z124: 0 | AA124: 0 | AB124: 0 | AC124: 0 | AD124: 0 | AE124: 0 | AF124: 0 | AG124: 0 | AH124: 0 | AI124: 0 | AJ124: 0 | AK124: 0 | AL124: 0 | AM124: 0 | AN124: 0 | AO124: 0 | AP124: 0 | AQ124: 0 | AR124: 0 | AS124: 0 | AT124: 0 | AU124: 0 | AV124: 1 | AW124: 0 | AX124: 0 | AY124: 1 | AZ124: 1 | BA124: 1 | BB124: 0 | BC124: 0 | BD124: =IF(BD122,IF(BD123=2,1,0)+IF(BD123=4,0.5,0)+IF(BD123=6,1,0)+IF(BD123=11,0.5,0)+IF(BD123=13,0,0)+IF(BD123=20,1,0),0) -> 0 | BE124: 0 | BF124: 0 | BG124: 0 | BH124: 0 | BI124: 0 | BJ124: 0 | BK124: 0 | BL124: =IF(BL122,IF(BL123=2,1,0)+IF(BL123=4,0.5,0)+IF(BL123=6,1,0)+IF(BL123=11,0.5,0)+IF(BL123=13,0,0)+IF(BL123=20,1,0),0) -> 0 | BM124: 0 | BN124: 0 | BO124: 0 | BP124: 0 | BQ124: 0 | BR124: 0 | BS124: 0 | BT124: 0 | BU124: =IF(BU122,IF(BU123=2,1,0)+IF(BU123=4,0.5,0)+IF(BU123=6,1,0)+IF(BU123=11,0.5,0)+IF(BU123=13,0,0)+IF(BU123=20,1,0),0) -> 0 | BV124: 0 | BW124: 0 | BX124: 0 | BY124: 0 | BZ124: 0 | CA124: 0 | CB124: 0 | CC124: 0 | CD124: 0 | CE124: 0 | CF124: 0 | CG124: 0 | CH124: 0 | CI124: 0 | CJ124: 0 | CK124: 0 | CL124: 0 | CM124: 0 | CN124: 0 | CO124: 0 | CP124: 0 | CQ124: 0 | CR124: 0 | CS124: 0 | CT124: 0 | CU124: 0 | CV124: 0 | CW124: 0 | CX124: =SUM(C124:CW124) -> 4
B125: Dianna Visek | C125: =(IF(C38="",0,IF(C$31="",0,1))) -> 0 | D125: =(IF(D38="",0,IF(D$31="",0,1))) -> 1 | E125: 0 | F125: 0 | G125: 0 | H125: 0 | I125: 0 | J125: 0 | K125: 0 | L125: 1 | M125: 0 | N125: 0 | O125: 0 | P125: 0 | Q125: 1 | R125: 0 | S125: 0 | T125: 0 | U125: 0 | V125: 1 | W125: 0 | X125: 0 | Y125: 1 | Z125: 1 | AA125: 0 | AB125: 0 | AC125: 1 | AD125: 0 | AE125: 0 | AF125: 1 | AG125: 0 | AH125: 1 | AI125: 1 | AJ125: 1 | AK125: 0 | AL125: 0 | AM125: 1 | AN125: 1 | AO125: 1 | AP125: 1 | AQ125: 1 | AR125: 1 | AS125: 1 | AT125: 1 | AU125: 0 | AV125: 1 | AW125: 0 | AX125: 1 | AY125: 1 | AZ125: 1 | BA125: 1 | BB125: 1 | BC125: 1 | BD125: =(IF(BD38="",0,IF(BD$31="",0,1))) -> 1 | BE125: 0 | BF125: 0 | BG125: 0 | BH125: 1 | BI125: 0 | BJ125: 0 | BK125: 1 | BL125: =(IF(BL38="",0,IF(BL$31="",0,1))) -> 1 | BM125: 0 | BN125: 0 | BO125: 0 | BP125: 0 | BQ125: 0 | BR125: 1 | BS125: 0 | BT125: 1 | BU125: =(IF(BU38="",0,IF(BU$31="",0,1))) -> 0 | BV125: 1 | BW125: 1 | BX125: 0 | BY125: 1 | BZ125: 0 | CA125: 0 | CB125: 0 | CC125: 1 | CD125: 0 | CE125: 0 | CF125: 1 | CG125: 1 | CH125: 0 | CI125: 0 | CJ125: 0 | CK125: 1 | CL125: 1 | CM125: 1 | CN125: 1 | CO125: 1 | CP125: 1 | CQ125: 1 | CR125: 0 | CS125: 0 | CT125: 0 | CU125: 1 | CV125: 1 | CW125: 1 | CX125: =SUM(C125:CW125) -> 48
C126: =COLORINDEXOFONECELL(C38,TRUE,1)+COLORINDEXOFONECELL(C$31,TRUE,1) -> 11 | D126: 13 | E126: 11 | F126: 11 | G126: 4 | H126: 4 | I126: 11 | J126: 11 | K126: 11 | L126: 11 | M126: 4 | N126: 4 | O126: 11 | P126: 11 | Q126: 20 | R126: 11 | S126: 11 | T126: 11 | U126: 4 | V126: 20 | W126: 11 | X126: 4 | Y126: 11 | Z126: 20 | AA126: 11 | AB126: 11 | AC126: 20 | AD126: 11 | AE126: 11 | AF126: 13 | AG126: 11 | AH126: 13 | AI126: =COLORINDEXOFONECELL(AI38,TRUE,1)+COLORINDEXOFONECELL(AI$31,TRUE,1) -> 13 | AJ126: 13 | AK126: 11 | AL126: 11 | AM126: 13 | AN126: 13 | AO126: 13 | AP126: 13 | AQ126: 13 | AR126: 13 | AS126: 20 | AT126: 6 | AU126: 11 | AV126: 20 | AW126: 11 | AX126: 13 | AY126: 20 | AZ126: 20 | BA126: 6 | BB126: 13 | BC126: 6 | BD126: =COLORINDEXOFONECELL(BD38,TRUE,1)+COLORINDEXOFONECELL(BD$31,TRUE,1) -> 13 | BE126: 4 | BF126: 11 | BG126: 2 | BH126: 4 | BI126: 2 | BJ126: 2 | BK126: 4 | BL126: 13 | BM126: 11 | BN126: 2 | BO126: 2 | BP126: 2 | BQ126: 2 | BR126: 11 | BS126: 11 | BT126: 4 | BU126: =COLORINDEXOFONECELL(BU38,TRUE,1)+COLORINDEXOFONECELL(BU$31,TRUE,1) -> 11 | BV126: 4 | BW126: 20 | BX126: 11 | BY126: 6 | BZ126: 11 | CA126: 11 | CB126: 4 | CC126: 13 | CD126: 2 | CE126: 11 | CF126: 13 | CG126: 4 | CH126: 11 | CI126: 11 | CJ126: 11 | CK126: 13 | CL126: 20 | CM126: 20 | CN126: 13 | CO126: 13 | CP126: 13 | CQ126: 13 | CR126: 11 | CS126: 11 | CT126: 11 | CU126: 13 | CV126: 6 | CW126: 13 | CY126: =CX127/CX125 -> 0.4166666667
C127: =IF(C125,IF(C126=2,1,0)+IF(C126=4,0.5,0)+IF(C126=6,1,0)+IF(C126=11,0.5,0)+IF(C126=13,0,0)+IF(C126=20,1,0),0) -> 0 | D127: =IF(D125,IF(D126=2,1,0)+IF(D126=4,0.5,0)+IF(D126=6,1,0)+IF(D126=11,0.5,0)+IF(D126=13,0,0)+IF(D126=20,1,0),0) -> 0 | E127: 0 | F127: 0 | G127: 0 | H127: 0 | I127: 0 | J127: 0 | K127: 0 | L127: 0.5 | M127: 0 | N127: 0 | O127: 0 | P127: 0 | Q127: 1 | R127: 0 | S127: 0 | T127: 0 | U127: 0 | V127: 1 | W127: 0 | X127: 0 | Y127: 0.5 | Z127: 1 | AA127: 0 | AB127: 0 | AC127: 1 | AD127: 0 | AE127: 0 | AF127: 0 | AG127: 0 | AH127: 0 | AI127: 0 | AJ127: 0 | AK127: 0 | AL127: 0 | AM127: 0 | AN127: 0 | AO127: 0 | AP127: 0 | AQ127: 0 | AR127: 0 | AS127: 1 | AT127: 1 | AU127: 0 | AV127: 1 | AW127: 0 | AX127: 0 | AY127: 1 | AZ127: 1 | BA127: 1 | BB127: 0 | BC127: 1 | BD127: =IF(BD125,IF(BD126=2,1,0)+IF(BD126=4,0.5,0)+IF(BD126=6,1,0)+IF(BD126=11,0.5,0)+IF(BD126=13,0,0)+IF(BD126=20,1,0),0) -> 0 | BE127: 0 | BF127: 0 | BG127: 0 | BH127: 0.5 | BI127: 0 | BJ127: 0 | BK127: 0.5 | BL127: =IF(BL125,IF(BL126=2,1,0)+IF(BL126=4,0.5,0)+IF(BL126=6,1,0)+IF(BL126=11,0.5,0)+IF(BL126=13,0,0)+IF(BL126=20,1,0),0) -> 0 | BM127: 0 | BN127: 0 | BO127: 0 | BP127: 0 | BQ127: 0 | BR127: 0.5 | BS127: 0 | BT127: 0.5 | BU127: =IF(BU125,IF(BU126=2,1,0)+IF(BU126=4,0.5,0)+IF(BU126=6,1,0)+IF(BU126=11,0.5,0)+IF(BU126=13,0,0)+IF(BU126=20,1,0),0) -> 0 | BV127: 0.5 | BW127: 1 | BX127: 0 | BY127: 1 | BZ127: 0 | CA127: 0 | CB127: 0 | CC127: 0 | CD127: 0 | CE127: 0 | CF127: 0 | CG127: 0.5 | CH127: 0 | CI127: 0 | CJ127: 0 | CK127: 0 | CL127: 1 | CM127: 1 | CN127: 0 | CO127: 0 | CP127: 0 | CQ127: 0 | CR127: 0 | CS127: 0 | CT127: 0 | CU127: 0 | CV127: 1 | CW127: 0 | CX127: =SUM(C127:CW127) -> 20
A128: Mark Rutherford | B128: x | C128: Y | E128: N | F128: N | G128: Y | H128: N | I128: Y | J128: Y | K128: Y | L128: Y | M128: N | N128: Y | O128: Y | P128: Y | Q128: Y | R128: Y | S128: A | T128: A | U128: N | V128: N | W128: Y | X128: N | Y128: N | Z128: N | AA128: Y | AB128: Y | AC128: M | AD128: M | AE128: Y | AF128: Y | AG128: Y | AH128: Y | AI128: N | AJ128: Y | AK128: Y | AL128: Y | AM128: Y | AN128: Y | AO128: Y | AP128: Y | AQ128: Y | AR128: Y | AS128: A | AT128: N | AU128: Y | AV128: Y | AW128: Y | AX128: Y | AY128: Y | AZ128: Y | BA128: N | BB128: Y | BC128: Y | BD128: Y | BE128: Y | BF128: Y | BG128: N | BH128: N | BI128: C | BK128: N | BL128: Y | BM128: Y | BO128: Y | BP128: Y | BQ128: Y | BS128: Y | BT128: N | BU128: Y | BV128: N | BW128: A | BX128: Y | BY128: Y | BZ128: Y | CA128: Y | CB128: N | CC128: C | CE128: Y | CF128: Y | CG128: N | CH128: Y | CI128: Y | CJ128: Y | CK128: N | CL128: N | CM128: Y | CN128: N | CO128: N | CP128: Y | CQ128: Y | CR128: C | CS128: Y | CT128: Y | CU128: Y | CV128: C | CW128: N
B131: Mark Hinkle | C131: =(IF(C128="",0,IF(C$3="",0,1))) -> 0 | D131: =(IF(D128="",0,IF(D$3="",0,1))) -> 0 | E131: 0 | F131: 0 | G131: 0 | H131: 0 | I131: 0 | J131: 0 | K131: 0 | L131: 1 | M131: 0 | N131: 0 | O131: 0 | P131: 0 | Q131: 1 | R131: 0 | S131: 0 | T131: 0 | U131: 0 | V131: 1 | W131: 0 | X131: 0 | Y131: 1 | Z131: 1 | AA131: 0 | AB131: 0 | AC131: 1 | AD131: 0 | AE131: 0 | AF131: 1 | AG131: 0 | AH131: 1 | AI131: 1 | AJ131: 1 | AK131: 0 | AL131: 0 | AM131: 1 | AN131: 1 | AO131: 1 | AP131: 1 | AQ131: 1 | AR131: 1 | AS131: 1 | AT131: 1 | AU131: 0 | AV131: 1 | AW131: 0 | AX131: 1 | AY131: 1 | AZ131: 1 | BA131: 1 | BB131: 1 | BC131: 1 | BD131: 1 | BE131: 0 | BF131: 0 | BG131: 1 | BH131: 1 | BI131: 0 | BJ131: 0 | BK131: 1 | BL131: 1 | BM131: 0 | BN131: 0 | BO131: 0 | BP131: =(IF(BP128="",0,IF(BP$3="",0,1))) -> 0 | BQ131: 1 | BR131: 0 | BS131: 0 | BT131: 1 | BU131: 0 | BV131: 1 | BW131: 1 | BX131: 0 | BY131: 1 | BZ131: 0 | CA131: 0 | CB131: 0 | CC131: 1 | CD131: 0 | CE131: 0 | CF131: 1 | CG131: 1 | CH131: 0 | CI131: 0 | CJ131: 0 | CK131: 1 | CL131: 1 | CM131: 1 | CN131: 1 | CO131: 1 | CP131: 1 | CQ131: 1 | CR131: 0 | CS131: 0 | CT131: 0 | CU131: 1 | CV131: 1 | CW131: 1 | CX131: =SUM(C131:CW131) -> 48
C132: =COLORINDEXOFONECELL(C128,TRUE,1)+COLORINDEXOFONECELL(C$3,TRUE,1) -> 11 | D132: 4 | E132: 4 | F132: 4 | G132: 11 | H132: 4 | I132: 11 | J132: 11 | K132: 11 | L132: 20 | M132: 4 | N132: 11 | O132: 11 | P132: 11 | Q132: 20 | R132: 11 | S132: 2 | T132: 2 | U132: 4 | V132: 13 | W132: 11 | X132: 4 | Y132: 13 | Z132: 13 | AA132: 11 | AB132: 11 | AC132: 20 | AD132: 11 | AE132: 11 | AF132: 13 | AG132: 11 | AH132: 13 | AI132: =COLORINDEXOFONECELL(AI128,TRUE,1)+COLORINDEXOFONECELL(AI$3,TRUE,1) -> 13 | AJ132: 13 | AK132: 11 | AL132: 11 | AM132: 13 | AN132: 13 | AO132: 13 | AP132: 13 | AQ132: 13 | AR132: 20 | AS132: 11 | AT132: 6 | AU132: 11 | AV132: 20 | AW132: 11 | AX132: 13 | AY132: 20 | AZ132: 20 | BA132: 6 | BB132: 13 | BC132: 13 | BD132: 13 | BE132: 11 | BF132: 11 | BG132: 4 | BH132: 4 | BI132: 11 | BJ132: 2 | BK132: 4 | BL132: 13 | BM132: 11 | BN132: 2 | BO132: =COLORINDEXOFONECELL(BO128,TRUE,1)+COLORINDEXOFONECELL(BO$3,TRUE,1) -> 11 | BP132: 11 | BQ132: 11 | BR132: 2 | BS132: 11 | BT132: 4 | BU132: 11 | BV132: 4 | BW132: 11 | BX132: 11 | BY132: 13 | BZ132: 11 | CA132: 11 | CB132: 4 | CC132: 20 | CD132: 2 | CE132: 11 | CF132: 13 | CG132: 4 | CH132: 11 | CI132: 11 | CJ132: 11 | CK132: 13 | CL132: 13 | CM132: 20 | CN132: 13 | CO132: 13 | CP132: 13 | CQ132: 13 | CR132: 11 | CS132: 11 | CT132: 11 | CU132: 13 | CV132: 13 | CW132: 13 | CY132: =CX133/CX131 -> 0.3229166667
C133: =IF(C131,IF(C132=2,1,0)+IF(C132=4,0.5,0)+IF(C132=6,1,0)+IF(C132=11,0.5,0)+IF(C132=13,0,0)+IF(C132=20,1,0),0) -> 0 | D133: 0 | E133: 0 | F133: 0 | G133: 0 | H133: 0 | I133: 0 | J133: 0 | K133: 0 | L133: 1 | M133: 0 | N133: 0 | O133: 0 | P133: 0 | Q133: 1 | R133: 0 | S133: 0 | T133: 0 | U133: 0 | V133: 0 | W133: 0 | X133: 0 | Y133: 0 | Z133: 0 | AA133: 0 | AB133: 0 | AC133: 1 | AD133: 0 | AE133: 0 | AF133: 0 | AG133: 0 | AH133: 0 | AI133: =IF(AI131,IF(AI132=2,1,0)+IF(AI132=4,0.5,0)+IF(AI132=6,1,0)+IF(AI132=11,0.5,0)+IF(AI132=13,0,0)+IF(AI132=20,1,0),0) -> 0 | AJ133: 0 | AK133: 0 | AL133: 0 | AM133: 0 | AN133: 0 | AO133: 0 | AP133: 0 | AQ133: 0 | AR133: 1 | AS133: 0.5 | AT133: 1 | AU133: 0 | AV133: 1 | AW133: 0 | AX133: 0 | AY133: 1 | AZ133: 1 | BA133: 1 | BB133: 0 | BC133: 0 | BD133: 0 | BE133: 0 | BF133: 0 | BG133: 0.5 | BH133: 0.5 | BI133: 0 | BJ133: 0 | BK133: 0.5 | BL133: 0 | BM133: 0 | BN133: 0 | BO133: =IF(BO131,IF(BO132=2,1,0)+IF(BO132=4,0.5,0)+IF(BO132=6,1,0)+IF(BO132=11,0.5,0)+IF(BO132=13,0,0)+IF(BO132=20,1,0),0) -> 0 | BP133: 0 | BQ133: 0.5 | BR133: 0 | BS133: 0 | BT133: 0.5 | BU133: 0 | BV133: 0.5 | BW133: 0.5 | BX133: 0 | BY133: 0 | BZ133: 0 | CA133: 0 | CB133: 0 | CC133: 1 | CD133: 0 | CE133: 0 | CF133: 0 | CG133: 0.5 | CH133: 0 | CI133: 0 | CJ133: 0 | CK133: 0 | CL133: 0 | CM133: 1 | CN133: 0 | CO133: 0 | CP133: 0 | CQ133: 0 | CR133: 0 | CS133: 0 | CT133: 0 | CU133: =IF(CU131,IF(CU132=2,1,0)+IF(CU132=4,0.5,0)+IF(CU132=6,1,0)+IF(CU132=11,0.5,0)+IF(CU132=13,0,0)+IF(CU132=20,1,0),0) -> 0 | CV133: 0 | CW133: 0 | CX133: =SUM(C133:CW133) -> 15.5
B134: Mark Rutherford | C134: =(IF(C128="",0,IF(C$4="",0,1))) -> 1 | D134: =(IF(D128="",0,IF(D$4="",0,1))) -> 0 | E134: 1 | F134: 1 | G134: 1 | H134: 1 | I134: 1 | J134: 1 | K134: 1 | L134: 1 | M134: 1 | N134: 1 | O134: 1 | P134: 1 | Q134: 1 | R134: 1 | S134: 1 | T134: 1 | U134: 1 | V134: 1 | W134: 1 | X134: 1 | Y134: 1 | Z134: 1 | AA134: 1 | AB134: 1 | AC134: 1 | AD134: 1 | AE134: 1 | AF134: 1 | AG134: 1 | AH134: 1 | AI134: 1 | AJ134: 1 | AK134: 1 | AL134: 1 | AM134: 1 | AN134: 1 | AO134: 1 | AP134: 1 | AQ134: 1 | AR134: 1 | AS134: 1 | AT134: 1 | AU134: 1 | AV134: 1 | AW134: 1 | AX134: 1 | AY134: 1 | AZ134: 1 | BA134: 1 | BB134: 1 | BC134: 1 | BD134: 1 | BE134: 1 | BF134: 1 | BG134: 1 | BH134: 1 | BI134: 1 | BJ134: 0 | BK134: 1 | BL134: 1 | BM134: 1 | BN134: 0 | BO134: 1 | BP134: =(IF(BP128="",0,IF(BP$4="",0,1))) -> 1 | BQ134: 1 | BR134: 0 | BS134: 1 | BT134: 1 | BU134: 1 | BV134: 1 | BW134: 1 | BX134: 1 | BY134: 1 | BZ134: 1 | CA134: 1 | CB134: 1 | CC134: 1 | CD134: 0 | CE134: 1 | CF134: 1 | CG134: 1 | CH134: 1 | CI134: 1 | CJ134: 1 | CK134: 1 | CL134: 1 | CM134: 1 | CN134: 1 | CO134: 1 | CP134: 1 | CQ134: 1 | CR134: 1 | CS134: 1 | CT134: 1 | CU134: 1 | CV134: 1 | CW134: 1 | CX134: =SUM(C134:CW134) -> 94
C135: =COLORINDEXOFONECELL(C128,TRUE,1)+COLORINDEXOFONECELL(C$4,TRUE,1) -> 20 | D135: 2 | E135: 6 | F135: 6 | G135: 20 | H135: 6 | I135: 20 | J135: 20 | K135: 20 | L135: 20 | M135: 6 | N135: 20 | O135: 20 | P135: 20 | Q135: 20 | R135: 20 | S135: 2 | T135: 2 | U135: 6 | V135: 6 | W135: 20 | X135: 6 | Y135: 6 | Z135: 6 | AA135: 20 | AB135: 20 | AC135: 20 | AD135: 20 | AE135: 20 | AF135: 20 | AG135: 20 | AH135: 20 | AI135: =COLORINDEXOFONECELL(AI128,TRUE,1)+COLORINDEXOFONECELL(AI$4,TRUE,1) -> 6 | AJ135: 20 | AK135: 20 | AL135: 20 | AM135: 20 | AN135: 20 | AO135: 20 | AP135: 20 | AQ135: 20 | AR135: 20 | AS135: 2 | AT135: 6 | AU135: 20 | AV135: 20 | AW135: 20 | AX135: 20 | AY135: 20 | AZ135: 20 | BA135: 6 | BB135: 20 | BC135: 20 | BD135: 20 | BE135: 20 | BF135: 20 | BG135: 6 | BH135: 6 | BI135: 20 | BJ135: 2 | BK135: 6 | BL135: 20 | BM135: 20 | BN135: 2 | BO135: =COLORINDEXOFONECELL(BO128,TRUE,1)+COLORINDEXOFONECELL(BO$4,TRUE,1) -> 20 | BP135: 20 | BQ135: 20 | BR135: 2 | BS135: 20 | BT135: 6 | BU135: 20 | BV135: 6 | BW135: 2 | BX135: 20 | BY135: 20 | BZ135: 20 | CA135: 20 | CB135: 6 | CC135: 20 | CD135: 2 | CE135: 20 | CF135: 20 | CG135: 6 | CH135: 20 | CI135: 20 | CJ135: 20 | CK135: 6 | CL135: 6 | CM135: 20 | CN135: 6 | CO135: 6 | CP135: 20 | CQ135: 20 | CR135: 20 | CS135: 20 | CT135: 20 | CU135: 20 | CV135: 20 | CW135: 6 | CY135: =CX136/CX134 -> 1
C136: =IF(C134,IF(C135=2,1,0)+IF(C135=4,0.5,0)+IF(C135=6,1,0)+IF(C135=11,0.5,0)+IF(C135=13,0,0)+IF(C135=20,1,0),0) -> 1 | D136: 0 | E136: 1 | F136: 1 | G136: 1 | H136: 1 | I136: 1 | J136: 1 | K136: 1 | L136: 1 | M136: 1 | N136: 1 | O136: 1 | P136: 1 | Q136: 1 | R136: 1 | S136: 1 | T136: 1 | U136: 1 | V136: 1 | W136: 1 | X136: 1 | Y136: 1 | Z136: 1 | AA136: 1 | AB136: 1 | AC136: 1 | AD136: 1 | AE136: 1 | AF136: 1 | AG136: 1 | AH136: 1 | AI136: =IF(AI134,IF(AI135=2,1,0)+IF(AI135=4,0.5,0)+IF(AI135=6,1,0)+IF(AI135=11,0.5,0)+IF(AI135=13,0,0)+IF(AI135=20,1,0),0) -> 1 | AJ136: 1 | AK136: 1 | AL136: 1 | AM136: 1 | AN136: 1 | AO136: 1 | AP136: 1 | AQ136: 1 | AR136: 1 | AS136: 1 | AT136: 1 | AU136: 1 | AV136: 1 | AW136: 1 | AX136: 1 | AY136: 1 | AZ136: 1 | BA136: 1 | BB136: 1 | BC136: 1 | BD136: 1 | BE136: 1 | BF136: 1 | BG136: 1 | BH136: 1 | BI136: 1 | BJ136: 0 | BK136: 1 | BL136: 1 | BM136: 1 | BN136: 0 | BO136: =IF(BO134,IF(BO135=2,1,0)+IF(BO135=4,0.5,0)+IF(BO135=6,1,0)+IF(BO135=11,0.5,0)+IF(BO135=13,0,0)+IF(BO135=20,1,0),0) -> 1 | BP136: 1 | BQ136: 1 | BR136: 0 | BS136: 1 | BT136: 1 | BU136: 1 | BV136: 1 | BW136: 1 | BX136: 1 | BY136: 1 | BZ136: 1 | CA136: 1 | CB136: 1 | CC136: 1 | CD136: 0 | CE136: 1 | CF136: 1 | CG136: 1 | CH136: 1 | CI136: 1 | CJ136: 1 | CK136: 1 | CL136: 1 | CM136: 1 | CN136: 1 | CO136: 1 | CP136: 1 | CQ136: 1 | CR136: 1 | CS136: 1 | CT136: 1 | CU136: =IF(CU134,IF(CU135=2,1,0)+IF(CU135=4,0.5,0)+IF(CU135=6,1,0)+IF(CU135=11,0.5,0)+IF(CU135=13,0,0)+IF(CU135=20,1,0),0) -> 1 | CV136: 1 | CW136: 1 | CX136: =SUM(C136:CW136) -> 94
B137: Alicia Mattson | C137: =(IF(C128="",0,IF(C$5="",0,1))) -> 1 | D137: =(IF(D128="",0,IF(D$5="",0,1))) -> 0 | E137: 1 | F137: 1 | G137: 1 | H137: 1 | I137: 1 | J137: 1 | K137: 1 | L137: 1 | M137: 1 | N137: 1 | O137: 1 | P137: 1 | Q137: 1 | R137: 1 | S137: 1 | T137: 1 | U137: 1 | V137: 1 | W137: 1 | X137: 1 | Y137: 1 | Z137: 1 | AA137: 1 | AB137: 1 | AC137: 1 | AD137: 1 | AE137: 1 | AF137: 1 | AG137: 1 | AH137: 1 | AI137: 1 | AJ137: 1 | AK137: 1 | AL137: 1 | AM137: 1 | AN137: 1 | AO137: 1 | AP137: 1 | AQ137: 1 | AR137: 1 | AS137: 1 | AT137: 1 | AU137: 1 | AV137: 1 | AW137: 1 | AX137: 1 | AY137: 1 | AZ137: 1 | BA137: 1 | BB137: 1 | BC137: 1 | BD137: 1 | BE137: 1 | BF137: 0 | BG137: 1 | BH137: 1 | BI137: 1 | BJ137: 0 | BK137: 1 | BL137: 1 | BM137: 1 | BN137: 0 | BO137: 1 | BP137: =(IF(BP128="",0,IF(BP$5="",0,1))) -> 1 | BQ137: 1 | BR137: 0 | BS137: 1 | BT137: 1 | BU137: 1 | BV137: 1 | BW137: 1 | BX137: 1 | BY137: 1 | BZ137: 1 | CA137: 0 | CB137: 1 | CC137: 1 | CD137: 0 | CE137: 1 | CF137: 1 | CG137: 1 | CH137: 1 | CI137: 1 | CJ137: 1 | CK137: 1 | CL137: 0 | CM137: 0 | CN137: 1 | CO137: 1 | CP137: 1 | CQ137: 1 | CR137: 1 | CS137: 1 | CT137: 1 | CU137: 1 | CV137: 1 | CW137: 1 | CX137: =SUM(C137:CW137) -> 90
C138: =COLORINDEXOFONECELL(C128,TRUE,1)+COLORINDEXOFONECELL(C$5,TRUE,1) -> 20 | D138: 4 | E138: 13 | F138: 13 | G138: 20 | H138: 4 | I138: 20 | J138: 20 | K138: 20 | L138: 20 | M138: 6 | N138: 20 | O138: 20 | P138: 20 | Q138: 20 | R138: 20 | S138: 11 | T138: 11 | U138: 13 | V138: 13 | W138: 20 | X138: 6 | Y138: 6 | Z138: 13 | AA138: 20 | AB138: 20 | AC138: 20 | AD138: 20 | AE138: 20 | AF138: 20 | AG138: 13 | AH138: 20 | AI138: =COLORINDEXOFONECELL(AI128,TRUE,1)+COLORINDEXOFONECELL(AI$5,TRUE,1) -> 6 | AJ138: 20 | AK138: 20 | AL138: 20 | AM138: 20 | AN138: 20 | AO138: 20 | AP138: 20 | AQ138: 20 | AR138: 13 | AS138: 11 | AT138: 6 | AU138: 20 | AV138: 20 | AW138: 20 | AX138: 20 | AY138: 20 | AZ138: 20 | BA138: 6 | BB138: 20 | BC138: 20 | BD138: 20 | BE138: 20 | BF138: 11 | BG138: 6 | BH138: 6 | BI138: 20 | BJ138: 2 | BK138: 6 | BL138: 20 | BM138: 20 | BN138: 11 | BO138: =COLORINDEXOFONECELL(BO128,TRUE,1)+COLORINDEXOFONECELL(BO$5,TRUE,1) -> 20 | BP138: 20 | BQ138: 20 | BR138: 2 | BS138: 20 | BT138: 6 | BU138: 20 | BV138: 6 | BW138: 11 | BX138: 20 | BY138: 20 | BZ138: 20 | CA138: 11 | CB138: 6 | CC138: 20 | CD138: 11 | CE138: 20 | CF138: 20 | CG138: 6 | CH138: 20 | CI138: 20 | CJ138: 20 | CK138: 6 | CL138: 4 | CM138: 11 | CN138: 6 | CO138: 4 | CP138: 20 | CQ138: 20 | CR138: 20 | CS138: 20 | CT138: 20 | CU138: 20 | CV138: 20 | CW138: 6 | CY138: =CX139/CX137 -> 0.8888888889
C139: =IF(C137,IF(C138=2,1,0)+IF(C138=4,0.5,0)+IF(C138=6,1,0)+IF(C138=11,0.5,0)+IF(C138=13,0,0)+IF(C138=20,1,0),0) -> 1 | D139: 0 | E139: 0 | F139: 0 | G139: 1 | H139: 0.5 | I139: 1 | J139: 1 | K139: 1 | L139: 1 | M139: 1 | N139: 1 | O139: 1 | P139: 1 | Q139: 1 | R139: 1 | S139: 0.5 | T139: 0.5 | U139: 0 | V139: 0 | W139: 1 | X139: 1 | Y139: 1 | Z139: 0 | AA139: 1 | AB139: 1 | AC139: 1 | AD139: 1 | AE139: 1 | AF139: 1 | AG139: 0 | AH139: 1 | AI139: =IF(AI137,IF(AI138=2,1,0)+IF(AI138=4,0.5,0)+IF(AI138=6,1,0)+IF(AI138=11,0.5,0)+IF(AI138=13,0,0)+IF(AI138=20,1,0),0) -> 1 | AJ139: 1 | AK139: 1 | AL139: 1 | AM139: 1 | AN139: 1 | AO139: 1 | AP139: 1 | AQ139: 1 | AR139: 0 | AS139: 0.5 | AT139: 1 | AU139: 1 | AV139: 1 | AW139: 1 | AX139: 1 | AY139: 1 | AZ139: 1 | BA139: 1 | BB139: 1 | BC139: 1 | BD139: 1 | BE139: 1 | BF139: 0 | BG139: 1 | BH139: 1 | BI139: 1 | BJ139: 0 | BK139: 1 | BL139: 1 | BM139: 1 | BN139: 0 | BO139: =IF(BO137,IF(BO138=2,1,0)+IF(BO138=4,0.5,0)+IF(BO138=6,1,0)+IF(BO138=11,0.5,0)+IF(BO138=13,0,0)+IF(BO138=20,1,0),0) -> 1 | BP139: 1 | BQ139: 1 | BR139: 0 | BS139: 1 | BT139: 1 | BU139: 1 | BV139: 1 | BW139: 0.5 | BX139: 1 | BY139: 1 | BZ139: 1 | CA139: 0 | CB139: 1 | CC139: 1 | CD139: 0 | CE139: 1 | CF139: 1 | CG139: 1 | CH139: 1 | CI139: 1 | CJ139: 1 | CK139: 1 | CL139: 0 | CM139: 0 | CN139: 1 | CO139: 0.5 | CP139: 1 | CQ139: 1 | CR139: 1 | CS139: 1 | CT139: 1 | CU139: =IF(CU137,IF(CU138=2,1,0)+IF(CU138=4,0.5,0)+IF(CU138=6,1,0)+IF(CU138=11,0.5,0)+IF(CU138=13,0,0)+IF(CU138=20,1,0),0) -> 1 | CV139: 1 | CW139: 1 | CX139: =SUM(C139:CW139) -> 80
B140: James Oaksun | C140: =(IF(C128="",0,IF(C$6="",0,1))) -> 1 | D140: =(IF(D128="",0,IF(D$6="",0,1))) -> 0 | E140: 0 | F140: 0 | G140: 0 | H140: 0 | I140: 0 | J140: 1 | K140: 1 | L140: 1 | M140: 1 | N140: 1 | O140: 1 | P140: 1 | Q140: 1 | R140: 1 | S140: 1 | T140: 1 | U140: 0 | V140: 0 | W140: 0 | X140: 0 | Y140: 0 | Z140: 0 | AA140: 0 | AB140: 0 | AC140: 0 | AD140: 0 | AE140: 0 | AF140: 0 | AG140: 0 | AH140: 0 | AI140: 0 | AJ140: 0 | AK140: 0 | AL140: 0 | AM140: 0 | AN140: 0 | AO140: 0 | AP140: 0 | AQ140: 0 | AR140: 0 | AS140: 0 | AT140: 0 | AU140: 0 | AV140: 0 | AW140: 0 | AX140: 0 | AY140: 0 | AZ140: 0 | BA140: 0 | BB140: 0 | BC140: 0 | BD140: 0 | BE140: 0 | BF140: 1 | BG140: 1 | BH140: 1 | BI140: 1 | BJ140: 0 | BK140: 1 | BL140: 1 | BM140: 0 | BN140: 0 | BO140: 0 | BP140: =(IF(BP128="",0,IF(BP$6="",0,1))) -> 0 | BQ140: 0 | BR140: 0 | BS140: 0 | BT140: 0 | BU140: 0 | BV140: 0 | BW140: 0 | BX140: 0 | BY140: 0 | BZ140: 0 | CA140: 0 | CB140: 0 | CC140: 0 | CD140: 0 | CE140: 0 | CF140: 0 | CG140: 0 | CH140: 0 | CI140: 0 | CJ140: 0 | CK140: 0 | CL140: 0 | CM140: 0 | CN140: 0 | CO140: 0 | CP140: 0 | CQ140: 0 | CR140: 0 | CS140: 0 | CT140: 0 | CU140: 0 | CV140: 0 | CW140: 0 | CX140: =SUM(C140:CW140) -> 18
C141: =COLORINDEXOFONECELL(C128,TRUE,1)+COLORINDEXOFONECELL(C$6,TRUE,1) -> 20 | D141: 2 | E141: 4 | F141: 4 | G141: 11 | H141: 4 | I141: 11 | J141: 13 | K141: 20 | L141: 20 | M141: 13 | N141: 13 | O141: 11 | P141: 11 | Q141: 11 | R141: 20 | S141: 11 | T141: 2 | U141: 4 | V141: 4 | W141: 11 | X141: 4 | Y141: 4 | Z141: 4 | AA141: 11 | AB141: 11 | AC141: 11 | AD141: 11 | AE141: 11 | AF141: 11 | AG141: 11 | AH141: 11 | AI141: =COLORINDEXOFONECELL(AI128,TRUE,1)+COLORINDEXOFONECELL(AI$6,TRUE,1) -> 4 | AJ141: 11 | AK141: 11 | AL141: 11 | AM141: 11 | AN141: 11 | AO141: 11 | AP141: 11 | AQ141: 11 | AR141: 11 | AS141: 2 | AT141: 4 | AU141: 11 | AV141: 11 | AW141: 11 | AX141: 11 | AY141: 11 | AZ141: 11 | BA141: 4 | BB141: 11 | BC141: 11 | BD141: 11 | BE141: 11 | BF141: 20 | BG141: 13 | BH141: 13 | BI141: 13 | BJ141: 11 | BK141: 13 | BL141: 13 | BM141: 11 | BN141: 2 | BO141: =COLORINDEXOFONECELL(BO128,TRUE,1)+COLORINDEXOFONECELL(BO$6,TRUE,1) -> 11 | BP141: 11 | BQ141: 11 | BR141: 2 | BS141: 11 | BT141: 4 | BU141: 11 | BV141: 4 | BW141: 2 | BX141: 11 | BY141: 11 | BZ141: 11 | CA141: 11 | CB141: 4 | CC141: 11 | CD141: 2 | CE141: 11 | CF141: 11 | CG141: 4 | CH141: 11 | CI141: 11 | CJ141: 11 | CK141: 4 | CL141: 4 | CM141: 11 | CN141: 4 | CO141: 4 | CP141: 11 | CQ141: 11 | CR141: 11 | CS141: 11 | CT141: 11 | CU141: 11 | CV141: 11 | CW141: 4 | CY141: =CX142/CX140 -> 0.4444444444
C142: =IF(C140,IF(C141=2,1,0)+IF(C141=4,0.5,0)+IF(C141=6,1,0)+IF(C141=11,0.5,0)+IF(C141=13,0,0)+IF(C141=20,1,0),0) -> 1 | D142: 0 | E142: 0 | F142: 0 | G142: 0 | H142: 0 | I142: 0 | J142: 0 | K142: 1 | L142: 1 | M142: 0 | N142: 0 | O142: 0.5 | P142: 0.5 | Q142: 0.5 | R142: 1 | S142: 0.5 | T142: 1 | U142: 0 | V142: 0 | W142: 0 | X142: 0 | Y142: 0 | Z142: 0 | AA142: 0 | AB142: 0 | AC142: 0 | AD142: 0 | AE142: 0 | AF142: 0 | AG142: 0 | AH142: 0 | AI142: =IF(AI140,IF(AI141=2,1,0)+IF(AI141=4,0.5,0)+IF(AI141=6,1,0)+IF(AI141=11,0.5,0)+IF(AI141=13,0,0)+IF(AI141=20,1,0),0) -> 0 | AJ142: 0 | AK142: 0 | AL142: 0 | AM142: 0 | AN142: 0 | AO142: 0 | AP142: 0 | AQ142: 0 | AR142: 0 | AS142: 0 | AT142: 0 | AU142: 0 | AV142: 0 | AW142: 0 | AX142: 0 | AY142: 0 | AZ142: 0 | BA142: 0 | BB142: 0 | BC142: 0 | BD142: 0 | BE142: 0 | BF142: 1 | BG142: 0 | BH142: 0 | BI142: 0 | BJ142: 0 | BK142: 0 | BL142: 0 | BM142: 0 | BN142: 0 | BO142: =IF(BO140,IF(BO141=2,1,0)+IF(BO141=4,0.5,0)+IF(BO141=6,1,0)+IF(BO141=11,0.5,0)+IF(BO141=13,0,0)+IF(BO141=20,1,0),0) -> 0 | BP142: 0 | BQ142: 0 | BR142: 0 | BS142: 0 | BT142: 0 | BU142: 0 | BV142: 0 | BW142: 0 | BX142: 0 | BY142: 0 | BZ142: 0 | CA142: 0 | CB142: 0 | CC142: 0 | CD142: 0 | CE142: 0 | CF142: 0 | CG142: 0 | CH142: 0 | CI142: 0 | CJ142: 0 | CK142: 0 | CL142: 0 | CM142: 0 | CN142: 0 | CO142: 0 | CP142: 0 | CQ142: 0 | CR142: 0 | CS142: 0 | CT142: 0 | CU142: =IF(CU140,IF(CU141=2,1,0)+IF(CU141=4,0.5,0)+IF(CU141=6,1,0)+IF(CU141=11,0.5,0)+IF(CU141=13,0,0)+IF(CU141=20,1,0),0) -> 0 | CV142: 0 | CW142: 0 | CX142: =SUM(C142:CW142) -> 8
B143: Bill Redpath | C143: =(IF(C128="",0,IF(C$7="",0,1))) -> 0 | D143: =(IF(D128="",0,IF(D$7="",0,1))) -> 0 | E143: 1 | F143: 1 | G143: 1 | H143: 1 | I143: 1 | J143: 1 | K143: 1 | L143: 1 | M143: 1 | N143: 1 | O143: 1 | P143: 1 | Q143: 1 | R143: 1 | S143: 1 | T143: 1 | U143: 1 | V143: 1 | W143: 1 | X143: 1 | Y143: 1 | Z143: 1 | AA143: 1 | AB143: 1 | AC143: 1 | AD143: 1 | AE143: 1 | AF143: 1 | AG143: 1 | AH143: 1 | AI143: 1 | AJ143: 1 | AK143: 1 | AL143: 1 | AM143: 1 | AN143: 1 | AO143: 1 | AP143: 1 | AQ143: 1 | AR143: 1 | AS143: 1 | AT143: 1 | AU143: 1 | AV143: 1 | AW143: 1 | AX143: 1 | AY143: 1 | AZ143: 1 | BA143: 1 | BB143: 1 | BC143: 1 | BD143: 1 | BE143: 1 | BF143: 0 | BG143: 1 | BH143: 1 | BI143: 1 | BJ143: 0 | BK143: 1 | BL143: 1 | BM143: 1 | BN143: 0 | BO143: 1 | BP143: =(IF(BP128="",0,IF(BP$7="",0,1))) -> 1 | BQ143: 1 | BR143: 0 | BS143: 0 | BT143: 0 | BU143: 1 | BV143: 1 | BW143: 1 | BX143: 1 | BY143: 1 | BZ143: 1 | CA143: 1 | CB143: 1 | CC143: 1 | CD143: 0 | CE143: 1 | CF143: 1 | CG143: 1 | CH143: 1 | CI143: 1 | CJ143: 1 | CK143: 1 | CL143: 1 | CM143: 1 | CN143: 1 | CO143: 1 | CP143: 1 | CQ143: 1 | CR143: 0 | CS143: 1 | CT143: 1 | CU143: 1 | CV143: 1 | CW143: 1 | CX143: =SUM(C143:CW143) -> 89
C144: =COLORINDEXOFONECELL(C128,TRUE,1)+COLORINDEXOFONECELL(C$7,TRUE,1) -> 11 | D144: 4 | E144: 13 | F144: 13 | G144: 13 | H144: 6 | I144: 20 | J144: 13 | K144: 20 | L144: 20 | M144: 6 | N144: 20 | O144: 20 | P144: 20 | Q144: 20 | R144: 13 | S144: 4 | T144: 11 | U144: 6 | V144: 13 | W144: 20 | X144: 6 | Y144: 4 | Z144: 13 | AA144: 20 | AB144: 20 | AC144: 20 | AD144: 20 | AE144: 11 | AF144: 13 | AG144: 20 | AH144: 20 | AI144: =COLORINDEXOFONECELL(AI128,TRUE,1)+COLORINDEXOFONECELL(AI$7,TRUE,1) -> 13 | AJ144: 13 | AK144: 20 | AL144: 20 | AM144: 11 | AN144: 13 | AO144: 20 | AP144: 20 | AQ144: 20 | AR144: 20 | AS144: 11 | AT144: 6 | AU144: 20 | AV144: 20 | AW144: 20 | AX144: 20 | AY144: 20 | AZ144: 20 | BA144: 6 | BB144: 11 | BC144: 20 | BD144: 20 | BE144: 20 | BF144: 11 | BG144: 13 | BH144: 13 | BI144: 13 | BJ144: 11 | BK144: 6 | BL144: 20 | BM144: 20 | BN144: 11 | BO144: =COLORINDEXOFONECELL(BO128,TRUE,1)+COLORINDEXOFONECELL(BO$7,TRUE,1) -> 20 | BP144: 11 | BQ144: 20 | BR144: 2 | BS144: 11 | BT144: 4 | BU144: 20 | BV144: 6 | BW144: 11 | BX144: 20 | BY144: 13 | BZ144: 20 | CA144: 20 | CB144: 6 | CC144: 20 | CD144: 2 | CE144: 20 | CF144: 13 | CG144: 13 | CH144: 20 | CI144: 20 | CJ144: 20 | CK144: 13 | CL144: 13 | CM144: 20 | CN144: 13 | CO144: 13 | CP144: 20 | CQ144: 13 | CR144: 11 | CS144: 11 | CT144: 13 | CU144: 13 | CV144: 20 | CW144: 13 | CY144: =CX145/CX143 -> 0.6629213483
C145: =IF(C143,IF(C144=2,1,0)+IF(C144=4,0.5,0)+IF(C144=6,1,0)+IF(C144=11,0.5,0)+IF(C144=13,0,0)+IF(C144=20,1,0),0) -> 0 | D145: 0 | E145: 0 | F145: 0 | G145: 0 | H145: 1 | I145: 1 | J145: 0 | K145: 1 | L145: 1 | M145: 1 | N145: 1 | O145: 1 | P145: 1 | Q145: 1 | R145: 0 | S145: 0.5 | T145: 0.5 | U145: 1 | V145: 0 | W145: 1 | X145: 1 | Y145: 0.5 | Z145: 0 | AA145: 1 | AB145: 1 | AC145: 1 | AD145: 1 | AE145: 0.5 | AF145: 0 | AG145: 1 | AH145: 1 | AI145: =IF(AI143,IF(AI144=2,1,0)+IF(AI144=4,0.5,0)+IF(AI144=6,1,0)+IF(AI144=11,0.5,0)+IF(AI144=13,0,0)+IF(AI144=20,1,0),0) -> 0 | AJ145: 0 | AK145: 1 | AL145: 1 | AM145: 0.5 | AN145: 0 | AO145: 1 | AP145: 1 | AQ145: 1 | AR145: 1 | AS145: 0.5 | AT145: 1 | AU145: 1 | AV145: 1 | AW145: 1 | AX145: 1 | AY145: 1 | AZ145: 1 | BA145: 1 | BB145: 0.5 | BC145: 1 | BD145: 1 | BE145: 1 | BF145: 0 | BG145: 0 | BH145: 0 | BI145: 0 | BJ145: 0 | BK145: 1 | BL145: 1 | BM145: 1 | BN145: 0 | BO145: =IF(BO143,IF(BO144=2,1,0)+IF(BO144=4,0.5,0)+IF(BO144=6,1,0)+IF(BO144=11,0.5,0)+IF(BO144=13,0,0)+IF(BO144=20,1,0),0) -> 1 | BP145: 0.5 | BQ145: 1 | BR145: 0 | BS145: 0 | BT145: 0 | BU145: 1 | BV145: 1 | BW145: 0.5 | BX145: 1 | BY145: 0 | BZ145: 1 | CA145: 1 | CB145: 1 | CC145: 1 | CD145: 0 | CE145: 1 | CF145: 0 | CG145: 0 | CH145: 1 | CI145: 1 | CJ145: 1 | CK145: 0 | CL145: 0 | CM145: 1 | CN145: 0 | CO145: 0 | CP145: 1 | CQ145: 0 | CR145: 0 | CS145: 0.5 | CT145: 0 | CU145: =IF(CU143,IF(CU144=2,1,0)+IF(CU144=4,0.5,0)+IF(CU144=6,1,0)+IF(CU144=11,0.5,0)+IF(CU144=13,0,0)+IF(CU144=20,1,0),0) -> 0 | CV145: 1 | CW145: 0 | CX145: =SUM(C145:CW145) -> 59
B146: Randy Eshelman | C146: =(IF(C128="",0,IF(C$8="",0,1))) -> 0 | D146: =(IF(D128="",0,IF(D$8="",0,1))) -> 0 | E146: 0 | F146: 0 | G146: 0 | H146: 0 | I146: 0 | J146: 0 | K146: 0 | L146: 0 | M146: 0 | N146: 0 | O146: 0 | P146: 0 | Q146: 0 | R146: 0 | S146: 0 | T146: 0 | U146: 1 | V146: 1 | W146: 1 | X146: 1 | Y146: 1 | Z146: 0 | AA146: 0 | AB146: 0 | AC146: 0 | AD146: 0 | AE146: 0 | AF146: 1 | AG146: 1 | AH146: 1 | AI146: 1 | AJ146: 1 | AK146: 1 | AL146: 1 | AM146: 1 | AN146: 0 | AO146: 0 | AP146: 0 | AQ146: 0 | AR146: 0 | AS146: 0 | AT146: 0 | AU146: 0 | AV146: 0 | AW146: 0 | AX146: 0 | AY146: 0 | AZ146: 0 | BA146: 0 | BB146: 0 | BC146: 0 | BD146: 0 | BE146: 0 | BF146: 0 | BG146: 1 | BH146: 0 | BI146: 0 | BJ146: 0 | BK146: 0 | BL146: 0 | BM146: 0 | BN146: 0 | BO146: 0 | BP146: =(IF(BP128="",0,IF(BP$8="",0,1))) -> 0 | BQ146: 0 | BR146: 0 | BS146: 0 | BT146: 0 | BU146: 1 | BV146: 1 | BW146: 1 | BX146: 1 | BY146: 1 | BZ146: 1 | CA146: 1 | CB146: 1 | CC146: 1 | CD146: 0 | CE146: 1 | CF146: 1 | CG146: 1 | CH146: 1 | CI146: 1 | CJ146: 1 | CK146: 1 | CL146: 1 | CM146: 1 | CN146: 1 | CO146: 1 | CP146: 1 | CQ146: 1 | CR146: 1 | CS146: 1 | CT146: 1 | CU146: 1 | CV146: 0 | CW146: 0 | CX146: =SUM(C146:CW146) -> 40
C147: =COLORINDEXOFONECELL(C128,TRUE,1)+COLORINDEXOFONECELL(C$8,TRUE,1) -> 20 | D147: 11 | E147: 13 | F147: 13 | G147: 13 | H147: 6 | I147: 20 | J147: 20 | K147: 20 | L147: 11 | M147: 6 | N147: 13 | O147: 20 | P147: 20 | Q147: 20 | R147: 20 | S147: 11 | T147: 11 | U147: 6 | V147: 13 | W147: 13 | X147: 6 | Y147: 6 | Z147: 4 | AA147: 11 | AB147: 11 | AC147: 11 | AD147: 11 | AE147: 11 | AF147: 20 | AG147: 20 | AH147: 20 | AI147: =COLORINDEXOFONECELL(AI128,TRUE,1)+COLORINDEXOFONECELL(AI$8,TRUE,1) -> 6 | AJ147: 20 | AK147: 20 | AL147: 20 | AM147: 13 | AN147: 11 | AO147: 11 | AP147: 11 | AQ147: 11 | AR147: 11 | AS147: 2 | AT147: 4 | AU147: 11 | AV147: 11 | AW147: 11 | AX147: 11 | AY147: 11 | AZ147: 11 | BA147: 4 | BB147: 11 | BC147: 11 | BD147: 11 | BE147: 11 | BF147: 11 | BG147: 13 | BH147: 4 | BI147: 11 | BJ147: 2 | BK147: 4 | BL147: 11 | BM147: 11 | BN147: 2 | BO147: =COLORINDEXOFONECELL(BO128,TRUE,1)+COLORINDEXOFONECELL(BO$8,TRUE,1) -> 11 | BP147: 11 | BQ147: 11 | BR147: 2 | BS147: 11 | BT147: 4 | BU147: 20 | BV147: 6 | BW147: 11 | BX147: 20 | BY147: 13 | BZ147: 20 | CA147: 20 | CB147: 6 | CC147: 13 | CD147: 11 | CE147: 20 | CF147: 20 | CG147: 6 | CH147: 20 | CI147: 20 | CJ147: 20 | CK147: 6 | CL147: 6 | CM147: 20 | CN147: 6 | CO147: 6 | CP147: 20 | CQ147: 20 | CR147: 20 | CS147: 20 | CT147: 20 | CU147: 20 | CV147: 11 | CW147: 4 | CY147: =CX148/CX146 -> 0.8375
C148: =IF(C146,IF(C147=2,1,0)+IF(C147=4,0.5,0)+IF(C147=6,1,0)+IF(C147=11,0.5,0)+IF(C147=13,0,0)+IF(C147=20,1,0),0) -> 0 | D148: 0 | E148: 0 | F148: 0 | G148: 0 | H148: 0 | I148: 0 | J148: 0 | K148: 0 | L148: 0 | M148: 0 | N148: 0 | O148: 0 | P148: 0 | Q148: 0 | R148: 0 | S148: 0 | T148: 0 | U148: 1 | V148: 0 | W148: 0 | X148: 1 | Y148: 1 | Z148: 0 | AA148: 0 | AB148: 0 | AC148: 0 | AD148: 0 | AE148: 0 | AF148: 1 | AG148: 1 | AH148: 1 | AI148: =IF(AI146,IF(AI147=2,1,0)+IF(AI147=4,0.5,0)+IF(AI147=6,1,0)+IF(AI147=11,0.5,0)+IF(AI147=13,0,0)+IF(AI147=20,1,0),0) -> 1 | AJ148: 1 | AK148: 1 | AL148: 1 | AM148: 0 | AN148: 0 | AO148: 0 | AP148: 0 | AQ148: 0 | AR148: 0 | AS148: 0 | AT148: 0 | AU148: 0 | AV148: 0 | AW148: 0 | AX148: 0 | AY148: 0 | AZ148: 0 | BA148: 0 | BB148: 0 | BC148: 0 | BD148: 0 | BE148: 0 | BF148: 0 | BG148: 0 | BH148: 0 | BI148: 0 | BJ148: 0 | BK148: 0 | BL148: 0 | BM148: 0 | BN148: 0 | BO148: =IF(BO146,IF(BO147=2,1,0)+IF(BO147=4,0.5,0)+IF(BO147=6,1,0)+IF(BO147=11,0.5,0)+IF(BO147=13,0,0)+IF(BO147=20,1,0),0) -> 0 | BP148: 0 | BQ148: 0 | BR148: 0 | BS148: 0 | BT148: 0 | BU148: 1 | BV148: 1 | BW148: 0.5 | BX148: 1 | BY148: 0 | BZ148: 1 | CA148: 1 | CB148: 1 | CC148: 0 | CD148: 0 | CE148: 1 | CF148: 1 | CG148: 1 | CH148: 1 | CI148: 1 | CJ148: 1 | CK148: 1 | CL148: 1 | CM148: 1 | CN148: 1 | CO148: 1 | CP148: 1 | CQ148: 1 | CR148: 1 | CS148: 1 | CT148: 1 | CU148: =IF(CU146,IF(CU147=2,1,0)+IF(CU147=4,0.5,0)+IF(CU147=6,1,0)+IF(CU147=11,0.5,0)+IF(CU147=13,0,0)+IF(CU147=20,1,0),0) -> 1 | CV148: 0 | CW148: 0 | CX148: =SUM(C148:CW148) -> 33.5
B149: Kevin Knedler | C149: =(IF(C128="",0,IF(C$9="",0,1))) -> 1 | D149: =(IF(D128="",0,IF(D$9="",0,1))) -> 0 | E149: 1 | F149: 1 | G149: 1 | H149: 1 | I149: 1 | J149: 1 | K149: 1 | L149: 1 | M149: 1 | N149: 1 | O149: 1 | P149: 1 | Q149: 1 | R149: 1 | S149: 1 | T149: 1 | U149: 1 | V149: 1 | W149: 1 | X149: 1 | Y149: 1 | Z149: 1 | AA149: 1 | AB149: 1 | AC149: 1 | AD149: 1 | AE149: 1 | AF149: 1 | AG149: 1 | AH149: 1 | AI149: 1 | AJ149: 1 | AK149: 1 | AL149: 1 | AM149: 1 | AN149: 1 | AO149: 1 | AP149: 1 | AQ149: 1 | AR149: 1 | AS149: 1 | AT149: 1 | AU149: 1 | AV149: 1 | AW149: 1 | AX149: 1 | AY149: 1 | AZ149: 1 | BA149: 1 | BB149: 1 | BC149: 1 | BD149: 1 | BE149: 1 | BF149: 1 | BG149: 1 | BH149: 1 | BI149: 1 | BJ149: 0 | BK149: 1 | BL149: 1 | BM149: 1 | BN149: 0 | BO149: 1 | BP149: =(IF(BP128="",0,IF(BP$9="",0,1))) -> 1 | BQ149: 1 | BR149: 0 | BS149: 1 | BT149: 1 | BU149: 1 | BV149: 1 | BW149: 1 | BX149: 1 | BY149: 1 | BZ149: 1 | CA149: 1 | CB149: 1 | CC149: 1 | CD149: 0 | CE149: 1 | CF149: 1 | CG149: 1 | CH149: 1 | CI149: 1 | CJ149: 1 | CK149: 1 | CL149: 1 | CM149: 1 | CN149: 1 | CO149: 1 | CP149: 1 | CQ149: 1 | CR149: 1 | CS149: 1 | CT149: 1 | CU149: 1 | CV149: 1 | CW149: 1 | CX149: =SUM(C149:CW149) -> 94
C150: =COLORINDEXOFONECELL(C128,TRUE,1)+COLORINDEXOFONECELL(C$9,TRUE,1) -> 20 | D150: 11 | E150: 13 | F150: 13 | G150: 13 | H150: 6 | I150: 20 | J150: 20 | K150: 20 | L150: 20 | M150: 6 | N150: 20 | O150: 20 | P150: 20 | Q150: 20 | R150: 20 | S150: 11 | T150: 11 | U150: 13 | V150: 13 | W150: 20 | X150: 6 | Y150: 13 | Z150: 6 | AA150: 20 | AB150: 13 | AC150: 20 | AD150: 20 | AE150: 20 | AF150: 20 | AG150: 20 | AH150: 20 | AI150: =COLORINDEXOFONECELL(AI128,TRUE,1)+COLORINDEXOFONECELL(AI$9,TRUE,1) -> 6 | AJ150: 20 | AK150: 20 | AL150: 20 | AM150: 20 | AN150: 20 | AO150: 20 | AP150: 20 | AQ150: 20 | AR150: 20 | AS150: 11 | AT150: 4 | AU150: 20 | AV150: 20 | AW150: 20 | AX150: 20 | AY150: 20 | AZ150: 20 | BA150: 6 | BB150: 20 | BC150: 11 | BD150: 20 | BE150: 20 | BF150: 20 | BG150: 6 | BH150: 13 | BI150: 20 | BJ150: 11 | BK150: 6 | BL150: 20 | BM150: 20 | BN150: 11 | BO150: =COLORINDEXOFONECELL(BO128,TRUE,1)+COLORINDEXOFONECELL(BO$9,TRUE,1) -> 20 | BP150: 20 | BQ150: 11 | BR150: 11 | BS150: 20 | BT150: 6 | BU150: 20 | BV150: 6 | BW150: 11 | BX150: 20 | BY150: 20 | BZ150: 20 | CA150: 20 | CB150: 6 | CC150: 20 | CD150: 11 | CE150: 20 | CF150: 13 | CG150: 13 | CH150: 20 | CI150: 20 | CJ150: 20 | CK150: 6 | CL150: 6 | CM150: 13 | CN150: 4 | CO150: 4 | CP150: 20 | CQ150: 20 | CR150: 20 | CS150: 20 | CT150: 20 | CU150: 20 | CV150: 20 | CW150: 13 | CY150: =CX151/CX149 -> 0.8244680851
C151: =IF(C149,IF(C150=2,1,0)+IF(C150=4,0.5,0)+IF(C150=6,1,0)+IF(C150=11,0.5,0)+IF(C150=13,0,0)+IF(C150=20,1,0),0) -> 1 | D151: 0 | E151: 0 | F151: 0 | G151: 0 | H151: 1 | I151: 1 | J151: 1 | K151: 1 | L151: 1 | M151: 1 | N151: 1 | O151: 1 | P151: 1 | Q151: 1 | R151: 1 | S151: 0.5 | T151: 0.5 | U151: 0 | V151: 0 | W151: 1 | X151: 1 | Y151: 0 | Z151: 1 | AA151: 1 | AB151: 0 | AC151: 1 | AD151: 1 | AE151: 1 | AF151: 1 | AG151: 1 | AH151: 1 | AI151: =IF(AI149,IF(AI150=2,1,0)+IF(AI150=4,0.5,0)+IF(AI150=6,1,0)+IF(AI150=11,0.5,0)+IF(AI150=13,0,0)+IF(AI150=20,1,0),0) -> 1 | AJ151: 1 | AK151: 1 | AL151: 1 | AM151: 1 | AN151: 1 | AO151: 1 | AP151: 1 | AQ151: 1 | AR151: 1 | AS151: 0.5 | AT151: 0.5 | AU151: 1 | AV151: 1 | AW151: 1 | AX151: 1 | AY151: 1 | AZ151: 1 | BA151: 1 | BB151: 1 | BC151: 0.5 | BD151: 1 | BE151: 1 | BF151: 1 | BG151: 1 | BH151: 0 | BI151: 1 | BJ151: 0 | BK151: 1 | BL151: 1 | BM151: 1 | BN151: 0 | BO151: =IF(BO149,IF(BO150=2,1,0)+IF(BO150=4,0.5,0)+IF(BO150=6,1,0)+IF(BO150=11,0.5,0)+IF(BO150=13,0,0)+IF(BO150=20,1,0),0) -> 1 | BP151: 1 | BQ151: 0.5 | BR151: 0 | BS151: 1 | BT151: 1 | BU151: 1 | BV151: 1 | BW151: 0.5 | BX151: 1 | BY151: 1 | BZ151: 1 | CA151: 1 | CB151: 1 | CC151: 1 | CD151: 0 | CE151: 1 | CF151: 0 | CG151: 0 | CH151: 1 | CI151: 1 | CJ151: 1 | CK151: 1 | CL151: 1 | CM151: 0 | CN151: 0.5 | CO151: 0.5 | CP151: 1 | CQ151: 1 | CR151: 1 | CS151: 1 | CT151: 1 | CU151: =IF(CU149,IF(CU150=2,1,0)+IF(CU150=4,0.5,0)+IF(CU150=6,1,0)+IF(CU150=11,0.5,0)+IF(CU150=13,0,0)+IF(CU150=20,1,0),0) -> 1 | CV151: 1 | CW151: 0 | CX151: =SUM(C151:CW151) -> 77.5
B152: David Nolan | C152: =(IF(C128="",0,IF(C$10="",0,1))) -> 1 | D152: =(IF(D128="",0,IF(D$10="",0,1))) -> 0 | E152: 1 | F152: 1 | G152: 1 | H152: 1 | I152: 1 | J152: 0 | K152: 0 | L152: 0 | M152: 0 | N152: 0 | O152: 0 | P152: 0 | Q152: 0 | R152: 0 | S152: 0 | T152: 0 | U152: 0 | V152: 0 | W152: 0 | X152: 0 | Y152: 0 | Z152: 0 | AA152: 0 | AB152: 0 | AC152: 0 | AD152: 0 | AE152: 0 | AF152: 0 | AG152: 0 | AH152: 0 | AI152: 0 | AJ152: 0 | AK152: 0 | AL152: 0 | AM152: 0 | AN152: 0 | AO152: 0 | AP152: 0 | AQ152: 0 | AR152: 0 | AS152: 0 | AT152: 0 | AU152: 0 | AV152: 0 | AW152: 0 | AX152: 0 | AY152: 0 | AZ152: 0 | BA152: 0 | BB152: 0 | BC152: 0 | BD152: 0 | BE152: 1 | BF152: 1 | BG152: 0 | BH152: 1 | BI152: 1 | BJ152: 0 | BK152: 1 | BL152: 1 | BM152: 0 | BN152: 0 | BO152: 0 | BP152: =(IF(BP128="",0,IF(BP$10="",0,1))) -> 0 | BQ152: 0 | BR152: 0 | BS152: 0 | BT152: 0 | BU152: 0 | BV152: 0 | BW152: 0 | BX152: 0 | BY152: 0 | BZ152: 0 | CA152: 0 | CB152: 0 | CC152: 0 | CD152: 0 | CE152: 0 | CF152: 0 | CG152: 0 | CH152: 0 | CI152: 0 | CJ152: 0 | CK152: 0 | CL152: 0 | CM152: 0 | CN152: 0 | CO152: 0 | CP152: 0 | CQ152: 0 | CR152: 0 | CS152: 0 | CT152: 0 | CU152: 0 | CV152: 0 | CW152: 0 | CX152: =SUM(C152:CW152) -> 12
C153: =COLORINDEXOFONECELL(C128,TRUE,1)+COLORINDEXOFONECELL(C$10,TRUE,1) -> 20 | D153: 4 | E153: 4 | F153: 13 | G153: 13 | H153: 6 | I153: 13 | J153: 11 | K153: 11 | L153: 11 | M153: 4 | N153: 11 | O153: 11 | P153: 11 | Q153: 11 | R153: 11 | S153: 2 | T153: 2 | U153: 4 | V153: 4 | W153: 11 | X153: 4 | Y153: 4 | Z153: 4 | AA153: 11 | AB153: 11 | AC153: 11 | AD153: 11 | AE153: 11 | AF153: 11 | AG153: 11 | AH153: 11 | AI153: =COLORINDEXOFONECELL(AI128,TRUE,1)+COLORINDEXOFONECELL(AI$10,TRUE,1) -> 4 | AJ153: 11 | AK153: 11 | AL153: 11 | AM153: 11 | AN153: 11 | AO153: 11 | AP153: 11 | AQ153: 11 | AR153: 11 | AS153: 2 | AT153: 4 | AU153: 11 | AV153: 11 | AW153: 11 | AX153: 11 | AY153: 11 | AZ153: 11 | BA153: 4 | BB153: 11 | BC153: 11 | BD153: 11 | BE153: 13 | BF153: 20 | BG153: 4 | BH153: 13 | BI153: 13 | BJ153: 11 | BK153: 13 | BL153: 13 | BM153: 11 | BN153: 2 | BO153: =COLORINDEXOFONECELL(BO128,TRUE,1)+COLORINDEXOFONECELL(BO$10,TRUE,1) -> 11 | BP153: 11 | BQ153: 11 | BR153: 2 | BS153: 11 | BT153: 4 | BU153: 11 | BV153: 4 | BW153: 2 | BX153: 11 | BY153: 11 | BZ153: 11 | CA153: 11 | CB153: 4 | CC153: 11 | CD153: 2 | CE153: 11 | CF153: 11 | CG153: 4 | CH153: 11 | CI153: 11 | CJ153: 11 | CK153: 4 | CL153: 4 | CM153: 11 | CN153: 4 | CO153: 4 | CP153: 11 | CQ153: 11 | CR153: 11 | CS153: 11 | CT153: 11 | CU153: 11 | CV153: 11 | CW153: 4 | CY153: =CX154/CX152 -> 0.2916666667
C154: =IF(C152,IF(C153=2,1,0)+IF(C153=4,0.5,0)+IF(C153=6,1,0)+IF(C153=11,0.5,0)+IF(C153=13,0,0)+IF(C153=20,1,0),0) -> 1 | D154: 0 | E154: 0.5 | F154: 0 | G154: 0 | H154: 1 | I154: 0 | J154: 0 | K154: 0 | L154: 0 | M154: 0 | N154: 0 | O154: 0 | P154: 0 | Q154: 0 | R154: 0 | S154: 0 | T154: 0 | U154: 0 | V154: 0 | W154: 0 | X154: 0 | Y154: 0 | Z154: 0 | AA154: 0 | AB154: 0 | AC154: 0 | AD154: 0 | AE154: 0 | AF154: 0 | AG154: 0 | AH154: 0 | AI154: =IF(AI152,IF(AI153=2,1,0)+IF(AI153=4,0.5,0)+IF(AI153=6,1,0)+IF(AI153=11,0.5,0)+IF(AI153=13,0,0)+IF(AI153=20,1,0),0) -> 0 | AJ154: 0 | AK154: 0 | AL154: 0 | AM154: 0 | AN154: 0 | AO154: 0 | AP154: 0 | AQ154: 0 | AR154: 0 | AS154: 0 | AT154: 0 | AU154: 0 | AV154: 0 | AW154: 0 | AX154: 0 | AY154: 0 | AZ154: 0 | BA154: 0 | BB154: 0 | BC154: 0 | BD154: 0 | BE154: 0 | BF154: 1 | BG154: 0 | BH154: 0 | BI154: 0 | BJ154: 0 | BK154: 0 | BL154: 0 | BM154: 0 | BN154: 0 | BO154: =IF(BO152,IF(BO153=2,1,0)+IF(BO153=4,0.5,0)+IF(BO153=6,1,0)+IF(BO153=11,0.5,0)+IF(BO153=13,0,0)+IF(BO153=20,1,0),0) -> 0 | BP154: 0 | BQ154: 0 | BR154: 0 | BS154: 0 | BT154: 0 | BU154: 0 | BV154: 0 | BW154: 0 | BX154: 0 | BY154: 0 | BZ154: 0 | CA154: 0 | CB154: 0 | CC154: 0 | CD154: 0 | CE154: 0 | CF154: 0 | CG154: 0 | CH154: 0 | CI154: 0 | CJ154: 0 | CK154: 0 | CL154: 0 | CM154: 0 | CN154: 0 | CO154: 0 | CP154: 0 | CQ154: 0 | CR154: 0 | CS154: 0 | CT154: 0 | CU154: =IF(CU152,IF(CU153=2,1,0)+IF(CU153=4,0.5,0)+IF(CU153=6,1,0)+IF(CU153=11,0.5,0)+IF(CU153=13,0,0)+IF(CU153=20,1,0),0) -> 0 | CV154: 0 | CW154: 0 | CX154: =SUM(C154:CW154) -> 3.5
B155: Brett Pojunis | C155: =(IF(C128="",0,IF(C$11="",0,1))) -> 0 | D155: =(IF(D128="",0,IF(D$11="",0,1))) -> 0 | E155: 0 | F155: 0 | G155: 0 | H155: 0 | I155: 0 | J155: 0 | K155: 0 | L155: 0 | M155: 0 | N155: 0 | O155: 0 | P155: 0 | Q155: 0 | R155: 0 | S155: 0 | T155: 0 | U155: 0 | V155: 0 | W155: 0 | X155: 0 | Y155: 0 | Z155: 0 | AA155: 0 | AB155: 0 | AC155: 0 | AD155: 0 | AE155: 0 | AF155: 0 | AG155: 1 | AH155: 0 | AI155: 0 | AJ155: 0 | AK155: 0 | AL155: 0 | AM155: 0 | AN155: 0 | AO155: 0 | AP155: 0 | AQ155: 0 | AR155: 0 | AS155: 0 | AT155: 0 | AU155: 0 | AV155: 1 | AW155: 1 | AX155: 1 | AY155: 0 | AZ155: 0 | BA155: 0 | BB155: 0 | BC155: 0 | BD155: 0 | BE155: 0 | BF155: 0 | BG155: 0 | BH155: 0 | BI155: 0 | BJ155: 0 | BK155: 0 | BL155: 0 | BM155: 0 | BN155: 0 | BO155: 0 | BP155: =(IF(BP128="",0,IF(BP$11="",0,1))) -> 0 | BQ155: 0 | BR155: 0 | BS155: 0 | BT155: 0 | BU155: 0 | BV155: 0 | BW155: 0 | BX155: 0 | BY155: 0 | BZ155: 0 | CA155: 0 | CB155: 0 | CC155: 0 | CD155: 0 | CE155: 0 | CF155: 0 | CG155: 0 | CH155: 0 | CI155: 0 | CJ155: 0 | CK155: 0 | CL155: 0 | CM155: 0 | CN155: 0 | CO155: 0 | CP155: 0 | CQ155: 0 | CR155: 0 | CS155: 0 | CT155: 0 | CU155: 1 | CV155: 1 | CW155: 1 | CX155: =SUM(C155:CW155) -> 7
C156: =COLORINDEXOFONECELL(C128,TRUE,1)+COLORINDEXOFONECELL(C$11,TRUE,1) -> 20 | D156: 11 | E156: 6 | F156: 6 | G156: 13 | H156: 13 | I156: 13 | J156: 11 | K156: 11 | L156: 11 | M156: 4 | N156: 11 | O156: 11 | P156: 11 | Q156: 11 | R156: 11 | S156: 2 | T156: 2 | U156: 4 | V156: 4 | W156: 11 | X156: 4 | Y156: 4 | Z156: 4 | AA156: 11 | AB156: 11 | AC156: 11 | AD156: 11 | AE156: 11 | AF156: 11 | AG156: 20 | AH156: 11 | AI156: =COLORINDEXOFONECELL(AI128,TRUE,1)+COLORINDEXOFONECELL(AI$11,TRUE,1) -> 4 | AJ156: 11 | AK156: 11 | AL156: 11 | AM156: 11 | AN156: 11 | AO156: 11 | AP156: 11 | AQ156: 11 | AR156: 11 | AS156: 2 | AT156: 4 | AU156: 11 | AV156: 20 | AW156: 20 | AX156: 20 | AY156: 11 | AZ156: 11 | BA156: 4 | BB156: 11 | BC156: 11 | BD156: 11 | BE156: 11 | BF156: 11 | BG156: 4 | BH156: 4 | BI156: 11 | BJ156: 2 | BK156: 4 | BL156: 11 | BM156: 11 | BN156: 2 | BO156: =COLORINDEXOFONECELL(BO128,TRUE,1)+COLORINDEXOFONECELL(BO$11,TRUE,1) -> 11 | BP156: 11 | BQ156: 11 | BR156: 2 | BS156: 11 | BT156: 4 | BU156: 11 | BV156: 4 | BW156: 2 | BX156: 11 | BY156: 11 | BZ156: 11 | CA156: 11 | CB156: 4 | CC156: 11 | CD156: 2 | CE156: 11 | CF156: 11 | CG156: 4 | CH156: 11 | CI156: 11 | CJ156: 11 | CK156: 4 | CL156: 4 | CM156: 11 | CN156: 4 | CO156: 4 | CP156: 11 | CQ156: 11 | CR156: 11 | CS156: 11 | CT156: 11 | CU156: 20 | CV156: 20 | CW156: 6 | CY156: =CX157/CX155 -> 1
C157: =IF(C155,IF(C156=2,1,0)+IF(C156=4,0.5,0)+IF(C156=6,1,0)+IF(C156=11,0.5,0)+IF(C156=13,0,0)+IF(C156=20,1,0),0) -> 0 | D157: 0 | E157: 0 | F157: 0 | G157: 0 | H157: 0 | I157: 0 | J157: 0 | K157: 0 | L157: 0 | M157: 0 | N157: 0 | O157: 0 | P157: 0 | Q157: 0 | R157: 0 | S157: 0 | T157: 0 | U157: 0 | V157: 0 | W157: 0 | X157: 0 | Y157: 0 | Z157: 0 | AA157: 0 | AB157: 0 | AC157: 0 | AD157: 0 | AE157: 0 | AF157: 0 | AG157: 1 | AH157: 0 | AI157: =IF(AI155,IF(AI156=2,1,0)+IF(AI156=4,0.5,0)+IF(AI156=6,1,0)+IF(AI156=11,0.5,0)+IF(AI156=13,0,0)+IF(AI156=20,1,0),0) -> 0 | AJ157: 0 | AK157: 0 | AL157: 0 | AM157: 0 | AN157: 0 | AO157: 0 | AP157: 0 | AQ157: 0 | AR157: 0 | AS157: 0 | AT157: 0 | AU157: 0 | AV157: 1 | AW157: 1 | AX157: 1 | AY157: 0 | AZ157: 0 | BA157: 0 | BB157: 0 | BC157: 0 | BD157: 0 | BE157: 0 | BF157: 0 | BG157: 0 | BH157: 0 | BI157: 0 | BJ157: 0 | BK157: 0 | BL157: 0 | BM157: 0 | BN157: 0 | BO157: =IF(BO155,IF(BO156=2,1,0)+IF(BO156=4,0.5,0)+IF(BO156=6,1,0)+IF(BO156=11,0.5,0)+IF(BO156=13,0,0)+IF(BO156=20,1,0),0) -> 0 | BP157: 0 | BQ157: 0 | BR157: 0 | BS157: 0 | BT157: 0 | BU157: 0 | BV157: 0 | BW157: 0 | BX157: 0 | BY157: 0 | BZ157: 0 | CA157: 0 | CB157: 0 | CC157: 0 | CD157: 0 | CE157: 0 | CF157: 0 | CG157: 0 | CH157: 0 | CI157: 0 | CJ157: 0 | CK157: 0 | CL157: 0 | CM157: 0 | CN157: 0 | CO157: 0 | CP157: 0 | CQ157: 0 | CR157: 0 | CS157: 0 | CT157: 0 | CU157: =IF(CU155,IF(CU156=2,1,0)+IF(CU156=4,0.5,0)+IF(CU156=6,1,0)+IF(CU156=11,0.5,0)+IF(CU156=13,0,0)+IF(CU156=20,1,0),0) -> 1 | CV157: 1 | CW157: 1 | CX157: =SUM(C157:CW157) -> 7
B158: Wayne Allyn Root | C158: =(IF(C128="",0,IF(C$12="",0,1))) -> 1 | D158: =(IF(D128="",0,IF(D$12="",0,1))) -> 0 | E158: 1 | F158: 1 | G158: 1 | H158: 1 | I158: 1 | J158: 1 | K158: 1 | L158: 1 | M158: 1 | N158: 1 | O158: 0 | P158: 0 | Q158: 0 | R158: 0 | S158: 0 | T158: 0 | U158: 1 | V158: 1 | W158: 1 | X158: 1 | Y158: 0 | Z158: 1 | AA158: 1 | AB158: 1 | AC158: 1 | AD158: 1 | AE158: 1 | AF158: 1 | AG158: 1 | AH158: 1 | AI158: 1 | AJ158: 1 | AK158: 1 | AL158: 1 | AM158: 1 | AN158: 1 | AO158: 1 | AP158: 1 | AQ158: 1 | AR158: 1 | AS158: 1 | AT158: 1 | AU158: 1 | AV158: 1 | AW158: 1 | AX158: 1 | AY158: 1 | AZ158: 1 | BA158: 1 | BB158: 1 | BC158: 1 | BD158: 1 | BE158: 1 | BF158: 1 | BG158: 1 | BH158: 1 | BI158: 1 | BJ158: 0 | BK158: 1 | BL158: 1 | BM158: 1 | BN158: 0 | BO158: 1 | BP158: =(IF(BP128="",0,IF(BP$12="",0,1))) -> 1 | BQ158: 1 | BR158: 0 | BS158: 1 | BT158: 1 | BU158: 1 | BV158: 1 | BW158: 1 | BX158: 1 | BY158: 1 | BZ158: 1 | CA158: 1 | CB158: 1 | CC158: 1 | CD158: 0 | CE158: 1 | CF158: 1 | CG158: 1 | CH158: 1 | CI158: 1 | CJ158: 1 | CK158: 1 | CL158: 1 | CM158: 1 | CN158: 1 | CO158: 1 | CP158: 1 | CQ158: 1 | CR158: 1 | CS158: 1 | CT158: 1 | CU158: 1 | CV158: 1 | CW158: 1 | CX158: =SUM(C158:CW158) -> 87
C159: =COLORINDEXOFONECELL(C128,TRUE,1)+COLORINDEXOFONECELL(C$12,TRUE,1) -> 20 | D159: 11 | E159: 13 | F159: 13 | G159: 13 | H159: 6 | I159: 20 | J159: 20 | K159: 20 | L159: 20 | M159: 6 | N159: 20 | O159: 11 | P159: 11 | Q159: 11 | R159: 11 | S159: 2 | T159: 2 | U159: 6 | V159: 13 | W159: 20 | X159: 6 | Y159: 4 | Z159: 13 | AA159: 20 | AB159: 20 | AC159: 20 | AD159: 13 | AE159: 20 | AF159: 20 | AG159: 20 | AH159: 20 | AI159: =COLORINDEXOFONECELL(AI128,TRUE,1)+COLORINDEXOFONECELL(AI$12,TRUE,1) -> 6 | AJ159: 20 | AK159: 20 | AL159: 20 | AM159: 20 | AN159: 20 | AO159: 20 | AP159: 20 | AQ159: 20 | AR159: 20 | AS159: 11 | AT159: 4 | AU159: 20 | AV159: 11 | AW159: 20 | AX159: 20 | AY159: 20 | AZ159: 20 | BA159: 6 | BB159: 20 | BC159: 20 | BD159: 20 | BE159: 20 | BF159: 20 | BG159: 6 | BH159: 6 | BI159: 20 | BJ159: 2 | BK159: 6 | BL159: 20 | BM159: 20 | BN159: 11 | BO159: =COLORINDEXOFONECELL(BO128,TRUE,1)+COLORINDEXOFONECELL(BO$12,TRUE,1) -> 20 | BP159: 20 | BQ159: 20 | BR159: 11 | BS159: 20 | BT159: 6 | BU159: 20 | BV159: 6 | BW159: 11 | BX159: 20 | BY159: 20 | BZ159: 20 | CA159: 20 | CB159: 6 | CC159: 20 | CD159: 2 | CE159: 20 | CF159: 20 | CG159: 6 | CH159: 20 | CI159: 20 | CJ159: 20 | CK159: 6 | CL159: 13 | CM159: 20 | CN159: 6 | CO159: 6 | CP159: 20 | CQ159: 20 | CR159: 20 | CS159: 20 | CT159: 20 | CU159: 20 | CV159: 20 | CW159: 6 | CY159: =CX160/CX158 -> 0.8965517241
C160: =IF(C158,IF(C159=2,1,0)+IF(C159=4,0.5,0)+IF(C159=6,1,0)+IF(C159=11,0.5,0)+IF(C159=13,0,0)+IF(C159=20,1,0),0) -> 1 | D160: 0 | E160: 0 | F160: 0 | G160: 0 | H160: 1 | I160: 1 | J160: 1 | K160: 1 | L160: 1 | M160: 1 | N160: 1 | O160: 0 | P160: 0 | Q160: 0 | R160: 0 | S160: 0 | T160: 0 | U160: 1 | V160: 0 | W160: 1 | X160: 1 | Y160: 0 | Z160: 0 | AA160: 1 | AB160: 1 | AC160: 1 | AD160: 0 | AE160: 1 | AF160: 1 | AG160: 1 | AH160: 1 | AI160: =IF(AI158,IF(AI159=2,1,0)+IF(AI159=4,0.5,0)+IF(AI159=6,1,0)+IF(AI159=11,0.5,0)+IF(AI159=13,0,0)+IF(AI159=20,1,0),0) -> 1 | AJ160: 1 | AK160: 1 | AL160: 1 | AM160: 1 | AN160: 1 | AO160: 1 | AP160: 1 | AQ160: 1 | AR160: 1 | AS160: 0.5 | AT160: 0.5 | AU160: 1 | AV160: 0.5 | AW160: 1 | AX160: 1 | AY160: 1 | AZ160: 1 | BA160: 1 | BB160: 1 | BC160: 1 | BD160: 1 | BE160: 1 | BF160: 1 | BG160: 1 | BH160: 1 | BI160: 1 | BJ160: 0 | BK160: 1 | BL160: 1 | BM160: 1 | BN160: 0 | BO160: =IF(BO158,IF(BO159=2,1,0)+IF(BO159=4,0.5,0)+IF(BO159=6,1,0)+IF(BO159=11,0.5,0)+IF(BO159=13,0,0)+IF(BO159=20,1,0),0) -> 1 | BP160: 1 | BQ160: 1 | BR160: 0 | BS160: 1 | BT160: 1 | BU160: 1 | BV160: 1 | BW160: 0.5 | BX160: 1 | BY160: 1 | BZ160: 1 | CA160: 1 | CB160: 1 | CC160: 1 | CD160: 0 | CE160: 1 | CF160: 1 | CG160: 1 | CH160: 1 | CI160: 1 | CJ160: 1 | CK160: 1 | CL160: 0 | CM160: 1 | CN160: 1 | CO160: 1 | CP160: 1 | CQ160: 1 | CR160: 1 | CS160: 1 | CT160: 1 | CU160: =IF(CU158,IF(CU159=2,1,0)+IF(CU159=4,0.5,0)+IF(CU159=6,1,0)+IF(CU159=11,0.5,0)+IF(CU159=13,0,0)+IF(CU159=20,1,0),0) -> 1 | CV160: 1 | CW160: 1 | CX160: =SUM(C160:CW160) -> 78
B161: Dr. Mary Ruwart | C161: =(IF(C128="",0,IF(C$13="",0,1))) -> 1 | D161: =(IF(D128="",0,IF(D$13="",0,1))) -> 0 | E161: 1 | F161: 1 | G161: 1 | H161: 1 | I161: 1 | J161: 1 | K161: 1 | L161: 1 | M161: 1 | N161: 1 | O161: 1 | P161: 1 | Q161: 1 | R161: 1 | S161: 1 | T161: 1 | U161: 1 | V161: 1 | W161: 1 | X161: 1 | Y161: 1 | Z161: 0 | AA161: 0 | AB161: 0 | AC161: 0 | AD161: 0 | AE161: 0 | AF161: 1 | AG161: 0 | AH161: 1 | AI161: 1 | AJ161: 1 | AK161: 1 | AL161: 1 | AM161: 1 | AN161: 1 | AO161: 1 | AP161: 1 | AQ161: 1 | AR161: 1 | AS161: 1 | AT161: 1 | AU161: 1 | AV161: 1 | AW161: 1 | AX161: 1 | AY161: 1 | AZ161: 1 | BA161: 1 | BB161: 1 | BC161: 1 | BD161: 1 | BE161: 1 | BF161: 1 | BG161: 1 | BH161: 1 | BI161: 0 | BJ161: 0 | BK161: 1 | BL161: 1 | BM161: 1 | BN161: 0 | BO161: 1 | BP161: =(IF(BP128="",0,IF(BP$13="",0,1))) -> 0 | BQ161: 1 | BR161: 0 | BS161: 1 | BT161: 1 | BU161: 1 | BV161: 0 | BW161: 1 | BX161: 1 | BY161: 1 | BZ161: 1 | CA161: 1 | CB161: 1 | CC161: 1 | CD161: 0 | CE161: 1 | CF161: 1 | CG161: 1 | CH161: 1 | CI161: 1 | CJ161: 1 | CK161: 1 | CL161: 1 | CM161: 1 | CN161: 1 | CO161: 1 | CP161: 1 | CQ161: 1 | CR161: 1 | CS161: 1 | CT161: 1 | CU161: 1 | CV161: 1 | CW161: 1 | CX161: =SUM(C161:CW161) -> 84
C162: =COLORINDEXOFONECELL(C128,TRUE,1)+COLORINDEXOFONECELL(C$13,TRUE,1) -> 20 | D162: 4 | E162: 13 | F162: 4 | G162: 13 | H162: 6 | I162: 20 | J162: 13 | K162: 20 | L162: 20 | M162: 6 | N162: 13 | O162: 11 | P162: 20 | Q162: 20 | R162: 13 | S162: 11 | T162: 11 | U162: 6 | V162: 4 | W162: 13 | X162: 6 | Y162: 4 | Z162: 4 | AA162: 11 | AB162: 11 | AC162: 11 | AD162: 11 | AE162: 11 | AF162: 13 | AG162: 11 | AH162: 13 | AI162: =COLORINDEXOFONECELL(AI128,TRUE,1)+COLORINDEXOFONECELL(AI$13,TRUE,1) -> 13 | AJ162: 11 | AK162: 20 | AL162: 20 | AM162: 13 | AN162: 13 | AO162: 20 | AP162: 13 | AQ162: 20 | AR162: 20 | AS162: 11 | AT162: 6 | AU162: 20 | AV162: 20 | AW162: 13 | AX162: 11 | AY162: 20 | AZ162: 13 | BA162: 13 | BB162: 20 | BC162: 13 | BD162: 13 | BE162: 13 | BF162: 20 | BG162: 13 | BH162: 13 | BI162: 11 | BJ162: 11 | BK162: 13 | BL162: 13 | BM162: 20 | BN162: 11 | BO162: =COLORINDEXOFONECELL(BO128,TRUE,1)+COLORINDEXOFONECELL(BO$13,TRUE,1) -> 13 | BP162: 11 | BQ162: 20 | BR162: 11 | BS162: 20 | BT162: 6 | BU162: 13 | BV162: 4 | BW162: 11 | BX162: 20 | BY162: 13 | BZ162: 13 | CA162: 20 | CB162: 13 | CC162: 20 | CD162: 2 | CE162: 13 | CF162: 13 | CG162: 13 | CH162: 20 | CI162: 13 | CJ162: 11 | CK162: 13 | CL162: 4 | CM162: 20 | CN162: 13 | CO162: 13 | CP162: 13 | CQ162: 13 | CR162: 20 | CS162: 13 | CT162: 13 | CU162: 13 | CV162: 13 | CW162: 6 | CY162: =CX163/CX161 -> 0.4523809524
C163: =IF(C161,IF(C162=2,1,0)+IF(C162=4,0.5,0)+IF(C162=6,1,0)+IF(C162=11,0.5,0)+IF(C162=13,0,0)+IF(C162=20,1,0),0) -> 1 | D163: 0 | E163: 0 | F163: 0.5 | G163: 0 | H163: 1 | I163: 1 | J163: 0 | K163: 1 | L163: 1 | M163: 1 | N163: 0 | O163: 0.5 | P163: 1 | Q163: 1 | R163: 0 | S163: 0.5 | T163: 0.5 | U163: 1 | V163: 0.5 | W163: 0 | X163: 1 | Y163: 0.5 | Z163: 0 | AA163: 0 | AB163: 0 | AC163: 0 | AD163: 0 | AE163: 0 | AF163: 0 | AG163: 0 | AH163: 0 | AI163: =IF(AI161,IF(AI162=2,1,0)+IF(AI162=4,0.5,0)+IF(AI162=6,1,0)+IF(AI162=11,0.5,0)+IF(AI162=13,0,0)+IF(AI162=20,1,0),0) -> 0 | AJ163: 0.5 | AK163: 1 | AL163: 1 | AM163: 0 | AN163: 0 | AO163: 1 | AP163: 0 | AQ163: 1 | AR163: 1 | AS163: 0.5 | AT163: 1 | AU163: 1 | AV163: 1 | AW163: 0 | AX163: 0.5 | AY163: 1 | AZ163: 0 | BA163: 0 | BB163: 1 | BC163: 0 | BD163: 0 | BE163: 0 | BF163: 1 | BG163: 0 | BH163: 0 | BI163: 0 | BJ163: 0 | BK163: 0 | BL163: 0 | BM163: 1 | BN163: 0 | BO163: =IF(BO161,IF(BO162=2,1,0)+IF(BO162=4,0.5,0)+IF(BO162=6,1,0)+IF(BO162=11,0.5,0)+IF(BO162=13,0,0)+IF(BO162=20,1,0),0) -> 0 | BP163: 0 | BQ163: 1 | BR163: 0 | BS163: 1 | BT163: 1 | BU163: 0 | BV163: 0 | BW163: 0.5 | BX163: 1 | BY163: 0 | BZ163: 0 | CA163: 1 | CB163: 0 | CC163: 1 | CD163: 0 | CE163: 0 | CF163: 0 | CG163: 0 | CH163: 1 | CI163: 0 | CJ163: 0.5 | CK163: 0 | CL163: 0.5 | CM163: 1 | CN163: 0 | CO163: 0 | CP163: 0 | CQ163: 0 | CR163: 1 | CS163: 0 | CT163: 0 | CU163: =IF(CU161,IF(CU162=2,1,0)+IF(CU162=4,0.5,0)+IF(CU162=6,1,0)+IF(CU162=11,0.5,0)+IF(CU162=13,0,0)+IF(CU162=20,1,0),0) -> 0 | CV163: 0 | CW163: 1 | CX163: =SUM(C163:CW163) -> 38
B164: Rebecca Sink-Burris | C164: =(IF(C128="",0,IF(C$14="",0,1))) -> 1 | D164: =(IF(D128="",0,IF(D$14="",0,1))) -> 0 | E164: 0 | F164: 0 | G164: 0 | H164: 0 | I164: 0 | J164: 0 | K164: 0 | L164: 0 | M164: 0 | N164: 0 | O164: 0 | P164: 0 | Q164: 0 | R164: 0 | S164: 0 | T164: 0 | U164: 1 | V164: 1 | W164: 1 | X164: 1 | Y164: 1 | Z164: 1 | AA164: 1 | AB164: 1 | AC164: 1 | AD164: 1 | AE164: 1 | AF164: 1 | AG164: 1 | AH164: 1 | AI164: 1 | AJ164: 1 | AK164: 1 | AL164: 1 | AM164: 1 | AN164: 1 | AO164: 1 | AP164: 1 | AQ164: 1 | AR164: 1 | AS164: 1 | AT164: 1 | AU164: 1 | AV164: 1 | AW164: 1 | AX164: 1 | AY164: 1 | AZ164: 1 | BA164: 1 | BB164: 1 | BC164: 1 | BD164: 1 | BE164: 1 | BF164: 0 | BG164: 0 | BH164: 0 | BI164: 0 | BJ164: 0 | BK164: 0 | BL164: 0 | BM164: 0 | BN164: 0 | BO164: 0 | BP164: =(IF(BP128="",0,IF(BP$14="",0,1))) -> 0 | BQ164: 0 | BR164: 0 | BS164: 0 | BT164: 0 | BU164: 1 | BV164: 1 | BW164: 1 | BX164: 1 | BY164: 1 | BZ164: 1 | CA164: 0 | CB164: 1 | CC164: 1 | CD164: 0 | CE164: 1 | CF164: 1 | CG164: 1 | CH164: 1 | CI164: 1 | CJ164: 1 | CK164: 1 | CL164: 1 | CM164: 1 | CN164: 1 | CO164: 1 | CP164: 1 | CQ164: 1 | CR164: 1 | CS164: 1 | CT164: 1 | CU164: 1 | CV164: 1 | CW164: 1 | CX164: =SUM(C164:CW164) -> 65
C165: =COLORINDEXOFONECELL(C128,TRUE,1)+COLORINDEXOFONECELL(C$14,TRUE,1) -> 20 | D165: 2 | E165: 4 | F165: 4 | G165: 11 | H165: 4 | I165: 11 | J165: 11 | K165: 11 | L165: 11 | M165: 4 | N165: 11 | O165: 11 | P165: 11 | Q165: 11 | R165: 11 | S165: 2 | T165: 2 | U165: 6 | V165: 13 | W165: 20 | X165: 6 | Y165: 6 | Z165: 13 | AA165: 20 | AB165: 20 | AC165: 20 | AD165: 20 | AE165: 20 | AF165: 20 | AG165: 20 | AH165: 20 | AI165: =COLORINDEXOFONECELL(AI128,TRUE,1)+COLORINDEXOFONECELL(AI$14,TRUE,1) -> 6 | AJ165: 20 | AK165: 20 | AL165: 20 | AM165: 20 | AN165: 20 | AO165: 20 | AP165: 20 | AQ165: 20 | AR165: 20 | AS165: 11 | AT165: 6 | AU165: 11 | AV165: 20 | AW165: 20 | AX165: 20 | AY165: 20 | AZ165: 20 | BA165: 6 | BB165: 20 | BC165: 20 | BD165: 20 | BE165: 20 | BF165: 11 | BG165: 4 | BH165: 4 | BI165: 11 | BJ165: 2 | BK165: 4 | BL165: 11 | BM165: 11 | BN165: 2 | BO165: =COLORINDEXOFONECELL(BO128,TRUE,1)+COLORINDEXOFONECELL(BO$14,TRUE,1) -> 11 | BP165: 11 | BQ165: 11 | BR165: 2 | BS165: 11 | BT165: 4 | BU165: 20 | BV165: 6 | BW165: 11 | BX165: 20 | BY165: 20 | BZ165: 20 | CA165: 11 | CB165: 6 | CC165: 20 | CD165: 2 | CE165: 20 | CF165: 20 | CG165: 6 | CH165: 20 | CI165: 20 | CJ165: 20 | CK165: 13 | CL165: 6 | CM165: 20 | CN165: 6 | CO165: 6 | CP165: 20 | CQ165: 20 | CR165: 20 | CS165: 20 | CT165: 20 | CU165: 20 | CV165: 20 | CW165: 6 | CY165: =CX166/CX164 -> 0.9307692308
C166: =IF(C164,IF(C165=2,1,0)+IF(C165=4,0.5,0)+IF(C165=6,1,0)+IF(C165=11,0.5,0)+IF(C165=13,0,0)+IF(C165=20,1,0),0) -> 1 | D166: 0 | E166: 0 | F166: 0 | G166: 0 | H166: 0 | I166: 0 | J166: 0 | K166: 0 | L166: 0 | M166: 0 | N166: 0 | O166: 0 | P166: 0 | Q166: 0 | R166: 0 | S166: 0 | T166: 0 | U166: 1 | V166: 0 | W166: 1 | X166: 1 | Y166: 1 | Z166: 0 | AA166: 1 | AB166: 1 | AC166: 1 | AD166: 1 | AE166: 1 | AF166: 1 | AG166: 1 | AH166: 1 | AI166: =IF(AI164,IF(AI165=2,1,0)+IF(AI165=4,0.5,0)+IF(AI165=6,1,0)+IF(AI165=11,0.5,0)+IF(AI165=13,0,0)+IF(AI165=20,1,0),0) -> 1 | AJ166: 1 | AK166: 1 | AL166: 1 | AM166: 1 | AN166: 1 | AO166: 1 | AP166: 1 | AQ166: 1 | AR166: 1 | AS166: 0.5 | AT166: 1 | AU166: 0.5 | AV166: 1 | AW166: 1 | AX166: 1 | AY166: 1 | AZ166: 1 | BA166: 1 | BB166: 1 | BC166: 1 | BD166: 1 | BE166: 1 | BF166: 0 | BG166: 0 | BH166: 0 | BI166: 0 | BJ166: 0 | BK166: 0 | BL166: 0 | BM166: 0 | BN166: 0 | BO166: =IF(BO164,IF(BO165=2,1,0)+IF(BO165=4,0.5,0)+IF(BO165=6,1,0)+IF(BO165=11,0.5,0)+IF(BO165=13,0,0)+IF(BO165=20,1,0),0) -> 0 | BP166: 0 | BQ166: 0 | BR166: 0 | BS166: 0 | BT166: 0 | BU166: 1 | BV166: 1 | BW166: 0.5 | BX166: 1 | BY166: 1 | BZ166: 1 | CA166: 0 | CB166: 1 | CC166: 1 | CD166: 0 | CE166: 1 | CF166: 1 | CG166: 1 | CH166: 1 | CI166: 1 | CJ166: 1 | CK166: 0 | CL166: 1 | CM166: 1 | CN166: 1 | CO166: 1 | CP166: 1 | CQ166: 1 | CR166: 1 | CS166: 1 | CT166: 1 | CU166: =IF(CU164,IF(CU165=2,1,0)+IF(CU165=4,0.5,0)+IF(CU165=6,1,0)+IF(CU165=11,0.5,0)+IF(CU165=13,0,0)+IF(CU165=20,1,0),0) -> 1 | CV166: 1 | CW166: 1 | CX166: =SUM(C166:CW166) -> 60.5
B167: Doug Craig | C167: =(IF(C128="",0,IF(C$15="",0,1))) -> 1 | D167: =(IF(D128="",0,IF(D$15="",0,1))) -> 0 | E167: 1 | F167: 1 | G167: 1 | H167: 1 | I167: 1 | J167: 1 | K167: 1 | L167: 1 | M167: 1 | N167: 1 | O167: 1 | P167: 1 | Q167: 1 | R167: 1 | S167: 0 | T167: 0 | U167: 0 | V167: 0 | W167: 1 | X167: 1 | Y167: 0 | Z167: 1 | AA167: 1 | AB167: 0 | AC167: 1 | AD167: 1 | AE167: 1 | AF167: 0 | AG167: 0 | AH167: 0 | AI167: 0 | AJ167: 0 | AK167: 0 | AL167: 0 | AM167: 0 | AN167: 0 | AO167: 0 | AP167: 0 | AQ167: 0 | AR167: 0 | AS167: 0 | AT167: 0 | AU167: 0 | AV167: 0 | AW167: 1 | AX167: 1 | AY167: 0 | AZ167: 1 | BA167: 1 | BB167: 1 | BC167: 1 | BD167: 0 | BE167: 1 | BF167: 1 | BG167: 1 | BH167: 0 | BI167: 1 | BJ167: 0 | BK167: 1 | BL167: 1 | BM167: 1 | BN167: 0 | BO167: 1 | BP167: =(IF(BP128="",0,IF(BP$15="",0,1))) -> 0 | BQ167: 1 | BR167: 0 | BS167: 1 | BT167: 1 | BU167: 1 | BV167: 1 | BW167: 1 | BX167: 0 | BY167: 1 | BZ167: 1 | CA167: 0 | CB167: 1 | CC167: 1 | CD167: 0 | CE167: 1 | CF167: 1 | CG167: 1 | CH167: 1 | CI167: 1 | CJ167: 1 | CK167: 1 | CL167: 1 | CM167: 0 | CN167: 1 | CO167: 0 | CP167: 1 | CQ167: 0 | CR167: 0 | CS167: 1 | CT167: 1 | CU167: 1 | CV167: 1 | CW167: 1 | CX167: =SUM(C167:CW167) -> 61
C168: =COLORINDEXOFONECELL(C128,TRUE,1)+COLORINDEXOFONECELL(C$15,TRUE,1) -> 20 | D168: 4 | E168: 13 | F168: 13 | G168: 13 | H168: 6 | I168: 20 | J168: 13 | K168: 20 | L168: 20 | M168: 6 | N168: 13 | O168: 20 | P168: 20 | Q168: 20 | R168: 20 | S168: 2 | T168: 2 | U168: 4 | V168: 4 | W168: 20 | X168: 6 | Y168: 4 | Z168: 6 | AA168: 13 | AB168: 11 | AC168: 20 | AD168: 20 | AE168: 13 | AF168: 11 | AG168: 11 | AH168: 11 | AI168: =COLORINDEXOFONECELL(AI128,TRUE,1)+COLORINDEXOFONECELL(AI$15,TRUE,1) -> 4 | AJ168: 11 | AK168: 11 | AL168: 11 | AM168: 11 | AN168: 11 | AO168: 11 | AP168: 11 | AQ168: 11 | AR168: 11 | AS168: 2 | AT168: 4 | AU168: 11 | AV168: 11 | AW168: 11 | AX168: 11 | AY168: 11 | AZ168: 13 | BA168: 13 | BB168: 20 | BC168: 13 | BD168: 11 | BE168: 20 | BF168: 20 | BG168: 13 | BH168: 4 | BI168: 13 | BJ168: 11 | BK168: 13 | BL168: 13 | BM168: 20 | BN168: 11 | BO168: =COLORINDEXOFONECELL(BO128,TRUE,1)+COLORINDEXOFONECELL(BO$15,TRUE,1) -> 20 | BP168: 11 | BQ168: 20 | BR168: 11 | BS168: 20 | BT168: 6 | BU168: 13 | BV168: 6 | BW168: 11 | BX168: 11 | BY168: 13 | BZ168: 13 | CA168: 11 | CB168: 13 | CC168: 20 | CD168: 2 | CE168: 20 | CF168: 13 | CG168: 13 | CH168: 20 | CI168: 13 | CJ168: 11 | CK168: 13 | CL168: 13 | CM168: 11 | CN168: 13 | CO168: 4 | CP168: 13 | CQ168: 11 | CR168: 11 | CS168: 13 | CT168: 13 | CU168: 13 | CV168: 13 | CW168: 6 | CY168: =CX169/CX167 -> 0.4918032787
C169: =IF(C167,IF(C168=2,1,0)+IF(C168=4,0.5,0)+IF(C168=6,1,0)+IF(C168=11,0.5,0)+IF(C168=13,0,0)+IF(C168=20,1,0),0) -> 1 | D169: 0 | E169: 0 | F169: 0 | G169: 0 | H169: 1 | I169: 1 | J169: 0 | K169: 1 | L169: 1 | M169: 1 | N169: 0 | O169: 1 | P169: 1 | Q169: 1 | R169: 1 | S169: 0 | T169: 0 | U169: 0 | V169: 0 | W169: 1 | X169: 1 | Y169: 0 | Z169: 1 | AA169: 0 | AB169: 0 | AC169: 1 | AD169: 1 | AE169: 0 | AF169: 0 | AG169: 0 | AH169: 0 | AI169: =IF(AI167,IF(AI168=2,1,0)+IF(AI168=4,0.5,0)+IF(AI168=6,1,0)+IF(AI168=11,0.5,0)+IF(AI168=13,0,0)+IF(AI168=20,1,0),0) -> 0 | AJ169: 0 | AK169: 0 | AL169: 0 | AM169: 0 | AN169: 0 | AO169: 0 | AP169: 0 | AQ169: 0 | AR169: 0 | AS169: 0 | AT169: 0 | AU169: 0 | AV169: 0 | AW169: 0.5 | AX169: 0.5 | AY169: 0 | AZ169: 0 | BA169: 0 | BB169: 1 | BC169: 0 | BD169: 0 | BE169: 1 | BF169: 1 | BG169: 0 | BH169: 0 | BI169: 0 | BJ169: 0 | BK169: 0 | BL169: 0 | BM169: 1 | BN169: 0 | BO169: =IF(BO167,IF(BO168=2,1,0)+IF(BO168=4,0.5,0)+IF(BO168=6,1,0)+IF(BO168=11,0.5,0)+IF(BO168=13,0,0)+IF(BO168=20,1,0),0) -> 1 | BP169: 0 | BQ169: 1 | BR169: 0 | BS169: 1 | BT169: 1 | BU169: 0 | BV169: 1 | BW169: 0.5 | BX169: 0 | BY169: 0 | BZ169: 0 | CA169: 0 | CB169: 0 | CC169: 1 | CD169: 0 | CE169: 1 | CF169: 0 | CG169: 0 | CH169: 1 | CI169: 0 | CJ169: 0.5 | CK169: 0 | CL169: 0 | CM169: 0 | CN169: 0 | CO169: 0 | CP169: 0 | CQ169: 0 | CR169: 0 | CS169: 0 | CT169: 0 | CU169: =IF(CU167,IF(CU168=2,1,0)+IF(CU168=4,0.5,0)+IF(CU168=6,1,0)+IF(CU168=11,0.5,0)+IF(CU168=13,0,0)+IF(CU168=20,1,0),0) -> 0 | CV169: 0 | CW169: 1 | CX169: =SUM(C169:CW169) -> 30
B170: Stewart Flood | C170: =(IF(C128="",0,IF(C$16="",0,1))) -> 1 | D170: =(IF(D128="",0,IF(D$16="",0,1))) -> 0 | E170: 1 | F170: 1 | G170: 1 | H170: 1 | I170: 1 | J170: 1 | K170: 1 | L170: 1 | M170: 1 | N170: 1 | O170: 1 | P170: 1 | Q170: 0 | R170: 0 | S170: 1 | T170: 1 | U170: 1 | V170: 0 | W170: 1 | X170: 0 | Y170: 0 | Z170: 1 | AA170: 1 | AB170: 1 | AC170: 1 | AD170: 1 | AE170: 1 | AF170: 1 | AG170: 1 | AH170: 1 | AI170: 1 | AJ170: 1 | AK170: 1 | AL170: 1 | AM170: 1 | AN170: 1 | AO170: 1 | AP170: 1 | AQ170: 1 | AR170: 1 | AS170: 1 | AT170: 1 | AU170: 1 | AV170: 1 | AW170: 1 | AX170: 1 | AY170: 1 | AZ170: 1 | BA170: 1 | BB170: 1 | BC170: 1 | BD170: 1 | BE170: 1 | BF170: 1 | BG170: 1 | BH170: 1 | BI170: 1 | BJ170: 0 | BK170: 1 | BL170: 1 | BM170: 1 | BN170: 0 | BO170: 1 | BP170: =(IF(BP128="",0,IF(BP$16="",0,1))) -> 1 | BQ170: 1 | BR170: 0 | BS170: 1 | BT170: 1 | BU170: 1 | BV170: 1 | BW170: 1 | BX170: 1 | BY170: 1 | BZ170: 1 | CA170: 1 | CB170: 0 | CC170: 1 | CD170: 0 | CE170: 1 | CF170: 1 | CG170: 1 | CH170: 1 | CI170: 0 | CJ170: 0 | CK170: 1 | CL170: 1 | CM170: 1 | CN170: 1 | CO170: 1 | CP170: 1 | CQ170: 0 | CR170: 0 | CS170: 1 | CT170: 1 | CU170: 1 | CV170: 1 | CW170: 1 | CX170: =SUM(C170:CW170) -> 84
C171: =COLORINDEXOFONECELL(C128,TRUE,1)+COLORINDEXOFONECELL(C$16,TRUE,1) -> 20 | D171: 4 | E171: 13 | F171: 13 | G171: 13 | H171: 13 | I171: 20 | J171: 20 | K171: 20 | L171: 20 | M171: 6 | N171: 20 | O171: 20 | P171: 20 | Q171: 11 | R171: 11 | S171: 11 | T171: 11 | U171: 6 | V171: 4 | W171: 13 | X171: 4 | Y171: 4 | Z171: 13 | AA171: 20 | AB171: 13 | AC171: 20 | AD171: 13 | AE171: 20 | AF171: 13 | AG171: 13 | AH171: 13 | AI171: =COLORINDEXOFONECELL(AI128,TRUE,1)+COLORINDEXOFONECELL(AI$16,TRUE,1) -> 13 | AJ171: 13 | AK171: 20 | AL171: 13 | AM171: 20 | AN171: 13 | AO171: 13 | AP171: 13 | AQ171: 13 | AR171: 20 | AS171: 11 | AT171: 6 | AU171: 20 | AV171: 20 | AW171: 20 | AX171: 20 | AY171: 20 | AZ171: 20 | BA171: 6 | BB171: 11 | BC171: 20 | BD171: 13 | BE171: 20 | BF171: 20 | BG171: 6 | BH171: 13 | BI171: 20 | BJ171: 11 | BK171: 6 | BL171: 20 | BM171: 20 | BN171: 11 | BO171: =COLORINDEXOFONECELL(BO128,TRUE,1)+COLORINDEXOFONECELL(BO$16,TRUE,1) -> 20 | BP171: 20 | BQ171: 20 | BR171: 2 | BS171: 20 | BT171: 6 | BU171: 20 | BV171: 6 | BW171: 11 | BX171: 20 | BY171: 13 | BZ171: 20 | CA171: 20 | CB171: 4 | CC171: 20 | CD171: 2 | CE171: 20 | CF171: 13 | CG171: 13 | CH171: 20 | CI171: 11 | CJ171: 11 | CK171: 13 | CL171: 13 | CM171: 20 | CN171: 13 | CO171: 6 | CP171: 11 | CQ171: 11 | CR171: 11 | CS171: 13 | CT171: 20 | CU171: 13 | CV171: 13 | CW171: 13 | CY171: =CX172/CX170 -> 0.6071428571
C172: =IF(C170,IF(C171=2,1,0)+IF(C171=4,0.5,0)+IF(C171=6,1,0)+IF(C171=11,0.5,0)+IF(C171=13,0,0)+IF(C171=20,1,0),0) -> 1 | D172: 0 | E172: 0 | F172: 0 | G172: 0 | H172: 0 | I172: 1 | J172: 1 | K172: 1 | L172: 1 | M172: 1 | N172: 1 | O172: 1 | P172: 1 | Q172: 0 | R172: 0 | S172: 0.5 | T172: 0.5 | U172: 1 | V172: 0 | W172: 0 | X172: 0 | Y172: 0 | Z172: 0 | AA172: 1 | AB172: 0 | AC172: 1 | AD172: 0 | AE172: 1 | AF172: 0 | AG172: 0 | AH172: 0 | AI172: =IF(AI170,IF(AI171=2,1,0)+IF(AI171=4,0.5,0)+IF(AI171=6,1,0)+IF(AI171=11,0.5,0)+IF(AI171=13,0,0)+IF(AI171=20,1,0),0) -> 0 | AJ172: 0 | AK172: 1 | AL172: 0 | AM172: 1 | AN172: 0 | AO172: 0 | AP172: 0 | AQ172: 0 | AR172: 1 | AS172: 0.5 | AT172: 1 | AU172: 1 | AV172: 1 | AW172: 1 | AX172: 1 | AY172: 1 | AZ172: 1 | BA172: 1 | BB172: 0.5 | BC172: 1 | BD172: 0 | BE172: 1 | BF172: 1 | BG172: 1 | BH172: 0 | BI172: 1 | BJ172: 0 | BK172: 1 | BL172: 1 | BM172: 1 | BN172: 0 | BO172: =IF(BO170,IF(BO171=2,1,0)+IF(BO171=4,0.5,0)+IF(BO171=6,1,0)+IF(BO171=11,0.5,0)+IF(BO171=13,0,0)+IF(BO171=20,1,0),0) -> 1 | BP172: 1 | BQ172: 1 | BR172: 0 | BS172: 1 | BT172: 1 | BU172: 1 | BV172: 1 | BW172: 0.5 | BX172: 1 | BY172: 0 | BZ172: 1 | CA172: 1 | CB172: 0 | CC172: 1 | CD172: 0 | CE172: 1 | CF172: 0 | CG172: 0 | CH172: 1 | CI172: 0 | CJ172: 0 | CK172: 0 | CL172: 0 | CM172: 1 | CN172: 0 | CO172: 1 | CP172: 0.5 | CQ172: 0 | CR172: 0 | CS172: 0 | CT172: 1 | CU172: =IF(CU170,IF(CU171=2,1,0)+IF(CU171=4,0.5,0)+IF(CU171=6,1,0)+IF(CU171=11,0.5,0)+IF(CU171=13,0,0)+IF(CU171=20,1,0),0) -> 0 | CV172: 0 | CW172: 0 | CX172: =SUM(C172:CW172) -> 51
B173: Dan Wiener | C173: =(IF(C128="",0,IF(C$17="",0,1))) -> 0 | D173: =(IF(D128="",0,IF(D$17="",0,1))) -> 0 | E173: 1 | F173: 1 | G173: 1 | H173: 1 | I173: 1 | J173: 1 | K173: 1 | L173: 0 | M173: 1 | N173: 1 | O173: 1 | P173: 1 | Q173: 1 | R173: 0 | S173: 1 | T173: 1 | U173: 1 | V173: 1 | W173: 1 | X173: 1 | Y173: 1 | Z173: 1 | AA173: 1 | AB173: 1 | AC173: 1 | AD173: 1 | AE173: 1 | AF173: 1 | AG173: 1 | AH173: 1 | AI173: 1 | AJ173: 1 | AK173: 1 | AL173: 1 | AM173: 1 | AN173: 1 | AO173: 1 | AP173: 1 | AQ173: 1 | AR173: 1 | AS173: 0 | AT173: 0 | AU173: 0 | AV173: 1 | AW173: 1 | AX173: 1 | AY173: 1 | AZ173: 1 | BA173: 1 | BB173: 1 | BC173: 1 | BD173: 1 | BE173: 1 | BF173: 1 | BG173: 1 | BH173: 1 | BI173: 1 | BJ173: 0 | BK173: 1 | BL173: 1 | BM173: 1 | BN173: 0 | BO173: 1 | BP173: =(IF(BP128="",0,IF(BP$17="",0,1))) -> 1 | BQ173: 1 | BR173: 0 | BS173: 1 | BT173: 1 | BU173: 1 | BV173: 1 | BW173: 1 | BX173: 1 | BY173: 1 | BZ173: 1 | CA173: 1 | CB173: 1 | CC173: 1 | CD173: 0 | CE173: 1 | CF173: 1 | CG173: 1 | CH173: 1 | CI173: 1 | CJ173: 1 | CK173: 1 | CL173: 1 | CM173: 1 | CN173: 0 | CO173: 1 | CP173: 1 | CQ173: 1 | CR173: 1 | CS173: 0 | CT173: 1 | CU173: 1 | CV173: 1 | CW173: 1 | CX173: =SUM(C173:CW173) -> 86
C174: =COLORINDEXOFONECELL(C128,TRUE,1)+COLORINDEXOFONECELL(C$17,TRUE,1) -> 11 | D174: 11 | E174: 13 | F174: 13 | G174: 13 | H174: 6 | I174: 20 | J174: 20 | K174: 20 | L174: 11 | M174: 6 | N174: 20 | O174: 20 | P174: 20 | Q174: 20 | R174: 11 | S174: 4 | T174: 11 | U174: 13 | V174: 13 | W174: 20 | X174: 6 | Y174: 6 | Z174: 13 | AA174: 20 | AB174: 20 | AC174: 20 | AD174: 20 | AE174: 20 | AF174: 20 | AG174: 20 | AH174: 20 | AI174: =COLORINDEXOFONECELL(AI128,TRUE,1)+COLORINDEXOFONECELL(AI$17,TRUE,1) -> 13 | AJ174: 13 | AK174: 20 | AL174: 20 | AM174: 20 | AN174: 20 | AO174: 13 | AP174: 13 | AQ174: 20 | AR174: 20 | AS174: 2 | AT174: 4 | AU174: 11 | AV174: 20 | AW174: 20 | AX174: 20 | AY174: 20 | AZ174: 20 | BA174: 6 | BB174: 20 | BC174: 20 | BD174: 20 | BE174: 20 | BF174: 20 | BG174: 13 | BH174: 13 | BI174: 20 | BJ174: 11 | BK174: 6 | BL174: 20 | BM174: 20 | BN174: 11 | BO174: =COLORINDEXOFONECELL(BO128,TRUE,1)+COLORINDEXOFONECELL(BO$17,TRUE,1) -> 20 | BP174: 20 | BQ174: 20 | BR174: 11 | BS174: 20 | BT174: 6 | BU174: 20 | BV174: 6 | BW174: 11 | BX174: 20 | BY174: 13 | BZ174: 20 | CA174: 20 | CB174: 6 | CC174: 20 | CD174: 2 | CE174: 20 | CF174: 20 | CG174: 13 | CH174: 20 | CI174: 20 | CJ174: 20 | CK174: 13 | CL174: 6 | CM174: 20 | CN174: 4 | CO174: 13 | CP174: 20 | CQ174: 13 | CR174: 20 | CS174: 11 | CT174: 13 | CU174: 20 | CV174: 20 | CW174: 6 | CY174: =CX175/CX173 -> 0.773255814
C175: =IF(C173,IF(C174=2,1,0)+IF(C174=4,0.5,0)+IF(C174=6,1,0)+IF(C174=11,0.5,0)+IF(C174=13,0,0)+IF(C174=20,1,0),0) -> 0 | D175: 0 | E175: 0 | F175: 0 | G175: 0 | H175: 1 | I175: 1 | J175: 1 | K175: 1 | L175: 0 | M175: 1 | N175: 1 | O175: 1 | P175: 1 | Q175: 1 | R175: 0 | S175: 0.5 | T175: 0.5 | U175: 0 | V175: 0 | W175: 1 | X175: 1 | Y175: 1 | Z175: 0 | AA175: 1 | AB175: 1 | AC175: 1 | AD175: 1 | AE175: 1 | AF175: 1 | AG175: 1 | AH175: 1 | AI175: =IF(AI173,IF(AI174=2,1,0)+IF(AI174=4,0.5,0)+IF(AI174=6,1,0)+IF(AI174=11,0.5,0)+IF(AI174=13,0,0)+IF(AI174=20,1,0),0) -> 0 | AJ175: 0 | AK175: 1 | AL175: 1 | AM175: 1 | AN175: 1 | AO175: 0 | AP175: 0 | AQ175: 1 | AR175: 1 | AS175: 0 | AT175: 0 | AU175: 0 | AV175: 1 | AW175: 1 | AX175: 1 | AY175: 1 | AZ175: 1 | BA175: 1 | BB175: 1 | BC175: 1 | BD175: 1 | BE175: 1 | BF175: 1 | BG175: 0 | BH175: 0 | BI175: 1 | BJ175: 0 | BK175: 1 | BL175: 1 | BM175: 1 | BN175: 0 | BO175: =IF(BO173,IF(BO174=2,1,0)+IF(BO174=4,0.5,0)+IF(BO174=6,1,0)+IF(BO174=11,0.5,0)+IF(BO174=13,0,0)+IF(BO174=20,1,0),0) -> 1 | BP175: 1 | BQ175: 1 | BR175: 0 | BS175: 1 | BT175: 1 | BU175: 1 | BV175: 1 | BW175: 0.5 | BX175: 1 | BY175: 0 | BZ175: 1 | CA175: 1 | CB175: 1 | CC175: 1 | CD175: 0 | CE175: 1 | CF175: 1 | CG175: 0 | CH175: 1 | CI175: 1 | CJ175: 1 | CK175: 0 | CL175: 1 | CM175: 1 | CN175: 0 | CO175: 0 | CP175: 1 | CQ175: 0 | CR175: 1 | CS175: 0 | CT175: 0 | CU175: =IF(CU173,IF(CU174=2,1,0)+IF(CU174=4,0.5,0)+IF(CU174=6,1,0)+IF(CU174=11,0.5,0)+IF(CU174=13,0,0)+IF(CU174=20,1,0),0) -> 1 | CV175: 1 | CW175: 1 | CX175: =SUM(C175:CW175) -> 66.5
B176: Dr. Scott Lieberman | C176: =(IF(C128="",0,IF(C$18="",0,1))) -> 1 | D176: =(IF(D128="",0,IF(D$18="",0,1))) -> 0 | E176: 0 | F176: 0 | G176: 0 | H176: 0 | I176: 0 | J176: 0 | K176: 0 | L176: 0 | M176: 0 | N176: 0 | O176: 0 | P176: 0 | Q176: 0 | R176: 1 | S176: 0 | T176: 0 | U176: 0 | V176: 0 | W176: 0 | X176: 0 | Y176: 0 | Z176: 0 | AA176: 0 | AB176: 1 | AC176: 0 | AD176: 0 | AE176: 0 | AF176: 1 | AG176: 1 | AH176: 1 | AI176: 1 | AJ176: 1 | AK176: 1 | AL176: 1 | AM176: 1 | AN176: 1 | AO176: 1 | AP176: 1 | AQ176: 1 | AR176: 1 | AS176: 1 | AT176: 1 | AU176: 1 | AV176: 0 | AW176: 0 | AX176: 0 | AY176: 1 | AZ176: 0 | BA176: 0 | BB176: 0 | BC176: 0 | BD176: 1 | BE176: 0 | BF176: 0 | BG176: 0 | BH176: 1 | BI176: 0 | BJ176: 0 | BK176: 0 | BL176: 0 | BM176: 0 | BN176: 0 | BO176: 0 | BP176: =(IF(BP128="",0,IF(BP$18="",0,1))) -> 1 | BQ176: 0 | BR176: 0 | BS176: 0 | BT176: 0 | BU176: 0 | BV176: 0 | BW176: 0 | BX176: 1 | BY176: 0 | BZ176: 0 | CA176: 1 | CB176: 0 | CC176: 0 | CD176: 0 | CE176: 0 | CF176: 0 | CG176: 1 | CH176: 0 | CI176: 0 | CJ176: 1 | CK176: 0 | CL176: 0 | CM176: 1 | CN176: 1 | CO176: 1 | CP176: 0 | CQ176: 1 | CR176: 1 | CS176: 1 | CT176: 0 | CU176: 0 | CV176: 0 | CW176: 0 | CX176: =SUM(C176:CW176) -> 33
C177: =COLORINDEXOFONECELL(C128,TRUE,1)+COLORINDEXOFONECELL(C$18,TRUE,1) -> 20 | D177: 2 | E177: 4 | F177: 4 | G177: 11 | H177: 4 | I177: 11 | J177: 11 | K177: 11 | L177: 11 | M177: 4 | N177: 11 | O177: 11 | P177: 11 | Q177: 11 | R177: 20 | S177: 2 | T177: 2 | U177: 4 | V177: 4 | W177: 11 | X177: 4 | Y177: 4 | Z177: 4 | AA177: 11 | AB177: 20 | AC177: 11 | AD177: 11 | AE177: 11 | AF177: 20 | AG177: 13 | AH177: 20 | AI177: =COLORINDEXOFONECELL(AI128,TRUE,1)+COLORINDEXOFONECELL(AI$18,TRUE,1) -> 6 | AJ177: 20 | AK177: 20 | AL177: 20 | AM177: 11 | AN177: 20 | AO177: 20 | AP177: 20 | AQ177: 20 | AR177: 20 | AS177: 11 | AT177: 6 | AU177: 20 | AV177: 11 | AW177: 11 | AX177: 11 | AY177: 20 | AZ177: 11 | BA177: 4 | BB177: 11 | BC177: 11 | BD177: 20 | BE177: 11 | BF177: 11 | BG177: 4 | BH177: 6 | BI177: 11 | BJ177: 2 | BK177: 4 | BL177: 11 | BM177: 11 | BN177: 2 | BO177: =COLORINDEXOFONECELL(BO128,TRUE,1)+COLORINDEXOFONECELL(BO$18,TRUE,1) -> 11 | BP177: 20 | BQ177: 11 | BR177: 11 | BS177: 11 | BT177: 4 | BU177: 11 | BV177: 4 | BW177: 2 | BX177: 20 | BY177: 11 | BZ177: 11 | CA177: 20 | CB177: 4 | CC177: 11 | CD177: 2 | CE177: 11 | CF177: 11 | CG177: 4 | CH177: 11 | CI177: 11 | CJ177: 20 | CK177: 4 | CL177: 4 | CM177: 13 | CN177: 6 | CO177: 6 | CP177: 11 | CQ177: 20 | CR177: 20 | CS177: 20 | CT177: 11 | CU177: 11 | CV177: 11 | CW177: 4 | CY177: =CX178/CX176 -> 0.8939393939
C178: =IF(C176,IF(C177=2,1,0)+IF(C177=4,0.5,0)+IF(C177=6,1,0)+IF(C177=11,0.5,0)+IF(C177=13,0,0)+IF(C177=20,1,0),0) -> 1 | D178: 0 | E178: 0 | F178: 0 | G178: 0 | H178: 0 | I178: 0 | J178: 0 | K178: 0 | L178: 0 | M178: 0 | N178: 0 | O178: 0 | P178: 0 | Q178: 0 | R178: 1 | S178: 0 | T178: 0 | U178: 0 | V178: 0 | W178: 0 | X178: 0 | Y178: 0 | Z178: 0 | AA178: 0 | AB178: 1 | AC178: 0 | AD178: 0 | AE178: 0 | AF178: 1 | AG178: 0 | AH178: 1 | AI178: =IF(AI176,IF(AI177=2,1,0)+IF(AI177=4,0.5,0)+IF(AI177=6,1,0)+IF(AI177=11,0.5,0)+IF(AI177=13,0,0)+IF(AI177=20,1,0),0) -> 1 | AJ178: 1 | AK178: 1 | AL178: 1 | AM178: 0.5 | AN178: 1 | AO178: 1 | AP178: 1 | AQ178: 1 | AR178: 1 | AS178: 0.5 | AT178: 1 | AU178: 1 | AV178: 0 | AW178: 0 | AX178: 0 | AY178: 1 | AZ178: 0 | BA178: 0 | BB178: 0 | BC178: 0 | BD178: 1 | BE178: 0 | BF178: 0 | BG178: 0 | BH178: 1 | BI178: 0 | BJ178: 0 | BK178: 0 | BL178: 0 | BM178: 0 | BN178: 0 | BO178: =IF(BO176,IF(BO177=2,1,0)+IF(BO177=4,0.5,0)+IF(BO177=6,1,0)+IF(BO177=11,0.5,0)+IF(BO177=13,0,0)+IF(BO177=20,1,0),0) -> 0 | BP178: 1 | BQ178: 0 | BR178: 0 | BS178: 0 | BT178: 0 | BU178: 0 | BV178: 0 | BW178: 0 | BX178: 1 | BY178: 0 | BZ178: 0 | CA178: 1 | CB178: 0 | CC178: 0 | CD178: 0 | CE178: 0 | CF178: 0 | CG178: 0.5 | CH178: 0 | CI178: 0 | CJ178: 1 | CK178: 0 | CL178: 0 | CM178: 0 | CN178: 1 | CO178: 1 | CP178: 0 | CQ178: 1 | CR178: 1 | CS178: 1 | CT178: 0 | CU178: =IF(CU176,IF(CU177=2,1,0)+IF(CU177=4,0.5,0)+IF(CU177=6,1,0)+IF(CU177=11,0.5,0)+IF(CU177=13,0,0)+IF(CU177=20,1,0),0) -> 0 | CV178: 0 | CW178: 0 | CX178: =SUM(C178:CW178) -> 29.5
B179: Guy McLendon | C179: =(IF(C128="",0,IF(C$19="",0,1))) -> 0 | D179: =(IF(D128="",0,IF(D$19="",0,1))) -> 0 | E179: 0 | F179: 0 | G179: 0 | H179: 0 | I179: 0 | J179: 0 | K179: 0 | L179: 0 | M179: 0 | N179: 0 | O179: 0 | P179: 0 | Q179: 1 | R179: 1 | S179: 0 | T179: 0 | U179: 1 | V179: 1 | W179: 0 | X179: 1 | Y179: 1 | Z179: 0 | AA179: 0 | AB179: 0 | AC179: 0 | AD179: 0 | AE179: 0 | AF179: 0 | AG179: 0 | AH179: 0 | AI179: 0 | AJ179: 0 | AK179: 0 | AL179: 0 | AM179: 0 | AN179: 0 | AO179: 0 | AP179: 0 | AQ179: 0 | AR179: 0 | AS179: 0 | AT179: 0 | AU179: 0 | AV179: 0 | AW179: 0 | AX179: 0 | AY179: 0 | AZ179: 0 | BA179: 0 | BB179: 0 | BC179: 0 | BD179: 0 | BE179: 0 | BF179: 0 | BG179: 0 | BH179: 0 | BI179: 0 | BJ179: 0 | BK179: 0 | BL179: 0 | BM179: 0 | BN179: 0 | BO179: 0 | BP179: =(IF(BP128="",0,IF(BP$19="",0,1))) -> 0 | BQ179: 0 | BR179: 0 | BS179: 0 | BT179: 0 | BU179: 0 | BV179: 0 | BW179: 0 | BX179: 0 | BY179: 0 | BZ179: 0 | CA179: 0 | CB179: 0 | CC179: 0 | CD179: 0 | CE179: 0 | CF179: 0 | CG179: 0 | CH179: 0 | CI179: 0 | CJ179: 0 | CK179: 0 | CL179: 0 | CM179: 0 | CN179: 0 | CO179: 0 | CP179: 0 | CQ179: 0 | CR179: 0 | CS179: 0 | CT179: 0 | CU179: 0 | CV179: 0 | CW179: 0 | CX179: =SUM(C179:CW179) -> 6
C180: =COLORINDEXOFONECELL(C128,TRUE,1)+COLORINDEXOFONECELL(C$19,TRUE,1) -> 11 | D180: 2 | E180: 4 | F180: 4 | G180: 11 | H180: 4 | I180: 11 | J180: 11 | K180: 11 | L180: 11 | M180: 4 | N180: 11 | O180: 11 | P180: 11 | Q180: 20 | R180: 20 | S180: 2 | T180: 2 | U180: 6 | V180: 13 | W180: 11 | X180: 6 | Y180: 13 | Z180: 4 | AA180: 11 | AB180: 11 | AC180: 11 | AD180: 11 | AE180: 11 | AF180: 11 | AG180: 11 | AH180: 11 | AI180: =COLORINDEXOFONECELL(AI128,TRUE,1)+COLORINDEXOFONECELL(AI$19,TRUE,1) -> 4 | AJ180: 11 | AK180: 11 | AL180: 11 | AM180: 11 | AN180: 11 | AO180: 11 | AP180: 11 | AQ180: 11 | AR180: 11 | AS180: 2 | AT180: 4 | AU180: 11 | AV180: 11 | AW180: 11 | AX180: 11 | AY180: 11 | AZ180: 11 | BA180: 4 | BB180: 11 | BC180: 11 | BD180: 11 | BE180: 11 | BF180: 11 | BG180: 4 | BH180: 4 | BI180: 11 | BJ180: 2 | BK180: 4 | BL180: 11 | BM180: 11 | BN180: 2 | BO180: =COLORINDEXOFONECELL(BO128,TRUE,1)+COLORINDEXOFONECELL(BO$19,TRUE,1) -> 11 | BP180: 11 | BQ180: 11 | BR180: 2 | BS180: 11 | BT180: 4 | BU180: 11 | BV180: 4 | BW180: 2 | BX180: 11 | BY180: 11 | BZ180: 11 | CA180: 11 | CB180: 4 | CC180: 11 | CD180: 2 | CE180: 11 | CF180: 11 | CG180: 4 | CH180: 11 | CI180: 11 | CJ180: 11 | CK180: 4 | CL180: 4 | CM180: 11 | CN180: 4 | CO180: 4 | CP180: 11 | CQ180: 11 | CR180: 11 | CS180: 11 | CT180: 11 | CU180: 11 | CV180: 11 | CW180: 4 | CY180: =CX181/CX179 -> 0.6666666667
C181: =IF(C179,IF(C180=2,1,0)+IF(C180=4,0.5,0)+IF(C180=6,1,0)+IF(C180=11,0.5,0)+IF(C180=13,0,0)+IF(C180=20,1,0),0) -> 0 | D181: 0 | E181: 0 | F181: 0 | G181: 0 | H181: 0 | I181: 0 | J181: 0 | K181: 0 | L181: 0 | M181: 0 | N181: 0 | O181: 0 | P181: 0 | Q181: 1 | R181: 1 | S181: 0 | T181: 0 | U181: 1 | V181: 0 | W181: 0 | X181: 1 | Y181: 0 | Z181: 0 | AA181: 0 | AB181: 0 | AC181: 0 | AD181: 0 | AE181: 0 | AF181: 0 | AG181: 0 | AH181: 0 | AI181: =IF(AI179,IF(AI180=2,1,0)+IF(AI180=4,0.5,0)+IF(AI180=6,1,0)+IF(AI180=11,0.5,0)+IF(AI180=13,0,0)+IF(AI180=20,1,0),0) -> 0 | AJ181: 0 | AK181: 0 | AL181: 0 | AM181: 0 | AN181: 0 | AO181: 0 | AP181: 0 | AQ181: 0 | AR181: 0 | AS181: 0 | AT181: 0 | AU181: 0 | AV181: 0 | AW181: 0 | AX181: 0 | AY181: 0 | AZ181: 0 | BA181: 0 | BB181: 0 | BC181: 0 | BD181: 0 | BE181: 0 | BF181: 0 | BG181: 0 | BH181: 0 | BI181: 0 | BJ181: 0 | BK181: 0 | BL181: 0 | BM181: 0 | BN181: 0 | BO181: =IF(BO179,IF(BO180=2,1,0)+IF(BO180=4,0.5,0)+IF(BO180=6,1,0)+IF(BO180=11,0.5,0)+IF(BO180=13,0,0)+IF(BO180=20,1,0),0) -> 0 | BP181: 0 | BQ181: 0 | BR181: 0 | BS181: 0 | BT181: 0 | BU181: 0 | BV181: 0 | BW181: 0 | BX181: 0 | BY181: 0 | BZ181: 0 | CA181: 0 | CB181: 0 | CC181: 0 | CD181: 0 | CE181: 0 | CF181: 0 | CG181: 0 | CH181: 0 | CI181: 0 | CJ181: 0 | CK181: 0 | CL181: 0 | CM181: 0 | CN181: 0 | CO181: 0 | CP181: 0 | CQ181: 0 | CR181: 0 | CS181: 0 | CT181: 0 | CU181: =IF(CU179,IF(CU180=2,1,0)+IF(CU180=4,0.5,0)+IF(CU180=6,1,0)+IF(CU180=11,0.5,0)+IF(CU180=13,0,0)+IF(CU180=20,1,0),0) -> 0 | CV181: 0 | CW181: 0 | CX181: =SUM(C181:CW181) -> 4
B182: Brad Ploeger | C182: =(IF(C128="",0,IF(C$20="",0,1))) -> 0 | D182: =(IF(D128="",0,IF(D$20="",0,1))) -> 0 | E182: 0 | F182: 0 | G182: 0 | H182: 0 | I182: 0 | J182: 0 | K182: 0 | L182: 1 | M182: 0 | N182: 0 | O182: 0 | P182: 0 | Q182: 0 | R182: 0 | S182: 1 | T182: 1 | U182: 0 | V182: 1 | W182: 0 | X182: 0 | Y182: 1 | Z182: 0 | AA182: 0 | AB182: 0 | AC182: 0 | AD182: 0 | AE182: 0 | AF182: 0 | AG182: 0 | AH182: 0 | AI182: 0 | AJ182: 0 | AK182: 0 | AL182: 0 | AM182: 0 | AN182: 0 | AO182: 0 | AP182: 0 | AQ182: 0 | AR182: 0 | AS182: 0 | AT182: 0 | AU182: 0 | AV182: 1 | AW182: 0 | AX182: 0 | AY182: 0 | AZ182: 0 | BA182: 0 | BB182: 0 | BC182: 0 | BD182: 0 | BE182: 0 | BF182: 0 | BG182: 0 | BH182: 0 | BI182: 0 | BJ182: 0 | BK182: 0 | BL182: 0 | BM182: 0 | BN182: 0 | BO182: 0 | BP182: =(IF(BP128="",0,IF(BP$20="",0,1))) -> 0 | BQ182: 0 | BR182: 0 | BS182: 0 | BT182: 0 | BU182: 0 | BV182: 0 | BW182: 0 | BX182: 0 | BY182: 0 | BZ182: 0 | CA182: 0 | CB182: 1 | CC182: 0 | CD182: 0 | CE182: 0 | CF182: 0 | CG182: 1 | CH182: 0 | CI182: 1 | CJ182: 0 | CK182: 0 | CL182: 0 | CM182: 0 | CN182: 0 | CO182: 1 | CP182: 0 | CQ182: 0 | CR182: 1 | CS182: 0 | CT182: 0 | CU182: 0 | CV182: 0 | CW182: 0 | CX182: =SUM(C182:CW182) -> 11
C183: =COLORINDEXOFONECELL(C128,TRUE,1)+COLORINDEXOFONECELL(C$20,TRUE,1) -> 11 | D183: 2 | E183: 4 | F183: 4 | G183: 11 | H183: 4 | I183: 11 | J183: 11 | K183: 11 | L183: 20 | M183: 4 | N183: 11 | O183: 11 | P183: 11 | Q183: 11 | R183: 11 | S183: 11 | T183: 2 | U183: 4 | V183: 13 | W183: 11 | X183: 4 | Y183: 6 | Z183: 4 | AA183: 11 | AB183: 11 | AC183: 11 | AD183: 11 | AE183: 11 | AF183: 11 | AG183: 11 | AH183: 11 | AI183: =COLORINDEXOFONECELL(AI128,TRUE,1)+COLORINDEXOFONECELL(AI$20,TRUE,1) -> 4 | AJ183: 11 | AK183: 11 | AL183: 11 | AM183: 11 | AN183: 11 | AO183: 11 | AP183: 11 | AQ183: 11 | AR183: 11 | AS183: 2 | AT183: 4 | AU183: 11 | AV183: 20 | AW183: 11 | AX183: 11 | AY183: 11 | AZ183: 11 | BA183: 4 | BB183: 11 | BC183: 11 | BD183: 11 | BE183: 11 | BF183: 11 | BG183: 4 | BH183: 4 | BI183: 11 | BJ183: 2 | BK183: 4 | BL183: 11 | BM183: 11 | BN183: 2 | BO183: =COLORINDEXOFONECELL(BO128,TRUE,1)+COLORINDEXOFONECELL(BO$20,TRUE,1) -> 11 | BP183: 11 | BQ183: 11 | BR183: 2 | BS183: 11 | BT183: 4 | BU183: 11 | BV183: 4 | BW183: 2 | BX183: 11 | BY183: 11 | BZ183: 11 | CA183: 11 | CB183: 13 | CC183: 11 | CD183: 2 | CE183: 11 | CF183: 11 | CG183: 4 | CH183: 11 | CI183: 13 | CJ183: 11 | CK183: 4 | CL183: 4 | CM183: 11 | CN183: 4 | CO183: 4 | CP183: 11 | CQ183: 11 | CR183: 20 | CS183: 11 | CT183: 11 | CU183: 11 | CV183: 11 | CW183: 4 | CY183: =CX184/CX182 -> 0.5909090909
C184: =IF(C182,IF(C183=2,1,0)+IF(C183=4,0.5,0)+IF(C183=6,1,0)+IF(C183=11,0.5,0)+IF(C183=13,0,0)+IF(C183=20,1,0),0) -> 0 | D184: 0 | E184: 0 | F184: 0 | G184: 0 | H184: 0 | I184: 0 | J184: 0 | K184: 0 | L184: 1 | M184: 0 | N184: 0 | O184: 0 | P184: 0 | Q184: 0 | R184: 0 | S184: 0.5 | T184: 1 | U184: 0 | V184: 0 | W184: 0 | X184: 0 | Y184: 1 | Z184: 0 | AA184: 0 | AB184: 0 | AC184: 0 | AD184: 0 | AE184: 0 | AF184: 0 | AG184: 0 | AH184: 0 | AI184: =IF(AI182,IF(AI183=2,1,0)+IF(AI183=4,0.5,0)+IF(AI183=6,1,0)+IF(AI183=11,0.5,0)+IF(AI183=13,0,0)+IF(AI183=20,1,0),0) -> 0 | AJ184: 0 | AK184: 0 | AL184: 0 | AM184: 0 | AN184: 0 | AO184: 0 | AP184: 0 | AQ184: 0 | AR184: 0 | AS184: 0 | AT184: 0 | AU184: 0 | AV184: 1 | AW184: 0 | AX184: 0 | AY184: 0 | AZ184: 0 | BA184: 0 | BB184: 0 | BC184: 0 | BD184: 0 | BE184: 0 | BF184: 0 | BG184: 0 | BH184: 0 | BI184: 0 | BJ184: 0 | BK184: 0 | BL184: 0 | BM184: 0 | BN184: 0 | BO184: =IF(BO182,IF(BO183=2,1,0)+IF(BO183=4,0.5,0)+IF(BO183=6,1,0)+IF(BO183=11,0.5,0)+IF(BO183=13,0,0)+IF(BO183=20,1,0),0) -> 0 | BP184: 0 | BQ184: 0 | BR184: 0 | BS184: 0 | BT184: 0 | BU184: 0 | BV184: 0 | BW184: 0 | BX184: 0 | BY184: 0 | BZ184: 0 | CA184: 0 | CB184: 0 | CC184: 0 | CD184: 0 | CE184: 0 | CF184: 0 | CG184: 0.5 | CH184: 0 | CI184: 0 | CJ184: 0 | CK184: 0 | CL184: 0 | CM184: 0 | CN184: 0 | CO184: 0.5 | CP184: 0 | CQ184: 0 | CR184: 1 | CS184: 0 | CT184: 0 | CU184: =IF(CU182,IF(CU183=2,1,0)+IF(CU183=4,0.5,0)+IF(CU183=6,1,0)+IF(CU183=11,0.5,0)+IF(CU183=13,0,0)+IF(CU183=20,1,0),0) -> 0 | CV184: 0 | CW184: 0 | CX184: =SUM(C184:CW184) -> 6.5
B185: Rachel Hawkridge | C185: =(IF(C128="",0,IF(C$21="",0,1))) -> 1 | D185: =(IF(D128="",0,IF(D$21="",0,1))) -> 0 | E185: 1 | F185: 1 | G185: 1 | H185: 1 | I185: 1 | J185: 1 | K185: 1 | L185: 1 | M185: 1 | N185: 1 | O185: 1 | P185: 1 | Q185: 1 | R185: 1 | S185: 1 | T185: 1 | U185: 0 | V185: 0 | W185: 0 | X185: 0 | Y185: 0 | Z185: 0 | AA185: 0 | AB185: 0 | AC185: 0 | AD185: 0 | AE185: 0 | AF185: 0 | AG185: 0 | AH185: 0 | AI185: 0 | AJ185: 0 | AK185: 0 | AL185: 0 | AM185: 0 | AN185: 0 | AO185: 0 | AP185: 0 | AQ185: 0 | AR185: 0 | AS185: 0 | AT185: 0 | AU185: 0 | AV185: 0 | AW185: 0 | AX185: 0 | AY185: 0 | AZ185: 0 | BA185: 0 | BB185: 0 | BC185: 0 | BD185: 0 | BE185: 1 | BF185: 1 | BG185: 1 | BH185: 0 | BI185: 1 | BJ185: 0 | BK185: 0 | BL185: 1 | BM185: 1 | BN185: 0 | BO185: 0 | BP185: =(IF(BP128="",0,IF(BP$21="",0,1))) -> 0 | BQ185: 0 | BR185: 0 | BS185: 0 | BT185: 0 | BU185: 0 | BV185: 0 | BW185: 0 | BX185: 0 | BY185: 0 | BZ185: 0 | CA185: 0 | CB185: 0 | CC185: 0 | CD185: 0 | CE185: 0 | CF185: 0 | CG185: 0 | CH185: 0 | CI185: 0 | CJ185: 0 | CK185: 0 | CL185: 0 | CM185: 0 | CN185: 0 | CO185: 0 | CP185: 0 | CQ185: 0 | CR185: 0 | CS185: 0 | CT185: 0 | CU185: 0 | CV185: 0 | CW185: 0 | CX185: =SUM(C185:CW185) -> 23
C186: =COLORINDEXOFONECELL(C128,TRUE,1)+COLORINDEXOFONECELL(C$21,TRUE,1) -> 20 | D186: 4 | E186: 13 | F186: 13 | G186: 13 | H186: 6 | I186: 13 | J186: 13 | K186: 13 | L186: 20 | M186: 6 | N186: 13 | O186: 20 | P186: 20 | Q186: 20 | R186: 13 | S186: 11 | T186: 11 | U186: 4 | V186: 4 | W186: 11 | X186: 4 | Y186: 4 | Z186: 4 | AA186: 11 | AB186: 11 | AC186: 11 | AD186: 11 | AE186: 11 | AF186: 11 | AG186: 11 | AH186: 11 | AI186: =COLORINDEXOFONECELL(AI128,TRUE,1)+COLORINDEXOFONECELL(AI$21,TRUE,1) -> 4 | AJ186: 11 | AK186: 11 | AL186: 11 | AM186: 11 | AN186: 11 | AO186: 11 | AP186: 11 | AQ186: 11 | AR186: 11 | AS186: 2 | AT186: 4 | AU186: 11 | AV186: 11 | AW186: 11 | AX186: 11 | AY186: 11 | AZ186: 11 | BA186: 4 | BB186: 11 | BC186: 11 | BD186: 11 | BE186: 13 | BF186: 20 | BG186: 13 | BH186: 4 | BI186: 13 | BJ186: 2 | BK186: 4 | BL186: 13 | BM186: 20 | BN186: 2 | BO186: =COLORINDEXOFONECELL(BO128,TRUE,1)+COLORINDEXOFONECELL(BO$21,TRUE,1) -> 11 | BP186: 11 | BQ186: 11 | BR186: 2 | BS186: 11 | BT186: 4 | BU186: 11 | BV186: 4 | BW186: 2 | BX186: 11 | BY186: 11 | BZ186: 11 | CA186: 11 | CB186: 4 | CC186: 11 | CD186: 2 | CE186: 11 | CF186: 11 | CG186: 4 | CH186: 11 | CI186: 11 | CJ186: 11 | CK186: 4 | CL186: 4 | CM186: 11 | CN186: 4 | CO186: 4 | CP186: 11 | CQ186: 11 | CR186: 11 | CS186: 11 | CT186: 11 | CU186: 11 | CV186: 11 | CW186: 4 | CY186: =CX187/CX185 -> 0.4347826087
C187: =IF(C185,IF(C186=2,1,0)+IF(C186=4,0.5,0)+IF(C186=6,1,0)+IF(C186=11,0.5,0)+IF(C186=13,0,0)+IF(C186=20,1,0),0) -> 1 | D187: 0 | E187: 0 | F187: 0 | G187: 0 | H187: 1 | I187: 0 | J187: 0 | K187: 0 | L187: 1 | M187: 1 | N187: 0 | O187: 1 | P187: 1 | Q187: 1 | R187: 0 | S187: 0.5 | T187: 0.5 | U187: 0 | V187: 0 | W187: 0 | X187: 0 | Y187: 0 | Z187: 0 | AA187: 0 | AB187: 0 | AC187: 0 | AD187: 0 | AE187: 0 | AF187: 0 | AG187: 0 | AH187: 0 | AI187: =IF(AI185,IF(AI186=2,1,0)+IF(AI186=4,0.5,0)+IF(AI186=6,1,0)+IF(AI186=11,0.5,0)+IF(AI186=13,0,0)+IF(AI186=20,1,0),0) -> 0 | AJ187: 0 | AK187: 0 | AL187: 0 | AM187: 0 | AN187: 0 | AO187: 0 | AP187: 0 | AQ187: 0 | AR187: 0 | AS187: 0 | AT187: 0 | AU187: 0 | AV187: 0 | AW187: 0 | AX187: 0 | AY187: 0 | AZ187: 0 | BA187: 0 | BB187: 0 | BC187: 0 | BD187: 0 | BE187: 0 | BF187: 1 | BG187: 0 | BH187: 0 | BI187: 0 | BJ187: 0 | BK187: 0 | BL187: 0 | BM187: 1 | BN187: 0 | BO187: =IF(BO185,IF(BO186=2,1,0)+IF(BO186=4,0.5,0)+IF(BO186=6,1,0)+IF(BO186=11,0.5,0)+IF(BO186=13,0,0)+IF(BO186=20,1,0),0) -> 0 | BP187: 0 | BQ187: 0 | BR187: 0 | BS187: 0 | BT187: 0 | BU187: 0 | BV187: 0 | BW187: 0 | BX187: 0 | BY187: 0 | BZ187: 0 | CA187: 0 | CB187: 0 | CC187: 0 | CD187: 0 | CE187: 0 | CF187: 0 | CG187: 0 | CH187: 0 | CI187: 0 | CJ187: 0 | CK187: 0 | CL187: 0 | CM187: 0 | CN187: 0 | CO187: 0 | CP187: 0 | CQ187: 0 | CR187: 0 | CS187: 0 | CT187: 0 | CU187: =IF(CU185,IF(CU186=2,1,0)+IF(CU186=4,0.5,0)+IF(CU186=6,1,0)+IF(CU186=11,0.5,0)+IF(CU186=13,0,0)+IF(CU186=20,1,0),0) -> 0 | CV187: 0 | CW187: 0 | CX187: =SUM(C187:CW187) -> 10
B188: Vicki Kirkland | C188: =(IF(C128="",0,IF(C$22="",0,1))) -> 0 | D188: =(IF(D128="",0,IF(D$22="",0,1))) -> 0 | E188: 0 | F188: 0 | G188: 0 | H188: 0 | I188: 0 | J188: 0 | K188: 0 | L188: 0 | M188: 0 | N188: 0 | O188: 0 | P188: 0 | Q188: 0 | R188: 0 | S188: 0 | T188: 0 | U188: 1 | V188: 1 | W188: 1 | X188: 1 | Y188: 1 | Z188: 1 | AA188: 1 | AB188: 1 | AC188: 1 | AD188: 1 | AE188: 1 | AF188: 1 | AG188: 1 | AH188: 0 | AI188: 1 | AJ188: 1 | AK188: 1 | AL188: 1 | AM188: 1 | AN188: 0 | AO188: 0 | AP188: 0 | AQ188: 0 | AR188: 1 | AS188: 1 | AT188: 1 | AU188: 0 | AV188: 1 | AW188: 0 | AX188: 1 | AY188: 0 | AZ188: 1 | BA188: 1 | BB188: 1 | BC188: 1 | BD188: 1 | BE188: 0 | BF188: 0 | BG188: 0 | BH188: 0 | BI188: 0 | BJ188: 0 | BK188: 0 | BL188: 0 | BM188: 0 | BN188: 0 | BO188: 0 | BP188: =(IF(BP128="",0,IF(BP$22="",0,1))) -> 0 | BQ188: 0 | BR188: 0 | BS188: 1 | BT188: 0 | BU188: 1 | BV188: 0 | BW188: 1 | BX188: 1 | BY188: 1 | BZ188: 0 | CA188: 1 | CB188: 1 | CC188: 1 | CD188: 0 | CE188: 0 | CF188: 1 | CG188: 1 | CH188: 1 | CI188: 0 | CJ188: 0 | CK188: 1 | CL188: 1 | CM188: 1 | CN188: 1 | CO188: 1 | CP188: 0 | CQ188: 1 | CR188: 1 | CS188: 0 | CT188: 1 | CU188: 0 | CV188: 1 | CW188: 1 | CX188: =SUM(C188:CW188) -> 49
C189: =COLORINDEXOFONECELL(C128,TRUE,1)+COLORINDEXOFONECELL(C$22,TRUE,1) -> 20 | D189: 4 | E189: 13 | F189: 13 | G189: 13 | H189: 6 | I189: 13 | J189: 13 | K189: 13 | L189: 20 | M189: 6 | N189: 13 | O189: 20 | P189: 20 | Q189: 20 | R189: 13 | S189: 11 | T189: 11 | U189: 6 | V189: 4 | W189: 20 | X189: 6 | Y189: 4 | Z189: 13 | AA189: 13 | AB189: 13 | AC189: 20 | AD189: 20 | AE189: 13 | AF189: 13 | AG189: 11 | AH189: 11 | AI189: =COLORINDEXOFONECELL(AI128,TRUE,1)+COLORINDEXOFONECELL(AI$22,TRUE,1) -> 13 | AJ189: 13 | AK189: 20 | AL189: 20 | AM189: 11 | AN189: 11 | AO189: 11 | AP189: 11 | AQ189: 11 | AR189: 20 | AS189: 11 | AT189: 6 | AU189: 11 | AV189: 20 | AW189: 13 | AX189: 13 | AY189: 11 | AZ189: 13 | BA189: 13 | BB189: 20 | BC189: 13 | BD189: 13 | BE189: 11 | BF189: 11 | BG189: 4 | BH189: 4 | BI189: 11 | BJ189: 11 | BK189: 4 | BL189: 11 | BM189: 11 | BN189: 2 | BO189: =COLORINDEXOFONECELL(BO128,TRUE,1)+COLORINDEXOFONECELL(BO$22,TRUE,1) -> 11 | BP189: 11 | BQ189: 11 | BR189: 11 | BS189: 20 | BT189: 4 | BU189: 13 | BV189: 4 | BW189: 11 | BX189: 20 | BY189: 13 | BZ189: 11 | CA189: 20 | CB189: 13 | CC189: 20 | CD189: 2 | CE189: 11 | CF189: 13 | CG189: 13 | CH189: 20 | CI189: 11 | CJ189: 11 | CK189: 13 | CL189: 13 | CM189: 20 | CN189: 13 | CO189: 13 | CP189: 11 | CQ189: 13 | CR189: 20 | CS189: 11 | CT189: 11 | CU189: 11 | CV189: 13 | CW189: 4 | CY189: =CX190/CX188 -> 0.4489795918
C190: =IF(C188,IF(C189=2,1,0)+IF(C189=4,0.5,0)+IF(C189=6,1,0)+IF(C189=11,0.5,0)+IF(C189=13,0,0)+IF(C189=20,1,0),0) -> 0 | D190: 0 | E190: 0 | F190: 0 | G190: 0 | H190: 0 | I190: 0 | J190: 0 | K190: 0 | L190: 0 | M190: 0 | N190: 0 | O190: 0 | P190: 0 | Q190: 0 | R190: 0 | S190: 0 | T190: 0 | U190: 1 | V190: 0.5 | W190: 1 | X190: 1 | Y190: 0.5 | Z190: 0 | AA190: 0 | AB190: 0 | AC190: 1 | AD190: 1 | AE190: 0 | AF190: 0 | AG190: 0.5 | AH190: 0 | AI190: =IF(AI188,IF(AI189=2,1,0)+IF(AI189=4,0.5,0)+IF(AI189=6,1,0)+IF(AI189=11,0.5,0)+IF(AI189=13,0,0)+IF(AI189=20,1,0),0) -> 0 | AJ190: 0 | AK190: 1 | AL190: 1 | AM190: 0.5 | AN190: 0 | AO190: 0 | AP190: 0 | AQ190: 0 | AR190: 1 | AS190: 0.5 | AT190: 1 | AU190: 0 | AV190: 1 | AW190: 0 | AX190: 0 | AY190: 0 | AZ190: 0 | BA190: 0 | BB190: 1 | BC190: 0 | BD190: 0 | BE190: 0 | BF190: 0 | BG190: 0 | BH190: 0 | BI190: 0 | BJ190: 0 | BK190: 0 | BL190: 0 | BM190: 0 | BN190: 0 | BO190: =IF(BO188,IF(BO189=2,1,0)+IF(BO189=4,0.5,0)+IF(BO189=6,1,0)+IF(BO189=11,0.5,0)+IF(BO189=13,0,0)+IF(BO189=20,1,0),0) -> 0 | BP190: 0 | BQ190: 0 | BR190: 0 | BS190: 1 | BT190: 0 | BU190: 0 | BV190: 0 | BW190: 0.5 | BX190: 1 | BY190: 0 | BZ190: 0 | CA190: 1 | CB190: 0 | CC190: 1 | CD190: 0 | CE190: 0 | CF190: 0 | CG190: 0 | CH190: 1 | CI190: 0 | CJ190: 0 | CK190: 0 | CL190: 0 | CM190: 1 | CN190: 0 | CO190: 0 | CP190: 0 | CQ190: 0 | CR190: 1 | CS190: 0 | CT190: 0.5 | CU190: =IF(CU188,IF(CU189=2,1,0)+IF(CU189=4,0.5,0)+IF(CU189=6,1,0)+IF(CU189=11,0.5,0)+IF(CU189=13,0,0)+IF(CU189=20,1,0),0) -> 0 | CV190: 0 | CW190: 0.5 | CX190: =SUM(C190:CW190) -> 22
B191: David Blau | C191: =(IF(C128="",0,IF(C$23="",0,1))) -> 0 | D191: =(IF(D128="",0,IF(D$23="",0,1))) -> 0 | E191: 0 | F191: 0 | G191: 0 | H191: 0 | I191: 0 | J191: 0 | K191: 0 | L191: 0 | M191: 0 | N191: 0 | O191: 0 | P191: 0 | Q191: 0 | R191: 0 | S191: 0 | T191: 0 | U191: 0 | V191: 0 | W191: 0 | X191: 0 | Y191: 0 | Z191: 0 | AA191: 0 | AB191: 0 | AC191: 0 | AD191: 0 | AE191: 0 | AF191: 0 | AG191: 0 | AH191: 1 | AI191: 0 | AJ191: 0 | AK191: 0 | AL191: 0 | AM191: 0 | AN191: 1 | AO191: 1 | AP191: 1 | AQ191: 1 | AR191: 0 | AS191: 0 | AT191: 0 | AU191: 1 | AV191: 0 | AW191: 1 | AX191: 0 | AY191: 1 | AZ191: 0 | BA191: 0 | BB191: 0 | BC191: 0 | BD191: 0 | BE191: 0 | BF191: 0 | BG191: 0 | BH191: 0 | BI191: 0 | BJ191: 0 | BK191: 0 | BL191: 0 | BM191: 0 | BN191: 0 | BO191: 0 | BP191: =(IF(BP128="",0,IF(BP$23="",0,1))) -> 0 | BQ191: 0 | BR191: 0 | BS191: 0 | BT191: 0 | BU191: 0 | BV191: 0 | BW191: 0 | BX191: 0 | BY191: 0 | BZ191: 0 | CA191: 0 | CB191: 0 | CC191: 0 | CD191: 0 | CE191: 1 | CF191: 0 | CG191: 0 | CH191: 0 | CI191: 1 | CJ191: 1 | CK191: 0 | CL191: 0 | CM191: 0 | CN191: 0 | CO191: 0 | CP191: 1 | CQ191: 0 | CR191: 0 | CS191: 1 | CT191: 1 | CU191: 1 | CV191: 0 | CW191: 1 | CX191: =SUM(C191:CW191) -> 16
C192: =COLORINDEXOFONECELL(C128,TRUE,1)+COLORINDEXOFONECELL(C$23,TRUE,1) -> 20 | D192: 4 | E192: 13 | F192: 13 | G192: 13 | H192: 6 | I192: 13 | J192: 13 | K192: 13 | L192: 20 | M192: 6 | N192: 13 | O192: 20 | P192: 20 | Q192: 20 | R192: 13 | S192: 11 | T192: 11 | U192: 6 | V192: 4 | W192: 20 | X192: 6 | Y192: 4 | Z192: 13 | AA192: 13 | AB192: 13 | AC192: 20 | AD192: 20 | AE192: 13 | AF192: 11 | AG192: 11 | AH192: 20 | AI192: =COLORINDEXOFONECELL(AI128,TRUE,1)+COLORINDEXOFONECELL(AI$23,TRUE,1) -> 4 | AJ192: 11 | AK192: 11 | AL192: 11 | AM192: 11 | AN192: 20 | AO192: 20 | AP192: 13 | AQ192: 20 | AR192: 11 | AS192: 2 | AT192: 4 | AU192: 20 | AV192: 11 | AW192: 20 | AX192: 11 | AY192: 20 | AZ192: 11 | BA192: 4 | BB192: 11 | BC192: 11 | BD192: 11 | BE192: 11 | BF192: 11 | BG192: 4 | BH192: 4 | BI192: 11 | BJ192: 2 | BK192: 4 | BL192: 11 | BM192: 11 | BN192: 2 | BO192: =COLORINDEXOFONECELL(BO128,TRUE,1)+COLORINDEXOFONECELL(BO$23,TRUE,1) -> 11 | BP192: 11 | BQ192: 11 | BR192: 2 | BS192: 11 | BT192: 4 | BU192: 11 | BV192: 4 | BW192: 2 | BX192: 11 | BY192: 11 | BZ192: 11 | CA192: 11 | CB192: 4 | CC192: 11 | CD192: 2 | CE192: 20 | CF192: 11 | CG192: 4 | CH192: 11 | CI192: 13 | CJ192: 20 | CK192: 4 | CL192: 4 | CM192: 11 | CN192: 4 | CO192: 4 | CP192: 13 | CQ192: 11 | CR192: 11 | CS192: 20 | CT192: 13 | CU192: 13 | CV192: 11 | CW192: 13 | CY192: =CX193/CX191 -> 0.625
C193: =IF(C191,IF(C192=2,1,0)+IF(C192=4,0.5,0)+IF(C192=6,1,0)+IF(C192=11,0.5,0)+IF(C192=13,0,0)+IF(C192=20,1,0),0) -> 0 | D193: 0 | E193: 0 | F193: 0 | G193: 0 | H193: 0 | I193: 0 | J193: 0 | K193: 0 | L193: 0 | M193: 0 | N193: 0 | O193: 0 | P193: 0 | Q193: 0 | R193: 0 | S193: 0 | T193: 0 | U193: 0 | V193: 0 | W193: 0 | X193: 0 | Y193: 0 | Z193: 0 | AA193: 0 | AB193: 0 | AC193: 0 | AD193: 0 | AE193: 0 | AF193: 0 | AG193: 0 | AH193: 1 | AI193: =IF(AI191,IF(AI192=2,1,0)+IF(AI192=4,0.5,0)+IF(AI192=6,1,0)+IF(AI192=11,0.5,0)+IF(AI192=13,0,0)+IF(AI192=20,1,0),0) -> 0 | AJ193: 0 | AK193: 0 | AL193: 0 | AM193: 0 | AN193: 1 | AO193: 1 | AP193: 0 | AQ193: 1 | AR193: 0 | AS193: 0 | AT193: 0 | AU193: 1 | AV193: 0 | AW193: 1 | AX193: 0 | AY193: 1 | AZ193: 0 | BA193: 0 | BB193: 0 | BC193: 0 | BD193: 0 | BE193: 0 | BF193: 0 | BG193: 0 | BH193: 0 | BI193: 0 | BJ193: 0 | BK193: 0 | BL193: 0 | BM193: 0 | BN193: 0 | BO193: =IF(BO191,IF(BO192=2,1,0)+IF(BO192=4,0.5,0)+IF(BO192=6,1,0)+IF(BO192=11,0.5,0)+IF(BO192=13,0,0)+IF(BO192=20,1,0),0) -> 0 | BP193: 0 | BQ193: 0 | BR193: 0 | BS193: 0 | BT193: 0 | BU193: 0 | BV193: 0 | BW193: 0 | BX193: 0 | BY193: 0 | BZ193: 0 | CA193: 0 | CB193: 0 | CC193: 0 | CD193: 0 | CE193: 1 | CF193: 0 | CG193: 0 | CH193: 0 | CI193: 0 | CJ193: 1 | CK193: 0 | CL193: 0 | CM193: 0 | CN193: 0 | CO193: 0 | CP193: 0 | CQ193: 0 | CR193: 0 | CS193: 1 | CT193: 0 | CU193: =IF(CU191,IF(CU192=2,1,0)+IF(CU192=4,0.5,0)+IF(CU192=6,1,0)+IF(CU192=11,0.5,0)+IF(CU192=13,0,0)+IF(CU192=20,1,0),0) -> 0 | CV193: 0 | CW193: 0 | CX193: =SUM(C193:CW193) -> 10
B194: Andy Wolf | C194: =(IF(C128="",0,IF(C$24="",0,1))) -> 0 | D194: =(IF(D128="",0,IF(D$24="",0,1))) -> 0 | E194: 1 | F194: 1 | G194: 1 | H194: 1 | I194: 1 | J194: 1 | K194: 1 | L194: 1 | M194: 1 | N194: 1 | O194: 1 | P194: 1 | Q194: 1 | R194: 1 | S194: 1 | T194: 1 | U194: 1 | V194: 1 | W194: 1 | X194: 1 | Y194: 1 | Z194: 0 | AA194: 0 | AB194: 0 | AC194: 1 | AD194: 1 | AE194: 1 | AF194: 1 | AG194: 1 | AH194: 1 | AI194: 1 | AJ194: 1 | AK194: 1 | AL194: 1 | AM194: 1 | AN194: 1 | AO194: 1 | AP194: 1 | AQ194: 1 | AR194: 1 | AS194: 1 | AT194: 1 | AU194: 1 | AV194: 1 | AW194: 1 | AX194: 1 | AY194: 1 | AZ194: 1 | BA194: 1 | BB194: 1 | BC194: 1 | BD194: 1 | BE194: 0 | BF194: 1 | BG194: 1 | BH194: 1 | BI194: 1 | BJ194: 0 | BK194: 1 | BL194: 1 | BM194: 1 | BN194: 0 | BO194: 1 | BP194: =(IF(BP128="",0,IF(BP$24="",0,1))) -> 1 | BQ194: 1 | BR194: 0 | BS194: 1 | BT194: 1 | BU194: 1 | BV194: 0 | BW194: 0 | BX194: 1 | BY194: 1 | BZ194: 1 | CA194: 1 | CB194: 1 | CC194: 1 | CD194: 0 | CE194: 1 | CF194: 1 | CG194: 1 | CH194: 1 | CI194: 1 | CJ194: 1 | CK194: 1 | CL194: 0 | CM194: 0 | CN194: 1 | CO194: 1 | CP194: 1 | CQ194: 1 | CR194: 1 | CS194: 1 | CT194: 1 | CU194: 1 | CV194: 1 | CW194: 1 | CX194: =SUM(C194:CW194) -> 85
C195: =COLORINDEXOFONECELL(C128,TRUE,1)+COLORINDEXOFONECELL(C$24,TRUE,1) -> 11 | D195: 11 | E195: 13 | F195: 6 | G195: 20 | H195: 6 | I195: 13 | J195: 20 | K195: 20 | L195: 20 | M195: 6 | N195: 20 | O195: 20 | P195: 20 | Q195: 13 | R195: 20 | S195: 11 | T195: 11 | U195: 6 | V195: 13 | W195: 20 | X195: 6 | Y195: 4 | Z195: 4 | AA195: 11 | AB195: 11 | AC195: 20 | AD195: 20 | AE195: 20 | AF195: 20 | AG195: 20 | AH195: 20 | AI195: =COLORINDEXOFONECELL(AI128,TRUE,1)+COLORINDEXOFONECELL(AI$24,TRUE,1) -> 6 | AJ195: 20 | AK195: 20 | AL195: 20 | AM195: 20 | AN195: 20 | AO195: 20 | AP195: 20 | AQ195: 13 | AR195: 20 | AS195: 11 | AT195: 4 | AU195: 20 | AV195: 20 | AW195: 20 | AX195: 20 | AY195: 20 | AZ195: 20 | BA195: 6 | BB195: 20 | BC195: 20 | BD195: 20 | BE195: 11 | BF195: 20 | BG195: 6 | BH195: 13 | BI195: 20 | BJ195: 11 | BK195: 6 | BL195: 20 | BM195: 20 | BN195: 11 | BO195: =COLORINDEXOFONECELL(BO128,TRUE,1)+COLORINDEXOFONECELL(BO$24,TRUE,1) -> 20 | BP195: 20 | BQ195: 20 | BR195: 2 | BS195: 20 | BT195: 6 | BU195: 20 | BV195: 4 | BW195: 2 | BX195: 20 | BY195: 20 | BZ195: 20 | CA195: 20 | CB195: 6 | CC195: 20 | CD195: 2 | CE195: 20 | CF195: 20 | CG195: 6 | CH195: 20 | CI195: 20 | CJ195: 20 | CK195: 6 | CL195: 4 | CM195: 11 | CN195: 6 | CO195: 6 | CP195: 20 | CQ195: 20 | CR195: 20 | CS195: 20 | CT195: 20 | CU195: 20 | CV195: 20 | CW195: 6 | CY195: =CX196/CX194 -> 0.9
C196: =IF(C194,IF(C195=2,1,0)+IF(C195=4,0.5,0)+IF(C195=6,1,0)+IF(C195=11,0.5,0)+IF(C195=13,0,0)+IF(C195=20,1,0),0) -> 0 | D196: 0 | E196: 0 | F196: 1 | G196: 1 | H196: 1 | I196: 0 | J196: 1 | K196: 1 | L196: 1 | M196: 1 | N196: 1 | O196: 1 | P196: 1 | Q196: 0 | R196: 1 | S196: 0.5 | T196: 0.5 | U196: 1 | V196: 0 | W196: 1 | X196: 1 | Y196: 0.5 | Z196: 0 | AA196: 0 | AB196: 0 | AC196: 1 | AD196: 1 | AE196: 1 | AF196: 1 | AG196: 1 | AH196: 1 | AI196: =IF(AI194,IF(AI195=2,1,0)+IF(AI195=4,0.5,0)+IF(AI195=6,1,0)+IF(AI195=11,0.5,0)+IF(AI195=13,0,0)+IF(AI195=20,1,0),0) -> 1 | AJ196: 1 | AK196: 1 | AL196: 1 | AM196: 1 | AN196: 1 | AO196: 1 | AP196: 1 | AQ196: 0 | AR196: 1 | AS196: 0.5 | AT196: 0.5 | AU196: 1 | AV196: 1 | AW196: 1 | AX196: 1 | AY196: 1 | AZ196: 1 | BA196: 1 | BB196: 1 | BC196: 1 | BD196: 1 | BE196: 0 | BF196: 1 | BG196: 1 | BH196: 0 | BI196: 1 | BJ196: 0 | BK196: 1 | BL196: 1 | BM196: 1 | BN196: 0 | BO196: =IF(BO194,IF(BO195=2,1,0)+IF(BO195=4,0.5,0)+IF(BO195=6,1,0)+IF(BO195=11,0.5,0)+IF(BO195=13,0,0)+IF(BO195=20,1,0),0) -> 1 | BP196: 1 | BQ196: 1 | BR196: 0 | BS196: 1 | BT196: 1 | BU196: 1 | BV196: 0 | BW196: 0 | BX196: 1 | BY196: 1 | BZ196: 1 | CA196: 1 | CB196: 1 | CC196: 1 | CD196: 0 | CE196: 1 | CF196: 1 | CG196: 1 | CH196: 1 | CI196: 1 | CJ196: 1 | CK196: 1 | CL196: 0 | CM196: 0 | CN196: 1 | CO196: 1 | CP196: 1 | CQ196: 1 | CR196: 1 | CS196: 1 | CT196: 1 | CU196: =IF(CU194,IF(CU195=2,1,0)+IF(CU195=4,0.5,0)+IF(CU195=6,1,0)+IF(CU195=11,0.5,0)+IF(CU195=13,0,0)+IF(CU195=20,1,0),0) -> 1 | CV196: 1 | CW196: 1 | CX196: =SUM(C196:CW196) -> 76.5
B197: Sam Goldstein | C197: =(IF(C128="",0,IF(C$25="",0,1))) -> 0 | D197: =(IF(D128="",0,IF(D$25="",0,1))) -> 0 | E197: 0 | F197: 0 | G197: 0 | H197: 0 | I197: 0 | J197: 0 | K197: 0 | L197: 0 | M197: 0 | N197: 0 | O197: 0 | P197: 0 | Q197: 0 | R197: 0 | S197: 0 | T197: 0 | U197: 0 | V197: 0 | W197: 0 | X197: 0 | Y197: 0 | Z197: 1 | AA197: 1 | AB197: 1 | AC197: 0 | AD197: 0 | AE197: 0 | AF197: 0 | AG197: 0 | AH197: 0 | AI197: 0 | AJ197: 0 | AK197: 0 | AL197: 0 | AM197: 0 | AN197: 0 | AO197: 0 | AP197: 0 | AQ197: 0 | AR197: 0 | AS197: 0 | AT197: 0 | AU197: 0 | AV197: 0 | AW197: 0 | AX197: 0 | AY197: 0 | AZ197: 0 | BA197: 0 | BB197: 0 | BC197: 0 | BD197: 0 | BE197: 0 | BF197: 1 | BG197: 1 | BH197: 1 | BI197: 1 | BJ197: 0 | BK197: 1 | BL197: 1 | BM197: 1 | BN197: 0 | BO197: 1 | BP197: =(IF(BP128="",0,IF(BP$25="",0,1))) -> 1 | BQ197: 1 | BR197: 0 | BS197: 0 | BT197: 0 | BU197: 0 | BV197: 1 | BW197: 1 | BX197: 0 | BY197: 0 | BZ197: 0 | CA197: 0 | CB197: 0 | CC197: 0 | CD197: 0 | CE197: 0 | CF197: 0 | CG197: 0 | CH197: 0 | CI197: 0 | CJ197: 0 | CK197: 0 | CL197: 1 | CM197: 1 | CN197: 0 | CO197: 0 | CP197: 0 | CQ197: 0 | CR197: 0 | CS197: 0 | CT197: 0 | CU197: 0 | CV197: 0 | CW197: 0 | CX197: =SUM(C197:CW197) -> 17
C198: =COLORINDEXOFONECELL(C128,TRUE,1)+COLORINDEXOFONECELL(C$25,TRUE,1) -> 11 | D198: 11 | E198: 13 | F198: 6 | G198: 20 | H198: 6 | I198: 13 | J198: 20 | K198: 20 | L198: 20 | M198: 6 | N198: 20 | O198: 20 | P198: 20 | Q198: 13 | R198: 20 | S198: 11 | T198: 11 | U198: 4 | V198: 4 | W198: 11 | X198: 4 | Y198: 4 | Z198: 6 | AA198: 20 | AB198: 20 | AC198: 11 | AD198: 11 | AE198: 11 | AF198: 11 | AG198: 11 | AH198: 11 | AI198: =COLORINDEXOFONECELL(AI128,TRUE,1)+COLORINDEXOFONECELL(AI$25,TRUE,1) -> 4 | AJ198: 11 | AK198: 11 | AL198: 11 | AM198: 11 | AN198: 11 | AO198: 11 | AP198: 11 | AQ198: 11 | AR198: 11 | AS198: 2 | AT198: 4 | AU198: 11 | AV198: 11 | AW198: 11 | AX198: 11 | AY198: 11 | AZ198: 11 | BA198: 4 | BB198: 11 | BC198: 11 | BD198: 11 | BE198: 11 | BF198: 20 | BG198: 6 | BH198: 13 | BI198: 20 | BJ198: 11 | BK198: 6 | BL198: 20 | BM198: 20 | BN198: 11 | BO198: =COLORINDEXOFONECELL(BO128,TRUE,1)+COLORINDEXOFONECELL(BO$25,TRUE,1) -> 20 | BP198: 20 | BQ198: 20 | BR198: 11 | BS198: 11 | BT198: 4 | BU198: 11 | BV198: 6 | BW198: 11 | BX198: 11 | BY198: 11 | BZ198: 11 | CA198: 11 | CB198: 4 | CC198: 11 | CD198: 2 | CE198: 11 | CF198: 11 | CG198: 4 | CH198: 11 | CI198: 11 | CJ198: 11 | CK198: 4 | CL198: 6 | CM198: 13 | CN198: 4 | CO198: 4 | CP198: 11 | CQ198: 11 | CR198: 11 | CS198: 11 | CT198: 11 | CU198: 11 | CV198: 11 | CW198: 4 | CY198: =CX199/CX197 -> 0.8529411765
C199: =IF(C197,IF(C198=2,1,0)+IF(C198=4,0.5,0)+IF(C198=6,1,0)+IF(C198=11,0.5,0)+IF(C198=13,0,0)+IF(C198=20,1,0),0) -> 0 | D199: 0 | E199: 0 | F199: 0 | G199: 0 | H199: 0 | I199: 0 | J199: 0 | K199: 0 | L199: 0 | M199: 0 | N199: 0 | O199: 0 | P199: 0 | Q199: 0 | R199: 0 | S199: 0 | T199: 0 | U199: 0 | V199: 0 | W199: 0 | X199: 0 | Y199: 0 | Z199: 1 | AA199: 1 | AB199: 1 | AC199: 0 | AD199: 0 | AE199: 0 | AF199: 0 | AG199: 0 | AH199: 0 | AI199: =IF(AI197,IF(AI198=2,1,0)+IF(AI198=4,0.5,0)+IF(AI198=6,1,0)+IF(AI198=11,0.5,0)+IF(AI198=13,0,0)+IF(AI198=20,1,0),0) -> 0 | AJ199: 0 | AK199: 0 | AL199: 0 | AM199: 0 | AN199: 0 | AO199: 0 | AP199: 0 | AQ199: 0 | AR199: 0 | AS199: 0 | AT199: 0 | AU199: 0 | AV199: 0 | AW199: 0 | AX199: 0 | AY199: 0 | AZ199: 0 | BA199: 0 | BB199: 0 | BC199: 0 | BD199: 0 | BE199: 0 | BF199: 1 | BG199: 1 | BH199: 0 | BI199: 1 | BJ199: 0 | BK199: 1 | BL199: 1 | BM199: 1 | BN199: 0 | BO199: =IF(BO197,IF(BO198=2,1,0)+IF(BO198=4,0.5,0)+IF(BO198=6,1,0)+IF(BO198=11,0.5,0)+IF(BO198=13,0,0)+IF(BO198=20,1,0),0) -> 1 | BP199: 1 | BQ199: 1 | BR199: 0 | BS199: 0 | BT199: 0 | BU199: 0 | BV199: 1 | BW199: 0.5 | BX199: 0 | BY199: 0 | BZ199: 0 | CA199: 0 | CB199: 0 | CC199: 0 | CD199: 0 | CE199: 0 | CF199: 0 | CG199: 0 | CH199: 0 | CI199: 0 | CJ199: 0 | CK199: 0 | CL199: 1 | CM199: 0 | CN199: 0 | CO199: 0 | CP199: 0 | CQ199: 0 | CR199: 0 | CS199: 0 | CT199: 0 | CU199: =IF(CU197,IF(CU198=2,1,0)+IF(CU198=4,0.5,0)+IF(CU198=6,1,0)+IF(CU198=11,0.5,0)+IF(CU198=13,0,0)+IF(CU198=20,1,0),0) -> 0 | CV199: 0 | CW199: 0 | CX199: =SUM(C199:CW199) -> 14.5
B200: Norm Olsen | C200: =(IF(C128="",0,IF(C$26="",0,1))) -> 1 | D200: =(IF(D128="",0,IF(D$26="",0,1))) -> 0 | E200: 0 | F200: 0 | G200: 0 | H200: 0 | I200: 0 | J200: 1 | K200: 1 | L200: 1 | M200: 1 | N200: 1 | O200: 1 | P200: 1 | Q200: 1 | R200: 1 | S200: 1 | T200: 1 | U200: 1 | V200: 1 | W200: 1 | X200: 1 | Y200: 1 | Z200: 1 | AA200: 1 | AB200: 1 | AC200: 1 | AD200: 1 | AE200: 1 | AF200: 0 | AG200: 0 | AH200: 1 | AI200: 1 | AJ200: 1 | AK200: 1 | AL200: 1 | AM200: 1 | AN200: 1 | AO200: 1 | AP200: 1 | AQ200: 1 | AR200: 1 | AS200: 1 | AT200: 1 | AU200: 1 | AV200: 1 | AW200: 1 | AX200: 1 | AY200: 1 | AZ200: 1 | BA200: 1 | BB200: 1 | BC200: 1 | BD200: 1 | BE200: 0 | BF200: 1 | BG200: 1 | BH200: 1 | BI200: 1 | BJ200: 0 | BK200: 1 | BL200: 1 | BM200: 1 | BN200: 0 | BO200: 0 | BP200: =(IF(BP128="",0,IF(BP$26="",0,1))) -> 1 | BQ200: 0 | BR200: 0 | BS200: 1 | BT200: 1 | BU200: 1 | BV200: 1 | BW200: 1 | BX200: 1 | BY200: 1 | BZ200: 1 | CA200: 0 | CB200: 1 | CC200: 1 | CD200: 0 | CE200: 1 | CF200: 1 | CG200: 1 | CH200: 1 | CI200: 1 | CJ200: 1 | CK200: 1 | CL200: 1 | CM200: 1 | CN200: 1 | CO200: 1 | CP200: 1 | CQ200: 1 | CR200: 1 | CS200: 1 | CT200: 1 | CU200: 0 | CV200: 1 | CW200: 1 | CX200: =SUM(C200:CW200) -> 82
C201: =COLORINDEXOFONECELL(C128,TRUE,1)+COLORINDEXOFONECELL(C$26,TRUE,1) -> 20 | D201: 2 | E201: 4 | F201: 4 | G201: 11 | H201: 4 | I201: 11 | J201: 20 | K201: 20 | L201: 20 | M201: 6 | N201: 20 | O201: 13 | P201: 13 | Q201: 13 | R201: 20 | S201: 11 | T201: 4 | U201: 6 | V201: 4 | W201: 13 | X201: 13 | Y201: 6 | Z201: 6 | AA201: 13 | AB201: 13 | AC201: 20 | AD201: 20 | AE201: 13 | AF201: 11 | AG201: 11 | AH201: 13 | AI201: =COLORINDEXOFONECELL(AI128,TRUE,1)+COLORINDEXOFONECELL(AI$26,TRUE,1) -> 6 | AJ201: 20 | AK201: 13 | AL201: 20 | AM201: 20 | AN201: 20 | AO201: 20 | AP201: 20 | AQ201: 20 | AR201: 11 | AS201: 11 | AT201: 13 | AU201: 20 | AV201: 13 | AW201: 20 | AX201: 20 | AY201: 13 | AZ201: 13 | BA201: 13 | BB201: 20 | BC201: 13 | BD201: 20 | BE201: 11 | BF201: 20 | BG201: 13 | BH201: 6 | BI201: 20 | BJ201: 11 | BK201: 6 | BL201: 20 | BM201: 20 | BN201: 11 | BO201: =COLORINDEXOFONECELL(BO128,TRUE,1)+COLORINDEXOFONECELL(BO$26,TRUE,1) -> 11 | BP201: 13 | BQ201: 11 | BR201: 11 | BS201: 20 | BT201: 6 | BU201: 13 | BV201: 6 | BW201: 11 | BX201: 20 | BY201: 13 | BZ201: 13 | CA201: 11 | CB201: 13 | CC201: 13 | CD201: 2 | CE201: 13 | CF201: 20 | CG201: 6 | CH201: 20 | CI201: 13 | CJ201: 20 | CK201: 6 | CL201: 13 | CM201: 20 | CN201: 6 | CO201: 6 | CP201: 20 | CQ201: 20 | CR201: 11 | CS201: 20 | CT201: 13 | CU201: 11 | CV201: 13 | CW201: 6 | CY201: =CX202/CX200 -> 0.6158536585
C202: =IF(C200,IF(C201=2,1,0)+IF(C201=4,0.5,0)+IF(C201=6,1,0)+IF(C201=11,0.5,0)+IF(C201=13,0,0)+IF(C201=20,1,0),0) -> 1 | D202: 0 | E202: 0 | F202: 0 | G202: 0 | H202: 0 | I202: 0 | J202: 1 | K202: 1 | L202: 1 | M202: 1 | N202: 1 | O202: 0 | P202: 0 | Q202: 0 | R202: 1 | S202: 0.5 | T202: 0.5 | U202: 1 | V202: 0.5 | W202: 0 | X202: 0 | Y202: 1 | Z202: 1 | AA202: 0 | AB202: 0 | AC202: 1 | AD202: 1 | AE202: 0 | AF202: 0 | AG202: 0 | AH202: 0 | AI202: =IF(AI200,IF(AI201=2,1,0)+IF(AI201=4,0.5,0)+IF(AI201=6,1,0)+IF(AI201=11,0.5,0)+IF(AI201=13,0,0)+IF(AI201=20,1,0),0) -> 1 | AJ202: 1 | AK202: 0 | AL202: 1 | AM202: 1 | AN202: 1 | AO202: 1 | AP202: 1 | AQ202: 1 | AR202: 0.5 | AS202: 0.5 | AT202: 0 | AU202: 1 | AV202: 0 | AW202: 1 | AX202: 1 | AY202: 0 | AZ202: 0 | BA202: 0 | BB202: 1 | BC202: 0 | BD202: 1 | BE202: 0 | BF202: 1 | BG202: 0 | BH202: 1 | BI202: 1 | BJ202: 0 | BK202: 1 | BL202: 1 | BM202: 1 | BN202: 0 | BO202: =IF(BO200,IF(BO201=2,1,0)+IF(BO201=4,0.5,0)+IF(BO201=6,1,0)+IF(BO201=11,0.5,0)+IF(BO201=13,0,0)+IF(BO201=20,1,0),0) -> 0 | BP202: 0 | BQ202: 0 | BR202: 0 | BS202: 1 | BT202: 1 | BU202: 0 | BV202: 1 | BW202: 0.5 | BX202: 1 | BY202: 0 | BZ202: 0 | CA202: 0 | CB202: 0 | CC202: 0 | CD202: 0 | CE202: 0 | CF202: 1 | CG202: 1 | CH202: 1 | CI202: 0 | CJ202: 1 | CK202: 1 | CL202: 0 | CM202: 1 | CN202: 1 | CO202: 1 | CP202: 1 | CQ202: 1 | CR202: 0.5 | CS202: 1 | CT202: 0 | CU202: =IF(CU200,IF(CU201=2,1,0)+IF(CU201=4,0.5,0)+IF(CU201=6,1,0)+IF(CU201=11,0.5,0)+IF(CU201=13,0,0)+IF(CU201=20,1,0),0) -> 0 | CV202: 0 | CW202: 1 | CX202: =SUM(C202:CW202) -> 50.5
B203: Don Willis | C203: =(IF(C128="",0,IF(C$27="",0,1))) -> 0 | D203: =(IF(D128="",0,IF(D$27="",0,1))) -> 0 | E203: 1 | F203: 1 | G203: 1 | H203: 1 | I203: 1 | J203: 0 | K203: 0 | L203: 0 | M203: 0 | N203: 0 | O203: 0 | P203: 0 | Q203: 0 | R203: 0 | S203: 0 | T203: 0 | U203: 0 | V203: 0 | W203: 0 | X203: 0 | Y203: 0 | Z203: 0 | AA203: 0 | AB203: 0 | AC203: 0 | AD203: 0 | AE203: 0 | AF203: 0 | AG203: 0 | AH203: 0 | AI203: 0 | AJ203: 0 | AK203: 0 | AL203: 0 | AM203: 0 | AN203: 0 | AO203: 0 | AP203: 0 | AQ203: 0 | AR203: 0 | AS203: 0 | AT203: 0 | AU203: 0 | AV203: 0 | AW203: 0 | AX203: 0 | AY203: 0 | AZ203: 0 | BA203: 0 | BB203: 0 | BC203: 0 | BD203: 0 | BE203: 0 | BF203: 0 | BG203: 0 | BH203: 0 | BI203: 0 | BJ203: 0 | BK203: 0 | BL203: 0 | BM203: 0 | BN203: 0 | BO203: 0 | BP203: =(IF(BP128="",0,IF(BP$27="",0,1))) -> 0 | BQ203: 0 | BR203: 0 | BS203: 0 | BT203: 0 | BU203: 0 | BV203: 0 | BW203: 0 | BX203: 0 | BY203: 0 | BZ203: 0 | CA203: 0 | CB203: 0 | CC203: 0 | CD203: 0 | CE203: 0 | CF203: 0 | CG203: 0 | CH203: 0 | CI203: 0 | CJ203: 0 | CK203: 0 | CL203: 0 | CM203: 0 | CN203: 0 | CO203: 0 | CP203: 0 | CQ203: 0 | CR203: 0 | CS203: 0 | CT203: 0 | CU203: 0 | CV203: 0 | CW203: 0 | CX203: =SUM(C203:CW203) -> 5
C204: =COLORINDEXOFONECELL(C128,TRUE,1)+COLORINDEXOFONECELL(C$27,TRUE,1) -> 20 | D204: 11 | E204: 6 | F204: 6 | G204: 13 | H204: 13 | I204: 13 | J204: 11 | K204: 11 | L204: 11 | M204: 4 | N204: 11 | O204: 11 | P204: 11 | Q204: 11 | R204: 11 | S204: 2 | T204: 2 | U204: 4 | V204: 4 | W204: 11 | X204: 4 | Y204: 4 | Z204: 4 | AA204: 11 | AB204: 11 | AC204: 11 | AD204: 11 | AE204: 11 | AF204: 11 | AG204: 11 | AH204: 11 | AI204: =COLORINDEXOFONECELL(AI128,TRUE,1)+COLORINDEXOFONECELL(AI$27,TRUE,1) -> 4 | AJ204: 11 | AK204: 11 | AL204: 11 | AM204: 11 | AN204: 11 | AO204: 11 | AP204: 11 | AQ204: 11 | AR204: 11 | AS204: 2 | AT204: 4 | AU204: 11 | AV204: 11 | AW204: 11 | AX204: 11 | AY204: 11 | AZ204: 11 | BA204: 4 | BB204: 11 | BC204: 11 | BD204: 11 | BE204: 11 | BF204: 11 | BG204: 4 | BH204: 4 | BI204: 11 | BJ204: 2 | BK204: 4 | BL204: 11 | BM204: 11 | BN204: 2 | BO204: =COLORINDEXOFONECELL(BO128,TRUE,1)+COLORINDEXOFONECELL(BO$27,TRUE,1) -> 11 | BP204: 11 | BQ204: 11 | BR204: 2 | BS204: 11 | BT204: 4 | BU204: 11 | BV204: 4 | BW204: 2 | BX204: 11 | BY204: 11 | BZ204: 11 | CA204: 11 | CB204: 4 | CC204: 11 | CD204: 2 | CE204: 11 | CF204: 11 | CG204: 4 | CH204: 11 | CI204: 11 | CJ204: 11 | CK204: 4 | CL204: 4 | CM204: 11 | CN204: 4 | CO204: 4 | CP204: 11 | CQ204: 11 | CR204: 11 | CS204: 11 | CT204: 11 | CU204: 11 | CV204: 11 | CW204: 4 | CY204: =CX205/CX203 -> 0.4
C205: =IF(C203,IF(C204=2,1,0)+IF(C204=4,0.5,0)+IF(C204=6,1,0)+IF(C204=11,0.5,0)+IF(C204=13,0,0)+IF(C204=20,1,0),0) -> 0 | D205: 0 | E205: 1 | F205: 1 | G205: 0 | H205: 0 | I205: 0 | J205: 0 | K205: 0 | L205: 0 | M205: 0 | N205: 0 | O205: 0 | P205: 0 | Q205: 0 | R205: 0 | S205: 0 | T205: 0 | U205: 0 | V205: 0 | W205: 0 | X205: 0 | Y205: 0 | Z205: 0 | AA205: 0 | AB205: 0 | AC205: 0 | AD205: 0 | AE205: 0 | AF205: 0 | AG205: 0 | AH205: 0 | AI205: =IF(AI203,IF(AI204=2,1,0)+IF(AI204=4,0.5,0)+IF(AI204=6,1,0)+IF(AI204=11,0.5,0)+IF(AI204=13,0,0)+IF(AI204=20,1,0),0) -> 0 | AJ205: 0 | AK205: 0 | AL205: 0 | AM205: 0 | AN205: 0 | AO205: 0 | AP205: 0 | AQ205: 0 | AR205: 0 | AS205: 0 | AT205: 0 | AU205: 0 | AV205: 0 | AW205: 0 | AX205: 0 | AY205: 0 | AZ205: 0 | BA205: 0 | BB205: 0 | BC205: 0 | BD205: 0 | BE205: 0 | BF205: 0 | BG205: 0 | BH205: 0 | BI205: 0 | BJ205: 0 | BK205: 0 | BL205: 0 | BM205: 0 | BN205: 0 | BO205: =IF(BO203,IF(BO204=2,1,0)+IF(BO204=4,0.5,0)+IF(BO204=6,1,0)+IF(BO204=11,0.5,0)+IF(BO204=13,0,0)+IF(BO204=20,1,0),0) -> 0 | BP205: 0 | BQ205: 0 | BR205: 0 | BS205: 0 | BT205: 0 | BU205: 0 | BV205: 0 | BW205: 0 | BX205: 0 | BY205: 0 | BZ205: 0 | CA205: 0 | CB205: 0 | CC205: 0 | CD205: 0 | CE205: 0 | CF205: 0 | CG205: 0 | CH205: 0 | CI205: 0 | CJ205: 0 | CK205: 0 | CL205: 0 | CM205: 0 | CN205: 0 | CO205: 0 | CP205: 0 | CQ205: 0 | CR205: 0 | CS205: 0 | CT205: 0 | CU205: =IF(CU203,IF(CU204=2,1,0)+IF(CU204=4,0.5,0)+IF(CU204=6,1,0)+IF(CU204=11,0.5,0)+IF(CU204=13,0,0)+IF(CU204=20,1,0),0) -> 0 | CV205: 0 | CW205: 0 | CX205: =SUM(C205:CW205) -> 2
B206: Dr. Jim Lark | C206: =(IF(C128="",0,IF(C$28="",0,1))) -> 1 | D206: =(IF(D128="",0,IF(D$28="",0,1))) -> 0 | E206: 1 | F206: 1 | G206: 1 | H206: 1 | I206: 1 | J206: 1 | K206: 1 | L206: 1 | M206: 1 | N206: 1 | O206: 1 | P206: 1 | Q206: 1 | R206: 1 | S206: 1 | T206: 1 | U206: 1 | V206: 1 | W206: 1 | X206: 1 | Y206: 1 | Z206: 1 | AA206: 1 | AB206: 1 | AC206: 1 | AD206: 1 | AE206: 1 | AF206: 1 | AG206: 1 | AH206: 1 | AI206: 1 | AJ206: 1 | AK206: 1 | AL206: 1 | AM206: 1 | AN206: 1 | AO206: 1 | AP206: 1 | AQ206: 1 | AR206: 1 | AS206: 1 | AT206: 1 | AU206: 1 | AV206: 1 | AW206: 1 | AX206: 1 | AY206: 1 | AZ206: 1 | BA206: 1 | BB206: 1 | BC206: 1 | BD206: 1 | BE206: 1 | BF206: 1 | BG206: 1 | BH206: 1 | BI206: 1 | BJ206: 0 | BK206: 1 | BL206: 1 | BM206: 1 | BN206: 0 | BO206: 1 | BP206: =(IF(BP128="",0,IF(BP$28="",0,1))) -> 1 | BQ206: 1 | BR206: 0 | BS206: 1 | BT206: 1 | BU206: 1 | BV206: 1 | BW206: 1 | BX206: 1 | BY206: 1 | BZ206: 1 | CA206: 0 | CB206: 1 | CC206: 1 | CD206: 0 | CE206: 1 | CF206: 1 | CG206: 1 | CH206: 1 | CI206: 1 | CJ206: 1 | CK206: 1 | CL206: 1 | CM206: 1 | CN206: 0 | CO206: 1 | CP206: 1 | CQ206: 1 | CR206: 1 | CS206: 1 | CT206: 1 | CU206: 1 | CV206: 1 | CW206: 1 | CX206: =SUM(C206:CW206) -> 92
... 351 more rows

Sheet Aggregate
B1: Mark Hinkle | C1: Mark Rutherford | D1: Alicia Mattson | E1: James Oaksun | F1: Bill Redpath | G1: Randy Eshelman | H1: Kevin Knedler | I1: David Nolan | J1: Brett Pojunis | K1: Wayne Allyn Root | L1: Dr. Mary Ruwart | M1: Rebecca Sink-Burris | N1: Doug Craig | O1: Stewart Flood | P1: Dan Wiener | Q1: Dr. Scott Lieberman | R1: Guy McLendon | S1: Brad Ploeger | T1: Rachel Hawkridge | U1: Vicki Kirkland | V1: David Blau | W1: Andy Wolf | X1: Sam Goldstein | Y1: Norm Olsen | Z1: Don Willis | AA1: Dr. Jim Lark | AB1: Dan Karlan | AC1: Audrey Capozzi | AD1: Dianna Visek
A2: Mark Hinkle | B2: 51 | C2: 48 | D2: 47 | E2: 7 | F2: 49 | G2: 22 | H2: 51 | I2: 5 | J2: 5 | K2: 48 | L2: 48 | M2: 40 | N2: 30 | O2: 46 | P2: 47 | Q2: 21 | R2: 3 | S2: 6 | T2: 5 | U2: 33 | V2: 9 | W2: 45 | X2: 12 | Y2: 47 | Z2: 1 | AA2: 50 | AB2: 33 | AC2: 10 | AD2: 48
B4: 51 | C4: 15.5 | D4: 18 | E4: 4.5 | F4: 34 | G4: 6.5 | H4: 22 | I4: 3.5 | J4: 1 | K4: 18 | L4: 35.5 | M4: 15 | N4: 20.5 | O4: 36 | P4: 24.5 | Q4: 6.5 | R4: 3 | S4: 4.5 | T4: 4.5 | U4: 26.5 | V4: 5 | W4: 15.5 | X4: 4.5 | Y4: 15 | Z4: 0 | AA4: 36.5 | AB4: 24.5 | AC4: 4 | AD4: 20
A5: Mark Rutherford | B5: 48 | C5: 94 | D5: 90 | E5: 18 | F5: 89 | G5: 40 | H5: 94 | I5: 12 | J5: 7 | K5: 87 | L5: 84 | M5: 65 | N5: 61 | O5: 84 | P5: 86 | Q5: 33 | R5: 6 | S5: 11 | T5: 23 | U5: 49 | V5: 16 | W5: 85 | X5: 17 | Y5: 82 | Z5: 5 | AA5: 92 | AB5: 70 | AC5: 11 | AD5: 89
B7: 15.5 | C7: 94 | D7: 80 | E7: 8 | F7: 59 | G7: 33.5 | H7: 77.5 | I7: 3.5 | J7: 7 | K7: 78 | L7: 38 | M7: 60.5 | N7: 30 | O7: 51 | P7: 66.5 | Q7: 29.5 | R7: 4 | S7: 6.5 | T7: 10 | U7: 22 | V7: 10 | W7: 76.5 | X7: 14.5 | Y7: 50.5 | Z7: 2 | AA7: 58.5 | AB7: 49 | AC7: 11 | AD7: 73
A8: Alicia Mattson | B8: 47 | C8: 90 | D8: 93 | E8: 17 | F8: 88 | G8: 38 | H8: 93 | I8: 12 | J8: 7 | K8: 85 | L8: 82 | M8: 63 | N8: 61 | O8: 82 | P8: 84 | Q8: 31 | R8: 6 | S8: 11 | T8: 23 | U8: 46 | V8: 16 | W8: 85 | X8: 15 | Y8: 80 | Z8: 6 | AA8: 91 | AB8: 70 | AC8: 11 | AD8: 86
B10: 18 | C10: 80 | D10: 93 | E10: 7 | F10: 61 | G10: 30.5 | H10: 79.5 | I10: 4 | J10: 6 | K10: 77 | L10: 37.5 | M10: 58 | N10: 32 | O10: 54 | P10: 67 | Q10: 28.5 | R10: 4 | S10: 8 | T10: 12.5 | U10: 20.5 | V10: 10 | W10: 74 | X10: 13 | Y10: 48 | Z10: 0.5 | AA10: 60.5 | AB10: 49.5 | AC10: 11 | AD10: 74
A11: James Oaksun | B11: 7 | C11: 18 | D11: 17 | E11: 19 | F11: 17 | G11: 1 | H11: 19 | I11: 7 | J11: 0 | K11: 12 | L11: 18 | M11: 1 | N11: 16 | O11: 17 | P11: 16 | Q11: 3 | R11: 2 | S11: 3 | T11: 16 | U11: 1 | V11: 0 | W11: 18 | X11: 7 | Y11: 19 | Z11: 0 | AA11: 19 | AB11: 16 | AC11: 0 | AD11: 16
B13: 4.5 | C13: 8 | D13: 7 | E13: 19 | F13: 9 | G13: 1 | H13: 10 | I13: 7 | J13: 0 | K13: 4 | L13: 14.5 | M13: 1 | N13: 13.5 | O13: 8.5 | P13: 7 | Q13: 2 | R13: 1.5 | S13: 3 | T13: 11 | U13: 1 | V13: 0 | W13: 9 | X13: 3 | Y13: 10 | Z13: 0 | AA13: 9 | AB13: 9 | AC13: 0 | AD13: 8.5
A14: Bill Redpath | B14: 49 | C14: 89 | D14: 88 | E14: 17 | F14: 92 | G14: 39 | H14: 92 | I14: 12 | J14: 7 | K14: 84 | L14: 82 | M14: 63 | N14: 60 | O14: 83 | P14: 85 | Q14: 31 | R14: 6 | S14: 10 | T14: 22 | U14: 48 | V14: 16 | W14: 84 | X14: 18 | Y14: 79 | Z14: 6 | AA14: 90 | AB14: 69 | AC14: 11 | AD14: 85
B16: 34 | C16: 59 | D16: 61 | E16: 9 | F16: 92 | G16: 23.5 | H16: 66.5 | I16: 7.5 | J16: 5 | K16: 60.5 | L16: 55 | M16: 46 | N16: 41 | O16: 62.5 | P16: 70.5 | Q16: 18.5 | R16: 4.5 | S16: 5 | T16: 16 | U16: 35 | V16: 11.5 | W16: 56 | X16: 12.5 | Y16: 36 | Z16: 1 | AA16: 67.5 | AB16: 53.5 | AC16: 9.5 | AD16: 58.5
A17: Randy Eshelman | B17: 22 | C17: 40 | D17: 38 | E17: 1 | F17: 39 | G17: 41 | H17: 41 | I17: 0 | J17: 2 | K17: 39 | L17: 38 | M17: 38 | N17: 23 | O17: 32 | P17: 38 | Q17: 18 | R17: 4 | S17: 7 | T17: 1 | U17: 30 | V17: 8 | W17: 36 | X17: 5 | Y17: 36 | Z17: 0 | AA17: 38 | AB17: 34 | AC17: 2 | AD17: 39
B19: 6.5 | C19: 33.5 | D19: 30.5 | E19: 1 | F19: 23.5 | G19: 41 | H19: 30 | I19: 0 | J19: 2 | K19: 33 | L19: 16.5 | M19: 33 | N19: 7.5 | O19: 15.5 | P19: 27 | Q19: 15 | R19: 3 | S19: 4 | T19: 1 | U19: 13.5 | V19: 4 | W19: 30.5 | X19: 3 | Y19: 24 | Z19: 0 | AA19: 21.5 | AB19: 23.5 | AC19: 2 | AD19: 35.5
A20: Kevin Knedler | B20: 51 | C20: 94 | D20: 93 | E20: 19 | F20: 92 | G20: 41 | H20: 99 | I20: 14 | J20: 7 | K20: 90 | L20: 88 | M20: 65 | N20: 65 | O20: 87 | P20: 90 | Q20: 34 | R20: 6 | S20: 11 | T20: 24 | U20: 51 | V20: 16 | W20: 88 | X20: 20 | Y20: 85 | Z20: 6 | AA20: 96 | AB20: 74 | AC20: 11 | AD20: 91
B22: 22 | C22: 77.5 | D22: 79.5 | E22: 10 | F22: 66.5 | G22: 30 | H22: 99 | I22: 7.5 | J22: 6 | K22: 77.5 | L22: 45.5 | M22: 53.5 | N22: 38 | O22: 59.5 | P22: 72.5 | Q22: 28.5 | R22: 5 | S22: 7 | T22: 14 | U22: 27 | V22: 11 | W22: 76.5 | X22: 18.5 | Y22: 48.5 | Z22: 2 | AA22: 62.5 | AB22: 53 | AC22: 10.5 | AD22: 73
A23: David Nolan | B23: 5 | C23: 12 | D23: 12 | E23: 7 | F23: 12 | G23: 0 | H23: 14 | I23: 14 | J23: 0 | K23: 13 | L23: 13 | M23: 2 | N23: 13 | O23: 14 | P23: 13 | Q23: 2 | R23: 0 | S23: 0 | T23: 11 | U23: 1 | V23: 0 | W23: 12 | X23: 6 | Y23: 7 | Z23: 6 | AA23: 14 | AB23: 6 | AC23: 0 | AD23: 12
B25: 3.5 | C25: 3.5 | D25: 4 | E25: 7 | F25: 7.5 | G25: 0 | H25: 7.5 | I25: 14 | J25: 0 | K25: 5.5 | L25: 11 | M25: 1 | N25: 10.5 | O25: 7.5 | P25: 6.5 | Q25: 1 | R25: 0 | S25: 0 | T25: 10.5 | U25: 1 | V25: 0 | W25: 5.5 | X25: 3 | Y25: 3 | Z25: 2.5 | AA25: 9 | AB25: 3 | AC25: 0 | AD25: 6.5
A26: Brett Pojunis | B26: 5 | C26: 7 | D26: 7 | E26: 0 | F26: 7 | G26: 2 | H26: 7 | I26: 0 | J26: 7 | K26: 7 | L26: 6 | M26: 7 | N26: 5 | O26: 7 | P26: 7 | Q26: 1 | R26: 0 | S26: 1 | T26: 0 | U26: 5 | V26: 3 | W26: 7 | X26: 0 | Y26: 5 | Z26: 0 | AA26: 7 | AB26: 4 | AC26: 3 | AD26: 7
B28: 1 | C28: 7 | D28: 6 | E28: 0 | F28: 5 | G28: 2 | H28: 6 | I28: 0 | J28: 7 | K28: 6.5 | L28: 2.5 | M28: 7 | N28: 2 | O28: 3 | P28: 7 | Q28: 0 | R28: 0 | S28: 1 | T28: 0 | U28: 2 | V28: 1 | W28: 7 | X28: 0 | Y28: 3 | Z28: 0 | AA28: 4 | AB28: 1 | AC28: 3 | AD28: 6
A29: Wayne Allyn Root | B29: 48 | C29: 87 | D29: 85 | E29: 12 | F29: 84 | G29: 39 | H29: 90 | I29: 13 | J29: 7 | K29: 90 | L29: 80 | M29: 64 | N29: 60 | O29: 82 | P29: 83 | Q29: 33 | R29: 3 | S29: 8 | T29: 18 | U29: 49 | V29: 16 | W29: 80 | X29: 19 | Y29: 77 | Z29: 6 | AA29: 88 | AB29: 65 | AC29: 11 | AD29: 84
B31: 18 | C31: 78 | D31: 77 | E31: 4 | F31: 60.5 | G31: 33 | H31: 77.5 | I31: 5.5 | J31: 6.5 | K31: 90 | L31: 38 | M31: 59.5 | N31: 30.5 | O31: 55 | P31: 67.5 | Q31: 29.5 | R31: 3 | S31: 4.5 | T31: 9 | U31: 23.5 | V31: 10 | W31: 73.5 | X31: 15 | Y31: 50.5 | Z31: 2 | AA31: 58 | AB31: 49.5 | AC31: 10.5 | AD31: 74.5
A32: Dr. Mary Ruwart | B32: 48 | C32: 84 | D32: 82 | E32: 18 | F32: 82 | G32: 38 | H32: 88 | I32: 13 | J32: 6 | K32: 80 | L32: 88 | M32: 57 | N32: 58 | O32: 77 | P32: 80 | Q32: 31 | R32: 6 | S32: 11 | T32: 23 | U32: 44 | V32: 16 | W32: 82 | X32: 14 | Y32: 76 | Z32: 6 | AA32: 86 | AB32: 64 | AC32: 11 | AD32: 83
B34: 35.5 | C34: 38 | D34: 37.5 | E34: 14.5 | F34: 55 | G34: 16.5 | H34: 45.5 | I34: 11 | J34: 2.5 | K34: 38 | L34: 88 | M34: 24.5 | N34: 51 | O34: 51.5 | P34: 47 | Q34: 16 | R34: 4 | S34: 8.5 | T34: 20 | U34: 40 | V34: 9.5 | W34: 37.5 | X34: 8.5 | Y34: 43 | Z34: 1.5 | AA34: 60.5 | AB34: 42.5 | AC34: 3.5 | AD34: 45
A35: Rebecca Sink-Burris | B35: 40 | C35: 65 | D35: 63 | E35: 1 | F35: 63 | G35: 38 | H35: 65 | I35: 2 | J35: 7 | K35: 64 | L35: 57 | M35: 65 | N35: 37 | O35: 57 | P35: 59 | Q35: 29 | R35: 4 | S35: 8 | T35: 2 | U35: 47 | V35: 16 | W35: 56 | X35: 7 | Y35: 61 | Z35: 0 | AA35: 64 | AB35: 50 | AC35: 11 | AD35: 65
B37: 15 | C37: 60.5 | D37: 58 | E37: 1 | F37: 46 | G37: 33 | H37: 53.5 | I37: 1 | J37: 7 | K37: 59.5 | L37: 24.5 | M37: 65 | N37: 15.5 | O37: 32.5 | P37: 49 | Q37: 25.5 | R37: 3 | S37: 5 | T37: 1 | U37: 23 | V37: 9.5 | W37: 52.5 | X37: 5 | Y37: 34 | Z37: 0 | AA37: 35 | AB37: 33.5 | AC37: 11 | AD37: 56
A38: Doug Craig | B38: 30 | C38: 61 | D38: 61 | E38: 16 | F38: 60 | G38: 23 | H38: 65 | I38: 13 | J38: 5 | K38: 60 | L38: 58 | M38: 37 | N38: 65 | O38: 58 | P38: 60 | Q38: 7 | R38: 3 | S38: 4 | T38: 22 | U38: 29 | V38: 9 | W38: 57 | X38: 16 | Y38: 55 | Z38: 6 | AA38: 64 | AB38: 46 | AC38: 7 | AD38: 59
B40: 20.5 | C40: 30 | D40: 32 | E40: 13.5 | F40: 41 | G40: 7.5 | H40: 38 | I40: 10.5 | J40: 2 | K40: 30.5 | L40: 51 | M40: 15.5 | N40: 65 | O40: 37 | P40: 37.5 | Q40: 4 | R40: 3 | S40: 3.5 | T40: 18 | U40: 26.5 | V40: 6 | W40: 26.5 | X40: 10 | Y40: 35.5 | Z40: 1 | AA40: 45 | AB40: 32.5 | AC40: 2 | AD40: 34
A41: Stewart Flood | B41: 46 | C41: 84 | D41: 82 | E41: 17 | F41: 83 | G41: 32 | H41: 87 | I41: 14 | J41: 7 | K41: 82 | L41: 77 | M41: 57 | N41: 58 | O41: 87 | P41: 80 | Q41: 29 | R41: 1 | S41: 6 | T41: 22 | U41: 44 | V41: 14 | W41: 78 | X41: 19 | Y41: 74 | Z41: 6 | AA41: 85 | AB41: 64 | AC41: 10 | AD41: 80
B43: 36 | C43: 51 | D43: 54 | E43: 8.5 | F43: 62.5 | G43: 15.5 | H43: 59.5 | I43: 7.5 | J43: 3 | K43: 55 | L43: 51.5 | M43: 32.5 | N43: 37 | O43: 87 | P43: 57 | Q43: 13 | R43: 1 | S43: 4.5 | T43: 13 | U43: 30.5 | V43: 7.5 | W43: 50.5 | X43: 15 | Y43: 36.5 | Z43: 2 | AA43: 65 | AB43: 53.5 | AC43: 8 | AD43: 49.5
A44: Dan Wiener | B44: 47 | C44: 86 | D44: 84 | E44: 16 | F44: 85 | G44: 38 | H44: 90 | I44: 13 | J44: 7 | K44: 83 | L44: 80 | M44: 59 | N44: 60 | O44: 80 | P44: 90 | Q44: 27 | R44: 5 | S44: 10 | T44: 21 | U44: 48 | V44: 14 | W44: 81 | X44: 20 | Y44: 77 | Z44: 6 | AA44: 89 | AB44: 65 | AC44: 11 | AD44: 83
B46: 24.5 | C46: 66.5 | D46: 67 | E46: 7 | F46: 70.5 | G46: 27 | H46: 72.5 | I46: 6.5 | J46: 7 | K46: 67.5 | L46: 47 | M46: 49 | N46: 37.5 | O46: 57 | P46: 90 | Q46: 17 | R46: 3 | S46: 5.5 | T46: 12 | U46: 30 | V46: 9 | W46: 62.5 | X46: 17 | Y46: 38.5 | Z46: 2 | AA46: 66 | AB46: 52 | AC46: 10 | AD46: 63.5
A47: Dr. Scott Lieberman | B47: 21 | C47: 33 | D47: 31 | E47: 3 | F47: 31 | G47: 18 | H47: 34 | I47: 2 | J47: 1 | K47: 33 | L47: 31 | M47: 29 | N47: 7 | O47: 29 | P47: 27 | Q47: 34 | R47: 1 | S47: 3 | T47: 2 | U47: 21 | V47: 9 | W47: 30 | X47: 5 | Y47: 31 | Z47: 0 | AA47: 32 | AB47: 29 | AC47: 3 | AD47: 33
B49: 6.5 | C49: 29.5 | D49: 28.5 | E49: 2 | F49: 18.5 | G49: 15 | H49: 28.5 | I49: 1 | J49: 0 | K49: 29.5 | L49: 16 | M49: 25.5 | N49: 4 | O49: 13 | P49: 17 | Q49: 34 | R49: 1 | S49: 2.5 | T49: 1 | U49: 11 | V49: 8 | W49: 25.5 | X49: 4 | Y49: 22 | Z49: 0 | AA49: 19.5 | AB49: 19.5 | AC49: 3 | AD49: 29
A50: Guy McLendon | B50: 3 | C50: 6 | D50: 6 | E50: 2 | F50: 6 | G50: 4 | H50: 6 | I50: 0 | J50: 0 | K50: 3 | L50: 6 | M50: 4 | N50: 3 | O50: 1 | P50: 5 | Q50: 1 | R50: 6 | S50: 2 | T50: 2 | U50: 4 | V50: 0 | W50: 6 | X50: 0 | Y50: 6 | Z50: 0 | AA50: 6 | AB50: 6 | AC50: 0 | AD50: 6
B52: 3 | C52: 4 | D52: 4 | E52: 1.5 | F52: 4.5 | G52: 3 | H52: 5 | I52: 0 | J52: 0 | K52: 3 | L52: 4 | M52: 3 | N52: 3 | O52: 1 | P52: 3 | Q52: 1 | R52: 6 | S52: 1 | T52: 1 | U52: 3 | V52: 0 | W52: 4.5 | X52: 0 | Y52: 2.5 | Z52: 0 | AA52: 6 | AB52: 5 | AC52: 0 | AD52: 5.5
A53: Brad Ploeger | B53: 6 | C53: 11 | D53: 11 | E53: 3 | F53: 10 | G53: 7 | H53: 11 | I53: 0 | J53: 1 | K53: 8 | L53: 11 | M53: 8 | N53: 4 | O53: 6 | P53: 10 | Q53: 3 | R53: 2 | S53: 11 | T53: 3 | U53: 7 | V53: 1 | W53: 11 | X53: 0 | Y53: 11 | Z53: 0 | AA53: 11 | AB53: 9 | AC53: 1 | AD53: 11
B55: 4.5 | C55: 6.5 | D55: 8 | E55: 3 | F55: 5 | G55: 4 | H55: 7 | I55: 0 | J55: 1 | K55: 4.5 | L55: 8.5 | M55: 5 | N55: 3.5 | O55: 4.5 | P55: 5.5 | Q55: 2.5 | R55: 1 | S55: 11 | T55: 2.5 | U55: 5 | V55: 1 | W55: 7 | X55: 0 | Y55: 7.5 | Z55: 0 | AA55: 6.5 | AB55: 6 | AC55: 1 | AD55: 6.5
A56: Rachel Hawkridge | B56: 5 | C56: 23 | D56: 23 | E56: 16 | F56: 22 | G56: 1 | H56: 24 | I56: 11 | J56: 0 | K56: 18 | L56: 23 | M56: 2 | N56: 22 | O56: 22 | P56: 21 | Q56: 2 | R56: 2 | S56: 3 | T56: 24 | U56: 0 | V56: 0 | W56: 22 | X56: 5 | Y56: 17 | Z56: 6 | AA56: 24 | AB56: 16 | AC56: 0 | AD56: 22
B58: 4.5 | C58: 10 | D58: 12.5 | E58: 11 | F58: 16 | G58: 1 | H58: 14 | I58: 10.5 | J58: 0 | K58: 9 | L58: 20 | M58: 1 | N58: 18 | O58: 13 | P58: 12 | Q58: 1 | R58: 1 | S58: 2.5 | T58: 24 | U58: 0 | V58: 0 | W58: 11 | X58: 2 | Y58: 7 | Z58: 2 | AA58: 16.5 | AB58: 10 | AC58: 0 | AD58: 15.5
A59: Vicki Kirkland | B59: 33 | C59: 49 | D59: 46 | E59: 1 | F59: 48 | G59: 30 | H59: 51 | I59: 1 | J59: 5 | K59: 49 | L59: 44 | M59: 47 | N59: 29 | O59: 44 | P59: 48 | Q59: 21 | R59: 4 | S59: 7 | T59: 0 | U59: 51 | V59: 2 | W59: 44 | X59: 8 | Y59: 48 | Z59: 0 | AA59: 49 | AB59: 40 | AC59: 8 | AD59: 50
B61: 26.5 | C61: 22 | D61: 20.5 | E61: 1 | F61: 35 | G61: 13.5 | H61: 27 | I61: 1 | J61: 2 | K61: 23.5 | L61: 40 | M61: 23 | N61: 26.5 | O61: 30.5 | P61: 30 | Q61: 11 | R61: 3 | S61: 5 | T61: 0 | U61: 51 | V61: 1 | W61: 22 | X61: 3 | Y61: 28 | Z61: 0 | AA61: 36 | AB61: 28.5 | AC61: 2 | AD61: 27.5
A62: David Blau | B62: 9 | C62: 16 | D62: 16 | E62: 0 | F62: 16 | G62: 8 | H62: 16 | I62: 0 | J62: 3 | K62: 16 | L62: 16 | M62: 16 | N62: 9 | O62: 14 | P62: 14 | Q62: 9 | R62: 0 | S62: 1 | T62: 0 | U62: 2 | V62: 16 | W62: 16 | X62: 0 | Y62: 15 | Z62: 0 | AA62: 16 | AB62: 13 | AC62: 3 | AD62: 16
B64: 5 | C64: 10 | D64: 10 | E64: 0 | F64: 11.5 | G64: 4 | H64: 11 | I64: 0 | J64: 1 | K64: 10 | L64: 9.5 | M64: 9.5 | N64: 6 | O64: 7.5 | P64: 9 | Q64: 8 | R64: 0 | S64: 1 | T64: 0 | U64: 1 | V64: 16 | W64: 9 | X64: 0 | Y64: 9 | Z64: 0 | AA64: 10 | AB64: 8.5 | AC64: 2 | AD64: 10
A65: Andy Wolf | B65: 45 | C65: 85 | D65: 85 | E65: 18 | F65: 84 | G65: 36 | H65: 88 | I65: 12 | J65: 7 | K65: 80 | L65: 82 | M65: 56 | N65: 57 | O65: 78 | P65: 81 | Q65: 30 | R65: 6 | S65: 11 | T65: 22 | U65: 44 | V65: 16 | W65: 88 | X65: 12 | Y65: 76 | Z65: 6 | AA65: 86 | AB65: 66 | AC65: 11 | AD65: 81
B67: 15.5 | C67: 76.5 | D67: 74 | E67: 9 | F67: 56 | G67: 30.5 | H67: 76.5 | I67: 5.5 | J67: 7 | K67: 73.5 | L67: 37.5 | M67: 52.5 | N67: 26.5 | O67: 50.5 | P67: 62.5 | Q67: 25.5 | R67: 4.5 | S67: 7 | T67: 11 | U67: 22 | V67: 9 | W67: 88 | X67: 12 | Y67: 47.5 | Z67: 3 | AA67: 54.5 | AB67: 48 | AC67: 11 | AD67: 68
A68: Sam Goldstein | B68: 12 | C68: 17 | D68: 15 | E68: 7 | F68: 18 | G68: 5 | H68: 20 | I68: 6 | J68: 0 | K68: 19 | L68: 14 | M68: 7 | N68: 16 | O68: 19 | P68: 20 | Q68: 5 | R68: 0 | S68: 0 | T68: 5 | U68: 8 | V68: 0 | W68: 12 | X68: 20 | Y68: 18 | Z68: 0 | AA68: 20 | AB68: 14 | AC68: 0 | AD68: 13
B70: 4.5 | C70: 14.5 | D70: 13 | E70: 3 | F70: 12.5 | G70: 3 | H70: 18.5 | I70: 3 | J70: 0 | K70: 15 | L70: 8.5 | M70: 5 | N70: 10 | O70: 15 | P70: 17 | Q70: 4 | R70: 0 | S70: 0 | T70: 2 | U70: 3 | V70: 0 | W70: 12 | X70: 20 | Y70: 11 | Z70: 0 | AA70: 14 | AB70: 12 | AC70: 0 | AD70: 9
A71: Norm Olsen | B71: 47 | C71: 82 | D71: 80 | E71: 19 | F71: 79 | G71: 36 | H71: 85 | I71: 7 | J71: 5 | K71: 77 | L71: 76 | M71: 61 | N71: 55 | O71: 74 | P71: 77 | Q71: 31 | R71: 6 | S71: 11 | T71: 17 | U71: 48 | V71: 15 | W71: 76 | X71: 18 | Y71: 85 | Z71: 0 | AA71: 84 | AB71: 66 | AC71: 11 | AD71: 80
B73: 15 | C73: 50.5 | D73: 48 | E73: 10 | F73: 36 | G73: 24 | H73: 48.5 | I73: 3 | J73: 3 | K73: 50.5 | L73: 43 | M73: 34 | N73: 35.5 | O73: 36.5 | P73: 38.5 | Q73: 22 | R73: 2.5 | S73: 7.5 | T73: 7 | U73: 28 | V73: 9 | W73: 47.5 | X73: 11 | Y73: 85 | Z73: 0 | AA73: 46.5 | AB73: 35 | AC73: 6 | AD73: 53.5
A74: Don Willis | B74: 1 | C74: 5 | D74: 6 | E74: 0 | F74: 6 | G74: 0 | H74: 6 | I74: 6 | J74: 0 | K74: 6 | L74: 6 | M74: 0 | N74: 6 | O74: 6 | P74: 6 | Q74: 0 | R74: 0 | S74: 0 | T74: 6 | U74: 0 | V74: 0 | W74: 6 | X74: 0 | Y74: 0 | Z74: 6 | AA74: 6 | AB74: 0 | AC74: 0 | AD74: 6
B76: 0 | C76: 2 | D76: 0.5 | E76: 0 | F76: 1 | G76: 0 | H76: 2 | I76: 2.5 | J76: 0 | K76: 2 | L76: 1.5 | M76: 0 | N76: 1 | O76: 2 | P76: 2 | Q76: 0 | R76: 0 | S76: 0 | T76: 2 | U76: 0 | V76: 0 | W76: 3 | X76: 0 | Y76: 0 | Z76: 6 | AA76: 2 | AB76: 0 | AC76: 0 | AD76: 2
A77: Dr. Jim Lark | B77: 50 | C77: 92 | D77: 91 | E77: 19 | F77: 90 | G77: 38 | H77: 96 | I77: 14 | J77: 7 | K77: 88 | L77: 86 | M77: 64 | N77: 64 | O77: 85 | P77: 89 | Q77: 32 | R77: 6 | S77: 11 | T77: 24 | U77: 49 | V77: 16 | W77: 86 | X77: 20 | Y77: 84 | Z77: 6 | AA77: 96 | AB77: 71 | AC77: 11 | AD77: 89
B79: 36.5 | C79: 58.5 | D79: 60.5 | E79: 9 | F79: 67.5 | G79: 21.5 | H79: 62.5 | I79: 9 | J79: 4 | K79: 58 | L79: 60.5 | M79: 35 | N79: 45 | O79: 65 | P79: 66 | Q79: 19.5 | R79: 6 | S79: 6.5 | T79: 16.5 | U79: 36 | V79: 10 | W79: 54.5 | X79: 14 | Y79: 46.5 | Z79: 2 | AA79: 96 | AB79: 55.5 | AC79: 6.5 | AD79: 59
A80: Dan Karlan | B80: 33 | C80: 70 | D80: 70 | E80: 16 | F80: 69 | G80: 34 | H80: 74 | I80: 6 | J80: 4 | K80: 65 | L80: 64 | M80: 50 | N80: 46 | O80: 64 | P80: 65 | Q80: 29 | R80: 6 | S80: 9 | T80: 16 | U80: 40 | V80: 13 | W80: 66 | X80: 14 | Y80: 66 | Z80: 0 | AA80: 71 | AB80: 74 | AC80: 0 | AD80: 67
B82: 24.5 | C82: 49 | D82: 49.5 | E82: 9 | F82: 53.5 | G82: 23.5 | H82: 53 | I82: 3 | J82: 1 | K82: 49.5 | L82: 42.5 | M82: 33.5 | N82: 32.5 | O82: 53.5 | P82: 52 | Q82: 19.5 | R82: 5 | S82: 6 | T82: 10 | U82: 28.5 | V82: 8.5 | W82: 48 | X82: 12 | Y82: 35 | Z82: 0 | AA82: 55.5 | AB82: 74 | AC82: 0 | AD82: 47
A83: Audrey Capozzi | B83: 10 | C83: 11 | D83: 11 | E83: 0 | F83: 11 | G83: 2 | H83: 11 | I83: 0 | J83: 3 | K83: 11 | L83: 11 | M83: 11 | N83: 7 | O83: 10 | P83: 11 | Q83: 3 | R83: 0 | S83: 1 | T83: 0 | U83: 8 | V83: 3 | W83: 11 | X83: 0 | Y83: 11 | Z83: 0 | AA83: 11 | AB83: 0 | AC83: 11 | AD83: 11
B85: 4 | C85: 11 | D85: 11 | E85: 0 | F85: 9.5 | G85: 2 | H85: 10.5 | I85: 0 | J85: 3 | K85: 10.5 | L85: 3.5 | M85: 11 | N85: 2 | O85: 8 | P85: 10 | Q85: 3 | R85: 0 | S85: 1 | T85: 0 | U85: 2 | V85: 2 | W85: 11 | X85: 0 | Y85: 6 | Z85: 0 | AA85: 6.5 | AB85: 0 | AC85: 11 | AD85: 10
A86: Dianna Visek | B86: 48 | C86: 89 | D86: 86 | E86: 16 | F86: 85 | G86: 39 | H86: 91 | I86: 12 | J86: 7 | K86: 84 | L86: 83 | M86: 65 | N86: 59 | O86: 80 | P86: 83 | Q86: 33 | R86: 6 | S86: 11 | T86: 22 | U86: 50 | V86: 16 | W86: 81 | X86: 13 | Y86: 80 | Z86: 6 | AA86: 89 | AB86: 67 | AC86: 11 | AD86: 91
B88: 20 | C88: 73 | D88: 74 | E88: 8.5 | F88: 58.5 | G88: 35.5 | H88: 73 | I88: 6.5 | J88: 6 | K88: 74.5 | L88: 45 | M88: 56 | N88: 34 | O88: 49.5 | P88: 63.5 | Q88: 29 | R88: 5.5 | S88: 6.5 | T88: 15.5 | U88: 27.5 | V88: 10 | W88: 68 | X88: 9 | Y88: 53.5 | Z88: 2 | AA88: 59 | AB88: 47 | AC88: 10 | AD88: 91
B91: Mark Hinkle | C91: Mark Rutherford | D91: Alicia Mattson | E91: James Oaksun | F91: Bill Redpath | G91: Randy Eshelman | H91: Kevin Knedler | I91: David Nolan | J91: Brett Pojunis | K91: Wayne Allyn Root | L91: Dr. Mary Ruwart | M91: Rebecca Sink-Burris | N91: Doug Craig | O91: Stewart Flood | P91: Dan Wiener | Q91: Dr. Scott Lieberman | R91: Guy McLendon | S91: Brad Ploeger | T91: Rachel Hawkridge | U91: Vicki Kirkland | V91: David Blau | W91: Andy Wolf | X91: Sam Goldstein | Y91: Norm Olsen | Z91: Don Willis | AA91: Dr. Jim Lark | AB91: Dan Karlan | AC91: Audrey Capozzi | AD91: Dianna Visek
A92: Mark Hinkle | B92: 1 | C92: 0.3229166667 | D92: 0.3829787234 | E92: 0.6428571429 | F92: 0.693877551 | G92: 0.2954545455 | H92: 0.431372549 | I92: 0.7 | J92: 0.2 | K92: 0.375 | L92: 0.7395833333 | M92: 0.375 | N92: 0.6833333333 | O92: 0.7826086957 | P92: 0.5212765957 | Q92: 0.3095238095 | R92: 1 | S92: 0.75 | T92: 0.9 | U92: 0.803030303 | V92: 0.5555555556 | W92: 0.3444444444 | X92: 0.375 | Y92: 0.3191489362 | Z92: 0 | AA92: 0.73 | AB92: 0.7424242424 | AC92: 0.4 | AD92: 0.4166666667
A95: Mark Rutherford | B95: 0.3229166667 | C95: 1 | D95: 0.8888888889 | E95: 0.4444444444 | F95: 0.6629213483 | G95: 0.8375 | H95: 0.8244680851 | I95: 0.2916666667 | J95: 1 | K95: 0.8965517241 | L95: 0.4523809524 | M95: 0.9307692308 | N95: 0.4918032787 | O95: 0.6071428571 | P95: 0.773255814 | Q95: 0.8939393939 | R95: 0.6666666667 | S95: 0.5909090909 | T95: 0.4347826087 | U95: 0.4489795918 | V95: 0.625 | W95: 0.9 | X95: 0.8529411765 | Y95: 0.6158536585 | Z95: 0.4 | AA95: 0.6358695652 | AB95: 0.7 | AC95: 1 | AD95: 0.8202247191
A98: Alicia Mattson | B98: 0.3829787234 | C98: 0.8888888889 | D98: 1 | E98: 0.4117647059 | F98: 0.6931818182 | G98: 0.8026315789 | H98: 0.8548387097 | I98: 0.3333333333 | J98: 0.8571428571 | K98: 0.9058823529 | L98: 0.4573170732 | M98: 0.9206349206 | N98: 0.5245901639 | O98: 0.6585365854 | P98: 0.7976190476 | Q98: 0.9193548387 | R98: 0.6666666667 | S98: 0.7272727273 | T98: 0.5434782609 | U98: 0.4456521739 | V98: 0.625 | W98: 0.8705882353 | X98: 0.8666666667 | Y98: 0.6 | Z98: 0.08333333333 | AA98: 0.6648351648 | AB98: 0.7071428571 | AC98: 1 | AD98: 0.8604651163
A101: James Oaksun | B101: 0.6428571429 | C101: 0.4444444444 | D101: 0.4117647059 | E101: 1 | F101: 0.5294117647 | G101: 1 | H101: 0.5263157895 | I101: 1 | K101: 0.3333333333 | L101: 0.8055555556 | M101: 1 | N101: 0.84375 | O101: 0.5 | P101: 0.4375 | Q101: 0.6666666667 | R101: 0.75 | S101: 1 | T101: 0.6875 | U101: 1 | W101: 0.5 | X101: 0.4285714286 | Y101: 0.5263157895 | AA101: 0.4736842105 | AB101: 0.5625 | AD101: 0.53125
A104: Bill Redpath | B104: 0.693877551 | C104: 0.6629213483 | D104: 0.6931818182 | E104: 0.5294117647 | F104: 1 | G104: 0.6025641026 | H104: 0.722826087 | I104: 0.625 | J104: 0.7142857143 | K104: 0.7202380952 | L104: 0.6707317073 | M104: 0.7301587302 | N104: 0.6833333333 | O104: 0.7530120482 | P104: 0.8294117647 | Q104: 0.5967741935 | R104: 0.75 | S104: 0.5 | T104: 0.7272727273 | U104: 0.7291666667 | V104: 0.71875 | W104: 0.6666666667 | X104: 0.6944444444 | Y104: 0.4556962025 | Z104: 0.1666666667 | AA104: 0.75 | AB104: 0.7753623188 | AC104: 0.8636363636 | AD104: 0.6882352941
A107: Randy Eshelman | B107: 0.2954545455 | C107: 0.8375 | D107: 0.8026315789 | E107: 1 | F107: 0.6025641026 | G107: 1 | H107: 0.7317073171 | J107: 1 | K107: 0.8461538462 | L107: 0.4342105263 | M107: 0.8684210526 | N107: 0.3260869565 | O107: 0.484375 | P107: 0.7105263158 | Q107: 0.8333333333 | R107: 0.75 | S107: 0.5714285714 | T107: 1 | U107: 0.45 | V107: 0.5 | W107: 0.8472222222 | X107: 0.6 | Y107: 0.6666666667 | AA107: 0.5657894737 | AB107: 0.6911764706 | AC107: 1 | AD107: 0.9102564103
A110: Kevin Knedler | B110: 0.431372549 | C110: 0.8244680851 | D110: 0.8548387097 | E110: 0.5263157895 | F110: 0.722826087 | G110: 0.7317073171 | H110: 1 | I110: 0.5357142857 | J110: 0.8571428571 | K110: 0.8611111111 | L110: 0.5170454545 | M110: 0.8230769231 | N110: 0.5846153846 | O110: 0.683908046 | P110: 0.8055555556 | Q110: 0.8382352941 | R110: 0.8333333333 | S110: 0.6363636364 | T110: 0.5833333333 | U110: 0.5294117647 | V110: 0.6875 | W110: 0.8693181818 | X110: 0.925 | Y110: 0.5705882353 | Z110: 0.3333333333 | AA110: 0.6510416667 | AB110: 0.7162162162 | AC110: 0.9545454545 | AD110: 0.8021978022
A113: David Nolan | B113: 0.7 | C113: 0.2916666667 | D113: 0.3333333333 | E113: 1 | F113: 0.625 | H113: 0.5357142857 | I113: 1 | K113: 0.4230769231 | L113: 0.8461538462 | M113: 0.5 | N113: 0.8076923077 | O113: 0.5357142857 | P113: 0.5 | Q113: 0.5 | T113: 0.9545454545 | U113: 1 | W113: 0.4583333333 | X113: 0.5 | Y113: 0.4285714286 | Z113: 0.4166666667 | AA113: 0.6428571429 | AB113: 0.5 | AD113: 0.5416666667
A116: Brett Pojunis | B116: 0.2 | C116: 1 | D116: 0.8571428571 | F116: 0.7142857143 | G116: 1 | H116: 0.8571428571 | J116: 1 | K116: 0.9285714286 | L116: 0.4166666667 | M116: 1 | N116: 0.4 | O116: 0.4285714286 | P116: 1 | Q116: 0 | S116: 1 | U116: 0.4 | V116: 0.3333333333 | W116: 1 | Y116: 0.6 | AA116: 0.5714285714 | AB116: 0.25 | AC116: 1 | AD116: 0.8571428571
A119: Wayne Allyn Root | B119: 0.375 | C119: 0.8965517241 | D119: 0.9058823529 | E119: 0.3333333333 | F119: 0.7202380952 | G119: 0.8461538462 | H119: 0.8611111111 | I119: 0.4230769231 | J119: 0.9285714286 | K119: 1 | L119: 0.475 | M119: 0.9296875 | N119: 0.5083333333 | O119: 0.6707317073 | P119: 0.813253012 | Q119: 0.8939393939 | R119: 1 | S119: 0.5625 | T119: 0.5 | U119: 0.4795918367 | V119: 0.625 | W119: 0.91875 | X119: 0.7894736842 | Y119: 0.6558441558 | Z119: 0.3333333333 | AA119: 0.6590909091 | AB119: 0.7615384615 | AC119: 0.9545454545 | AD119: 0.8869047619
A122: Dr. Mary Ruwart | B122: 0.7395833333 | C122: 0.4523809524 | D122: 0.4573170732 | E122: 0.8055555556 | F122: 0.6707317073 | G122: 0.4342105263 | H122: 0.5170454545 | I122: 0.8461538462 | J122: 0.4166666667 | K122: 0.475 | L122: 1 | M122: 0.4298245614 | N122: 0.8793103448 | O122: 0.6688311688 | P122: 0.5875 | Q122: 0.5161290323 | R122: 0.6666666667 | S122: 0.7727272727 | T122: 0.8695652174 | U122: 0.9090909091 | V122: 0.59375 | W122: 0.4573170732 | X122: 0.6071428571 | Y122: 0.5657894737 | Z122: 0.25 | AA122: 0.7034883721 | AB122: 0.6640625 | AC122: 0.3181818182 | AD122: 0.5421686747
A125: Rebecca Sink-Burris | B125: 0.375 | C125: 0.9307692308 | D125: 0.9206349206 | E125: 1 | F125: 0.7301587302 | G125: 0.8684210526 | H125: 0.8230769231 | I125: 0.5 | J125: 1 | K125: 0.9296875 | L125: 0.4298245614 | M125: 1 | N125: 0.4189189189 | O125: 0.5701754386 | P125: 0.8305084746 | Q125: 0.8793103448 | R125: 0.75 | S125: 0.625 | T125: 0.5 | U125: 0.4893617021 | V125: 0.59375 | W125: 0.9375 | X125: 0.7142857143 | Y125: 0.5573770492 | AA125: 0.546875 | AB125: 0.67 | AC125: 1 | AD125: 0.8615384615
A128: Doug Craig | B128: 0.6833333333 | C128: 0.4918032787 | D128: 0.5245901639 | E128: 0.84375 | F128: 0.6833333333 | G128: 0.3260869565 | H128: 0.5846153846 | I128: 0.8076923077 | J128: 0.4 | K128: 0.5083333333 | L128: 0.8793103448 | M128: 0.4189189189 | N128: 1 | O128: 0.6379310345 | P128: 0.625 | Q128: 0.5714285714 | R128: 1 | S128: 0.875 | T128: 0.8181818182 | U128: 0.9137931034 | V128: 0.6666666667 | W128: 0.4649122807 | X128: 0.625 | Y128: 0.6454545455 | Z128: 0.1666666667 | AA128: 0.703125 | AB128: 0.7065217391 | AC128: 0.2857142857 | AD128: 0.5762711864
A131: Stewart Flood | B131: 0.7826086957 | C131: 0.6071428571 | D131: 0.6585365854 | E131: 0.5 | F131: 0.7530120482 | G131: 0.484375 | H131: 0.683908046 | I131: 0.5357142857 | J131: 0.4285714286 | K131: 0.6707317073 | L131: 0.6688311688 | M131: 0.5701754386 | N131: 0.6379310345 | O131: 1 | P131: 0.7125 | Q131: 0.4482758621 | R131: 1 | S131: 0.75 | T131: 0.5909090909 | U131: 0.6931818182 | V131: 0.5357142857 | W131: 0.6474358974 | X131: 0.7894736842 | Y131: 0.4932432432 | Z131: 0.3333333333 | AA131: 0.7647058824 | AB131: 0.8359375 | AC131: 0.8 | AD131: 0.61875
A134: Dan Wiener | B134: 0.5212765957 | C134: 0.773255814 | D134: 0.7976190476 | E134: 0.4375 | F134: 0.8294117647 | G134: 0.7105263158 | H134: 0.8055555556 | I134: 0.5 | J134: 1 | K134: 0.813253012 | L134: 0.5875 | M134: 0.8305084746 | N134: 0.625 | O134: 0.7125 | P134: 1 | Q134: 0.6296296296 | R134: 0.6 | S134: 0.55 | T134: 0.5714285714 | U134: 0.625 | V134: 0.6428571429 | W134: 0.7716049383 | X134: 0.85 | Y134: 0.5 | Z134: 0.3333333333 | AA134: 0.7415730337 | AB134: 0.8 | AC134: 0.9090909091 | AD134: 0.765060241
A137: Dr. Scott Lieberman | B137: 0.3095238095 | C137: 0.8939393939 | D137: 0.9193548387 | E137: 0.6666666667 | F137: 0.5967741935 | G137: 0.8333333333 | H137: 0.8382352941 | I137: 0.5 | J137: 0 | K137: 0.8939393939 | L137: 0.5161290323 | M137: 0.8793103448 | N137: 0.5714285714 | O137: 0.4482758621 | P137: 0.6296296296 | Q137: 1 | R137: 1 | S137: 0.8333333333 | T137: 0.5 | U137: 0.5238095238 | V137: 0.8888888889 | W137: 0.85 | X137: 0.8 | Y137: 0.7096774194 | AA137: 0.609375 | AB137: 0.6724137931 | AC137: 1 | AD137: 0.8787878788
A140: Guy McLendon | B140: 1 | C140: 0.6666666667 | D140: 0.6666666667 | E140: 0.75 | F140: 0.75 | G140: 0.75 | H140: 0.8333333333 | K140: 1 | L140: 0.6666666667 | M140: 0.75 | N140: 1 | O140: 1 | P140: 0.6 | Q140: 1 | R140: 1 | S140: 0.5 | T140: 0.5 | U140: 0.75 | W140: 0.75 | Y140: 0.4166666667 | AA140: 1 | AB140: 0.8333333333 | AD140: 0.9166666667
A143: Brad Ploeger | B143: 0.75 | C143: 0.5909090909 | D143: 0.7272727273 | E143: 1 | F143: 0.5 | G143: 0.5714285714 | H143: 0.6363636364 | J143: 1 | K143: 0.5625 | L143: 0.7727272727 | M143: 0.625 | N143: 0.875 | O143: 0.75 | P143: 0.55 | Q143: 0.8333333333 | R143: 0.5 | S143: 1 | T143: 0.8333333333 | U143: 0.7142857143 | V143: 1 | W143: 0.6363636364 | Y143: 0.6818181818 | AA143: 0.5909090909 | AB143: 0.6666666667 | AC143: 1 | AD143: 0.5909090909
A146: Rachel Hawkridge | B146: 0.9 | C146: 0.4347826087 | D146: 0.5434782609 | E146: 0.6875 | F146: 0.7272727273 | G146: 1 | H146: 0.5833333333 | I146: 0.9545454545 | K146: 0.5 | L146: 0.8695652174 | M146: 0.5 | N146: 0.8181818182 | O146: 0.5909090909 | P146: 0.5714285714 | Q146: 0.5 | R146: 0.5 | S146: 0.8333333333 | T146: 1 | W146: 0.5 | X146: 0.4 | Y146: 0.4117647059 | Z146: 0.3333333333 | AA146: 0.6875 | AB146: 0.625 | AD146: 0.7045454545
